Workbook

Sheet Menu
E26: Empresa: | G26: Empresa ABCDE

Sheet Receitas
B11: Entradas de Caixa
B13: 1.1 | C13: Receitas 1 | E13: 1.2 | F13: Receitas 2 | H13: 1.3 | I13: Outras Receitas | K13: 1.4
B14: 1.1.1 | C14: Vendas Diretas | E14: 1.2.1 | H14: 1.3.1 | K14: 1.4.1
B15: 1.1.2 | C15: Vendas Online | E15: 1.2.2 | H15: 1.3.2 | K15: 1.4.2
B16: 1.1.3 | C16: Vendas Representantes | E16: 1.2.3 | H16: 1.3.3 | K16: 1.4.3
B17: 1.1.4 | E17: 1.2.4 | H17: 1.3.4 | K17: 1.4.4
B18: 1.1.5 | E18: 1.2.5 | H18: 1.3.5 | K18: 1.4.5
B19: 1.1.6 | E19: 1.2.6 | H19: 1.3.6 | K19: 1.4.6
B20: 1.1.7 | E20: 1.2.7 | H20: 1.3.7 | K20: 1.4.7
B21: 1.1.8 | E21: 1.2.8 | H21: 1.3.8 | K21: 1.4.8
B22: 1.1.9 | E22: 1.2.9 | H22: 1.3.9 | K22: 1.4.9
B23: 1.1.10 | E23: 1.2.10 | H23: 1.3.10 | K23: 1.4.10
B24: 1.1.11 | E24: 1.2.11 | H24: 1.3.11 | K24: 1.4.11
B25: 1.1.12 | E25: 1.2.12 | H25: 1.3.12 | K25: 1.4.12
B26: 1.1.13 | E26: 1.2.13 | H26: 1.3.13 | K26: 1.4.13
B27: 1.1.14 | E27: 1.2.14 | H27: 1.3.14 | K27: 1.4.14
B28: 1.1.15 | E28: 1.2.15 | H28: 1.3.15 | K28: 1.4.15
B29: 1.1.16 | E29: 1.2.16 | H29: 1.3.16 | K29: 1.4.16
B30: 1.1.17 | E30: 1.2.17 | H30: 1.3.17 | K30: 1.4.17
B31: 1.1.18 | E31: 1.2.18 | H31: 1.3.18 | K31: 1.4.18
B32: 1.1.19 | E32: 1.2.19 | H32: 1.3.19 | K32: 1.4.19
B33: 1.1.20 | E33: 1.2.20 | H33: 1.3.20 | K33: 1.4.20
B34: 1.1.21 | E34: 1.2.21 | H34: 1.3.21 | K34: 1.4.21
B35: 1.1.22 | E35: 1.2.22 | H35: 1.3.22 | K35: 1.4.22
B36: 1.1.23 | E36: 1.2.23 | H36: 1.3.23 | K36: 1.4.23
B37: 1.1.24 | E37: 1.2.24 | H37: 1.3.24 | K37: 1.4.24
B38: 1.1.25 | E38: 1.2.25 | H38: 1.3.25 | K38: 1.4.25
B39: 1.1.26 | E39: 1.2.26 | H39: 1.3.26 | K39: 1.4.26
B40: 1.1.27 | E40: 1.2.27 | H40: 1.3.27 | K40: 1.4.27
B41: 1.1.28 | E41: 1.2.28 | H41: 1.3.28 | K41: 1.4.28
B42: 1.1.29 | E42: 1.2.29 | H42: 1.3.29 | K42: 1.4.29
B43: 1.1.30 | E43: 1.2.30 | H43: 1.3.30 | K43: 1.4.30
B44: 1.1.31 | E44: 1.2.31 | H44: 1.3.31 | K44: 1.4.31
B45: 1.1.32 | E45: 1.2.32 | H45: 1.3.32 | K45: 1.4.32
B46: 1.1.33 | E46: 1.2.33 | H46: 1.3.33 | K46: 1.4.33
B47: 1.1.34 | E47: 1.2.34 | H47: 1.3.34 | K47: 1.4.34
B48: 1.1.35 | E48: 1.2.35 | H48: 1.3.35 | K48: 1.4.35
B49: 1.1.36 | E49: 1.2.36 | H49: 1.3.36 | K49: 1.4.36
B50: 1.1.37 | E50: 1.2.37 | H50: 1.3.37 | K50: 1.4.37
B51: 1.1.38 | E51: 1.2.38 | H51: 1.3.38 | K51: 1.4.38
B52: 1.1.39 | E52: 1.2.39 | H52: 1.3.39 | K52: 1.4.39
B53: 1.1.40 | E53: 1.2.40 | H53: 1.3.40 | K53: 1.4.40
B54: 1.1.41 | E54: 1.2.41 | H54: 1.3.41 | K54: 1.4.41
B55: 1.1.42 | E55: 1.2.42 | H55: 1.3.42 | K55: 1.4.42
B56: 1.1.43 | E56: 1.2.43 | H56: 1.3.43 | K56: 1.4.43
B57: 1.1.44 | E57: 1.2.44 | H57: 1.3.44 | K57: 1.4.44
B58: 1.1.45 | E58: 1.2.45 | H58: 1.3.45 | K58: 1.4.45
B59: 1.1.46 | E59: 1.2.46 | H59: 1.3.46 | K59: 1.4.46
B60: 1.1.47 | E60: 1.2.47 | H60: 1.3.47 | K60: 1.4.47
B61: 1.1.48 | E61: 1.2.48 | H61: 1.3.48 | K61: 1.4.48
B62: 1.1.49 | E62: 1.2.49 | H62: 1.3.49 | K62: 1.4.49
B63: 1.1.50 | E63: 1.2.50 | H63: 1.3.50 | K63: 1.4.50

Sheet Controle de Custos
C10: Janeiro | F10: Fevereiro | I10: Março | L10: Abril | O10: Maio | R10: Junho | U10: Julho | X10: Agosto | AA10: Setembro | AD10: Outubro | AG10: Novembro | AJ10: Dezembro | AM10: Total
B11: Controle de Custos | C11: Previsto | D11: Realizado | E11: % | F11: Previsto | G11: Realizado | H11: % | I11: Previsto | J11: Realizado | K11: % | L11: Previsto | M11: Realizado | N11: % | O11: Previsto | P11: Realizado | Q11: % | R11: Previsto | S11: Realizado | T11: % | U11: Previsto | V11: Realizado | W11: % | X11: Previsto | Y11: Realizado | Z11: % | AA11: Previsto | AB11: Realizado | AC11: % | AD11: Previsto | AE11: Realizado | AF11: % | AG11: Previsto | AH11: Realizado | AI11: % | AJ11: Previsto | AK11: Realizado | AL11: % | AM11: Previsto | AN11: Realizado | AO11: %
B12: ENTRADAS | C12: =SUM(C13:C16) -> 10500 | D12: =SUM(D13:D16) -> 9011 | E12: =IFERROR(D12/C12,"") -> 0.8581904762 | F12: =SUM(F13:F16) -> 0 | G12: =SUM(G13:G16) -> 0 | H12: =IFERROR(G12/F12,"") ->  | I12: =SUM(I13:I16) -> 0 | J12: =SUM(J13:J16) -> 0 | K12: =IFERROR(J12/I12,"") ->  | L12: =SUM(L13:L16) -> 0 | M12: =SUM(M13:M16) -> 0 | N12: =IFERROR(M12/L12,"") ->  | O12: =SUM(O13:O16) -> 0 | P12: =SUM(P13:P16) -> 0 | Q12: =IFERROR(P12/O12,"") ->  | R12: =SUM(R13:R16) -> 0 | S12: =SUM(S13:S16) -> 0 | T12: =IFERROR(S12/R12,"") ->  | U12: =SUM(U13:U16) -> 0 | V12: =SUM(V13:V16) -> 0 | W12: =IFERROR(V12/U12,"") ->  | X12: =SUM(X13:X16) -> 0 | Y12: =SUM(Y13:Y16) -> 0 | Z12: =IFERROR(Y12/X12,"") ->  | AA12: =SUM(AA13:AA16) -> 0 | AB12: =SUM(AB13:AB16) -> 0 | AC12: =IFERROR(AB12/AA12,"") ->  | AD12: =SUM(AD13:AD16) -> 0 | AE12: =SUM(AE13:AE16) -> 0 | AF12: =IFERROR(AE12/AD12,"") ->  | AG12: =SUM(AG13:AG16) -> 0 | AH12: =SUM(AH13:AH16) -> 0 | AI12: =IFERROR(AH12/AG12,"") ->  | AJ12: =SUM(AJ13:AJ16) -> 0 | AK12: =SUM(AK13:AK16) -> 0 | AL12: =IFERROR(AK12/AJ12,"") ->  | AM12: =SUM(AM13:AM16) -> 10500 | AN12: =SUM(AN13:AN16) -> 9011 | AO12: =IFERROR(AN12/AM12,"") -> 0.8581904762
B13: ='Resumo (2)'!B16 -> 1.1 Receitas 1 | C13: 5500 | D13: ='Resumo (2)'!C16 -> 5000 | E13: =IFERROR(D13/C13,"") -> 0.9090909091 | G13: ='Resumo (2)'!D16 -> 0 | H13: =IFERROR(G13/F13,"") ->  | J13: ='Resumo (2)'!E16 -> 0 | K13: =IFERROR(J13/I13,"") ->  | M13: ='Resumo (2)'!F16 -> 0 | N13: =IFERROR(M13/L13,"") ->  | P13: ='Resumo (2)'!G16 -> 0 | Q13: =IFERROR(P13/O13,"") ->  | S13: ='Resumo (2)'!H16 -> 0 | T13: =IFERROR(S13/R13,"") ->  | V13: ='Resumo (2)'!I16 -> 0 | W13: =IFERROR(V13/U13,"") ->  | Y13: ='Resumo (2)'!J16 -> 0 | Z13: =IFERROR(Y13/X13,"") ->  | AB13: ='Resumo (2)'!K16 -> 0 | AC13: =IFERROR(AB13/AA13,"") ->  | AE13: ='Resumo (2)'!L16 -> 0 | AF13: =IFERROR(AE13/AD13,"") ->  | AH13: ='Resumo (2)'!M16 -> 0 | AI13: =IFERROR(AH13/AG13,"") ->  | AK13: ='Resumo (2)'!N16 -> 0 | AL13: =IFERROR(AK13/AJ13,"") ->  | AM13: =SUM(C13,F13,I13,L13,O13,R13,U13,X13,AA13,AD13,AG13,AJ13) -> 5500 | AN13: =SUM(D13,G13,J13,M13,P13,S13,V13,Y13,AB13,AE13,AH13,AK13) -> 5000 | AO13: =IFERROR(AN13/AM13,"") -> 0.9090909091
B14: ='Resumo (2)'!B17 -> 1.2 Receitas 2 | C14: 5000 | D14: ='Resumo (2)'!C17 -> 4011 | E14: =IFERROR(D14/C14,"") -> 0.8022 | G14: ='Resumo (2)'!D17 -> 0 | H14: =IFERROR(G14/F14,"") ->  | J14: ='Resumo (2)'!E17 -> 0 | K14: =IFERROR(J14/I14,"") ->  | M14: ='Resumo (2)'!F17 -> 0 | N14: =IFERROR(M14/L14,"") ->  | P14: ='Resumo (2)'!G17 -> 0 | Q14: =IFERROR(P14/O14,"") ->  | S14: ='Resumo (2)'!H17 -> 0 | T14: =IFERROR(S14/R14,"") ->  | V14: ='Resumo (2)'!I17 -> 0 | W14: =IFERROR(V14/U14,"") ->  | Y14: ='Resumo (2)'!J17 -> 0 | Z14: =IFERROR(Y14/X14,"") ->  | AB14: ='Resumo (2)'!K17 -> 0 | AC14: =IFERROR(AB14/AA14,"") ->  | AE14: ='Resumo (2)'!L17 -> 0 | AF14: =IFERROR(AE14/AD14,"") ->  | AH14: ='Resumo (2)'!M17 -> 0 | AI14: =IFERROR(AH14/AG14,"") ->  | AK14: ='Resumo (2)'!N17 -> 0 | AL14: =IFERROR(AK14/AJ14,"") ->  | AM14: =SUM(C14,F14,I14,L14,O14,R14,U14,X14,AA14,AD14,AG14,AJ14) -> 5000 | AN14: =SUM(D14,G14,J14,M14,P14,S14,V14,Y14,AB14,AE14,AH14,AK14) -> 4011 | AO14: =IFERROR(AN14/AM14,"") -> 0.8022
B15: ='Resumo (2)'!B18 -> 1.3 Outras Receitas | D15: ='Resumo (2)'!C18 -> 0 | G15: ='Resumo (2)'!D18 -> 0 | J15: ='Resumo (2)'!E18 -> 0 | M15: ='Resumo (2)'!F18 -> 0 | P15: ='Resumo (2)'!G18 -> 0 | S15: ='Resumo (2)'!H18 -> 0 | V15: ='Resumo (2)'!I18 -> 0 | Y15: ='Resumo (2)'!J18 -> 0 | AB15: ='Resumo (2)'!K18 -> 0 | AE15: ='Resumo (2)'!L18 -> 0 | AH15: ='Resumo (2)'!M18 -> 0 | AK15: ='Resumo (2)'!N18 -> 0 | AM15: 0 | AN15: 0
B16: ='Resumo (2)'!B19 -> 1.4 | D16: ='Resumo (2)'!C19 -> 0 | G16: ='Resumo (2)'!D19 -> 0 | J16: ='Resumo (2)'!E19 -> 0 | M16: ='Resumo (2)'!F19 -> 0 | P16: ='Resumo (2)'!G19 -> 0 | S16: ='Resumo (2)'!H19 -> 0 | V16: ='Resumo (2)'!I19 -> 0 | Y16: ='Resumo (2)'!J19 -> 0 | AB16: ='Resumo (2)'!K19 -> 0 | AE16: ='Resumo (2)'!L19 -> 0 | AH16: ='Resumo (2)'!M19 -> 0 | AK16: ='Resumo (2)'!N19 -> 0 | AM16: 0 | AN16: 0
B18: SAÍDAS | C18: =SUM(C19:C26) -> 4000 | D18: =SUM(D19:D26) -> 6021 | E18: =IFERROR(D18/C18,"") -> 1.50525 | F18: =SUM(F19:F26) -> 0 | G18: =SUM(G19:G26) -> 0 | H18: =IFERROR(G18/F18,"") ->  | I18: =SUM(I19:I26) -> 0 | J18: =SUM(J19:J26) -> 0 | K18: =IFERROR(J18/I18,"") ->  | L18: =SUM(L19:L26) -> 0 | M18: =SUM(M19:M26) -> 0 | N18: =IFERROR(M18/L18,"") ->  | O18: =SUM(O19:O26) -> 0 | P18: =SUM(P19:P26) -> 0 | Q18: =IFERROR(P18/O18,"") ->  | R18: =SUM(R19:R26) -> 0 | S18: =SUM(S19:S26) -> 0 | T18: =IFERROR(S18/R18,"") ->  | U18: =SUM(U19:U26) -> 0 | V18: =SUM(V19:V26) -> 0 | W18: =IFERROR(V18/U18,"") ->  | X18: =SUM(X19:X26) -> 0 | Y18: =SUM(Y19:Y26) -> 0 | Z18: =IFERROR(Y18/X18,"") ->  | AA18: =SUM(AA19:AA26) -> 0 | AB18: =SUM(AB19:AB26) -> 0 | AC18: =IFERROR(AB18/AA18,"") ->  | AD18: =SUM(AD19:AD26) -> 0 | AE18: =SUM(AE19:AE26) -> 0 | AF18: =IFERROR(AE18/AD18,"") ->  | AG18: =SUM(AG19:AG26) -> 0 | AH18: =SUM(AH19:AH26) -> 0 | AI18: =IFERROR(AH18/AG18,"") ->  | AJ18: =SUM(AJ19:AJ26) -> 0 | AK18: =SUM(AK19:AK26) -> 0 | AL18: =IFERROR(AK18/AJ18,"") ->  | AM18: =SUM(AM19:AM26) -> 4000 | AN18: =SUM(AN19:AN26) -> 6021 | AO18: =IFERROR(AN18/AM18,"") -> 1.50525
B19: ='Resumo (2)'!B22 -> 2.1 Custos Fixos | C19: 3000 | D19: ='Resumo (2)'!C22 -> 2005 | E19: =IFERROR(D19/C19,"") -> 0.6683333333 | G19: ='Resumo (2)'!D22 -> 0 | H19: =IFERROR(G19/F19,"") ->  | J19: ='Resumo (2)'!E22 -> 0 | K19: =IFERROR(J19/I19,"") ->  | M19: ='Resumo (2)'!F22 -> 0 | N19: =IFERROR(M19/L19,"") ->  | P19: ='Resumo (2)'!G22 -> 0 | Q19: =IFERROR(P19/O19,"") ->  | S19: ='Resumo (2)'!H22 -> 0 | T19: =IFERROR(S19/R19,"") ->  | V19: ='Resumo (2)'!I22 -> 0 | W19: =IFERROR(V19/U19,"") ->  | Y19: ='Resumo (2)'!J22 -> 0 | Z19: =IFERROR(Y19/X19,"") ->  | AB19: ='Resumo (2)'!K22 -> 0 | AC19: =IFERROR(AB19/AA19,"") ->  | AE19: ='Resumo (2)'!L22 -> 0 | AF19: =IFERROR(AE19/AD19,"") ->  | AH19: ='Resumo (2)'!M22 -> 0 | AI19: =IFERROR(AH19/AG19,"") ->  | AK19: ='Resumo (2)'!N22 -> 0 | AL19: =IFERROR(AK19/AJ19,"") ->  | AM19: =SUM(C19,F19,I19,L19,O19,R19,U19,X19,AA19,AD19,AG19,AJ19) -> 3000 | AN19: =SUM(D19,G19,J19,M19,P19,S19,V19,Y19,AB19,AE19,AH19,AK19) -> 2005 | AO19: =IFERROR(AN19/AM19,"") -> 0.6683333333
B20: ='Resumo (2)'!B23 -> 2.2 Custos Variáveis | C20: 1000 | D20: ='Resumo (2)'!C23 -> 2007 | E20: =IFERROR(D20/C20,"") -> 2.007 | G20: ='Resumo (2)'!D23 -> 0 | H20: =IFERROR(G20/F20,"") ->  | J20: ='Resumo (2)'!E23 -> 0 | K20: =IFERROR(J20/I20,"") ->  | M20: ='Resumo (2)'!F23 -> 0 | N20: =IFERROR(M20/L20,"") ->  | P20: ='Resumo (2)'!G23 -> 0 | Q20: =IFERROR(P20/O20,"") ->  | S20: ='Resumo (2)'!H23 -> 0 | T20: =IFERROR(S20/R20,"") ->  | V20: ='Resumo (2)'!I23 -> 0 | W20: =IFERROR(V20/U20,"") ->  | Y20: ='Resumo (2)'!J23 -> 0 | Z20: =IFERROR(Y20/X20,"") ->  | AB20: ='Resumo (2)'!K23 -> 0 | AC20: =IFERROR(AB20/AA20,"") ->  | AE20: ='Resumo (2)'!L23 -> 0 | AF20: =IFERROR(AE20/AD20,"") ->  | AH20: ='Resumo (2)'!M23 -> 0 | AI20: =IFERROR(AH20/AG20,"") ->  | AK20: ='Resumo (2)'!N23 -> 0 | AL20: =IFERROR(AK20/AJ20,"") ->  | AM20: =SUM(C20,F20,I20,L20,O20,R20,U20,X20,AA20,AD20,AG20,AJ20) -> 1000 | AN20: =SUM(D20,G20,J20,M20,P20,S20,V20,Y20,AB20,AE20,AH20,AK20) -> 2007 | AO20: =IFERROR(AN20/AM20,"") -> 2.007
B21: ='Resumo (2)'!B24 -> 2.3 Folha de Pagamento | D21: ='Resumo (2)'!C24 -> 0 | G21: ='Resumo (2)'!D24 -> 0 | J21: ='Resumo (2)'!E24 -> 0 | M21: ='Resumo (2)'!F24 -> 0 | P21: ='Resumo (2)'!G24 -> 0 | S21: ='Resumo (2)'!H24 -> 0 | V21: ='Resumo (2)'!I24 -> 0 | Y21: ='Resumo (2)'!J24 -> 0 | AB21: ='Resumo (2)'!K24 -> 0 | AE21: ='Resumo (2)'!L24 -> 0 | AH21: ='Resumo (2)'!M24 -> 0 | AK21: ='Resumo (2)'!N24 -> 0 | AM21: 0 | AN21: 0
B22: ='Resumo (2)'!B25 -> 2.4 Despesas Administrativas | D22: ='Resumo (2)'!C25 -> 0 | G22: ='Resumo (2)'!D25 -> 0 | J22: ='Resumo (2)'!E25 -> 0 | M22: ='Resumo (2)'!F25 -> 0 | P22: ='Resumo (2)'!G25 -> 0 | S22: ='Resumo (2)'!H25 -> 0 | V22: ='Resumo (2)'!I25 -> 0 | Y22: ='Resumo (2)'!J25 -> 0 | AB22: ='Resumo (2)'!K25 -> 0 | AE22: ='Resumo (2)'!L25 -> 0 | AH22: ='Resumo (2)'!M25 -> 0 | AK22: ='Resumo (2)'!N25 -> 0 | AM22: 0 | AN22: 0
B23: ='Resumo (2)'!B26 -> 2.5 Mercadorias | D23: ='Resumo (2)'!C26 -> 2009 | G23: ='Resumo (2)'!D26 -> 0 | J23: ='Resumo (2)'!E26 -> 0 | M23: ='Resumo (2)'!F26 -> 0 | P23: ='Resumo (2)'!G26 -> 0 | S23: ='Resumo (2)'!H26 -> 0 | V23: ='Resumo (2)'!I26 -> 0 | Y23: ='Resumo (2)'!J26 -> 0 | AB23: ='Resumo (2)'!K26 -> 0 | AE23: ='Resumo (2)'!L26 -> 0 | AH23: ='Resumo (2)'!M26 -> 0 | AK23: ='Resumo (2)'!N26 -> 0 | AM23: 0 | AN23: 2009
B24: ='Resumo (2)'!B27 -> 2.6 | D24: ='Resumo (2)'!C27 -> 0 | G24: ='Resumo (2)'!D27 -> 0 | J24: ='Resumo (2)'!E27 -> 0 | M24: ='Resumo (2)'!F27 -> 0 | P24: ='Resumo (2)'!G27 -> 0 | S24: ='Resumo (2)'!H27 -> 0 | V24: ='Resumo (2)'!I27 -> 0 | Y24: ='Resumo (2)'!J27 -> 0 | AB24: ='Resumo (2)'!K27 -> 0 | AE24: ='Resumo (2)'!L27 -> 0 | AH24: ='Resumo (2)'!M27 -> 0 | AK24: ='Resumo (2)'!N27 -> 0 | AM24: 0 | AN24: 0
B25: ='Resumo (2)'!B28 -> 2.7 | D25: ='Resumo (2)'!C28 -> 0 | G25: ='Resumo (2)'!D28 -> 0 | J25: ='Resumo (2)'!E28 -> 0 | M25: ='Resumo (2)'!F28 -> 0 | P25: ='Resumo (2)'!G28 -> 0 | S25: ='Resumo (2)'!H28 -> 0 | V25: ='Resumo (2)'!I28 -> 0 | Y25: ='Resumo (2)'!J28 -> 0 | AB25: ='Resumo (2)'!K28 -> 0 | AE25: ='Resumo (2)'!L28 -> 0 | AH25: ='Resumo (2)'!M28 -> 0 | AK25: ='Resumo (2)'!N28 -> 0 | AM25: 0 | AN25: 0
B26: ='Resumo (2)'!B29 -> 2.8 | D26: ='Resumo (2)'!C29 -> 0 | G26: ='Resumo (2)'!D29 -> 0 | J26: ='Resumo (2)'!E29 -> 0 | M26: ='Resumo (2)'!F29 -> 0 | P26: ='Resumo (2)'!G29 -> 0 | S26: ='Resumo (2)'!H29 -> 0 | V26: ='Resumo (2)'!I29 -> 0 | Y26: ='Resumo (2)'!J29 -> 0 | AB26: ='Resumo (2)'!K29 -> 0 | AE26: ='Resumo (2)'!L29 -> 0 | AH26: ='Resumo (2)'!M29 -> 0 | AK26: ='Resumo (2)'!N29 -> 0 | AM26: 0 | AN26: 0

Sheet Despesas
B11: Saídas de Caixa
B13: 2.1 | C13: Custos Fixos | E13: 2.2 | F13: Custos Variáveis | H13: 2.3 | I13: Folha de Pagamento | K13: 2.4 | L13: Despesas Administrativas | N13: 2.5 | O13: Mercadorias | Q13: 2.6 | T13: 2.7 | W13: 2.8
B14: 2.1.1 | C14: Aluguel | E14: 2.2.1 | F14: Energia Elétrica | H14: 2.3.1 | I14: Salário Líquido | K14: 2.4.1 | L14: Licença Software | N14: 2.5.1 | Q14: 2.6.1 | T14: 2.7.1 | W14: 2.8.1
B15: 2.1.2 | C15: Telefone | E15: 2.2.2 | H15: 2.3.2 | I15: Impostos | K15: 2.4.2 | N15: 2.5.2 | Q15: 2.6.2 | T15: 2.7.2 | W15: 2.8.2
B16: 2.1.3 | C16: Internet | E16: 2.2.3 | H16: 2.3.3 | K16: 2.4.3 | N16: 2.5.3 | Q16: 2.6.3 | T16: 2.7.3 | W16: 2.8.3
B17: 2.1.4 | E17: 2.2.4 | H17: 2.3.4 | K17: 2.4.4 | N17: 2.5.4 | Q17: 2.6.4 | T17: 2.7.4 | W17: 2.8.4
B18: 2.1.5 | E18: 2.2.5 | H18: 2.3.5 | K18: 2.4.5 | N18: 2.5.5 | Q18: 2.6.5 | T18: 2.7.5 | W18: 2.8.5
B19: 2.1.6 | E19: 2.2.6 | H19: 2.3.6 | K19: 2.4.6 | N19: 2.5.6 | Q19: 2.6.6 | T19: 2.7.6 | W19: 2.8.6
B20: 2.1.7 | E20: 2.2.7 | H20: 2.3.7 | K20: 2.4.7 | N20: 2.5.7 | Q20: 2.6.7 | T20: 2.7.7 | W20: 2.8.7
B21: 2.1.8 | E21: 2.2.8 | H21: 2.3.8 | K21: 2.4.8 | N21: 2.5.8 | Q21: 2.6.8 | T21: 2.7.8 | W21: 2.8.8
B22: 2.1.9 | E22: 2.2.9 | H22: 2.3.9 | K22: 2.4.9 | N22: 2.5.9 | Q22: 2.6.9 | T22: 2.7.9 | W22: 2.8.9
B23: 2.1.10 | E23: 2.2.10 | H23: 2.3.10 | K23: 2.4.10 | N23: 2.5.10 | Q23: 2.6.10 | T23: 2.7.10 | W23: 2.8.10
B24: 2.1.11 | E24: 2.2.11 | H24: 2.3.11 | K24: 2.4.11 | N24: 2.5.11 | Q24: 2.6.11 | T24: 2.7.11 | W24: 2.8.11
B25: 2.1.12 | E25: 2.2.12 | H25: 2.3.12 | K25: 2.4.12 | N25: 2.5.12 | Q25: 2.6.12 | T25: 2.7.12 | W25: 2.8.12
B26: 2.1.13 | E26: 2.2.13 | H26: 2.3.13 | K26: 2.4.13 | N26: 2.5.13 | Q26: 2.6.13 | T26: 2.7.13 | W26: 2.8.13
B27: 2.1.14 | E27: 2.2.14 | H27: 2.3.14 | K27: 2.4.14 | N27: 2.5.14 | Q27: 2.6.14 | T27: 2.7.14 | W27: 2.8.14
B28: 2.1.15 | E28: 2.2.15 | H28: 2.3.15 | K28: 2.4.15 | N28: 2.5.15 | Q28: 2.6.15 | T28: 2.7.15 | W28: 2.8.15
B29: 2.1.16 | E29: 2.2.16 | H29: 2.3.16 | K29: 2.4.16 | N29: 2.5.16 | Q29: 2.6.16 | T29: 2.7.16 | W29: 2.8.16
B30: 2.1.17 | E30: 2.2.17 | H30: 2.3.17 | K30: 2.4.17 | N30: 2.5.17 | Q30: 2.6.17 | T30: 2.7.17 | W30: 2.8.17
B31: 2.1.18 | E31: 2.2.18 | H31: 2.3.18 | K31: 2.4.18 | N31: 2.5.18 | Q31: 2.6.18 | T31: 2.7.18 | W31: 2.8.18
B32: 2.1.19 | E32: 2.2.19 | H32: 2.3.19 | K32: 2.4.19 | N32: 2.5.19 | Q32: 2.6.19 | T32: 2.7.19 | W32: 2.8.19
B33: 2.1.20 | E33: 2.2.20 | H33: 2.3.20 | K33: 2.4.20 | N33: 2.5.20 | Q33: 2.6.20 | T33: 2.7.20 | W33: 2.8.20
B34: 2.1.21 | E34: 2.2.21 | H34: 2.3.21 | K34: 2.4.21 | N34: 2.5.21 | Q34: 2.6.21 | T34: 2.7.21 | W34: 2.8.21
B35: 2.1.22 | E35: 2.2.22 | H35: 2.3.22 | K35: 2.4.22 | N35: 2.5.22 | Q35: 2.6.22 | T35: 2.7.22 | W35: 2.8.22
B36: 2.1.23 | E36: 2.2.23 | H36: 2.3.23 | K36: 2.4.23 | N36: 2.5.23 | Q36: 2.6.23 | T36: 2.7.23 | W36: 2.8.23
B37: 2.1.24 | E37: 2.2.24 | H37: 2.3.24 | K37: 2.4.24 | N37: 2.5.24 | Q37: 2.6.24 | T37: 2.7.24 | W37: 2.8.24
B38: 2.1.25 | E38: 2.2.25 | H38: 2.3.25 | K38: 2.4.25 | N38: 2.5.25 | Q38: 2.6.25 | T38: 2.7.25 | W38: 2.8.25
B39: 2.1.26 | E39: 2.2.26 | H39: 2.3.26 | K39: 2.4.26 | N39: 2.5.26 | Q39: 2.6.26 | T39: 2.7.26 | W39: 2.8.26
B40: 2.1.27 | E40: 2.2.27 | H40: 2.3.27 | K40: 2.4.27 | N40: 2.5.27 | Q40: 2.6.27 | T40: 2.7.27 | W40: 2.8.27
B41: 2.1.28 | E41: 2.2.28 | H41: 2.3.28 | K41: 2.4.28 | N41: 2.5.28 | Q41: 2.6.28 | T41: 2.7.28 | W41: 2.8.28
B42: 2.1.29 | E42: 2.2.29 | H42: 2.3.29 | K42: 2.4.29 | N42: 2.5.29 | Q42: 2.6.29 | T42: 2.7.29 | W42: 2.8.29
B43: 2.1.30 | E43: 2.2.30 | H43: 2.3.30 | K43: 2.4.30 | N43: 2.5.30 | Q43: 2.6.30 | T43: 2.7.30 | W43: 2.8.30
B44: 2.1.31 | E44: 2.2.31 | H44: 2.3.31 | K44: 2.4.31 | N44: 2.5.31 | Q44: 2.6.31 | T44: 2.7.31 | W44: 2.8.31
B45: 2.1.32 | E45: 2.2.32 | H45: 2.3.32 | K45: 2.4.32 | N45: 2.5.32 | Q45: 2.6.32 | T45: 2.7.32 | W45: 2.8.32
B46: 2.1.33 | E46: 2.2.33 | H46: 2.3.33 | K46: 2.4.33 | N46: 2.5.33 | Q46: 2.6.33 | T46: 2.7.33 | W46: 2.8.33
B47: 2.1.34 | E47: 2.2.34 | H47: 2.3.34 | K47: 2.4.34 | N47: 2.5.34 | Q47: 2.6.34 | T47: 2.7.34 | W47: 2.8.34
B48: 2.1.35 | E48: 2.2.35 | H48: 2.3.35 | K48: 2.4.35 | N48: 2.5.35 | Q48: 2.6.35 | T48: 2.7.35 | W48: 2.8.35
B49: 2.1.36 | E49: 2.2.36 | H49: 2.3.36 | K49: 2.4.36 | N49: 2.5.36 | Q49: 2.6.36 | T49: 2.7.36 | W49: 2.8.36
B50: 2.1.37 | E50: 2.2.37 | H50: 2.3.37 | K50: 2.4.37 | N50: 2.5.37 | Q50: 2.6.37 | T50: 2.7.37 | W50: 2.8.37
B51: 2.1.38 | E51: 2.2.38 | H51: 2.3.38 | K51: 2.4.38 | N51: 2.5.38 | Q51: 2.6.38 | T51: 2.7.38 | W51: 2.8.38
B52: 2.1.39 | E52: 2.2.39 | H52: 2.3.39 | K52: 2.4.39 | N52: 2.5.39 | Q52: 2.6.39 | T52: 2.7.39 | W52: 2.8.39
B53: 2.1.40 | E53: 2.2.40 | H53: 2.3.40 | K53: 2.4.40 | N53: 2.5.40 | Q53: 2.6.40 | T53: 2.7.40 | W53: 2.8.40
B54: 2.1.41 | E54: 2.2.41 | H54: 2.3.41 | K54: 2.4.41 | N54: 2.5.41 | Q54: 2.6.41 | T54: 2.7.41 | W54: 2.8.41
B55: 2.1.42 | E55: 2.2.42 | H55: 2.3.42 | K55: 2.4.42 | N55: 2.5.42 | Q55: 2.6.42 | T55: 2.7.42 | W55: 2.8.42
B56: 2.1.43 | E56: 2.2.43 | H56: 2.3.43 | K56: 2.4.43 | N56: 2.5.43 | Q56: 2.6.43 | T56: 2.7.43 | W56: 2.8.43
B57: 2.1.44 | E57: 2.2.44 | H57: 2.3.44 | K57: 2.4.44 | N57: 2.5.44 | Q57: 2.6.44 | T57: 2.7.44 | W57: 2.8.44
B58: 2.1.45 | E58: 2.2.45 | H58: 2.3.45 | K58: 2.4.45 | N58: 2.5.45 | Q58: 2.6.45 | T58: 2.7.45 | W58: 2.8.45
B59: 2.1.46 | E59: 2.2.46 | H59: 2.3.46 | K59: 2.4.46 | N59: 2.5.46 | Q59: 2.6.46 | T59: 2.7.46 | W59: 2.8.46
B60: 2.1.47 | E60: 2.2.47 | H60: 2.3.47 | K60: 2.4.47 | N60: 2.5.47 | Q60: 2.6.47 | T60: 2.7.47 | W60: 2.8.47
B61: 2.1.48 | E61: 2.2.48 | H61: 2.3.48 | K61: 2.4.48 | N61: 2.5.48 | Q61: 2.6.48 | T61: 2.7.48 | W61: 2.8.48
B62: 2.1.49 | E62: 2.2.49 | H62: 2.3.49 | K62: 2.4.49 | N62: 2.5.49 | Q62: 2.6.49 | T62: 2.7.49 | W62: 2.8.49
B63: 2.1.50 | E63: 2.2.50 | H63: 2.3.50 | K63: 2.4.50 | N63: 2.5.50 | Q63: 2.6.50 | T63: 2.7.50 | W63: 2.8.50

Sheet Outros
B11: Outros Cadastros
B13: Bancos | C13: Saldo Inicial | E13: Plano de Contas | G13: Janeiro | H13: Fevereiro | I13: Março | J13: Abril | K13: Maio | L13: Junho | M13: Julho | N13: Agosto | O13: Setembro | P13: Outubro | Q13: Novembro | R13: Dezembro
B14: Banco do Brasil | C14: 1500 | E14: =Receitas!C13 -> Receitas 1 | F14: Receita | G14: =SUMIFS(Jan!$H$14:$H$1003,Jan!$D$14:$D$1003,Outros!$E14,Jan!$G$14:$G$1003,"Pago") -> 5000 | H14: =SUMIFS(Fev!$H$14:$H$1003,Fev!$D$14:$D$1003,Outros!$E14,Fev!$G$14:$G$1003,"Pago") -> 0 | I14: =SUMIFS(Mar!$H$14:$H$1003,Mar!$D$14:$D$1003,Outros!$E14,Mar!$G$14:$G$1003,"Pago") -> 0 | J14: =SUMIFS(Abr!$H$14:$H$1003,Abr!$D$14:$D$1003,Outros!$E14,Abr!$G$14:$G$1003,"Pago") -> 0 | K14: =SUMIFS(Mai!$H$14:$H$1003,Mai!$D$14:$D$1003,Outros!$E14,Mai!$G$14:$G$1003,"Pago") -> 0 | L14: =SUMIFS(Jun!$H$14:$H$1003,Jun!$D$14:$D$1003,Outros!$E14,Jun!$G$14:$G$1003,"Pago") -> 0 | M14: =SUMIFS(Jul!$H$14:$H$1003,Jul!$D$14:$D$1003,Outros!$E14,Jul!$G$14:$G$1003,"Pago") -> 0 | N14: =SUMIFS(Ago!$H$14:$H$1003,Ago!$D$14:$D$1003,Outros!$E14,Ago!$G$14:$G$1003,"Pago") -> 0 | O14: =SUMIFS(Set!$H$14:$H$1003,Set!$D$14:$D$1003,Outros!$E14,Set!$G$14:$G$1003,"Pago") -> 0 | P14: =SUMIFS(Out!$H$14:$H$1003,Out!$D$14:$D$1003,Outros!$E14,Out!$G$14:$G$1003,"Pago") -> 0 | Q14: =SUMIFS(Nov!$H$14:$H$1003,Nov!$D$14:$D$1003,Outros!$E14,Nov!$G$14:$G$1003,"Pago") -> 0 | R14: =SUMIFS(Dez!$H$14:$H$1003,Dez!$D$14:$D$1003,Outros!$E14,Dez!$G$14:$G$1003,"Pago") -> 0
B15: Caixa Econômica | C15: 2500 | E15: =Receitas!F13 -> Receitas 2 | F15: Receita | G15: =SUMIFS(Jan!$H$14:$H$1003,Jan!$D$14:$D$1003,Outros!$E15,Jan!$G$14:$G$1003,"Pago") -> 4011 | H15: =SUMIFS(Fev!$H$14:$H$1003,Fev!$D$14:$D$1003,Outros!$E15,Fev!$G$14:$G$1003,"Pago") -> 0 | I15: =SUMIFS(Mar!$H$14:$H$1003,Mar!$D$14:$D$1003,Outros!$E15,Mar!$G$14:$G$1003,"Pago") -> 0 | J15: =SUMIFS(Abr!$H$14:$H$1003,Abr!$D$14:$D$1003,Outros!$E15,Abr!$G$14:$G$1003,"Pago") -> 0 | K15: =SUMIFS(Mai!$H$14:$H$1003,Mai!$D$14:$D$1003,Outros!$E15,Mai!$G$14:$G$1003,"Pago") -> 0 | L15: =SUMIFS(Jun!$H$14:$H$1003,Jun!$D$14:$D$1003,Outros!$E15,Jun!$G$14:$G$1003,"Pago") -> 0 | M15: =SUMIFS(Jul!$H$14:$H$1003,Jul!$D$14:$D$1003,Outros!$E15,Jul!$G$14:$G$1003,"Pago") -> 0 | N15: =SUMIFS(Ago!$H$14:$H$1003,Ago!$D$14:$D$1003,Outros!$E15,Ago!$G$14:$G$1003,"Pago") -> 0 | O15: =SUMIFS(Set!$H$14:$H$1003,Set!$D$14:$D$1003,Outros!$E15,Set!$G$14:$G$1003,"Pago") -> 0 | P15: =SUMIFS(Out!$H$14:$H$1003,Out!$D$14:$D$1003,Outros!$E15,Out!$G$14:$G$1003,"Pago") -> 0 | Q15: =SUMIFS(Nov!$H$14:$H$1003,Nov!$D$14:$D$1003,Outros!$E15,Nov!$G$14:$G$1003,"Pago") -> 0 | R15: =SUMIFS(Dez!$H$14:$H$1003,Dez!$D$14:$D$1003,Outros!$E15,Dez!$G$14:$G$1003,"Pago") -> 0
B16: Santander | C16: 3000 | E16: =Receitas!I13 -> Outras Receitas | F16: Receita | G16: =SUMIFS(Jan!$H$14:$H$1003,Jan!$D$14:$D$1003,Outros!$E16,Jan!$G$14:$G$1003,"Pago") -> 0 | H16: =SUMIFS(Fev!$H$14:$H$1003,Fev!$D$14:$D$1003,Outros!$E16,Fev!$G$14:$G$1003,"Pago") -> 0 | I16: =SUMIFS(Mar!$H$14:$H$1003,Mar!$D$14:$D$1003,Outros!$E16,Mar!$G$14:$G$1003,"Pago") -> 0 | J16: =SUMIFS(Abr!$H$14:$H$1003,Abr!$D$14:$D$1003,Outros!$E16,Abr!$G$14:$G$1003,"Pago") -> 0 | K16: =SUMIFS(Mai!$H$14:$H$1003,Mai!$D$14:$D$1003,Outros!$E16,Mai!$G$14:$G$1003,"Pago") -> 0 | L16: =SUMIFS(Jun!$H$14:$H$1003,Jun!$D$14:$D$1003,Outros!$E16,Jun!$G$14:$G$1003,"Pago") -> 0 | M16: =SUMIFS(Jul!$H$14:$H$1003,Jul!$D$14:$D$1003,Outros!$E16,Jul!$G$14:$G$1003,"Pago") -> 0 | N16: =SUMIFS(Ago!$H$14:$H$1003,Ago!$D$14:$D$1003,Outros!$E16,Ago!$G$14:$G$1003,"Pago") -> 0 | O16: =SUMIFS(Set!$H$14:$H$1003,Set!$D$14:$D$1003,Outros!$E16,Set!$G$14:$G$1003,"Pago") -> 0 | P16: =SUMIFS(Out!$H$14:$H$1003,Out!$D$14:$D$1003,Outros!$E16,Out!$G$14:$G$1003,"Pago") -> 0 | Q16: =SUMIFS(Nov!$H$14:$H$1003,Nov!$D$14:$D$1003,Outros!$E16,Nov!$G$14:$G$1003,"Pago") -> 0 | R16: =SUMIFS(Dez!$H$14:$H$1003,Dez!$D$14:$D$1003,Outros!$E16,Dez!$G$14:$G$1003,"Pago") -> 0
E17: =Receitas!L13 -> 0 | F17: Receita | G17: =SUMIFS(Jan!$H$14:$H$1003,Jan!$D$14:$D$1003,Outros!$E17,Jan!$G$14:$G$1003,"Pago") -> 0 | H17: =SUMIFS(Fev!$H$14:$H$1003,Fev!$D$14:$D$1003,Outros!$E17,Fev!$G$14:$G$1003,"Pago") -> 0 | I17: =SUMIFS(Mar!$H$14:$H$1003,Mar!$D$14:$D$1003,Outros!$E17,Mar!$G$14:$G$1003,"Pago") -> 0 | J17: =SUMIFS(Abr!$H$14:$H$1003,Abr!$D$14:$D$1003,Outros!$E17,Abr!$G$14:$G$1003,"Pago") -> 0 | K17: =SUMIFS(Mai!$H$14:$H$1003,Mai!$D$14:$D$1003,Outros!$E17,Mai!$G$14:$G$1003,"Pago") -> 0 | L17: =SUMIFS(Jun!$H$14:$H$1003,Jun!$D$14:$D$1003,Outros!$E17,Jun!$G$14:$G$1003,"Pago") -> 0 | M17: =SUMIFS(Jul!$H$14:$H$1003,Jul!$D$14:$D$1003,Outros!$E17,Jul!$G$14:$G$1003,"Pago") -> 0 | N17: =SUMIFS(Ago!$H$14:$H$1003,Ago!$D$14:$D$1003,Outros!$E17,Ago!$G$14:$G$1003,"Pago") -> 0 | O17: =SUMIFS(Set!$H$14:$H$1003,Set!$D$14:$D$1003,Outros!$E17,Set!$G$14:$G$1003,"Pago") -> 0 | P17: =SUMIFS(Out!$H$14:$H$1003,Out!$D$14:$D$1003,Outros!$E17,Out!$G$14:$G$1003,"Pago") -> 0 | Q17: =SUMIFS(Nov!$H$14:$H$1003,Nov!$D$14:$D$1003,Outros!$E17,Nov!$G$14:$G$1003,"Pago") -> 0 | R17: =SUMIFS(Dez!$H$14:$H$1003,Dez!$D$14:$D$1003,Outros!$E17,Dez!$G$14:$G$1003,"Pago") -> 0
E18: =Despesas!C13 -> Custos Fixos | F18: Despesa | G18: =SUMIFS(Jan!$H$14:$H$1003,Jan!$D$14:$D$1003,Outros!$E18,Jan!$G$14:$G$1003,"Pago") -> 2005 | H18: =SUMIFS(Fev!$H$14:$H$1003,Fev!$D$14:$D$1003,Outros!$E18,Fev!$G$14:$G$1003,"Pago") -> 0 | I18: =SUMIFS(Mar!$H$14:$H$1003,Mar!$D$14:$D$1003,Outros!$E18,Mar!$G$14:$G$1003,"Pago") -> 0 | J18: =SUMIFS(Abr!$H$14:$H$1003,Abr!$D$14:$D$1003,Outros!$E18,Abr!$G$14:$G$1003,"Pago") -> 0 | K18: =SUMIFS(Mai!$H$14:$H$1003,Mai!$D$14:$D$1003,Outros!$E18,Mai!$G$14:$G$1003,"Pago") -> 0 | L18: =SUMIFS(Jun!$H$14:$H$1003,Jun!$D$14:$D$1003,Outros!$E18,Jun!$G$14:$G$1003,"Pago") -> 0 | M18: =SUMIFS(Jul!$H$14:$H$1003,Jul!$D$14:$D$1003,Outros!$E18,Jul!$G$14:$G$1003,"Pago") -> 0 | N18: =SUMIFS(Ago!$H$14:$H$1003,Ago!$D$14:$D$1003,Outros!$E18,Ago!$G$14:$G$1003,"Pago") -> 0 | O18: =SUMIFS(Set!$H$14:$H$1003,Set!$D$14:$D$1003,Outros!$E18,Set!$G$14:$G$1003,"Pago") -> 0 | P18: =SUMIFS(Out!$H$14:$H$1003,Out!$D$14:$D$1003,Outros!$E18,Out!$G$14:$G$1003,"Pago") -> 0 | Q18: =SUMIFS(Nov!$H$14:$H$1003,Nov!$D$14:$D$1003,Outros!$E18,Nov!$G$14:$G$1003,"Pago") -> 0 | R18: =SUMIFS(Dez!$H$14:$H$1003,Dez!$D$14:$D$1003,Outros!$E18,Dez!$G$14:$G$1003,"Pago") -> 0
E19: =Despesas!F13 -> Custos Variáveis | F19: Despesa | G19: =SUMIFS(Jan!$H$14:$H$1003,Jan!$D$14:$D$1003,Outros!$E19,Jan!$G$14:$G$1003,"Pago") -> 2007 | H19: =SUMIFS(Fev!$H$14:$H$1003,Fev!$D$14:$D$1003,Outros!$E19,Fev!$G$14:$G$1003,"Pago") -> 0 | I19: =SUMIFS(Mar!$H$14:$H$1003,Mar!$D$14:$D$1003,Outros!$E19,Mar!$G$14:$G$1003,"Pago") -> 0 | J19: =SUMIFS(Abr!$H$14:$H$1003,Abr!$D$14:$D$1003,Outros!$E19,Abr!$G$14:$G$1003,"Pago") -> 0 | K19: =SUMIFS(Mai!$H$14:$H$1003,Mai!$D$14:$D$1003,Outros!$E19,Mai!$G$14:$G$1003,"Pago") -> 0 | L19: =SUMIFS(Jun!$H$14:$H$1003,Jun!$D$14:$D$1003,Outros!$E19,Jun!$G$14:$G$1003,"Pago") -> 0 | M19: =SUMIFS(Jul!$H$14:$H$1003,Jul!$D$14:$D$1003,Outros!$E19,Jul!$G$14:$G$1003,"Pago") -> 0 | N19: =SUMIFS(Ago!$H$14:$H$1003,Ago!$D$14:$D$1003,Outros!$E19,Ago!$G$14:$G$1003,"Pago") -> 0 | O19: =SUMIFS(Set!$H$14:$H$1003,Set!$D$14:$D$1003,Outros!$E19,Set!$G$14:$G$1003,"Pago") -> 0 | P19: =SUMIFS(Out!$H$14:$H$1003,Out!$D$14:$D$1003,Outros!$E19,Out!$G$14:$G$1003,"Pago") -> 0 | Q19: =SUMIFS(Nov!$H$14:$H$1003,Nov!$D$14:$D$1003,Outros!$E19,Nov!$G$14:$G$1003,"Pago") -> 0 | R19: =SUMIFS(Dez!$H$14:$H$1003,Dez!$D$14:$D$1003,Outros!$E19,Dez!$G$14:$G$1003,"Pago") -> 0
E20: =Despesas!I13 -> Folha de Pagamento | F20: Despesa | G20: =SUMIFS(Jan!$H$14:$H$1003,Jan!$D$14:$D$1003,Outros!$E20,Jan!$G$14:$G$1003,"Pago") -> 0 | H20: =SUMIFS(Fev!$H$14:$H$1003,Fev!$D$14:$D$1003,Outros!$E20,Fev!$G$14:$G$1003,"Pago") -> 0 | I20: =SUMIFS(Mar!$H$14:$H$1003,Mar!$D$14:$D$1003,Outros!$E20,Mar!$G$14:$G$1003,"Pago") -> 0 | J20: =SUMIFS(Abr!$H$14:$H$1003,Abr!$D$14:$D$1003,Outros!$E20,Abr!$G$14:$G$1003,"Pago") -> 0 | K20: =SUMIFS(Mai!$H$14:$H$1003,Mai!$D$14:$D$1003,Outros!$E20,Mai!$G$14:$G$1003,"Pago") -> 0 | L20: =SUMIFS(Jun!$H$14:$H$1003,Jun!$D$14:$D$1003,Outros!$E20,Jun!$G$14:$G$1003,"Pago") -> 0 | M20: =SUMIFS(Jul!$H$14:$H$1003,Jul!$D$14:$D$1003,Outros!$E20,Jul!$G$14:$G$1003,"Pago") -> 0 | N20: =SUMIFS(Ago!$H$14:$H$1003,Ago!$D$14:$D$1003,Outros!$E20,Ago!$G$14:$G$1003,"Pago") -> 0 | O20: =SUMIFS(Set!$H$14:$H$1003,Set!$D$14:$D$1003,Outros!$E20,Set!$G$14:$G$1003,"Pago") -> 0 | P20: =SUMIFS(Out!$H$14:$H$1003,Out!$D$14:$D$1003,Outros!$E20,Out!$G$14:$G$1003,"Pago") -> 0 | Q20: =SUMIFS(Nov!$H$14:$H$1003,Nov!$D$14:$D$1003,Outros!$E20,Nov!$G$14:$G$1003,"Pago") -> 0 | R20: =SUMIFS(Dez!$H$14:$H$1003,Dez!$D$14:$D$1003,Outros!$E20,Dez!$G$14:$G$1003,"Pago") -> 0
E21: =Despesas!L13 -> Despesas Administrativas | F21: Despesa | G21: =SUMIFS(Jan!$H$14:$H$1003,Jan!$D$14:$D$1003,Outros!$E21,Jan!$G$14:$G$1003,"Pago") -> 0 | H21: =SUMIFS(Fev!$H$14:$H$1003,Fev!$D$14:$D$1003,Outros!$E21,Fev!$G$14:$G$1003,"Pago") -> 0 | I21: =SUMIFS(Mar!$H$14:$H$1003,Mar!$D$14:$D$1003,Outros!$E21,Mar!$G$14:$G$1003,"Pago") -> 0 | J21: =SUMIFS(Abr!$H$14:$H$1003,Abr!$D$14:$D$1003,Outros!$E21,Abr!$G$14:$G$1003,"Pago") -> 0 | K21: =SUMIFS(Mai!$H$14:$H$1003,Mai!$D$14:$D$1003,Outros!$E21,Mai!$G$14:$G$1003,"Pago") -> 0 | L21: =SUMIFS(Jun!$H$14:$H$1003,Jun!$D$14:$D$1003,Outros!$E21,Jun!$G$14:$G$1003,"Pago") -> 0 | M21: =SUMIFS(Jul!$H$14:$H$1003,Jul!$D$14:$D$1003,Outros!$E21,Jul!$G$14:$G$1003,"Pago") -> 0 | N21: =SUMIFS(Ago!$H$14:$H$1003,Ago!$D$14:$D$1003,Outros!$E21,Ago!$G$14:$G$1003,"Pago") -> 0 | O21: =SUMIFS(Set!$H$14:$H$1003,Set!$D$14:$D$1003,Outros!$E21,Set!$G$14:$G$1003,"Pago") -> 0 | P21: =SUMIFS(Out!$H$14:$H$1003,Out!$D$14:$D$1003,Outros!$E21,Out!$G$14:$G$1003,"Pago") -> 0 | Q21: =SUMIFS(Nov!$H$14:$H$1003,Nov!$D$14:$D$1003,Outros!$E21,Nov!$G$14:$G$1003,"Pago") -> 0 | R21: =SUMIFS(Dez!$H$14:$H$1003,Dez!$D$14:$D$1003,Outros!$E21,Dez!$G$14:$G$1003,"Pago") -> 0
E22: =Despesas!O13 -> Mercadorias | F22: Despesa | G22: =SUMIFS(Jan!$H$14:$H$1003,Jan!$D$14:$D$1003,Outros!$E22,Jan!$G$14:$G$1003,"Pago") -> 2009 | H22: =SUMIFS(Fev!$H$14:$H$1003,Fev!$D$14:$D$1003,Outros!$E22,Fev!$G$14:$G$1003,"Pago") -> 0 | I22: =SUMIFS(Mar!$H$14:$H$1003,Mar!$D$14:$D$1003,Outros!$E22,Mar!$G$14:$G$1003,"Pago") -> 0 | J22: =SUMIFS(Abr!$H$14:$H$1003,Abr!$D$14:$D$1003,Outros!$E22,Abr!$G$14:$G$1003,"Pago") -> 0 | K22: =SUMIFS(Mai!$H$14:$H$1003,Mai!$D$14:$D$1003,Outros!$E22,Mai!$G$14:$G$1003,"Pago") -> 0 | L22: =SUMIFS(Jun!$H$14:$H$1003,Jun!$D$14:$D$1003,Outros!$E22,Jun!$G$14:$G$1003,"Pago") -> 0 | M22: =SUMIFS(Jul!$H$14:$H$1003,Jul!$D$14:$D$1003,Outros!$E22,Jul!$G$14:$G$1003,"Pago") -> 0 | N22: =SUMIFS(Ago!$H$14:$H$1003,Ago!$D$14:$D$1003,Outros!$E22,Ago!$G$14:$G$1003,"Pago") -> 0 | O22: =SUMIFS(Set!$H$14:$H$1003,Set!$D$14:$D$1003,Outros!$E22,Set!$G$14:$G$1003,"Pago") -> 0 | P22: =SUMIFS(Out!$H$14:$H$1003,Out!$D$14:$D$1003,Outros!$E22,Out!$G$14:$G$1003,"Pago") -> 0 | Q22: =SUMIFS(Nov!$H$14:$H$1003,Nov!$D$14:$D$1003,Outros!$E22,Nov!$G$14:$G$1003,"Pago") -> 0 | R22: =SUMIFS(Dez!$H$14:$H$1003,Dez!$D$14:$D$1003,Outros!$E22,Dez!$G$14:$G$1003,"Pago") -> 0
E23: =Despesas!R13 -> 0 | F23: Despesa | G23: =SUMIFS(Jan!$H$14:$H$1003,Jan!$D$14:$D$1003,Outros!$E23,Jan!$G$14:$G$1003,"Pago") -> 0 | H23: =SUMIFS(Fev!$H$14:$H$1003,Fev!$D$14:$D$1003,Outros!$E23,Fev!$G$14:$G$1003,"Pago") -> 0 | I23: =SUMIFS(Mar!$H$14:$H$1003,Mar!$D$14:$D$1003,Outros!$E23,Mar!$G$14:$G$1003,"Pago") -> 0 | J23: =SUMIFS(Abr!$H$14:$H$1003,Abr!$D$14:$D$1003,Outros!$E23,Abr!$G$14:$G$1003,"Pago") -> 0 | K23: =SUMIFS(Mai!$H$14:$H$1003,Mai!$D$14:$D$1003,Outros!$E23,Mai!$G$14:$G$1003,"Pago") -> 0 | L23: =SUMIFS(Jun!$H$14:$H$1003,Jun!$D$14:$D$1003,Outros!$E23,Jun!$G$14:$G$1003,"Pago") -> 0 | M23: =SUMIFS(Jul!$H$14:$H$1003,Jul!$D$14:$D$1003,Outros!$E23,Jul!$G$14:$G$1003,"Pago") -> 0 | N23: =SUMIFS(Ago!$H$14:$H$1003,Ago!$D$14:$D$1003,Outros!$E23,Ago!$G$14:$G$1003,"Pago") -> 0 | O23: =SUMIFS(Set!$H$14:$H$1003,Set!$D$14:$D$1003,Outros!$E23,Set!$G$14:$G$1003,"Pago") -> 0 | P23: =SUMIFS(Out!$H$14:$H$1003,Out!$D$14:$D$1003,Outros!$E23,Out!$G$14:$G$1003,"Pago") -> 0 | Q23: =SUMIFS(Nov!$H$14:$H$1003,Nov!$D$14:$D$1003,Outros!$E23,Nov!$G$14:$G$1003,"Pago") -> 0 | R23: =SUMIFS(Dez!$H$14:$H$1003,Dez!$D$14:$D$1003,Outros!$E23,Dez!$G$14:$G$1003,"Pago") -> 0
E24: =Despesas!U13 -> 0 | F24: Despesa | G24: =SUMIFS(Jan!$H$14:$H$1003,Jan!$D$14:$D$1003,Outros!$E24,Jan!$G$14:$G$1003,"Pago") -> 0 | H24: =SUMIFS(Fev!$H$14:$H$1003,Fev!$D$14:$D$1003,Outros!$E24,Fev!$G$14:$G$1003,"Pago") -> 0 | I24: =SUMIFS(Mar!$H$14:$H$1003,Mar!$D$14:$D$1003,Outros!$E24,Mar!$G$14:$G$1003,"Pago") -> 0 | J24: =SUMIFS(Abr!$H$14:$H$1003,Abr!$D$14:$D$1003,Outros!$E24,Abr!$G$14:$G$1003,"Pago") -> 0 | K24: =SUMIFS(Mai!$H$14:$H$1003,Mai!$D$14:$D$1003,Outros!$E24,Mai!$G$14:$G$1003,"Pago") -> 0 | L24: =SUMIFS(Jun!$H$14:$H$1003,Jun!$D$14:$D$1003,Outros!$E24,Jun!$G$14:$G$1003,"Pago") -> 0 | M24: =SUMIFS(Jul!$H$14:$H$1003,Jul!$D$14:$D$1003,Outros!$E24,Jul!$G$14:$G$1003,"Pago") -> 0 | N24: =SUMIFS(Ago!$H$14:$H$1003,Ago!$D$14:$D$1003,Outros!$E24,Ago!$G$14:$G$1003,"Pago") -> 0 | O24: =SUMIFS(Set!$H$14:$H$1003,Set!$D$14:$D$1003,Outros!$E24,Set!$G$14:$G$1003,"Pago") -> 0 | P24: =SUMIFS(Out!$H$14:$H$1003,Out!$D$14:$D$1003,Outros!$E24,Out!$G$14:$G$1003,"Pago") -> 0 | Q24: =SUMIFS(Nov!$H$14:$H$1003,Nov!$D$14:$D$1003,Outros!$E24,Nov!$G$14:$G$1003,"Pago") -> 0 | R24: =SUMIFS(Dez!$H$14:$H$1003,Dez!$D$14:$D$1003,Outros!$E24,Dez!$G$14:$G$1003,"Pago") -> 0
E25: =Despesas!X13 -> 0 | F25: Despesa | G25: =SUMIFS(Jan!$H$14:$H$1003,Jan!$D$14:$D$1003,Outros!$E25,Jan!$G$14:$G$1003,"Pago") -> 0 | H25: =SUMIFS(Fev!$H$14:$H$1003,Fev!$D$14:$D$1003,Outros!$E25,Fev!$G$14:$G$1003,"Pago") -> 0 | I25: =SUMIFS(Mar!$H$14:$H$1003,Mar!$D$14:$D$1003,Outros!$E25,Mar!$G$14:$G$1003,"Pago") -> 0 | J25: =SUMIFS(Abr!$H$14:$H$1003,Abr!$D$14:$D$1003,Outros!$E25,Abr!$G$14:$G$1003,"Pago") -> 0 | K25: =SUMIFS(Mai!$H$14:$H$1003,Mai!$D$14:$D$1003,Outros!$E25,Mai!$G$14:$G$1003,"Pago") -> 0 | L25: =SUMIFS(Jun!$H$14:$H$1003,Jun!$D$14:$D$1003,Outros!$E25,Jun!$G$14:$G$1003,"Pago") -> 0 | M25: =SUMIFS(Jul!$H$14:$H$1003,Jul!$D$14:$D$1003,Outros!$E25,Jul!$G$14:$G$1003,"Pago") -> 0 | N25: =SUMIFS(Ago!$H$14:$H$1003,Ago!$D$14:$D$1003,Outros!$E25,Ago!$G$14:$G$1003,"Pago") -> 0 | O25: =SUMIFS(Set!$H$14:$H$1003,Set!$D$14:$D$1003,Outros!$E25,Set!$G$14:$G$1003,"Pago") -> 0 | P25: =SUMIFS(Out!$H$14:$H$1003,Out!$D$14:$D$1003,Outros!$E25,Out!$G$14:$G$1003,"Pago") -> 0 | Q25: =SUMIFS(Nov!$H$14:$H$1003,Nov!$D$14:$D$1003,Outros!$E25,Nov!$G$14:$G$1003,"Pago") -> 0 | R25: =SUMIFS(Dez!$H$14:$H$1003,Dez!$D$14:$D$1003,Outros!$E25,Dez!$G$14:$G$1003,"Pago") -> 0

Sheet Transferências
B11: Transferências entre Bancos
B13: Data | C13: Banco Origem | D13: Banco Destino | E13: Justificativa | F13: Valor | H13: Bancos | I13: Entrada no Banco | J13: Saída do Banco | K13: Saldo
B14: 2019-02-15 | C14: Banco do Brasil | D14: Caixa Econômica | E14: movimentação de caixa | F14: 500 | H14: =Outros!B14 -> Banco do Brasil | I14: =SUMIF($D$14:$D$1003,H14,$F$14:$F$1003) -> 0 | J14: =SUMIF($C$14:$C$1003,H14,$F$14:$F$1003) -> 500 | K14: =I14-J14 -> -500
H15: =Outros!B15 -> Caixa Econômica | I15: =SUMIF($D$14:$D$1003,H15,$F$14:$F$1003) -> 500 | J15: =SUMIF($C$14:$C$1003,H15,$F$14:$F$1003) -> 0 | K15: =I15-J15 -> 500
H16: =Outros!B16 -> Santander | I16: 0 | J16: 0 | K16: 0
H17: =Outros!B17 -> 0 | I17: 0 | J17: 0 | K17: 0
H18: =Outros!B18 -> 0 | I18: 0 | J18: 0 | K18: 0
H19: =Outros!B19 -> 0 | I19: 0 | J19: 0 | K19: 0
H20: =Outros!B20 -> 0 | I20: 0 | J20: 0 | K20: 0
H21: =Outros!B21 -> 0 | I21: 0 | J21: 0 | K21: 0
H22: =Outros!B22 -> 0 | I22: 0 | J22: 0 | K22: 0
H23: =Outros!B23 -> 0 | I23: 0 | J23: 0 | K23: 0
H24: =Outros!B24 -> 0 | I24: 0 | J24: 0 | K24: 0
H25: =Outros!B25 -> 0 | I25: 0 | J25: 0 | K25: 0
H26: =Outros!B26 -> 0 | I26: 0 | J26: 0 | K26: 0
H27: =Outros!B27 -> 0 | I27: 0 | J27: 0 | K27: 0
H28: =Outros!B28 -> 0 | I28: 0 | J28: 0 | K28: 0
H29: =Outros!B29 -> 0 | I29: 0 | J29: 0 | K29: 0
H30: =Outros!B30 -> 0 | I30: 0 | J30: 0 | K30: 0
H31: =Outros!B31 -> 0 | I31: 0 | J31: 0 | K31: 0
H32: =Outros!B32 -> 0 | I32: 0 | J32: 0 | K32: 0
H33: =Outros!B33 -> 0 | I33: 0 | J33: 0 | K33: 0

Sheet Jan
B11: Fluxo de Caixa de Janeiro
B13: Data | C13: Banco | D13: Plano de Conta | E13: Descrição | F13: Conta | G13: Status | H13: Valor | I13: Saldo | J13: Observações/Justificativas | L13: Resumo | R13: Dia | S13: Mês | T13: Ano | V13: Dia | W13: Receita | X13: Despesa | Y13: Contas a Pagar | Z13: Contas a Receber | AB13: Bancos | AC13: Receita | AD13: Despesa | AE13: Saldo | AF13: Saldo final
B14: 2019-01-02 | C14: Caixa Econômica | D14: Receitas 3 | E14: Venda Semanal | F14: Vendas Online | G14: Pago | H14: 2002 | I14: =L15+IF(AND(G14="Pago",O14="Receita"),H14,IF(AND(G14="Pago",O14="Despesa"),-H14,0)) -> 7000 | L14: Saldo Inicial | O14: =IFERROR(VLOOKUP(D14,Outros!$E$14:$F$25,2,0),"") ->  | P14: =IF(D14=Receitas!$C$13,"Receita_de_Vendas",IF(D14=Receitas!$F$13,"Receita_de_Serviços",IF(D14=Receitas!$I$13,"Receitas_Financeiras",IF(D14=Receitas!$L$13,"Outras_Receitas",IF(D14=Despesas!$C$13,"Despesas_com_Produto",IF(D14=Despesas!$F$13,"Despesas_com_Serviços",IF(D14=Despesas!$I$13,"Despesas_Administrativas",IF(D14=Despesas!$L$13,"Despesas_Operacionais",IF(D14=Despesas!$O$13,"Despesas_com_Pessoal",IF(D14=Despesas!$R$13,"Impostos",IF(D14=Despesas!$U$13,"Despesas_Não_Operacionais",IF(D14=Despesas!$X$13,"Outras_Despesas","")))))))))))) ->  | R14: =DAY(B14) -> 2 | S14: =MONTH(B14) -> 1 | T14: =YEAR(B14) -> 2019 | V14: 1 | W14: =SUMIFS($H$14:$H$1003,$R$14:$R$1003,$V14,$O$14:$O$1003,W$13,$G$14:$G$1003,"Pago") -> 0 | X14: 0 | Y14: =SUMIFS($H$14:$H$1003,$R$14:$R$1003,$V14,$O$14:$O$1003,"Despesa",$G$14:$G$1003,"Em Aberto") -> 0 | Z14: =SUMIFS($H$14:$H$1003,$R$14:$R$1003,$V14,$O$14:$O$1003,"Receita",$G$14:$G$1003,"Em Aberto") -> 0 | AB14: =Outros!B14 -> Banco do Brasil | AC14: =SUMIFS($H$14:$H$1003,$C$14:$C$1003,$AB14,$O$14:$O$1003,"Receita",$G$14:$G$1003,"Pago") -> 3000 | AD14: =SUMIFS($H$14:$H$1003,$C$14:$C$1003,$AB14,$O$14:$O$1003,"Despesa",$G$14:$G$1003,"Pago") -> 2005 | AE14: =AC14-AD14 -> 995 | AF14: =L15 -> 7000
B15: 2019-01-05 | C15: Caixa Econômica | D15: Receitas 2 | E15: Venda Semanal | F15: Vendas Online | G15: Pago | H15: 2010 | I15: =I14+IF(AND(G15="Pago",O15="Receita"),H15,IF(AND(G15="Pago",O15="Despesa"),-H15,0)) -> 9010 | L15: =SUM(Outros!C14:C33) -> 7000 | O15: =IFERROR(VLOOKUP(D15,Outros!$E$14:$F$25,2,0),"") -> Receita | P15: =IF(D15=Receitas!$C$13,"Receita_de_Vendas",IF(D15=Receitas!$F$13,"Receita_de_Serviços",IF(D15=Receitas!$I$13,"Receitas_Financeiras",IF(D15=Receitas!$L$13,"Outras_Receitas",IF(D15=Despesas!$C$13,"Despesas_com_Produto",IF(D15=Despesas!$F$13,"Despesas_com_Serviços",IF(D15=Despesas!$I$13,"Despesas_Administrativas",IF(D15=Despesas!$L$13,"Despesas_Operacionais",IF(D15=Despesas!$O$13,"Despesas_com_Pessoal",IF(D15=Despesas!$R$13,"Impostos",IF(D15=Despesas!$U$13,"Despesas_Não_Operacionais",IF(D15=Despesas!$X$13,"Outras_Despesas","")))))))))))) -> Receita_de_Serviços | R15: 5 | S15: 1 | T15: 2019 | V15: 2 | W15: 0 | X15: 0 | Y15: 0 | Z15: 0 | AB15: =Outros!B15 -> Caixa Econômica | AC15: 6011 | AD15: 4016 | AE15: =AC15-AD15 -> 1995
B16: 2019-01-11 | C16: Santander | D16: Receitas 5 | E16: Venda Semanal | F16: Vendas Online | G16: Pago | H16: 2004 | I16: =I15+IF(AND(G16="Pago",O16="Receita"),H16,IF(AND(G16="Pago",O16="Despesa"),-H16,0)) -> 9010 | L16: Total de Receitas | O16: =IFERROR(VLOOKUP(D16,Outros!$E$14:$F$25,2,0),"") ->  | P16: =IF(D16=Receitas!$C$13,"Receita_de_Vendas",IF(D16=Receitas!$F$13,"Receita_de_Serviços",IF(D16=Receitas!$I$13,"Receitas_Financeiras",IF(D16=Receitas!$L$13,"Outras_Receitas",IF(D16=Despesas!$C$13,"Despesas_com_Produto",IF(D16=Despesas!$F$13,"Despesas_com_Serviços",IF(D16=Despesas!$I$13,"Despesas_Administrativas",IF(D16=Despesas!$L$13,"Despesas_Operacionais",IF(D16=Despesas!$O$13,"Despesas_com_Pessoal",IF(D16=Despesas!$R$13,"Impostos",IF(D16=Despesas!$U$13,"Despesas_Não_Operacionais",IF(D16=Despesas!$X$13,"Outras_Despesas","")))))))))))) ->  | R16: 11 | S16: 1 | T16: 2019 | V16: 3 | W16: 0 | X16: 0 | Y16: 0 | Z16: 0 | AB16: =Outros!B16 -> Santander | AC16: 0 | AD16: 0 | AE16: 0
B17: 2019-01-11 | C17: Banco do Brasil | D17: Receitas 9 | E17: Venda Semanal | F17: Vendas Online | G17: Pago | H17: 2008 | I17: 9010 | L17: =SUMIFS(H14:H1003,G14:G1003,"Pago",O14:O1003,"Receita") -> 9011 | O17: =IFERROR(VLOOKUP(D17,Outros!$E$14:$F$25,2,0),"") ->  | P17: =IF(D17=Receitas!$C$13,"Receita_de_Vendas",IF(D17=Receitas!$F$13,"Receita_de_Serviços",IF(D17=Receitas!$I$13,"Receitas_Financeiras",IF(D17=Receitas!$L$13,"Outras_Receitas",IF(D17=Despesas!$C$13,"Despesas_com_Produto",IF(D17=Despesas!$F$13,"Despesas_com_Serviços",IF(D17=Despesas!$I$13,"Despesas_Administrativas",IF(D17=Despesas!$L$13,"Despesas_Operacionais",IF(D17=Despesas!$O$13,"Despesas_com_Pessoal",IF(D17=Despesas!$R$13,"Impostos",IF(D17=Despesas!$U$13,"Despesas_Não_Operacionais",IF(D17=Despesas!$X$13,"Outras_Despesas","")))))))))))) ->  | R17: 11 | S17: 1 | T17: 2019 | V17: 4 | W17: 0 | X17: 0 | Y17: 0 | Z17: 0 | AB17: =Outros!B17 -> 0 | AC17: 0 | AD17: 0 | AE17: 0
B18: 2019-01-11 | C18: Caixa Econômica | D18: Receitas 1 | E18: Venda Semanal | F18: Vendas Representantes | G18: Pago | H18: 2000 | I18: 11010 | L18: Total de Despesas | O18: =IFERROR(VLOOKUP(D18,Outros!$E$14:$F$25,2,0),"") -> Receita | P18: =IF(D18=Receitas!$C$13,"Receita_de_Vendas",IF(D18=Receitas!$F$13,"Receita_de_Serviços",IF(D18=Receitas!$I$13,"Receitas_Financeiras",IF(D18=Receitas!$L$13,"Outras_Receitas",IF(D18=Despesas!$C$13,"Despesas_com_Produto",IF(D18=Despesas!$F$13,"Despesas_com_Serviços",IF(D18=Despesas!$I$13,"Despesas_Administrativas",IF(D18=Despesas!$L$13,"Despesas_Operacionais",IF(D18=Despesas!$O$13,"Despesas_com_Pessoal",IF(D18=Despesas!$R$13,"Impostos",IF(D18=Despesas!$U$13,"Despesas_Não_Operacionais",IF(D18=Despesas!$X$13,"Outras_Despesas","")))))))))))) -> Receita_de_Vendas | R18: 11 | S18: 1 | T18: 2019 | V18: 5 | W18: 2010 | X18: 0 | Y18: 0 | Z18: 0 | AB18: =Outros!B18 -> 0 | AC18: 0 | AD18: 0 | AE18: 0
B19: 2019-01-11 | C19: Caixa Econômica | D19: Receitas 12 | E19: Venda Semanal | F19: Vendas Online | G19: Pago | H19: 2011 | I19: 11010 | L19: =SUMIFS(H14:H1003,G14:G1003,"Pago",O14:O1003,"Despesa") -> 6021 | O19: =IFERROR(VLOOKUP(D19,Outros!$E$14:$F$25,2,0),"") ->  | P19: =IF(D19=Receitas!$C$13,"Receita_de_Vendas",IF(D19=Receitas!$F$13,"Receita_de_Serviços",IF(D19=Receitas!$I$13,"Receitas_Financeiras",IF(D19=Receitas!$L$13,"Outras_Receitas",IF(D19=Despesas!$C$13,"Despesas_com_Produto",IF(D19=Despesas!$F$13,"Despesas_com_Serviços",IF(D19=Despesas!$I$13,"Despesas_Administrativas",IF(D19=Despesas!$L$13,"Despesas_Operacionais",IF(D19=Despesas!$O$13,"Despesas_com_Pessoal",IF(D19=Despesas!$R$13,"Impostos",IF(D19=Despesas!$U$13,"Despesas_Não_Operacionais",IF(D19=Despesas!$X$13,"Outras_Despesas","")))))))))))) ->  | R19: 11 | S19: 1 | T19: 2019 | V19: 6 | W19: 0 | X19: 0 | Y19: 0 | Z19: 0 | AB19: =Outros!B19 -> 0 | AC19: 0 | AD19: 0 | AE19: 0
B20: 2019-01-13 | C20: Banco do Brasil | D20: Receitas 1 | E20: Venda Semanal | F20: Vendas Diretas | G20: Pago | H20: 3000 | I20: 14010 | L20: Resultado do Mês | O20: =IFERROR(VLOOKUP(D20,Outros!$E$14:$F$25,2,0),"") -> Receita | P20: =IF(D20=Receitas!$C$13,"Receita_de_Vendas",IF(D20=Receitas!$F$13,"Receita_de_Serviços",IF(D20=Receitas!$I$13,"Receitas_Financeiras",IF(D20=Receitas!$L$13,"Outras_Receitas",IF(D20=Despesas!$C$13,"Despesas_com_Produto",IF(D20=Despesas!$F$13,"Despesas_com_Serviços",IF(D20=Despesas!$I$13,"Despesas_Administrativas",IF(D20=Despesas!$L$13,"Despesas_Operacionais",IF(D20=Despesas!$O$13,"Despesas_com_Pessoal",IF(D20=Despesas!$R$13,"Impostos",IF(D20=Despesas!$U$13,"Despesas_Não_Operacionais",IF(D20=Despesas!$X$13,"Outras_Despesas","")))))))))))) -> Receita_de_Vendas | R20: 13 | S20: 1 | T20: 2019 | V20: 7 | W20: 0 | X20: 0 | Y20: 0 | Z20: 0 | AB20: =Outros!B20 -> 0 | AC20: 0 | AD20: 0 | AE20: 0
B21: 2019-01-13 | C21: Caixa Econômica | D21: Receitas 2 | E21: Venda Semanal | F21: Vendas Online | G21: Pago | H21: 2001 | I21: 16011 | L21: =L17-L19 -> 2990 | O21: =IFERROR(VLOOKUP(D21,Outros!$E$14:$F$25,2,0),"") -> Receita | P21: =IF(D21=Receitas!$C$13,"Receita_de_Vendas",IF(D21=Receitas!$F$13,"Receita_de_Serviços",IF(D21=Receitas!$I$13,"Receitas_Financeiras",IF(D21=Receitas!$L$13,"Outras_Receitas",IF(D21=Despesas!$C$13,"Despesas_com_Produto",IF(D21=Despesas!$F$13,"Despesas_com_Serviços",IF(D21=Despesas!$I$13,"Despesas_Administrativas",IF(D21=Despesas!$L$13,"Despesas_Operacionais",IF(D21=Despesas!$O$13,"Despesas_com_Pessoal",IF(D21=Despesas!$R$13,"Impostos",IF(D21=Despesas!$U$13,"Despesas_Não_Operacionais",IF(D21=Despesas!$X$13,"Outras_Despesas","")))))))))))) -> Receita_de_Serviços | R21: 13 | S21: 1 | T21: 2019 | V21: 8 | W21: 0 | X21: 0 | Y21: 0 | Z21: 0 | AB21: =Outros!B21 -> 0 | AC21: 0 | AD21: 0 | AE21: 0
B22: 2019-01-15 | C22: Caixa Econômica | D22: Receitas 4 | E22: Venda Semanal | F22: Vendas Online | G22: Pago | H22: 2003 | I22: 16011 | L22: Saldo do Mês | O22: =IFERROR(VLOOKUP(D22,Outros!$E$14:$F$25,2,0),"") ->  | P22: =IF(D22=Receitas!$C$13,"Receita_de_Vendas",IF(D22=Receitas!$F$13,"Receita_de_Serviços",IF(D22=Receitas!$I$13,"Receitas_Financeiras",IF(D22=Receitas!$L$13,"Outras_Receitas",IF(D22=Despesas!$C$13,"Despesas_com_Produto",IF(D22=Despesas!$F$13,"Despesas_com_Serviços",IF(D22=Despesas!$I$13,"Despesas_Administrativas",IF(D22=Despesas!$L$13,"Despesas_Operacionais",IF(D22=Despesas!$O$13,"Despesas_com_Pessoal",IF(D22=Despesas!$R$13,"Impostos",IF(D22=Despesas!$U$13,"Despesas_Não_Operacionais",IF(D22=Despesas!$X$13,"Outras_Despesas","")))))))))))) ->  | R22: 15 | S22: 1 | T22: 2019 | V22: 9 | W22: 0 | X22: 0 | Y22: 0 | Z22: 0 | AB22: =Outros!B22 -> 0 | AC22: 0 | AD22: 0 | AE22: 0
B23: 2019-01-17 | C23: Banco do Brasil | D23: Custos Fixos | E23: Venda Semanal | F23: Vendas Online | G23: Pago | H23: 2005 | I23: 14006 | L23: =I1003 -> 9990 | O23: =IFERROR(VLOOKUP(D23,Outros!$E$14:$F$25,2,0),"") -> Despesa | P23: =IF(D23=Receitas!$C$13,"Receita_de_Vendas",IF(D23=Receitas!$F$13,"Receita_de_Serviços",IF(D23=Receitas!$I$13,"Receitas_Financeiras",IF(D23=Receitas!$L$13,"Outras_Receitas",IF(D23=Despesas!$C$13,"Despesas_com_Produto",IF(D23=Despesas!$F$13,"Despesas_com_Serviços",IF(D23=Despesas!$I$13,"Despesas_Administrativas",IF(D23=Despesas!$L$13,"Despesas_Operacionais",IF(D23=Despesas!$O$13,"Despesas_com_Pessoal",IF(D23=Despesas!$R$13,"Impostos",IF(D23=Despesas!$U$13,"Despesas_Não_Operacionais",IF(D23=Despesas!$X$13,"Outras_Despesas","")))))))))))) -> Despesas_com_Produto | R23: 17 | S23: 1 | T23: 2019 | V23: 10 | W23: 0 | X23: 0 | Y23: 0 | Z23: 0 | AB23: =Outros!B23 -> 0 | AC23: 0 | AD23: 0 | AE23: 0
B24: 2019-01-18 | C24: Caixa Econômica | D24: Receitas 7 | E24: Venda Semanal | F24: Vendas Online | G24: Pago | H24: 2006 | I24: 14006 | O24: =IFERROR(VLOOKUP(D24,Outros!$E$14:$F$25,2,0),"") ->  | P24: =IF(D24=Receitas!$C$13,"Receita_de_Vendas",IF(D24=Receitas!$F$13,"Receita_de_Serviços",IF(D24=Receitas!$I$13,"Receitas_Financeiras",IF(D24=Receitas!$L$13,"Outras_Receitas",IF(D24=Despesas!$C$13,"Despesas_com_Produto",IF(D24=Despesas!$F$13,"Despesas_com_Serviços",IF(D24=Despesas!$I$13,"Despesas_Administrativas",IF(D24=Despesas!$L$13,"Despesas_Operacionais",IF(D24=Despesas!$O$13,"Despesas_com_Pessoal",IF(D24=Despesas!$R$13,"Impostos",IF(D24=Despesas!$U$13,"Despesas_Não_Operacionais",IF(D24=Despesas!$X$13,"Outras_Despesas","")))))))))))) ->  | R24: 18 | S24: 1 | T24: 2019 | V24: 11 | W24: 2000 | X24: 0 | Y24: 0 | Z24: 0 | AB24: =Outros!B24 -> 0 | AC24: 0 | AD24: 0 | AE24: 0
B25: 2019-01-19 | C25: Caixa Econômica | D25: Custos Variáveis | E25: Venda Semanal | F25: Vendas Online | G25: Pago | H25: 2007 | I25: 11999 | O25: =IFERROR(VLOOKUP(D25,Outros!$E$14:$F$25,2,0),"") -> Despesa | P25: =IF(D25=Receitas!$C$13,"Receita_de_Vendas",IF(D25=Receitas!$F$13,"Receita_de_Serviços",IF(D25=Receitas!$I$13,"Receitas_Financeiras",IF(D25=Receitas!$L$13,"Outras_Receitas",IF(D25=Despesas!$C$13,"Despesas_com_Produto",IF(D25=Despesas!$F$13,"Despesas_com_Serviços",IF(D25=Despesas!$I$13,"Despesas_Administrativas",IF(D25=Despesas!$L$13,"Despesas_Operacionais",IF(D25=Despesas!$O$13,"Despesas_com_Pessoal",IF(D25=Despesas!$R$13,"Impostos",IF(D25=Despesas!$U$13,"Despesas_Não_Operacionais",IF(D25=Despesas!$X$13,"Outras_Despesas","")))))))))))) -> Despesas_com_Serviços | R25: 19 | S25: 1 | T25: 2019 | V25: 12 | W25: 0 | X25: 0 | Y25: 0 | Z25: 0 | AB25: =Outros!B25 -> 0 | AC25: 0 | AD25: 0 | AE25: 0
B26: 2019-01-19 | C26: Caixa Econômica | D26: Mercadorias | E26: Venda Semanal | F26: Vendas Online | G26: Pago | H26: 2009 | I26: 9990 | O26: =IFERROR(VLOOKUP(D26,Outros!$E$14:$F$25,2,0),"") -> Despesa | P26: =IF(D26=Receitas!$C$13,"Receita_de_Vendas",IF(D26=Receitas!$F$13,"Receita_de_Serviços",IF(D26=Receitas!$I$13,"Receitas_Financeiras",IF(D26=Receitas!$L$13,"Outras_Receitas",IF(D26=Despesas!$C$13,"Despesas_com_Produto",IF(D26=Despesas!$F$13,"Despesas_com_Serviços",IF(D26=Despesas!$I$13,"Despesas_Administrativas",IF(D26=Despesas!$L$13,"Despesas_Operacionais",IF(D26=Despesas!$O$13,"Despesas_com_Pessoal",IF(D26=Despesas!$R$13,"Impostos",IF(D26=Despesas!$U$13,"Despesas_Não_Operacionais",IF(D26=Despesas!$X$13,"Outras_Despesas","")))))))))))) -> Despesas_com_Pessoal | R26: 19 | S26: 1 | T26: 2019 | V26: 13 | W26: 5001 | X26: 0 | Y26: 0 | Z26: 0 | AB26: =Outros!B26 -> 0 | AC26: 0 | AD26: 0 | AE26: 0
D27: Receitas 1 | I27: 9990 | O27: =IFERROR(VLOOKUP(D27,Outros!$E$14:$F$25,2,0),"") -> Receita | P27: =IF(D27=Receitas!$C$13,"Receita_de_Vendas",IF(D27=Receitas!$F$13,"Receita_de_Serviços",IF(D27=Receitas!$I$13,"Receitas_Financeiras",IF(D27=Receitas!$L$13,"Outras_Receitas",IF(D27=Despesas!$C$13,"Despesas_com_Produto",IF(D27=Despesas!$F$13,"Despesas_com_Serviços",IF(D27=Despesas!$I$13,"Despesas_Administrativas",IF(D27=Despesas!$L$13,"Despesas_Operacionais",IF(D27=Despesas!$O$13,"Despesas_com_Pessoal",IF(D27=Despesas!$R$13,"Impostos",IF(D27=Despesas!$U$13,"Despesas_Não_Operacionais",IF(D27=Despesas!$X$13,"Outras_Despesas","")))))))))))) -> Receita_de_Vendas | R27: 0 | S27: 1 | T27: 1900 | V27: 14 | W27: 0 | X27: 0 | Y27: 0 | Z27: 0 | AB27: =Outros!B27 -> 0 | AC27: 0 | AD27: 0 | AE27: 0
I28: 9990 | O28: =IFERROR(VLOOKUP(D28,Outros!$E$14:$F$25,2,0),"") -> Receita | P28: =IF(D28=Receitas!$C$13,"Receita_de_Vendas",IF(D28=Receitas!$F$13,"Receita_de_Serviços",IF(D28=Receitas!$I$13,"Receitas_Financeiras",IF(D28=Receitas!$L$13,"Outras_Receitas",IF(D28=Despesas!$C$13,"Despesas_com_Produto",IF(D28=Despesas!$F$13,"Despesas_com_Serviços",IF(D28=Despesas!$I$13,"Despesas_Administrativas",IF(D28=Despesas!$L$13,"Despesas_Operacionais",IF(D28=Despesas!$O$13,"Despesas_com_Pessoal",IF(D28=Despesas!$R$13,"Impostos",IF(D28=Despesas!$U$13,"Despesas_Não_Operacionais",IF(D28=Despesas!$X$13,"Outras_Despesas","")))))))))))) -> Outras_Receitas | R28: 0 | S28: 1 | T28: 1900 | V28: 15 | W28: 0 | X28: 0 | Y28: 0 | Z28: 0 | AB28: =Outros!B28 -> 0 | AC28: 0 | AD28: 0 | AE28: 0
I29: 9990 | O29: =IFERROR(VLOOKUP(D29,Outros!$E$14:$F$25,2,0),"") -> Receita | P29: =IF(D29=Receitas!$C$13,"Receita_de_Vendas",IF(D29=Receitas!$F$13,"Receita_de_Serviços",IF(D29=Receitas!$I$13,"Receitas_Financeiras",IF(D29=Receitas!$L$13,"Outras_Receitas",IF(D29=Despesas!$C$13,"Despesas_com_Produto",IF(D29=Despesas!$F$13,"Despesas_com_Serviços",IF(D29=Despesas!$I$13,"Despesas_Administrativas",IF(D29=Despesas!$L$13,"Despesas_Operacionais",IF(D29=Despesas!$O$13,"Despesas_com_Pessoal",IF(D29=Despesas!$R$13,"Impostos",IF(D29=Despesas!$U$13,"Despesas_Não_Operacionais",IF(D29=Despesas!$X$13,"Outras_Despesas","")))))))))))) -> Outras_Receitas | R29: 0 | S29: 1 | T29: 1900 | V29: 16 | W29: 0 | X29: 0 | Y29: 0 | Z29: 0 | AB29: =Outros!B29 -> 0 | AC29: 0 | AD29: 0 | AE29: 0
I30: 9990 | O30: =IFERROR(VLOOKUP(D30,Outros!$E$14:$F$25,2,0),"") -> Receita | P30: =IF(D30=Receitas!$C$13,"Receita_de_Vendas",IF(D30=Receitas!$F$13,"Receita_de_Serviços",IF(D30=Receitas!$I$13,"Receitas_Financeiras",IF(D30=Receitas!$L$13,"Outras_Receitas",IF(D30=Despesas!$C$13,"Despesas_com_Produto",IF(D30=Despesas!$F$13,"Despesas_com_Serviços",IF(D30=Despesas!$I$13,"Despesas_Administrativas",IF(D30=Despesas!$L$13,"Despesas_Operacionais",IF(D30=Despesas!$O$13,"Despesas_com_Pessoal",IF(D30=Despesas!$R$13,"Impostos",IF(D30=Despesas!$U$13,"Despesas_Não_Operacionais",IF(D30=Despesas!$X$13,"Outras_Despesas","")))))))))))) -> Outras_Receitas | R30: 0 | S30: 1 | T30: 1900 | V30: 17 | W30: 0 | X30: 2005 | Y30: 0 | Z30: 0 | AB30: =Outros!B30 -> 0 | AC30: 0 | AD30: 0 | AE30: 0
I31: 9990 | O31: =IFERROR(VLOOKUP(D31,Outros!$E$14:$F$25,2,0),"") -> Receita | P31: =IF(D31=Receitas!$C$13,"Receita_de_Vendas",IF(D31=Receitas!$F$13,"Receita_de_Serviços",IF(D31=Receitas!$I$13,"Receitas_Financeiras",IF(D31=Receitas!$L$13,"Outras_Receitas",IF(D31=Despesas!$C$13,"Despesas_com_Produto",IF(D31=Despesas!$F$13,"Despesas_com_Serviços",IF(D31=Despesas!$I$13,"Despesas_Administrativas",IF(D31=Despesas!$L$13,"Despesas_Operacionais",IF(D31=Despesas!$O$13,"Despesas_com_Pessoal",IF(D31=Despesas!$R$13,"Impostos",IF(D31=Despesas!$U$13,"Despesas_Não_Operacionais",IF(D31=Despesas!$X$13,"Outras_Despesas","")))))))))))) -> Outras_Receitas | R31: 0 | S31: 1 | T31: 1900 | V31: 18 | W31: 0 | X31: 0 | Y31: 0 | Z31: 0 | AB31: =Outros!B31 -> 0 | AC31: 0 | AD31: 0 | AE31: 0
I32: 9990 | O32: =IFERROR(VLOOKUP(D32,Outros!$E$14:$F$25,2,0),"") -> Receita | P32: =IF(D32=Receitas!$C$13,"Receita_de_Vendas",IF(D32=Receitas!$F$13,"Receita_de_Serviços",IF(D32=Receitas!$I$13,"Receitas_Financeiras",IF(D32=Receitas!$L$13,"Outras_Receitas",IF(D32=Despesas!$C$13,"Despesas_com_Produto",IF(D32=Despesas!$F$13,"Despesas_com_Serviços",IF(D32=Despesas!$I$13,"Despesas_Administrativas",IF(D32=Despesas!$L$13,"Despesas_Operacionais",IF(D32=Despesas!$O$13,"Despesas_com_Pessoal",IF(D32=Despesas!$R$13,"Impostos",IF(D32=Despesas!$U$13,"Despesas_Não_Operacionais",IF(D32=Despesas!$X$13,"Outras_Despesas","")))))))))))) -> Outras_Receitas | R32: 0 | S32: 1 | T32: 1900 | V32: 19 | W32: 0 | X32: 4016 | Y32: 0 | Z32: 0 | AB32: =Outros!B32 -> 0 | AC32: 0 | AD32: 0 | AE32: 0
I33: 9990 | O33: =IFERROR(VLOOKUP(D33,Outros!$E$14:$F$25,2,0),"") -> Receita | P33: =IF(D33=Receitas!$C$13,"Receita_de_Vendas",IF(D33=Receitas!$F$13,"Receita_de_Serviços",IF(D33=Receitas!$I$13,"Receitas_Financeiras",IF(D33=Receitas!$L$13,"Outras_Receitas",IF(D33=Despesas!$C$13,"Despesas_com_Produto",IF(D33=Despesas!$F$13,"Despesas_com_Serviços",IF(D33=Despesas!$I$13,"Despesas_Administrativas",IF(D33=Despesas!$L$13,"Despesas_Operacionais",IF(D33=Despesas!$O$13,"Despesas_com_Pessoal",IF(D33=Despesas!$R$13,"Impostos",IF(D33=Despesas!$U$13,"Despesas_Não_Operacionais",IF(D33=Despesas!$X$13,"Outras_Despesas","")))))))))))) -> Outras_Receitas | R33: 0 | S33: 1 | T33: 1900 | V33: 20 | W33: 0 | X33: 0 | Y33: 0 | Z33: 0 | AB33: =Outros!B33 -> 0 | AC33: 0 | AD33: 0 | AE33: 0
I34: 9990 | O34: =IFERROR(VLOOKUP(D34,Outros!$E$14:$F$25,2,0),"") -> Receita | P34: =IF(D34=Receitas!$C$13,"Receita_de_Vendas",IF(D34=Receitas!$F$13,"Receita_de_Serviços",IF(D34=Receitas!$I$13,"Receitas_Financeiras",IF(D34=Receitas!$L$13,"Outras_Receitas",IF(D34=Despesas!$C$13,"Despesas_com_Produto",IF(D34=Despesas!$F$13,"Despesas_com_Serviços",IF(D34=Despesas!$I$13,"Despesas_Administrativas",IF(D34=Despesas!$L$13,"Despesas_Operacionais",IF(D34=Despesas!$O$13,"Despesas_com_Pessoal",IF(D34=Despesas!$R$13,"Impostos",IF(D34=Despesas!$U$13,"Despesas_Não_Operacionais",IF(D34=Despesas!$X$13,"Outras_Despesas","")))))))))))) -> Outras_Receitas | R34: 0 | S34: 1 | T34: 1900 | V34: 21 | W34: 0 | X34: 0 | Y34: 0 | Z34: 0
I35: 9990 | O35: =IFERROR(VLOOKUP(D35,Outros!$E$14:$F$25,2,0),"") -> Receita | P35: =IF(D35=Receitas!$C$13,"Receita_de_Vendas",IF(D35=Receitas!$F$13,"Receita_de_Serviços",IF(D35=Receitas!$I$13,"Receitas_Financeiras",IF(D35=Receitas!$L$13,"Outras_Receitas",IF(D35=Despesas!$C$13,"Despesas_com_Produto",IF(D35=Despesas!$F$13,"Despesas_com_Serviços",IF(D35=Despesas!$I$13,"Despesas_Administrativas",IF(D35=Despesas!$L$13,"Despesas_Operacionais",IF(D35=Despesas!$O$13,"Despesas_com_Pessoal",IF(D35=Despesas!$R$13,"Impostos",IF(D35=Despesas!$U$13,"Despesas_Não_Operacionais",IF(D35=Despesas!$X$13,"Outras_Despesas","")))))))))))) -> Outras_Receitas | R35: 0 | S35: 1 | T35: 1900 | V35: 22 | W35: 0 | X35: 0 | Y35: 0 | Z35: 0
I36: 9990 | O36: =IFERROR(VLOOKUP(D36,Outros!$E$14:$F$25,2,0),"") -> Receita | P36: =IF(D36=Receitas!$C$13,"Receita_de_Vendas",IF(D36=Receitas!$F$13,"Receita_de_Serviços",IF(D36=Receitas!$I$13,"Receitas_Financeiras",IF(D36=Receitas!$L$13,"Outras_Receitas",IF(D36=Despesas!$C$13,"Despesas_com_Produto",IF(D36=Despesas!$F$13,"Despesas_com_Serviços",IF(D36=Despesas!$I$13,"Despesas_Administrativas",IF(D36=Despesas!$L$13,"Despesas_Operacionais",IF(D36=Despesas!$O$13,"Despesas_com_Pessoal",IF(D36=Despesas!$R$13,"Impostos",IF(D36=Despesas!$U$13,"Despesas_Não_Operacionais",IF(D36=Despesas!$X$13,"Outras_Despesas","")))))))))))) -> Outras_Receitas | R36: 0 | S36: 1 | T36: 1900 | V36: 23 | W36: 0 | X36: 0 | Y36: 0 | Z36: 0
I37: 9990 | O37: =IFERROR(VLOOKUP(D37,Outros!$E$14:$F$25,2,0),"") -> Receita | P37: =IF(D37=Receitas!$C$13,"Receita_de_Vendas",IF(D37=Receitas!$F$13,"Receita_de_Serviços",IF(D37=Receitas!$I$13,"Receitas_Financeiras",IF(D37=Receitas!$L$13,"Outras_Receitas",IF(D37=Despesas!$C$13,"Despesas_com_Produto",IF(D37=Despesas!$F$13,"Despesas_com_Serviços",IF(D37=Despesas!$I$13,"Despesas_Administrativas",IF(D37=Despesas!$L$13,"Despesas_Operacionais",IF(D37=Despesas!$O$13,"Despesas_com_Pessoal",IF(D37=Despesas!$R$13,"Impostos",IF(D37=Despesas!$U$13,"Despesas_Não_Operacionais",IF(D37=Despesas!$X$13,"Outras_Despesas","")))))))))))) -> Outras_Receitas | R37: 0 | S37: 1 | T37: 1900 | V37: 24 | W37: 0 | X37: 0 | Y37: 0 | Z37: 0
I38: 9990 | O38: =IFERROR(VLOOKUP(D38,Outros!$E$14:$F$25,2,0),"") -> Receita | P38: =IF(D38=Receitas!$C$13,"Receita_de_Vendas",IF(D38=Receitas!$F$13,"Receita_de_Serviços",IF(D38=Receitas!$I$13,"Receitas_Financeiras",IF(D38=Receitas!$L$13,"Outras_Receitas",IF(D38=Despesas!$C$13,"Despesas_com_Produto",IF(D38=Despesas!$F$13,"Despesas_com_Serviços",IF(D38=Despesas!$I$13,"Despesas_Administrativas",IF(D38=Despesas!$L$13,"Despesas_Operacionais",IF(D38=Despesas!$O$13,"Despesas_com_Pessoal",IF(D38=Despesas!$R$13,"Impostos",IF(D38=Despesas!$U$13,"Despesas_Não_Operacionais",IF(D38=Despesas!$X$13,"Outras_Despesas","")))))))))))) -> Outras_Receitas | R38: 0 | S38: 1 | T38: 1900 | V38: 25 | W38: 0 | X38: 0 | Y38: 0 | Z38: 0
I39: 9990 | O39: =IFERROR(VLOOKUP(D39,Outros!$E$14:$F$25,2,0),"") -> Receita | P39: =IF(D39=Receitas!$C$13,"Receita_de_Vendas",IF(D39=Receitas!$F$13,"Receita_de_Serviços",IF(D39=Receitas!$I$13,"Receitas_Financeiras",IF(D39=Receitas!$L$13,"Outras_Receitas",IF(D39=Despesas!$C$13,"Despesas_com_Produto",IF(D39=Despesas!$F$13,"Despesas_com_Serviços",IF(D39=Despesas!$I$13,"Despesas_Administrativas",IF(D39=Despesas!$L$13,"Despesas_Operacionais",IF(D39=Despesas!$O$13,"Despesas_com_Pessoal",IF(D39=Despesas!$R$13,"Impostos",IF(D39=Despesas!$U$13,"Despesas_Não_Operacionais",IF(D39=Despesas!$X$13,"Outras_Despesas","")))))))))))) -> Outras_Receitas | R39: 0 | S39: 1 | T39: 1900 | V39: 26 | W39: 0 | X39: 0 | Y39: 0 | Z39: 0
I40: 9990 | O40: =IFERROR(VLOOKUP(D40,Outros!$E$14:$F$25,2,0),"") -> Receita | P40: =IF(D40=Receitas!$C$13,"Receita_de_Vendas",IF(D40=Receitas!$F$13,"Receita_de_Serviços",IF(D40=Receitas!$I$13,"Receitas_Financeiras",IF(D40=Receitas!$L$13,"Outras_Receitas",IF(D40=Despesas!$C$13,"Despesas_com_Produto",IF(D40=Despesas!$F$13,"Despesas_com_Serviços",IF(D40=Despesas!$I$13,"Despesas_Administrativas",IF(D40=Despesas!$L$13,"Despesas_Operacionais",IF(D40=Despesas!$O$13,"Despesas_com_Pessoal",IF(D40=Despesas!$R$13,"Impostos",IF(D40=Despesas!$U$13,"Despesas_Não_Operacionais",IF(D40=Despesas!$X$13,"Outras_Despesas","")))))))))))) -> Outras_Receitas | R40: 0 | S40: 1 | T40: 1900 | V40: 27 | W40: 0 | X40: 0 | Y40: 0 | Z40: 0
I41: 9990 | O41: =IFERROR(VLOOKUP(D41,Outros!$E$14:$F$25,2,0),"") -> Receita | P41: =IF(D41=Receitas!$C$13,"Receita_de_Vendas",IF(D41=Receitas!$F$13,"Receita_de_Serviços",IF(D41=Receitas!$I$13,"Receitas_Financeiras",IF(D41=Receitas!$L$13,"Outras_Receitas",IF(D41=Despesas!$C$13,"Despesas_com_Produto",IF(D41=Despesas!$F$13,"Despesas_com_Serviços",IF(D41=Despesas!$I$13,"Despesas_Administrativas",IF(D41=Despesas!$L$13,"Despesas_Operacionais",IF(D41=Despesas!$O$13,"Despesas_com_Pessoal",IF(D41=Despesas!$R$13,"Impostos",IF(D41=Despesas!$U$13,"Despesas_Não_Operacionais",IF(D41=Despesas!$X$13,"Outras_Despesas","")))))))))))) -> Outras_Receitas | R41: 0 | S41: 1 | T41: 1900 | V41: 28 | W41: 0 | X41: 0 | Y41: 0 | Z41: 0
I42: 9990 | O42: =IFERROR(VLOOKUP(D42,Outros!$E$14:$F$25,2,0),"") -> Receita | P42: =IF(D42=Receitas!$C$13,"Receita_de_Vendas",IF(D42=Receitas!$F$13,"Receita_de_Serviços",IF(D42=Receitas!$I$13,"Receitas_Financeiras",IF(D42=Receitas!$L$13,"Outras_Receitas",IF(D42=Despesas!$C$13,"Despesas_com_Produto",IF(D42=Despesas!$F$13,"Despesas_com_Serviços",IF(D42=Despesas!$I$13,"Despesas_Administrativas",IF(D42=Despesas!$L$13,"Despesas_Operacionais",IF(D42=Despesas!$O$13,"Despesas_com_Pessoal",IF(D42=Despesas!$R$13,"Impostos",IF(D42=Despesas!$U$13,"Despesas_Não_Operacionais",IF(D42=Despesas!$X$13,"Outras_Despesas","")))))))))))) -> Outras_Receitas | R42: 0 | S42: 1 | T42: 1900 | V42: 29 | W42: 0 | X42: 0 | Y42: 0 | Z42: 0
I43: 9990 | O43: =IFERROR(VLOOKUP(D43,Outros!$E$14:$F$25,2,0),"") -> Receita | P43: =IF(D43=Receitas!$C$13,"Receita_de_Vendas",IF(D43=Receitas!$F$13,"Receita_de_Serviços",IF(D43=Receitas!$I$13,"Receitas_Financeiras",IF(D43=Receitas!$L$13,"Outras_Receitas",IF(D43=Despesas!$C$13,"Despesas_com_Produto",IF(D43=Despesas!$F$13,"Despesas_com_Serviços",IF(D43=Despesas!$I$13,"Despesas_Administrativas",IF(D43=Despesas!$L$13,"Despesas_Operacionais",IF(D43=Despesas!$O$13,"Despesas_com_Pessoal",IF(D43=Despesas!$R$13,"Impostos",IF(D43=Despesas!$U$13,"Despesas_Não_Operacionais",IF(D43=Despesas!$X$13,"Outras_Despesas","")))))))))))) -> Outras_Receitas | R43: 0 | S43: 1 | T43: 1900 | V43: 30 | W43: 0 | X43: 0 | Y43: 0 | Z43: 0
I44: 9990 | O44: =IFERROR(VLOOKUP(D44,Outros!$E$14:$F$25,2,0),"") -> Receita | P44: =IF(D44=Receitas!$C$13,"Receita_de_Vendas",IF(D44=Receitas!$F$13,"Receita_de_Serviços",IF(D44=Receitas!$I$13,"Receitas_Financeiras",IF(D44=Receitas!$L$13,"Outras_Receitas",IF(D44=Despesas!$C$13,"Despesas_com_Produto",IF(D44=Despesas!$F$13,"Despesas_com_Serviços",IF(D44=Despesas!$I$13,"Despesas_Administrativas",IF(D44=Despesas!$L$13,"Despesas_Operacionais",IF(D44=Despesas!$O$13,"Despesas_com_Pessoal",IF(D44=Despesas!$R$13,"Impostos",IF(D44=Despesas!$U$13,"Despesas_Não_Operacionais",IF(D44=Despesas!$X$13,"Outras_Despesas","")))))))))))) -> Outras_Receitas | R44: 0 | S44: 1 | T44: 1900 | V44: 31 | W44: 0 | X44: 0 | Y44: 0 | Z44: 0
I45: 9990 | O45: =IFERROR(VLOOKUP(D45,Outros!$E$14:$F$25,2,0),"") -> Receita | P45: =IF(D45=Receitas!$C$13,"Receita_de_Vendas",IF(D45=Receitas!$F$13,"Receita_de_Serviços",IF(D45=Receitas!$I$13,"Receitas_Financeiras",IF(D45=Receitas!$L$13,"Outras_Receitas",IF(D45=Despesas!$C$13,"Despesas_com_Produto",IF(D45=Despesas!$F$13,"Despesas_com_Serviços",IF(D45=Despesas!$I$13,"Despesas_Administrativas",IF(D45=Despesas!$L$13,"Despesas_Operacionais",IF(D45=Despesas!$O$13,"Despesas_com_Pessoal",IF(D45=Despesas!$R$13,"Impostos",IF(D45=Despesas!$U$13,"Despesas_Não_Operacionais",IF(D45=Despesas!$X$13,"Outras_Despesas","")))))))))))) -> Outras_Receitas | R45: 0 | S45: 1 | T45: 1900
I46: 9990 | O46: =IFERROR(VLOOKUP(D46,Outros!$E$14:$F$25,2,0),"") -> Receita | P46: =IF(D46=Receitas!$C$13,"Receita_de_Vendas",IF(D46=Receitas!$F$13,"Receita_de_Serviços",IF(D46=Receitas!$I$13,"Receitas_Financeiras",IF(D46=Receitas!$L$13,"Outras_Receitas",IF(D46=Despesas!$C$13,"Despesas_com_Produto",IF(D46=Despesas!$F$13,"Despesas_com_Serviços",IF(D46=Despesas!$I$13,"Despesas_Administrativas",IF(D46=Despesas!$L$13,"Despesas_Operacionais",IF(D46=Despesas!$O$13,"Despesas_com_Pessoal",IF(D46=Despesas!$R$13,"Impostos",IF(D46=Despesas!$U$13,"Despesas_Não_Operacionais",IF(D46=Despesas!$X$13,"Outras_Despesas","")))))))))))) -> Outras_Receitas | R46: =DAY(B46) -> 0 | S46: =MONTH(B46) -> 1 | T46: =YEAR(B46) -> 1900
I47: 9990 | O47: =IFERROR(VLOOKUP(D47,Outros!$E$14:$F$25,2,0),"") -> Receita | P47: =IF(D47=Receitas!$C$13,"Receita_de_Vendas",IF(D47=Receitas!$F$13,"Receita_de_Serviços",IF(D47=Receitas!$I$13,"Receitas_Financeiras",IF(D47=Receitas!$L$13,"Outras_Receitas",IF(D47=Despesas!$C$13,"Despesas_com_Produto",IF(D47=Despesas!$F$13,"Despesas_com_Serviços",IF(D47=Despesas!$I$13,"Despesas_Administrativas",IF(D47=Despesas!$L$13,"Despesas_Operacionais",IF(D47=Despesas!$O$13,"Despesas_com_Pessoal",IF(D47=Despesas!$R$13,"Impostos",IF(D47=Despesas!$U$13,"Despesas_Não_Operacionais",IF(D47=Despesas!$X$13,"Outras_Despesas","")))))))))))) -> Outras_Receitas | R47: 0 | S47: 1 | T47: 1900
I48: 9990 | O48: =IFERROR(VLOOKUP(D48,Outros!$E$14:$F$25,2,0),"") -> Receita | P48: =IF(D48=Receitas!$C$13,"Receita_de_Vendas",IF(D48=Receitas!$F$13,"Receita_de_Serviços",IF(D48=Receitas!$I$13,"Receitas_Financeiras",IF(D48=Receitas!$L$13,"Outras_Receitas",IF(D48=Despesas!$C$13,"Despesas_com_Produto",IF(D48=Despesas!$F$13,"Despesas_com_Serviços",IF(D48=Despesas!$I$13,"Despesas_Administrativas",IF(D48=Despesas!$L$13,"Despesas_Operacionais",IF(D48=Despesas!$O$13,"Despesas_com_Pessoal",IF(D48=Despesas!$R$13,"Impostos",IF(D48=Despesas!$U$13,"Despesas_Não_Operacionais",IF(D48=Despesas!$X$13,"Outras_Despesas","")))))))))))) -> Outras_Receitas | R48: 0 | S48: 1 | T48: 1900
I49: 9990 | O49: =IFERROR(VLOOKUP(D49,Outros!$E$14:$F$25,2,0),"") -> Receita | P49: =IF(D49=Receitas!$C$13,"Receita_de_Vendas",IF(D49=Receitas!$F$13,"Receita_de_Serviços",IF(D49=Receitas!$I$13,"Receitas_Financeiras",IF(D49=Receitas!$L$13,"Outras_Receitas",IF(D49=Despesas!$C$13,"Despesas_com_Produto",IF(D49=Despesas!$F$13,"Despesas_com_Serviços",IF(D49=Despesas!$I$13,"Despesas_Administrativas",IF(D49=Despesas!$L$13,"Despesas_Operacionais",IF(D49=Despesas!$O$13,"Despesas_com_Pessoal",IF(D49=Despesas!$R$13,"Impostos",IF(D49=Despesas!$U$13,"Despesas_Não_Operacionais",IF(D49=Despesas!$X$13,"Outras_Despesas","")))))))))))) -> Outras_Receitas | R49: 0 | S49: 1 | T49: 1900
I50: 9990 | O50: =IFERROR(VLOOKUP(D50,Outros!$E$14:$F$25,2,0),"") -> Receita | P50: =IF(D50=Receitas!$C$13,"Receita_de_Vendas",IF(D50=Receitas!$F$13,"Receita_de_Serviços",IF(D50=Receitas!$I$13,"Receitas_Financeiras",IF(D50=Receitas!$L$13,"Outras_Receitas",IF(D50=Despesas!$C$13,"Despesas_com_Produto",IF(D50=Despesas!$F$13,"Despesas_com_Serviços",IF(D50=Despesas!$I$13,"Despesas_Administrativas",IF(D50=Despesas!$L$13,"Despesas_Operacionais",IF(D50=Despesas!$O$13,"Despesas_com_Pessoal",IF(D50=Despesas!$R$13,"Impostos",IF(D50=Despesas!$U$13,"Despesas_Não_Operacionais",IF(D50=Despesas!$X$13,"Outras_Despesas","")))))))))))) -> Outras_Receitas | R50: 0 | S50: 1 | T50: 1900
I51: 9990 | O51: =IFERROR(VLOOKUP(D51,Outros!$E$14:$F$25,2,0),"") -> Receita | P51: =IF(D51=Receitas!$C$13,"Receita_de_Vendas",IF(D51=Receitas!$F$13,"Receita_de_Serviços",IF(D51=Receitas!$I$13,"Receitas_Financeiras",IF(D51=Receitas!$L$13,"Outras_Receitas",IF(D51=Despesas!$C$13,"Despesas_com_Produto",IF(D51=Despesas!$F$13,"Despesas_com_Serviços",IF(D51=Despesas!$I$13,"Despesas_Administrativas",IF(D51=Despesas!$L$13,"Despesas_Operacionais",IF(D51=Despesas!$O$13,"Despesas_com_Pessoal",IF(D51=Despesas!$R$13,"Impostos",IF(D51=Despesas!$U$13,"Despesas_Não_Operacionais",IF(D51=Despesas!$X$13,"Outras_Despesas","")))))))))))) -> Outras_Receitas | R51: 0 | S51: 1 | T51: 1900
I52: 9990 | O52: =IFERROR(VLOOKUP(D52,Outros!$E$14:$F$25,2,0),"") -> Receita | P52: =IF(D52=Receitas!$C$13,"Receita_de_Vendas",IF(D52=Receitas!$F$13,"Receita_de_Serviços",IF(D52=Receitas!$I$13,"Receitas_Financeiras",IF(D52=Receitas!$L$13,"Outras_Receitas",IF(D52=Despesas!$C$13,"Despesas_com_Produto",IF(D52=Despesas!$F$13,"Despesas_com_Serviços",IF(D52=Despesas!$I$13,"Despesas_Administrativas",IF(D52=Despesas!$L$13,"Despesas_Operacionais",IF(D52=Despesas!$O$13,"Despesas_com_Pessoal",IF(D52=Despesas!$R$13,"Impostos",IF(D52=Despesas!$U$13,"Despesas_Não_Operacionais",IF(D52=Despesas!$X$13,"Outras_Despesas","")))))))))))) -> Outras_Receitas | R52: 0 | S52: 1 | T52: 1900
I53: 9990 | O53: =IFERROR(VLOOKUP(D53,Outros!$E$14:$F$25,2,0),"") -> Receita | P53: =IF(D53=Receitas!$C$13,"Receita_de_Vendas",IF(D53=Receitas!$F$13,"Receita_de_Serviços",IF(D53=Receitas!$I$13,"Receitas_Financeiras",IF(D53=Receitas!$L$13,"Outras_Receitas",IF(D53=Despesas!$C$13,"Despesas_com_Produto",IF(D53=Despesas!$F$13,"Despesas_com_Serviços",IF(D53=Despesas!$I$13,"Despesas_Administrativas",IF(D53=Despesas!$L$13,"Despesas_Operacionais",IF(D53=Despesas!$O$13,"Despesas_com_Pessoal",IF(D53=Despesas!$R$13,"Impostos",IF(D53=Despesas!$U$13,"Despesas_Não_Operacionais",IF(D53=Despesas!$X$13,"Outras_Despesas","")))))))))))) -> Outras_Receitas | R53: 0 | S53: 1 | T53: 1900
I54: 9990 | O54: =IFERROR(VLOOKUP(D54,Outros!$E$14:$F$25,2,0),"") -> Receita | P54: =IF(D54=Receitas!$C$13,"Receita_de_Vendas",IF(D54=Receitas!$F$13,"Receita_de_Serviços",IF(D54=Receitas!$I$13,"Receitas_Financeiras",IF(D54=Receitas!$L$13,"Outras_Receitas",IF(D54=Despesas!$C$13,"Despesas_com_Produto",IF(D54=Despesas!$F$13,"Despesas_com_Serviços",IF(D54=Despesas!$I$13,"Despesas_Administrativas",IF(D54=Despesas!$L$13,"Despesas_Operacionais",IF(D54=Despesas!$O$13,"Despesas_com_Pessoal",IF(D54=Despesas!$R$13,"Impostos",IF(D54=Despesas!$U$13,"Despesas_Não_Operacionais",IF(D54=Despesas!$X$13,"Outras_Despesas","")))))))))))) -> Outras_Receitas | R54: 0 | S54: 1 | T54: 1900
I55: 9990 | O55: =IFERROR(VLOOKUP(D55,Outros!$E$14:$F$25,2,0),"") -> Receita | P55: =IF(D55=Receitas!$C$13,"Receita_de_Vendas",IF(D55=Receitas!$F$13,"Receita_de_Serviços",IF(D55=Receitas!$I$13,"Receitas_Financeiras",IF(D55=Receitas!$L$13,"Outras_Receitas",IF(D55=Despesas!$C$13,"Despesas_com_Produto",IF(D55=Despesas!$F$13,"Despesas_com_Serviços",IF(D55=Despesas!$I$13,"Despesas_Administrativas",IF(D55=Despesas!$L$13,"Despesas_Operacionais",IF(D55=Despesas!$O$13,"Despesas_com_Pessoal",IF(D55=Despesas!$R$13,"Impostos",IF(D55=Despesas!$U$13,"Despesas_Não_Operacionais",IF(D55=Despesas!$X$13,"Outras_Despesas","")))))))))))) -> Outras_Receitas | R55: 0 | S55: 1 | T55: 1900
I56: 9990 | O56: =IFERROR(VLOOKUP(D56,Outros!$E$14:$F$25,2,0),"") -> Receita | P56: =IF(D56=Receitas!$C$13,"Receita_de_Vendas",IF(D56=Receitas!$F$13,"Receita_de_Serviços",IF(D56=Receitas!$I$13,"Receitas_Financeiras",IF(D56=Receitas!$L$13,"Outras_Receitas",IF(D56=Despesas!$C$13,"Despesas_com_Produto",IF(D56=Despesas!$F$13,"Despesas_com_Serviços",IF(D56=Despesas!$I$13,"Despesas_Administrativas",IF(D56=Despesas!$L$13,"Despesas_Operacionais",IF(D56=Despesas!$O$13,"Despesas_com_Pessoal",IF(D56=Despesas!$R$13,"Impostos",IF(D56=Despesas!$U$13,"Despesas_Não_Operacionais",IF(D56=Despesas!$X$13,"Outras_Despesas","")))))))))))) -> Outras_Receitas | R56: 0 | S56: 1 | T56: 1900
I57: 9990 | O57: =IFERROR(VLOOKUP(D57,Outros!$E$14:$F$25,2,0),"") -> Receita | P57: =IF(D57=Receitas!$C$13,"Receita_de_Vendas",IF(D57=Receitas!$F$13,"Receita_de_Serviços",IF(D57=Receitas!$I$13,"Receitas_Financeiras",IF(D57=Receitas!$L$13,"Outras_Receitas",IF(D57=Despesas!$C$13,"Despesas_com_Produto",IF(D57=Despesas!$F$13,"Despesas_com_Serviços",IF(D57=Despesas!$I$13,"Despesas_Administrativas",IF(D57=Despesas!$L$13,"Despesas_Operacionais",IF(D57=Despesas!$O$13,"Despesas_com_Pessoal",IF(D57=Despesas!$R$13,"Impostos",IF(D57=Despesas!$U$13,"Despesas_Não_Operacionais",IF(D57=Despesas!$X$13,"Outras_Despesas","")))))))))))) -> Outras_Receitas | R57: 0 | S57: 1 | T57: 1900
I58: 9990 | O58: =IFERROR(VLOOKUP(D58,Outros!$E$14:$F$25,2,0),"") -> Receita | P58: =IF(D58=Receitas!$C$13,"Receita_de_Vendas",IF(D58=Receitas!$F$13,"Receita_de_Serviços",IF(D58=Receitas!$I$13,"Receitas_Financeiras",IF(D58=Receitas!$L$13,"Outras_Receitas",IF(D58=Despesas!$C$13,"Despesas_com_Produto",IF(D58=Despesas!$F$13,"Despesas_com_Serviços",IF(D58=Despesas!$I$13,"Despesas_Administrativas",IF(D58=Despesas!$L$13,"Despesas_Operacionais",IF(D58=Despesas!$O$13,"Despesas_com_Pessoal",IF(D58=Despesas!$R$13,"Impostos",IF(D58=Despesas!$U$13,"Despesas_Não_Operacionais",IF(D58=Despesas!$X$13,"Outras_Despesas","")))))))))))) -> Outras_Receitas | R58: 0 | S58: 1 | T58: 1900
I59: 9990 | O59: =IFERROR(VLOOKUP(D59,Outros!$E$14:$F$25,2,0),"") -> Receita | P59: =IF(D59=Receitas!$C$13,"Receita_de_Vendas",IF(D59=Receitas!$F$13,"Receita_de_Serviços",IF(D59=Receitas!$I$13,"Receitas_Financeiras",IF(D59=Receitas!$L$13,"Outras_Receitas",IF(D59=Despesas!$C$13,"Despesas_com_Produto",IF(D59=Despesas!$F$13,"Despesas_com_Serviços",IF(D59=Despesas!$I$13,"Despesas_Administrativas",IF(D59=Despesas!$L$13,"Despesas_Operacionais",IF(D59=Despesas!$O$13,"Despesas_com_Pessoal",IF(D59=Despesas!$R$13,"Impostos",IF(D59=Despesas!$U$13,"Despesas_Não_Operacionais",IF(D59=Despesas!$X$13,"Outras_Despesas","")))))))))))) -> Outras_Receitas | R59: 0 | S59: 1 | T59: 1900
I60: 9990 | O60: =IFERROR(VLOOKUP(D60,Outros!$E$14:$F$25,2,0),"") -> Receita | P60: =IF(D60=Receitas!$C$13,"Receita_de_Vendas",IF(D60=Receitas!$F$13,"Receita_de_Serviços",IF(D60=Receitas!$I$13,"Receitas_Financeiras",IF(D60=Receitas!$L$13,"Outras_Receitas",IF(D60=Despesas!$C$13,"Despesas_com_Produto",IF(D60=Despesas!$F$13,"Despesas_com_Serviços",IF(D60=Despesas!$I$13,"Despesas_Administrativas",IF(D60=Despesas!$L$13,"Despesas_Operacionais",IF(D60=Despesas!$O$13,"Despesas_com_Pessoal",IF(D60=Despesas!$R$13,"Impostos",IF(D60=Despesas!$U$13,"Despesas_Não_Operacionais",IF(D60=Despesas!$X$13,"Outras_Despesas","")))))))))))) -> Outras_Receitas | R60: 0 | S60: 1 | T60: 1900
I61: 9990 | O61: =IFERROR(VLOOKUP(D61,Outros!$E$14:$F$25,2,0),"") -> Receita | P61: =IF(D61=Receitas!$C$13,"Receita_de_Vendas",IF(D61=Receitas!$F$13,"Receita_de_Serviços",IF(D61=Receitas!$I$13,"Receitas_Financeiras",IF(D61=Receitas!$L$13,"Outras_Receitas",IF(D61=Despesas!$C$13,"Despesas_com_Produto",IF(D61=Despesas!$F$13,"Despesas_com_Serviços",IF(D61=Despesas!$I$13,"Despesas_Administrativas",IF(D61=Despesas!$L$13,"Despesas_Operacionais",IF(D61=Despesas!$O$13,"Despesas_com_Pessoal",IF(D61=Despesas!$R$13,"Impostos",IF(D61=Despesas!$U$13,"Despesas_Não_Operacionais",IF(D61=Despesas!$X$13,"Outras_Despesas","")))))))))))) -> Outras_Receitas | R61: 0 | S61: 1 | T61: 1900
I62: 9990 | O62: =IFERROR(VLOOKUP(D62,Outros!$E$14:$F$25,2,0),"") -> Receita | P62: =IF(D62=Receitas!$C$13,"Receita_de_Vendas",IF(D62=Receitas!$F$13,"Receita_de_Serviços",IF(D62=Receitas!$I$13,"Receitas_Financeiras",IF(D62=Receitas!$L$13,"Outras_Receitas",IF(D62=Despesas!$C$13,"Despesas_com_Produto",IF(D62=Despesas!$F$13,"Despesas_com_Serviços",IF(D62=Despesas!$I$13,"Despesas_Administrativas",IF(D62=Despesas!$L$13,"Despesas_Operacionais",IF(D62=Despesas!$O$13,"Despesas_com_Pessoal",IF(D62=Despesas!$R$13,"Impostos",IF(D62=Despesas!$U$13,"Despesas_Não_Operacionais",IF(D62=Despesas!$X$13,"Outras_Despesas","")))))))))))) -> Outras_Receitas | R62: 0 | S62: 1 | T62: 1900
I63: 9990 | O63: =IFERROR(VLOOKUP(D63,Outros!$E$14:$F$25,2,0),"") -> Receita | P63: =IF(D63=Receitas!$C$13,"Receita_de_Vendas",IF(D63=Receitas!$F$13,"Receita_de_Serviços",IF(D63=Receitas!$I$13,"Receitas_Financeiras",IF(D63=Receitas!$L$13,"Outras_Receitas",IF(D63=Despesas!$C$13,"Despesas_com_Produto",IF(D63=Despesas!$F$13,"Despesas_com_Serviços",IF(D63=Despesas!$I$13,"Despesas_Administrativas",IF(D63=Despesas!$L$13,"Despesas_Operacionais",IF(D63=Despesas!$O$13,"Despesas_com_Pessoal",IF(D63=Despesas!$R$13,"Impostos",IF(D63=Despesas!$U$13,"Despesas_Não_Operacionais",IF(D63=Despesas!$X$13,"Outras_Despesas","")))))))))))) -> Outras_Receitas | R63: 0 | S63: 1 | T63: 1900
I64: 9990 | O64: =IFERROR(VLOOKUP(D64,Outros!$E$14:$F$25,2,0),"") -> Receita | P64: =IF(D64=Receitas!$C$13,"Receita_de_Vendas",IF(D64=Receitas!$F$13,"Receita_de_Serviços",IF(D64=Receitas!$I$13,"Receitas_Financeiras",IF(D64=Receitas!$L$13,"Outras_Receitas",IF(D64=Despesas!$C$13,"Despesas_com_Produto",IF(D64=Despesas!$F$13,"Despesas_com_Serviços",IF(D64=Despesas!$I$13,"Despesas_Administrativas",IF(D64=Despesas!$L$13,"Despesas_Operacionais",IF(D64=Despesas!$O$13,"Despesas_com_Pessoal",IF(D64=Despesas!$R$13,"Impostos",IF(D64=Despesas!$U$13,"Despesas_Não_Operacionais",IF(D64=Despesas!$X$13,"Outras_Despesas","")))))))))))) -> Outras_Receitas | R64: 0 | S64: 1 | T64: 1900
I65: 9990 | O65: =IFERROR(VLOOKUP(D65,Outros!$E$14:$F$25,2,0),"") -> Receita | P65: =IF(D65=Receitas!$C$13,"Receita_de_Vendas",IF(D65=Receitas!$F$13,"Receita_de_Serviços",IF(D65=Receitas!$I$13,"Receitas_Financeiras",IF(D65=Receitas!$L$13,"Outras_Receitas",IF(D65=Despesas!$C$13,"Despesas_com_Produto",IF(D65=Despesas!$F$13,"Despesas_com_Serviços",IF(D65=Despesas!$I$13,"Despesas_Administrativas",IF(D65=Despesas!$L$13,"Despesas_Operacionais",IF(D65=Despesas!$O$13,"Despesas_com_Pessoal",IF(D65=Despesas!$R$13,"Impostos",IF(D65=Despesas!$U$13,"Despesas_Não_Operacionais",IF(D65=Despesas!$X$13,"Outras_Despesas","")))))))))))) -> Outras_Receitas | R65: 0 | S65: 1 | T65: 1900
I66: 9990 | O66: =IFERROR(VLOOKUP(D66,Outros!$E$14:$F$25,2,0),"") -> Receita | P66: =IF(D66=Receitas!$C$13,"Receita_de_Vendas",IF(D66=Receitas!$F$13,"Receita_de_Serviços",IF(D66=Receitas!$I$13,"Receitas_Financeiras",IF(D66=Receitas!$L$13,"Outras_Receitas",IF(D66=Despesas!$C$13,"Despesas_com_Produto",IF(D66=Despesas!$F$13,"Despesas_com_Serviços",IF(D66=Despesas!$I$13,"Despesas_Administrativas",IF(D66=Despesas!$L$13,"Despesas_Operacionais",IF(D66=Despesas!$O$13,"Despesas_com_Pessoal",IF(D66=Despesas!$R$13,"Impostos",IF(D66=Despesas!$U$13,"Despesas_Não_Operacionais",IF(D66=Despesas!$X$13,"Outras_Despesas","")))))))))))) -> Outras_Receitas | R66: 0 | S66: 1 | T66: 1900
I67: 9990 | O67: =IFERROR(VLOOKUP(D67,Outros!$E$14:$F$25,2,0),"") -> Receita | P67: =IF(D67=Receitas!$C$13,"Receita_de_Vendas",IF(D67=Receitas!$F$13,"Receita_de_Serviços",IF(D67=Receitas!$I$13,"Receitas_Financeiras",IF(D67=Receitas!$L$13,"Outras_Receitas",IF(D67=Despesas!$C$13,"Despesas_com_Produto",IF(D67=Despesas!$F$13,"Despesas_com_Serviços",IF(D67=Despesas!$I$13,"Despesas_Administrativas",IF(D67=Despesas!$L$13,"Despesas_Operacionais",IF(D67=Despesas!$O$13,"Despesas_com_Pessoal",IF(D67=Despesas!$R$13,"Impostos",IF(D67=Despesas!$U$13,"Despesas_Não_Operacionais",IF(D67=Despesas!$X$13,"Outras_Despesas","")))))))))))) -> Outras_Receitas | R67: 0 | S67: 1 | T67: 1900
I68: 9990 | O68: =IFERROR(VLOOKUP(D68,Outros!$E$14:$F$25,2,0),"") -> Receita | P68: =IF(D68=Receitas!$C$13,"Receita_de_Vendas",IF(D68=Receitas!$F$13,"Receita_de_Serviços",IF(D68=Receitas!$I$13,"Receitas_Financeiras",IF(D68=Receitas!$L$13,"Outras_Receitas",IF(D68=Despesas!$C$13,"Despesas_com_Produto",IF(D68=Despesas!$F$13,"Despesas_com_Serviços",IF(D68=Despesas!$I$13,"Despesas_Administrativas",IF(D68=Despesas!$L$13,"Despesas_Operacionais",IF(D68=Despesas!$O$13,"Despesas_com_Pessoal",IF(D68=Despesas!$R$13,"Impostos",IF(D68=Despesas!$U$13,"Despesas_Não_Operacionais",IF(D68=Despesas!$X$13,"Outras_Despesas","")))))))))))) -> Outras_Receitas | R68: 0 | S68: 1 | T68: 1900
I69: 9990 | O69: =IFERROR(VLOOKUP(D69,Outros!$E$14:$F$25,2,0),"") -> Receita | P69: =IF(D69=Receitas!$C$13,"Receita_de_Vendas",IF(D69=Receitas!$F$13,"Receita_de_Serviços",IF(D69=Receitas!$I$13,"Receitas_Financeiras",IF(D69=Receitas!$L$13,"Outras_Receitas",IF(D69=Despesas!$C$13,"Despesas_com_Produto",IF(D69=Despesas!$F$13,"Despesas_com_Serviços",IF(D69=Despesas!$I$13,"Despesas_Administrativas",IF(D69=Despesas!$L$13,"Despesas_Operacionais",IF(D69=Despesas!$O$13,"Despesas_com_Pessoal",IF(D69=Despesas!$R$13,"Impostos",IF(D69=Despesas!$U$13,"Despesas_Não_Operacionais",IF(D69=Despesas!$X$13,"Outras_Despesas","")))))))))))) -> Outras_Receitas | R69: 0 | S69: 1 | T69: 1900
I70: 9990 | O70: =IFERROR(VLOOKUP(D70,Outros!$E$14:$F$25,2,0),"") -> Receita | P70: =IF(D70=Receitas!$C$13,"Receita_de_Vendas",IF(D70=Receitas!$F$13,"Receita_de_Serviços",IF(D70=Receitas!$I$13,"Receitas_Financeiras",IF(D70=Receitas!$L$13,"Outras_Receitas",IF(D70=Despesas!$C$13,"Despesas_com_Produto",IF(D70=Despesas!$F$13,"Despesas_com_Serviços",IF(D70=Despesas!$I$13,"Despesas_Administrativas",IF(D70=Despesas!$L$13,"Despesas_Operacionais",IF(D70=Despesas!$O$13,"Despesas_com_Pessoal",IF(D70=Despesas!$R$13,"Impostos",IF(D70=Despesas!$U$13,"Despesas_Não_Operacionais",IF(D70=Despesas!$X$13,"Outras_Despesas","")))))))))))) -> Outras_Receitas | R70: 0 | S70: 1 | T70: 1900
I71: 9990 | O71: =IFERROR(VLOOKUP(D71,Outros!$E$14:$F$25,2,0),"") -> Receita | P71: =IF(D71=Receitas!$C$13,"Receita_de_Vendas",IF(D71=Receitas!$F$13,"Receita_de_Serviços",IF(D71=Receitas!$I$13,"Receitas_Financeiras",IF(D71=Receitas!$L$13,"Outras_Receitas",IF(D71=Despesas!$C$13,"Despesas_com_Produto",IF(D71=Despesas!$F$13,"Despesas_com_Serviços",IF(D71=Despesas!$I$13,"Despesas_Administrativas",IF(D71=Despesas!$L$13,"Despesas_Operacionais",IF(D71=Despesas!$O$13,"Despesas_com_Pessoal",IF(D71=Despesas!$R$13,"Impostos",IF(D71=Despesas!$U$13,"Despesas_Não_Operacionais",IF(D71=Despesas!$X$13,"Outras_Despesas","")))))))))))) -> Outras_Receitas | R71: 0 | S71: 1 | T71: 1900
I72: 9990 | O72: =IFERROR(VLOOKUP(D72,Outros!$E$14:$F$25,2,0),"") -> Receita | P72: =IF(D72=Receitas!$C$13,"Receita_de_Vendas",IF(D72=Receitas!$F$13,"Receita_de_Serviços",IF(D72=Receitas!$I$13,"Receitas_Financeiras",IF(D72=Receitas!$L$13,"Outras_Receitas",IF(D72=Despesas!$C$13,"Despesas_com_Produto",IF(D72=Despesas!$F$13,"Despesas_com_Serviços",IF(D72=Despesas!$I$13,"Despesas_Administrativas",IF(D72=Despesas!$L$13,"Despesas_Operacionais",IF(D72=Despesas!$O$13,"Despesas_com_Pessoal",IF(D72=Despesas!$R$13,"Impostos",IF(D72=Despesas!$U$13,"Despesas_Não_Operacionais",IF(D72=Despesas!$X$13,"Outras_Despesas","")))))))))))) -> Outras_Receitas | R72: 0 | S72: 1 | T72: 1900
I73: 9990 | O73: =IFERROR(VLOOKUP(D73,Outros!$E$14:$F$25,2,0),"") -> Receita | P73: =IF(D73=Receitas!$C$13,"Receita_de_Vendas",IF(D73=Receitas!$F$13,"Receita_de_Serviços",IF(D73=Receitas!$I$13,"Receitas_Financeiras",IF(D73=Receitas!$L$13,"Outras_Receitas",IF(D73=Despesas!$C$13,"Despesas_com_Produto",IF(D73=Despesas!$F$13,"Despesas_com_Serviços",IF(D73=Despesas!$I$13,"Despesas_Administrativas",IF(D73=Despesas!$L$13,"Despesas_Operacionais",IF(D73=Despesas!$O$13,"Despesas_com_Pessoal",IF(D73=Despesas!$R$13,"Impostos",IF(D73=Despesas!$U$13,"Despesas_Não_Operacionais",IF(D73=Despesas!$X$13,"Outras_Despesas","")))))))))))) -> Outras_Receitas | R73: 0 | S73: 1 | T73: 1900
I74: 9990 | O74: =IFERROR(VLOOKUP(D74,Outros!$E$14:$F$25,2,0),"") -> Receita | P74: =IF(D74=Receitas!$C$13,"Receita_de_Vendas",IF(D74=Receitas!$F$13,"Receita_de_Serviços",IF(D74=Receitas!$I$13,"Receitas_Financeiras",IF(D74=Receitas!$L$13,"Outras_Receitas",IF(D74=Despesas!$C$13,"Despesas_com_Produto",IF(D74=Despesas!$F$13,"Despesas_com_Serviços",IF(D74=Despesas!$I$13,"Despesas_Administrativas",IF(D74=Despesas!$L$13,"Despesas_Operacionais",IF(D74=Despesas!$O$13,"Despesas_com_Pessoal",IF(D74=Despesas!$R$13,"Impostos",IF(D74=Despesas!$U$13,"Despesas_Não_Operacionais",IF(D74=Despesas!$X$13,"Outras_Despesas","")))))))))))) -> Outras_Receitas | R74: 0 | S74: 1 | T74: 1900
I75: 9990 | O75: =IFERROR(VLOOKUP(D75,Outros!$E$14:$F$25,2,0),"") -> Receita | P75: =IF(D75=Receitas!$C$13,"Receita_de_Vendas",IF(D75=Receitas!$F$13,"Receita_de_Serviços",IF(D75=Receitas!$I$13,"Receitas_Financeiras",IF(D75=Receitas!$L$13,"Outras_Receitas",IF(D75=Despesas!$C$13,"Despesas_com_Produto",IF(D75=Despesas!$F$13,"Despesas_com_Serviços",IF(D75=Despesas!$I$13,"Despesas_Administrativas",IF(D75=Despesas!$L$13,"Despesas_Operacionais",IF(D75=Despesas!$O$13,"Despesas_com_Pessoal",IF(D75=Despesas!$R$13,"Impostos",IF(D75=Despesas!$U$13,"Despesas_Não_Operacionais",IF(D75=Despesas!$X$13,"Outras_Despesas","")))))))))))) -> Outras_Receitas | R75: 0 | S75: 1 | T75: 1900
I76: 9990 | O76: =IFERROR(VLOOKUP(D76,Outros!$E$14:$F$25,2,0),"") -> Receita | P76: =IF(D76=Receitas!$C$13,"Receita_de_Vendas",IF(D76=Receitas!$F$13,"Receita_de_Serviços",IF(D76=Receitas!$I$13,"Receitas_Financeiras",IF(D76=Receitas!$L$13,"Outras_Receitas",IF(D76=Despesas!$C$13,"Despesas_com_Produto",IF(D76=Despesas!$F$13,"Despesas_com_Serviços",IF(D76=Despesas!$I$13,"Despesas_Administrativas",IF(D76=Despesas!$L$13,"Despesas_Operacionais",IF(D76=Despesas!$O$13,"Despesas_com_Pessoal",IF(D76=Despesas!$R$13,"Impostos",IF(D76=Despesas!$U$13,"Despesas_Não_Operacionais",IF(D76=Despesas!$X$13,"Outras_Despesas","")))))))))))) -> Outras_Receitas | R76: 0 | S76: 1 | T76: 1900
I77: 9990 | O77: =IFERROR(VLOOKUP(D77,Outros!$E$14:$F$25,2,0),"") -> Receita | P77: =IF(D77=Receitas!$C$13,"Receita_de_Vendas",IF(D77=Receitas!$F$13,"Receita_de_Serviços",IF(D77=Receitas!$I$13,"Receitas_Financeiras",IF(D77=Receitas!$L$13,"Outras_Receitas",IF(D77=Despesas!$C$13,"Despesas_com_Produto",IF(D77=Despesas!$F$13,"Despesas_com_Serviços",IF(D77=Despesas!$I$13,"Despesas_Administrativas",IF(D77=Despesas!$L$13,"Despesas_Operacionais",IF(D77=Despesas!$O$13,"Despesas_com_Pessoal",IF(D77=Despesas!$R$13,"Impostos",IF(D77=Despesas!$U$13,"Despesas_Não_Operacionais",IF(D77=Despesas!$X$13,"Outras_Despesas","")))))))))))) -> Outras_Receitas | R77: 0 | S77: 1 | T77: 1900
I78: 9990 | O78: =IFERROR(VLOOKUP(D78,Outros!$E$14:$F$25,2,0),"") -> Receita | P78: =IF(D78=Receitas!$C$13,"Receita_de_Vendas",IF(D78=Receitas!$F$13,"Receita_de_Serviços",IF(D78=Receitas!$I$13,"Receitas_Financeiras",IF(D78=Receitas!$L$13,"Outras_Receitas",IF(D78=Despesas!$C$13,"Despesas_com_Produto",IF(D78=Despesas!$F$13,"Despesas_com_Serviços",IF(D78=Despesas!$I$13,"Despesas_Administrativas",IF(D78=Despesas!$L$13,"Despesas_Operacionais",IF(D78=Despesas!$O$13,"Despesas_com_Pessoal",IF(D78=Despesas!$R$13,"Impostos",IF(D78=Despesas!$U$13,"Despesas_Não_Operacionais",IF(D78=Despesas!$X$13,"Outras_Despesas","")))))))))))) -> Outras_Receitas | R78: =DAY(B78) -> 0 | S78: =MONTH(B78) -> 1 | T78: =YEAR(B78) -> 1900
I79: 9990 | O79: =IFERROR(VLOOKUP(D79,Outros!$E$14:$F$25,2,0),"") -> Receita | P79: =IF(D79=Receitas!$C$13,"Receita_de_Vendas",IF(D79=Receitas!$F$13,"Receita_de_Serviços",IF(D79=Receitas!$I$13,"Receitas_Financeiras",IF(D79=Receitas!$L$13,"Outras_Receitas",IF(D79=Despesas!$C$13,"Despesas_com_Produto",IF(D79=Despesas!$F$13,"Despesas_com_Serviços",IF(D79=Despesas!$I$13,"Despesas_Administrativas",IF(D79=Despesas!$L$13,"Despesas_Operacionais",IF(D79=Despesas!$O$13,"Despesas_com_Pessoal",IF(D79=Despesas!$R$13,"Impostos",IF(D79=Despesas!$U$13,"Despesas_Não_Operacionais",IF(D79=Despesas!$X$13,"Outras_Despesas","")))))))))))) -> Outras_Receitas | R79: 0 | S79: 1 | T79: 1900
I80: =I79+IF(AND(G80="Pago",O80="Receita"),H80,IF(AND(G80="Pago",O80="Despesa"),-H80,0)) -> 9990 | O80: =IFERROR(VLOOKUP(D80,Outros!$E$14:$F$25,2,0),"") -> Receita | P80: =IF(D80=Receitas!$C$13,"Receita_de_Vendas",IF(D80=Receitas!$F$13,"Receita_de_Serviços",IF(D80=Receitas!$I$13,"Receitas_Financeiras",IF(D80=Receitas!$L$13,"Outras_Receitas",IF(D80=Despesas!$C$13,"Despesas_com_Produto",IF(D80=Despesas!$F$13,"Despesas_com_Serviços",IF(D80=Despesas!$I$13,"Despesas_Administrativas",IF(D80=Despesas!$L$13,"Despesas_Operacionais",IF(D80=Despesas!$O$13,"Despesas_com_Pessoal",IF(D80=Despesas!$R$13,"Impostos",IF(D80=Despesas!$U$13,"Despesas_Não_Operacionais",IF(D80=Despesas!$X$13,"Outras_Despesas","")))))))))))) -> Outras_Receitas | R80: 0 | S80: 1 | T80: 1900
I81: 9990 | O81: =IFERROR(VLOOKUP(D81,Outros!$E$14:$F$25,2,0),"") -> Receita | P81: =IF(D81=Receitas!$C$13,"Receita_de_Vendas",IF(D81=Receitas!$F$13,"Receita_de_Serviços",IF(D81=Receitas!$I$13,"Receitas_Financeiras",IF(D81=Receitas!$L$13,"Outras_Receitas",IF(D81=Despesas!$C$13,"Despesas_com_Produto",IF(D81=Despesas!$F$13,"Despesas_com_Serviços",IF(D81=Despesas!$I$13,"Despesas_Administrativas",IF(D81=Despesas!$L$13,"Despesas_Operacionais",IF(D81=Despesas!$O$13,"Despesas_com_Pessoal",IF(D81=Despesas!$R$13,"Impostos",IF(D81=Despesas!$U$13,"Despesas_Não_Operacionais",IF(D81=Despesas!$X$13,"Outras_Despesas","")))))))))))) -> Outras_Receitas | R81: 0 | S81: 1 | T81: 1900
I82: 9990 | O82: =IFERROR(VLOOKUP(D82,Outros!$E$14:$F$25,2,0),"") -> Receita | P82: =IF(D82=Receitas!$C$13,"Receita_de_Vendas",IF(D82=Receitas!$F$13,"Receita_de_Serviços",IF(D82=Receitas!$I$13,"Receitas_Financeiras",IF(D82=Receitas!$L$13,"Outras_Receitas",IF(D82=Despesas!$C$13,"Despesas_com_Produto",IF(D82=Despesas!$F$13,"Despesas_com_Serviços",IF(D82=Despesas!$I$13,"Despesas_Administrativas",IF(D82=Despesas!$L$13,"Despesas_Operacionais",IF(D82=Despesas!$O$13,"Despesas_com_Pessoal",IF(D82=Despesas!$R$13,"Impostos",IF(D82=Despesas!$U$13,"Despesas_Não_Operacionais",IF(D82=Despesas!$X$13,"Outras_Despesas","")))))))))))) -> Outras_Receitas | R82: 0 | S82: 1 | T82: 1900
I83: 9990 | O83: =IFERROR(VLOOKUP(D83,Outros!$E$14:$F$25,2,0),"") -> Receita | P83: =IF(D83=Receitas!$C$13,"Receita_de_Vendas",IF(D83=Receitas!$F$13,"Receita_de_Serviços",IF(D83=Receitas!$I$13,"Receitas_Financeiras",IF(D83=Receitas!$L$13,"Outras_Receitas",IF(D83=Despesas!$C$13,"Despesas_com_Produto",IF(D83=Despesas!$F$13,"Despesas_com_Serviços",IF(D83=Despesas!$I$13,"Despesas_Administrativas",IF(D83=Despesas!$L$13,"Despesas_Operacionais",IF(D83=Despesas!$O$13,"Despesas_com_Pessoal",IF(D83=Despesas!$R$13,"Impostos",IF(D83=Despesas!$U$13,"Despesas_Não_Operacionais",IF(D83=Despesas!$X$13,"Outras_Despesas","")))))))))))) -> Outras_Receitas | R83: 0 | S83: 1 | T83: 1900
I84: 9990 | O84: =IFERROR(VLOOKUP(D84,Outros!$E$14:$F$25,2,0),"") -> Receita | P84: =IF(D84=Receitas!$C$13,"Receita_de_Vendas",IF(D84=Receitas!$F$13,"Receita_de_Serviços",IF(D84=Receitas!$I$13,"Receitas_Financeiras",IF(D84=Receitas!$L$13,"Outras_Receitas",IF(D84=Despesas!$C$13,"Despesas_com_Produto",IF(D84=Despesas!$F$13,"Despesas_com_Serviços",IF(D84=Despesas!$I$13,"Despesas_Administrativas",IF(D84=Despesas!$L$13,"Despesas_Operacionais",IF(D84=Despesas!$O$13,"Despesas_com_Pessoal",IF(D84=Despesas!$R$13,"Impostos",IF(D84=Despesas!$U$13,"Despesas_Não_Operacionais",IF(D84=Despesas!$X$13,"Outras_Despesas","")))))))))))) -> Outras_Receitas | R84: 0 | S84: 1 | T84: 1900
I85: 9990 | O85: =IFERROR(VLOOKUP(D85,Outros!$E$14:$F$25,2,0),"") -> Receita | P85: =IF(D85=Receitas!$C$13,"Receita_de_Vendas",IF(D85=Receitas!$F$13,"Receita_de_Serviços",IF(D85=Receitas!$I$13,"Receitas_Financeiras",IF(D85=Receitas!$L$13,"Outras_Receitas",IF(D85=Despesas!$C$13,"Despesas_com_Produto",IF(D85=Despesas!$F$13,"Despesas_com_Serviços",IF(D85=Despesas!$I$13,"Despesas_Administrativas",IF(D85=Despesas!$L$13,"Despesas_Operacionais",IF(D85=Despesas!$O$13,"Despesas_com_Pessoal",IF(D85=Despesas!$R$13,"Impostos",IF(D85=Despesas!$U$13,"Despesas_Não_Operacionais",IF(D85=Despesas!$X$13,"Outras_Despesas","")))))))))))) -> Outras_Receitas | R85: 0 | S85: 1 | T85: 1900
I86: 9990 | O86: =IFERROR(VLOOKUP(D86,Outros!$E$14:$F$25,2,0),"") -> Receita | P86: =IF(D86=Receitas!$C$13,"Receita_de_Vendas",IF(D86=Receitas!$F$13,"Receita_de_Serviços",IF(D86=Receitas!$I$13,"Receitas_Financeiras",IF(D86=Receitas!$L$13,"Outras_Receitas",IF(D86=Despesas!$C$13,"Despesas_com_Produto",IF(D86=Despesas!$F$13,"Despesas_com_Serviços",IF(D86=Despesas!$I$13,"Despesas_Administrativas",IF(D86=Despesas!$L$13,"Despesas_Operacionais",IF(D86=Despesas!$O$13,"Despesas_com_Pessoal",IF(D86=Despesas!$R$13,"Impostos",IF(D86=Despesas!$U$13,"Despesas_Não_Operacionais",IF(D86=Despesas!$X$13,"Outras_Despesas","")))))))))))) -> Outras_Receitas | R86: 0 | S86: 1 | T86: 1900
I87: 9990 | O87: =IFERROR(VLOOKUP(D87,Outros!$E$14:$F$25,2,0),"") -> Receita | P87: =IF(D87=Receitas!$C$13,"Receita_de_Vendas",IF(D87=Receitas!$F$13,"Receita_de_Serviços",IF(D87=Receitas!$I$13,"Receitas_Financeiras",IF(D87=Receitas!$L$13,"Outras_Receitas",IF(D87=Despesas!$C$13,"Despesas_com_Produto",IF(D87=Despesas!$F$13,"Despesas_com_Serviços",IF(D87=Despesas!$I$13,"Despesas_Administrativas",IF(D87=Despesas!$L$13,"Despesas_Operacionais",IF(D87=Despesas!$O$13,"Despesas_com_Pessoal",IF(D87=Despesas!$R$13,"Impostos",IF(D87=Despesas!$U$13,"Despesas_Não_Operacionais",IF(D87=Despesas!$X$13,"Outras_Despesas","")))))))))))) -> Outras_Receitas | R87: 0 | S87: 1 | T87: 1900
I88: 9990 | O88: =IFERROR(VLOOKUP(D88,Outros!$E$14:$F$25,2,0),"") -> Receita | P88: =IF(D88=Receitas!$C$13,"Receita_de_Vendas",IF(D88=Receitas!$F$13,"Receita_de_Serviços",IF(D88=Receitas!$I$13,"Receitas_Financeiras",IF(D88=Receitas!$L$13,"Outras_Receitas",IF(D88=Despesas!$C$13,"Despesas_com_Produto",IF(D88=Despesas!$F$13,"Despesas_com_Serviços",IF(D88=Despesas!$I$13,"Despesas_Administrativas",IF(D88=Despesas!$L$13,"Despesas_Operacionais",IF(D88=Despesas!$O$13,"Despesas_com_Pessoal",IF(D88=Despesas!$R$13,"Impostos",IF(D88=Despesas!$U$13,"Despesas_Não_Operacionais",IF(D88=Despesas!$X$13,"Outras_Despesas","")))))))))))) -> Outras_Receitas | R88: 0 | S88: 1 | T88: 1900
I89: 9990 | O89: =IFERROR(VLOOKUP(D89,Outros!$E$14:$F$25,2,0),"") -> Receita | P89: =IF(D89=Receitas!$C$13,"Receita_de_Vendas",IF(D89=Receitas!$F$13,"Receita_de_Serviços",IF(D89=Receitas!$I$13,"Receitas_Financeiras",IF(D89=Receitas!$L$13,"Outras_Receitas",IF(D89=Despesas!$C$13,"Despesas_com_Produto",IF(D89=Despesas!$F$13,"Despesas_com_Serviços",IF(D89=Despesas!$I$13,"Despesas_Administrativas",IF(D89=Despesas!$L$13,"Despesas_Operacionais",IF(D89=Despesas!$O$13,"Despesas_com_Pessoal",IF(D89=Despesas!$R$13,"Impostos",IF(D89=Despesas!$U$13,"Despesas_Não_Operacionais",IF(D89=Despesas!$X$13,"Outras_Despesas","")))))))))))) -> Outras_Receitas | R89: 0 | S89: 1 | T89: 1900
I90: 9990 | O90: =IFERROR(VLOOKUP(D90,Outros!$E$14:$F$25,2,0),"") -> Receita | P90: =IF(D90=Receitas!$C$13,"Receita_de_Vendas",IF(D90=Receitas!$F$13,"Receita_de_Serviços",IF(D90=Receitas!$I$13,"Receitas_Financeiras",IF(D90=Receitas!$L$13,"Outras_Receitas",IF(D90=Despesas!$C$13,"Despesas_com_Produto",IF(D90=Despesas!$F$13,"Despesas_com_Serviços",IF(D90=Despesas!$I$13,"Despesas_Administrativas",IF(D90=Despesas!$L$13,"Despesas_Operacionais",IF(D90=Despesas!$O$13,"Despesas_com_Pessoal",IF(D90=Despesas!$R$13,"Impostos",IF(D90=Despesas!$U$13,"Despesas_Não_Operacionais",IF(D90=Despesas!$X$13,"Outras_Despesas","")))))))))))) -> Outras_Receitas | R90: 0 | S90: 1 | T90: 1900
I91: 9990 | O91: =IFERROR(VLOOKUP(D91,Outros!$E$14:$F$25,2,0),"") -> Receita | P91: =IF(D91=Receitas!$C$13,"Receita_de_Vendas",IF(D91=Receitas!$F$13,"Receita_de_Serviços",IF(D91=Receitas!$I$13,"Receitas_Financeiras",IF(D91=Receitas!$L$13,"Outras_Receitas",IF(D91=Despesas!$C$13,"Despesas_com_Produto",IF(D91=Despesas!$F$13,"Despesas_com_Serviços",IF(D91=Despesas!$I$13,"Despesas_Administrativas",IF(D91=Despesas!$L$13,"Despesas_Operacionais",IF(D91=Despesas!$O$13,"Despesas_com_Pessoal",IF(D91=Despesas!$R$13,"Impostos",IF(D91=Despesas!$U$13,"Despesas_Não_Operacionais",IF(D91=Despesas!$X$13,"Outras_Despesas","")))))))))))) -> Outras_Receitas | R91: 0 | S91: 1 | T91: 1900
I92: 9990 | O92: =IFERROR(VLOOKUP(D92,Outros!$E$14:$F$25,2,0),"") -> Receita | P92: =IF(D92=Receitas!$C$13,"Receita_de_Vendas",IF(D92=Receitas!$F$13,"Receita_de_Serviços",IF(D92=Receitas!$I$13,"Receitas_Financeiras",IF(D92=Receitas!$L$13,"Outras_Receitas",IF(D92=Despesas!$C$13,"Despesas_com_Produto",IF(D92=Despesas!$F$13,"Despesas_com_Serviços",IF(D92=Despesas!$I$13,"Despesas_Administrativas",IF(D92=Despesas!$L$13,"Despesas_Operacionais",IF(D92=Despesas!$O$13,"Despesas_com_Pessoal",IF(D92=Despesas!$R$13,"Impostos",IF(D92=Despesas!$U$13,"Despesas_Não_Operacionais",IF(D92=Despesas!$X$13,"Outras_Despesas","")))))))))))) -> Outras_Receitas | R92: 0 | S92: 1 | T92: 1900
I93: 9990 | O93: =IFERROR(VLOOKUP(D93,Outros!$E$14:$F$25,2,0),"") -> Receita | P93: =IF(D93=Receitas!$C$13,"Receita_de_Vendas",IF(D93=Receitas!$F$13,"Receita_de_Serviços",IF(D93=Receitas!$I$13,"Receitas_Financeiras",IF(D93=Receitas!$L$13,"Outras_Receitas",IF(D93=Despesas!$C$13,"Despesas_com_Produto",IF(D93=Despesas!$F$13,"Despesas_com_Serviços",IF(D93=Despesas!$I$13,"Despesas_Administrativas",IF(D93=Despesas!$L$13,"Despesas_Operacionais",IF(D93=Despesas!$O$13,"Despesas_com_Pessoal",IF(D93=Despesas!$R$13,"Impostos",IF(D93=Despesas!$U$13,"Despesas_Não_Operacionais",IF(D93=Despesas!$X$13,"Outras_Despesas","")))))))))))) -> Outras_Receitas | R93: 0 | S93: 1 | T93: 1900
I94: 9990 | O94: =IFERROR(VLOOKUP(D94,Outros!$E$14:$F$25,2,0),"") -> Receita | P94: =IF(D94=Receitas!$C$13,"Receita_de_Vendas",IF(D94=Receitas!$F$13,"Receita_de_Serviços",IF(D94=Receitas!$I$13,"Receitas_Financeiras",IF(D94=Receitas!$L$13,"Outras_Receitas",IF(D94=Despesas!$C$13,"Despesas_com_Produto",IF(D94=Despesas!$F$13,"Despesas_com_Serviços",IF(D94=Despesas!$I$13,"Despesas_Administrativas",IF(D94=Despesas!$L$13,"Despesas_Operacionais",IF(D94=Despesas!$O$13,"Despesas_com_Pessoal",IF(D94=Despesas!$R$13,"Impostos",IF(D94=Despesas!$U$13,"Despesas_Não_Operacionais",IF(D94=Despesas!$X$13,"Outras_Despesas","")))))))))))) -> Outras_Receitas | R94: 0 | S94: 1 | T94: 1900
I95: 9990 | O95: =IFERROR(VLOOKUP(D95,Outros!$E$14:$F$25,2,0),"") -> Receita | P95: =IF(D95=Receitas!$C$13,"Receita_de_Vendas",IF(D95=Receitas!$F$13,"Receita_de_Serviços",IF(D95=Receitas!$I$13,"Receitas_Financeiras",IF(D95=Receitas!$L$13,"Outras_Receitas",IF(D95=Despesas!$C$13,"Despesas_com_Produto",IF(D95=Despesas!$F$13,"Despesas_com_Serviços",IF(D95=Despesas!$I$13,"Despesas_Administrativas",IF(D95=Despesas!$L$13,"Despesas_Operacionais",IF(D95=Despesas!$O$13,"Despesas_com_Pessoal",IF(D95=Despesas!$R$13,"Impostos",IF(D95=Despesas!$U$13,"Despesas_Não_Operacionais",IF(D95=Despesas!$X$13,"Outras_Despesas","")))))))))))) -> Outras_Receitas | R95: 0 | S95: 1 | T95: 1900
I96: 9990 | O96: =IFERROR(VLOOKUP(D96,Outros!$E$14:$F$25,2,0),"") -> Receita | P96: =IF(D96=Receitas!$C$13,"Receita_de_Vendas",IF(D96=Receitas!$F$13,"Receita_de_Serviços",IF(D96=Receitas!$I$13,"Receitas_Financeiras",IF(D96=Receitas!$L$13,"Outras_Receitas",IF(D96=Despesas!$C$13,"Despesas_com_Produto",IF(D96=Despesas!$F$13,"Despesas_com_Serviços",IF(D96=Despesas!$I$13,"Despesas_Administrativas",IF(D96=Despesas!$L$13,"Despesas_Operacionais",IF(D96=Despesas!$O$13,"Despesas_com_Pessoal",IF(D96=Despesas!$R$13,"Impostos",IF(D96=Despesas!$U$13,"Despesas_Não_Operacionais",IF(D96=Despesas!$X$13,"Outras_Despesas","")))))))))))) -> Outras_Receitas | R96: 0 | S96: 1 | T96: 1900
I97: 9990 | O97: =IFERROR(VLOOKUP(D97,Outros!$E$14:$F$25,2,0),"") -> Receita | P97: =IF(D97=Receitas!$C$13,"Receita_de_Vendas",IF(D97=Receitas!$F$13,"Receita_de_Serviços",IF(D97=Receitas!$I$13,"Receitas_Financeiras",IF(D97=Receitas!$L$13,"Outras_Receitas",IF(D97=Despesas!$C$13,"Despesas_com_Produto",IF(D97=Despesas!$F$13,"Despesas_com_Serviços",IF(D97=Despesas!$I$13,"Despesas_Administrativas",IF(D97=Despesas!$L$13,"Despesas_Operacionais",IF(D97=Despesas!$O$13,"Despesas_com_Pessoal",IF(D97=Despesas!$R$13,"Impostos",IF(D97=Despesas!$U$13,"Despesas_Não_Operacionais",IF(D97=Despesas!$X$13,"Outras_Despesas","")))))))))))) -> Outras_Receitas | R97: 0 | S97: 1 | T97: 1900
I98: 9990 | O98: =IFERROR(VLOOKUP(D98,Outros!$E$14:$F$25,2,0),"") -> Receita | P98: =IF(D98=Receitas!$C$13,"Receita_de_Vendas",IF(D98=Receitas!$F$13,"Receita_de_Serviços",IF(D98=Receitas!$I$13,"Receitas_Financeiras",IF(D98=Receitas!$L$13,"Outras_Receitas",IF(D98=Despesas!$C$13,"Despesas_com_Produto",IF(D98=Despesas!$F$13,"Despesas_com_Serviços",IF(D98=Despesas!$I$13,"Despesas_Administrativas",IF(D98=Despesas!$L$13,"Despesas_Operacionais",IF(D98=Despesas!$O$13,"Despesas_com_Pessoal",IF(D98=Despesas!$R$13,"Impostos",IF(D98=Despesas!$U$13,"Despesas_Não_Operacionais",IF(D98=Despesas!$X$13,"Outras_Despesas","")))))))))))) -> Outras_Receitas | R98: 0 | S98: 1 | T98: 1900
I99: 9990 | O99: =IFERROR(VLOOKUP(D99,Outros!$E$14:$F$25,2,0),"") -> Receita | P99: =IF(D99=Receitas!$C$13,"Receita_de_Vendas",IF(D99=Receitas!$F$13,"Receita_de_Serviços",IF(D99=Receitas!$I$13,"Receitas_Financeiras",IF(D99=Receitas!$L$13,"Outras_Receitas",IF(D99=Despesas!$C$13,"Despesas_com_Produto",IF(D99=Despesas!$F$13,"Despesas_com_Serviços",IF(D99=Despesas!$I$13,"Despesas_Administrativas",IF(D99=Despesas!$L$13,"Despesas_Operacionais",IF(D99=Despesas!$O$13,"Despesas_com_Pessoal",IF(D99=Despesas!$R$13,"Impostos",IF(D99=Despesas!$U$13,"Despesas_Não_Operacionais",IF(D99=Despesas!$X$13,"Outras_Despesas","")))))))))))) -> Outras_Receitas | R99: 0 | S99: 1 | T99: 1900
I100: 9990 | O100: =IFERROR(VLOOKUP(D100,Outros!$E$14:$F$25,2,0),"") -> Receita | P100: =IF(D100=Receitas!$C$13,"Receita_de_Vendas",IF(D100=Receitas!$F$13,"Receita_de_Serviços",IF(D100=Receitas!$I$13,"Receitas_Financeiras",IF(D100=Receitas!$L$13,"Outras_Receitas",IF(D100=Despesas!$C$13,"Despesas_com_Produto",IF(D100=Despesas!$F$13,"Despesas_com_Serviços",IF(D100=Despesas!$I$13,"Despesas_Administrativas",IF(D100=Despesas!$L$13,"Despesas_Operacionais",IF(D100=Despesas!$O$13,"Despesas_com_Pessoal",IF(D100=Despesas!$R$13,"Impostos",IF(D100=Despesas!$U$13,"Despesas_Não_Operacionais",IF(D100=Despesas!$X$13,"Outras_Despesas","")))))))))))) -> Outras_Receitas | R100: 0 | S100: 1 | T100: 1900
I101: 9990 | O101: =IFERROR(VLOOKUP(D101,Outros!$E$14:$F$25,2,0),"") -> Receita | P101: =IF(D101=Receitas!$C$13,"Receita_de_Vendas",IF(D101=Receitas!$F$13,"Receita_de_Serviços",IF(D101=Receitas!$I$13,"Receitas_Financeiras",IF(D101=Receitas!$L$13,"Outras_Receitas",IF(D101=Despesas!$C$13,"Despesas_com_Produto",IF(D101=Despesas!$F$13,"Despesas_com_Serviços",IF(D101=Despesas!$I$13,"Despesas_Administrativas",IF(D101=Despesas!$L$13,"Despesas_Operacionais",IF(D101=Despesas!$O$13,"Despesas_com_Pessoal",IF(D101=Despesas!$R$13,"Impostos",IF(D101=Despesas!$U$13,"Despesas_Não_Operacionais",IF(D101=Despesas!$X$13,"Outras_Despesas","")))))))))))) -> Outras_Receitas | R101: 0 | S101: 1 | T101: 1900
I102: 9990 | O102: =IFERROR(VLOOKUP(D102,Outros!$E$14:$F$25,2,0),"") -> Receita | P102: =IF(D102=Receitas!$C$13,"Receita_de_Vendas",IF(D102=Receitas!$F$13,"Receita_de_Serviços",IF(D102=Receitas!$I$13,"Receitas_Financeiras",IF(D102=Receitas!$L$13,"Outras_Receitas",IF(D102=Despesas!$C$13,"Despesas_com_Produto",IF(D102=Despesas!$F$13,"Despesas_com_Serviços",IF(D102=Despesas!$I$13,"Despesas_Administrativas",IF(D102=Despesas!$L$13,"Despesas_Operacionais",IF(D102=Despesas!$O$13,"Despesas_com_Pessoal",IF(D102=Despesas!$R$13,"Impostos",IF(D102=Despesas!$U$13,"Despesas_Não_Operacionais",IF(D102=Despesas!$X$13,"Outras_Despesas","")))))))))))) -> Outras_Receitas | R102: 0 | S102: 1 | T102: 1900
I103: 9990 | O103: =IFERROR(VLOOKUP(D103,Outros!$E$14:$F$25,2,0),"") -> Receita | P103: =IF(D103=Receitas!$C$13,"Receita_de_Vendas",IF(D103=Receitas!$F$13,"Receita_de_Serviços",IF(D103=Receitas!$I$13,"Receitas_Financeiras",IF(D103=Receitas!$L$13,"Outras_Receitas",IF(D103=Despesas!$C$13,"Despesas_com_Produto",IF(D103=Despesas!$F$13,"Despesas_com_Serviços",IF(D103=Despesas!$I$13,"Despesas_Administrativas",IF(D103=Despesas!$L$13,"Despesas_Operacionais",IF(D103=Despesas!$O$13,"Despesas_com_Pessoal",IF(D103=Despesas!$R$13,"Impostos",IF(D103=Despesas!$U$13,"Despesas_Não_Operacionais",IF(D103=Despesas!$X$13,"Outras_Despesas","")))))))))))) -> Outras_Receitas | R103: 0 | S103: 1 | T103: 1900
I104: 9990 | O104: =IFERROR(VLOOKUP(D104,Outros!$E$14:$F$25,2,0),"") -> Receita | P104: =IF(D104=Receitas!$C$13,"Receita_de_Vendas",IF(D104=Receitas!$F$13,"Receita_de_Serviços",IF(D104=Receitas!$I$13,"Receitas_Financeiras",IF(D104=Receitas!$L$13,"Outras_Receitas",IF(D104=Despesas!$C$13,"Despesas_com_Produto",IF(D104=Despesas!$F$13,"Despesas_com_Serviços",IF(D104=Despesas!$I$13,"Despesas_Administrativas",IF(D104=Despesas!$L$13,"Despesas_Operacionais",IF(D104=Despesas!$O$13,"Despesas_com_Pessoal",IF(D104=Despesas!$R$13,"Impostos",IF(D104=Despesas!$U$13,"Despesas_Não_Operacionais",IF(D104=Despesas!$X$13,"Outras_Despesas","")))))))))))) -> Outras_Receitas | R104: 0 | S104: 1 | T104: 1900
I105: 9990 | O105: =IFERROR(VLOOKUP(D105,Outros!$E$14:$F$25,2,0),"") -> Receita | P105: =IF(D105=Receitas!$C$13,"Receita_de_Vendas",IF(D105=Receitas!$F$13,"Receita_de_Serviços",IF(D105=Receitas!$I$13,"Receitas_Financeiras",IF(D105=Receitas!$L$13,"Outras_Receitas",IF(D105=Despesas!$C$13,"Despesas_com_Produto",IF(D105=Despesas!$F$13,"Despesas_com_Serviços",IF(D105=Despesas!$I$13,"Despesas_Administrativas",IF(D105=Despesas!$L$13,"Despesas_Operacionais",IF(D105=Despesas!$O$13,"Despesas_com_Pessoal",IF(D105=Despesas!$R$13,"Impostos",IF(D105=Despesas!$U$13,"Despesas_Não_Operacionais",IF(D105=Despesas!$X$13,"Outras_Despesas","")))))))))))) -> Outras_Receitas | R105: 0 | S105: 1 | T105: 1900
I106: 9990 | O106: =IFERROR(VLOOKUP(D106,Outros!$E$14:$F$25,2,0),"") -> Receita | P106: =IF(D106=Receitas!$C$13,"Receita_de_Vendas",IF(D106=Receitas!$F$13,"Receita_de_Serviços",IF(D106=Receitas!$I$13,"Receitas_Financeiras",IF(D106=Receitas!$L$13,"Outras_Receitas",IF(D106=Despesas!$C$13,"Despesas_com_Produto",IF(D106=Despesas!$F$13,"Despesas_com_Serviços",IF(D106=Despesas!$I$13,"Despesas_Administrativas",IF(D106=Despesas!$L$13,"Despesas_Operacionais",IF(D106=Despesas!$O$13,"Despesas_com_Pessoal",IF(D106=Despesas!$R$13,"Impostos",IF(D106=Despesas!$U$13,"Despesas_Não_Operacionais",IF(D106=Despesas!$X$13,"Outras_Despesas","")))))))))))) -> Outras_Receitas | R106: 0 | S106: 1 | T106: 1900
I107: 9990 | O107: =IFERROR(VLOOKUP(D107,Outros!$E$14:$F$25,2,0),"") -> Receita | P107: =IF(D107=Receitas!$C$13,"Receita_de_Vendas",IF(D107=Receitas!$F$13,"Receita_de_Serviços",IF(D107=Receitas!$I$13,"Receitas_Financeiras",IF(D107=Receitas!$L$13,"Outras_Receitas",IF(D107=Despesas!$C$13,"Despesas_com_Produto",IF(D107=Despesas!$F$13,"Despesas_com_Serviços",IF(D107=Despesas!$I$13,"Despesas_Administrativas",IF(D107=Despesas!$L$13,"Despesas_Operacionais",IF(D107=Despesas!$O$13,"Despesas_com_Pessoal",IF(D107=Despesas!$R$13,"Impostos",IF(D107=Despesas!$U$13,"Despesas_Não_Operacionais",IF(D107=Despesas!$X$13,"Outras_Despesas","")))))))))))) -> Outras_Receitas | R107: 0 | S107: 1 | T107: 1900
I108: 9990 | O108: =IFERROR(VLOOKUP(D108,Outros!$E$14:$F$25,2,0),"") -> Receita | P108: =IF(D108=Receitas!$C$13,"Receita_de_Vendas",IF(D108=Receitas!$F$13,"Receita_de_Serviços",IF(D108=Receitas!$I$13,"Receitas_Financeiras",IF(D108=Receitas!$L$13,"Outras_Receitas",IF(D108=Despesas!$C$13,"Despesas_com_Produto",IF(D108=Despesas!$F$13,"Despesas_com_Serviços",IF(D108=Despesas!$I$13,"Despesas_Administrativas",IF(D108=Despesas!$L$13,"Despesas_Operacionais",IF(D108=Despesas!$O$13,"Despesas_com_Pessoal",IF(D108=Despesas!$R$13,"Impostos",IF(D108=Despesas!$U$13,"Despesas_Não_Operacionais",IF(D108=Despesas!$X$13,"Outras_Despesas","")))))))))))) -> Outras_Receitas | R108: 0 | S108: 1 | T108: 1900
I109: 9990 | O109: =IFERROR(VLOOKUP(D109,Outros!$E$14:$F$25,2,0),"") -> Receita | P109: =IF(D109=Receitas!$C$13,"Receita_de_Vendas",IF(D109=Receitas!$F$13,"Receita_de_Serviços",IF(D109=Receitas!$I$13,"Receitas_Financeiras",IF(D109=Receitas!$L$13,"Outras_Receitas",IF(D109=Despesas!$C$13,"Despesas_com_Produto",IF(D109=Despesas!$F$13,"Despesas_com_Serviços",IF(D109=Despesas!$I$13,"Despesas_Administrativas",IF(D109=Despesas!$L$13,"Despesas_Operacionais",IF(D109=Despesas!$O$13,"Despesas_com_Pessoal",IF(D109=Despesas!$R$13,"Impostos",IF(D109=Despesas!$U$13,"Despesas_Não_Operacionais",IF(D109=Despesas!$X$13,"Outras_Despesas","")))))))))))) -> Outras_Receitas | R109: 0 | S109: 1 | T109: 1900
I110: 9990 | O110: =IFERROR(VLOOKUP(D110,Outros!$E$14:$F$25,2,0),"") -> Receita | P110: =IF(D110=Receitas!$C$13,"Receita_de_Vendas",IF(D110=Receitas!$F$13,"Receita_de_Serviços",IF(D110=Receitas!$I$13,"Receitas_Financeiras",IF(D110=Receitas!$L$13,"Outras_Receitas",IF(D110=Despesas!$C$13,"Despesas_com_Produto",IF(D110=Despesas!$F$13,"Despesas_com_Serviços",IF(D110=Despesas!$I$13,"Despesas_Administrativas",IF(D110=Despesas!$L$13,"Despesas_Operacionais",IF(D110=Despesas!$O$13,"Despesas_com_Pessoal",IF(D110=Despesas!$R$13,"Impostos",IF(D110=Despesas!$U$13,"Despesas_Não_Operacionais",IF(D110=Despesas!$X$13,"Outras_Despesas","")))))))))))) -> Outras_Receitas | R110: 0 | S110: 1 | T110: 1900
I111: 9990 | O111: =IFERROR(VLOOKUP(D111,Outros!$E$14:$F$25,2,0),"") -> Receita | P111: =IF(D111=Receitas!$C$13,"Receita_de_Vendas",IF(D111=Receitas!$F$13,"Receita_de_Serviços",IF(D111=Receitas!$I$13,"Receitas_Financeiras",IF(D111=Receitas!$L$13,"Outras_Receitas",IF(D111=Despesas!$C$13,"Despesas_com_Produto",IF(D111=Despesas!$F$13,"Despesas_com_Serviços",IF(D111=Despesas!$I$13,"Despesas_Administrativas",IF(D111=Despesas!$L$13,"Despesas_Operacionais",IF(D111=Despesas!$O$13,"Despesas_com_Pessoal",IF(D111=Despesas!$R$13,"Impostos",IF(D111=Despesas!$U$13,"Despesas_Não_Operacionais",IF(D111=Despesas!$X$13,"Outras_Despesas","")))))))))))) -> Outras_Receitas | R111: 0 | S111: 1 | T111: 1900
I112: 9990 | O112: =IFERROR(VLOOKUP(D112,Outros!$E$14:$F$25,2,0),"") -> Receita | P112: =IF(D112=Receitas!$C$13,"Receita_de_Vendas",IF(D112=Receitas!$F$13,"Receita_de_Serviços",IF(D112=Receitas!$I$13,"Receitas_Financeiras",IF(D112=Receitas!$L$13,"Outras_Receitas",IF(D112=Despesas!$C$13,"Despesas_com_Produto",IF(D112=Despesas!$F$13,"Despesas_com_Serviços",IF(D112=Despesas!$I$13,"Despesas_Administrativas",IF(D112=Despesas!$L$13,"Despesas_Operacionais",IF(D112=Despesas!$O$13,"Despesas_com_Pessoal",IF(D112=Despesas!$R$13,"Impostos",IF(D112=Despesas!$U$13,"Despesas_Não_Operacionais",IF(D112=Despesas!$X$13,"Outras_Despesas","")))))))))))) -> Outras_Receitas | R112: 0 | S112: 1 | T112: 1900
I113: 9990 | O113: =IFERROR(VLOOKUP(D113,Outros!$E$14:$F$25,2,0),"") -> Receita | P113: =IF(D113=Receitas!$C$13,"Receita_de_Vendas",IF(D113=Receitas!$F$13,"Receita_de_Serviços",IF(D113=Receitas!$I$13,"Receitas_Financeiras",IF(D113=Receitas!$L$13,"Outras_Receitas",IF(D113=Despesas!$C$13,"Despesas_com_Produto",IF(D113=Despesas!$F$13,"Despesas_com_Serviços",IF(D113=Despesas!$I$13,"Despesas_Administrativas",IF(D113=Despesas!$L$13,"Despesas_Operacionais",IF(D113=Despesas!$O$13,"Despesas_com_Pessoal",IF(D113=Despesas!$R$13,"Impostos",IF(D113=Despesas!$U$13,"Despesas_Não_Operacionais",IF(D113=Despesas!$X$13,"Outras_Despesas","")))))))))))) -> Outras_Receitas | R113: 0 | S113: 1 | T113: 1900
I114: 9990 | O114: =IFERROR(VLOOKUP(D114,Outros!$E$14:$F$25,2,0),"") -> Receita | P114: =IF(D114=Receitas!$C$13,"Receita_de_Vendas",IF(D114=Receitas!$F$13,"Receita_de_Serviços",IF(D114=Receitas!$I$13,"Receitas_Financeiras",IF(D114=Receitas!$L$13,"Outras_Receitas",IF(D114=Despesas!$C$13,"Despesas_com_Produto",IF(D114=Despesas!$F$13,"Despesas_com_Serviços",IF(D114=Despesas!$I$13,"Despesas_Administrativas",IF(D114=Despesas!$L$13,"Despesas_Operacionais",IF(D114=Despesas!$O$13,"Despesas_com_Pessoal",IF(D114=Despesas!$R$13,"Impostos",IF(D114=Despesas!$U$13,"Despesas_Não_Operacionais",IF(D114=Despesas!$X$13,"Outras_Despesas","")))))))))))) -> Outras_Receitas | R114: 0 | S114: 1 | T114: 1900
I115: 9990 | O115: =IFERROR(VLOOKUP(D115,Outros!$E$14:$F$25,2,0),"") -> Receita | P115: =IF(D115=Receitas!$C$13,"Receita_de_Vendas",IF(D115=Receitas!$F$13,"Receita_de_Serviços",IF(D115=Receitas!$I$13,"Receitas_Financeiras",IF(D115=Receitas!$L$13,"Outras_Receitas",IF(D115=Despesas!$C$13,"Despesas_com_Produto",IF(D115=Despesas!$F$13,"Despesas_com_Serviços",IF(D115=Despesas!$I$13,"Despesas_Administrativas",IF(D115=Despesas!$L$13,"Despesas_Operacionais",IF(D115=Despesas!$O$13,"Despesas_com_Pessoal",IF(D115=Despesas!$R$13,"Impostos",IF(D115=Despesas!$U$13,"Despesas_Não_Operacionais",IF(D115=Despesas!$X$13,"Outras_Despesas","")))))))))))) -> Outras_Receitas | R115: 0 | S115: 1 | T115: 1900
I116: 9990 | O116: =IFERROR(VLOOKUP(D116,Outros!$E$14:$F$25,2,0),"") -> Receita | P116: =IF(D116=Receitas!$C$13,"Receita_de_Vendas",IF(D116=Receitas!$F$13,"Receita_de_Serviços",IF(D116=Receitas!$I$13,"Receitas_Financeiras",IF(D116=Receitas!$L$13,"Outras_Receitas",IF(D116=Despesas!$C$13,"Despesas_com_Produto",IF(D116=Despesas!$F$13,"Despesas_com_Serviços",IF(D116=Despesas!$I$13,"Despesas_Administrativas",IF(D116=Despesas!$L$13,"Despesas_Operacionais",IF(D116=Despesas!$O$13,"Despesas_com_Pessoal",IF(D116=Despesas!$R$13,"Impostos",IF(D116=Despesas!$U$13,"Despesas_Não_Operacionais",IF(D116=Despesas!$X$13,"Outras_Despesas","")))))))))))) -> Outras_Receitas | R116: 0 | S116: 1 | T116: 1900
I117: 9990 | O117: =IFERROR(VLOOKUP(D117,Outros!$E$14:$F$25,2,0),"") -> Receita | P117: =IF(D117=Receitas!$C$13,"Receita_de_Vendas",IF(D117=Receitas!$F$13,"Receita_de_Serviços",IF(D117=Receitas!$I$13,"Receitas_Financeiras",IF(D117=Receitas!$L$13,"Outras_Receitas",IF(D117=Despesas!$C$13,"Despesas_com_Produto",IF(D117=Despesas!$F$13,"Despesas_com_Serviços",IF(D117=Despesas!$I$13,"Despesas_Administrativas",IF(D117=Despesas!$L$13,"Despesas_Operacionais",IF(D117=Despesas!$O$13,"Despesas_com_Pessoal",IF(D117=Despesas!$R$13,"Impostos",IF(D117=Despesas!$U$13,"Despesas_Não_Operacionais",IF(D117=Despesas!$X$13,"Outras_Despesas","")))))))))))) -> Outras_Receitas | R117: 0 | S117: 1 | T117: 1900
I118: 9990 | O118: =IFERROR(VLOOKUP(D118,Outros!$E$14:$F$25,2,0),"") -> Receita | P118: =IF(D118=Receitas!$C$13,"Receita_de_Vendas",IF(D118=Receitas!$F$13,"Receita_de_Serviços",IF(D118=Receitas!$I$13,"Receitas_Financeiras",IF(D118=Receitas!$L$13,"Outras_Receitas",IF(D118=Despesas!$C$13,"Despesas_com_Produto",IF(D118=Despesas!$F$13,"Despesas_com_Serviços",IF(D118=Despesas!$I$13,"Despesas_Administrativas",IF(D118=Despesas!$L$13,"Despesas_Operacionais",IF(D118=Despesas!$O$13,"Despesas_com_Pessoal",IF(D118=Despesas!$R$13,"Impostos",IF(D118=Despesas!$U$13,"Despesas_Não_Operacionais",IF(D118=Despesas!$X$13,"Outras_Despesas","")))))))))))) -> Outras_Receitas | R118: 0 | S118: 1 | T118: 1900
I119: 9990 | O119: =IFERROR(VLOOKUP(D119,Outros!$E$14:$F$25,2,0),"") -> Receita | P119: =IF(D119=Receitas!$C$13,"Receita_de_Vendas",IF(D119=Receitas!$F$13,"Receita_de_Serviços",IF(D119=Receitas!$I$13,"Receitas_Financeiras",IF(D119=Receitas!$L$13,"Outras_Receitas",IF(D119=Despesas!$C$13,"Despesas_com_Produto",IF(D119=Despesas!$F$13,"Despesas_com_Serviços",IF(D119=Despesas!$I$13,"Despesas_Administrativas",IF(D119=Despesas!$L$13,"Despesas_Operacionais",IF(D119=Despesas!$O$13,"Despesas_com_Pessoal",IF(D119=Despesas!$R$13,"Impostos",IF(D119=Despesas!$U$13,"Despesas_Não_Operacionais",IF(D119=Despesas!$X$13,"Outras_Despesas","")))))))))))) -> Outras_Receitas | R119: 0 | S119: 1 | T119: 1900
I120: 9990 | O120: =IFERROR(VLOOKUP(D120,Outros!$E$14:$F$25,2,0),"") -> Receita | P120: =IF(D120=Receitas!$C$13,"Receita_de_Vendas",IF(D120=Receitas!$F$13,"Receita_de_Serviços",IF(D120=Receitas!$I$13,"Receitas_Financeiras",IF(D120=Receitas!$L$13,"Outras_Receitas",IF(D120=Despesas!$C$13,"Despesas_com_Produto",IF(D120=Despesas!$F$13,"Despesas_com_Serviços",IF(D120=Despesas!$I$13,"Despesas_Administrativas",IF(D120=Despesas!$L$13,"Despesas_Operacionais",IF(D120=Despesas!$O$13,"Despesas_com_Pessoal",IF(D120=Despesas!$R$13,"Impostos",IF(D120=Despesas!$U$13,"Despesas_Não_Operacionais",IF(D120=Despesas!$X$13,"Outras_Despesas","")))))))))))) -> Outras_Receitas | R120: 0 | S120: 1 | T120: 1900
I121: 9990 | O121: =IFERROR(VLOOKUP(D121,Outros!$E$14:$F$25,2,0),"") -> Receita | P121: =IF(D121=Receitas!$C$13,"Receita_de_Vendas",IF(D121=Receitas!$F$13,"Receita_de_Serviços",IF(D121=Receitas!$I$13,"Receitas_Financeiras",IF(D121=Receitas!$L$13,"Outras_Receitas",IF(D121=Despesas!$C$13,"Despesas_com_Produto",IF(D121=Despesas!$F$13,"Despesas_com_Serviços",IF(D121=Despesas!$I$13,"Despesas_Administrativas",IF(D121=Despesas!$L$13,"Despesas_Operacionais",IF(D121=Despesas!$O$13,"Despesas_com_Pessoal",IF(D121=Despesas!$R$13,"Impostos",IF(D121=Despesas!$U$13,"Despesas_Não_Operacionais",IF(D121=Despesas!$X$13,"Outras_Despesas","")))))))))))) -> Outras_Receitas | R121: 0 | S121: 1 | T121: 1900
I122: 9990 | O122: =IFERROR(VLOOKUP(D122,Outros!$E$14:$F$25,2,0),"") -> Receita | P122: =IF(D122=Receitas!$C$13,"Receita_de_Vendas",IF(D122=Receitas!$F$13,"Receita_de_Serviços",IF(D122=Receitas!$I$13,"Receitas_Financeiras",IF(D122=Receitas!$L$13,"Outras_Receitas",IF(D122=Despesas!$C$13,"Despesas_com_Produto",IF(D122=Despesas!$F$13,"Despesas_com_Serviços",IF(D122=Despesas!$I$13,"Despesas_Administrativas",IF(D122=Despesas!$L$13,"Despesas_Operacionais",IF(D122=Despesas!$O$13,"Despesas_com_Pessoal",IF(D122=Despesas!$R$13,"Impostos",IF(D122=Despesas!$U$13,"Despesas_Não_Operacionais",IF(D122=Despesas!$X$13,"Outras_Despesas","")))))))))))) -> Outras_Receitas | R122: 0 | S122: 1 | T122: 1900
I123: 9990 | O123: =IFERROR(VLOOKUP(D123,Outros!$E$14:$F$25,2,0),"") -> Receita | P123: =IF(D123=Receitas!$C$13,"Receita_de_Vendas",IF(D123=Receitas!$F$13,"Receita_de_Serviços",IF(D123=Receitas!$I$13,"Receitas_Financeiras",IF(D123=Receitas!$L$13,"Outras_Receitas",IF(D123=Despesas!$C$13,"Despesas_com_Produto",IF(D123=Despesas!$F$13,"Despesas_com_Serviços",IF(D123=Despesas!$I$13,"Despesas_Administrativas",IF(D123=Despesas!$L$13,"Despesas_Operacionais",IF(D123=Despesas!$O$13,"Despesas_com_Pessoal",IF(D123=Despesas!$R$13,"Impostos",IF(D123=Despesas!$U$13,"Despesas_Não_Operacionais",IF(D123=Despesas!$X$13,"Outras_Despesas","")))))))))))) -> Outras_Receitas | R123: 0 | S123: 1 | T123: 1900
I124: 9990 | O124: =IFERROR(VLOOKUP(D124,Outros!$E$14:$F$25,2,0),"") -> Receita | P124: =IF(D124=Receitas!$C$13,"Receita_de_Vendas",IF(D124=Receitas!$F$13,"Receita_de_Serviços",IF(D124=Receitas!$I$13,"Receitas_Financeiras",IF(D124=Receitas!$L$13,"Outras_Receitas",IF(D124=Despesas!$C$13,"Despesas_com_Produto",IF(D124=Despesas!$F$13,"Despesas_com_Serviços",IF(D124=Despesas!$I$13,"Despesas_Administrativas",IF(D124=Despesas!$L$13,"Despesas_Operacionais",IF(D124=Despesas!$O$13,"Despesas_com_Pessoal",IF(D124=Despesas!$R$13,"Impostos",IF(D124=Despesas!$U$13,"Despesas_Não_Operacionais",IF(D124=Despesas!$X$13,"Outras_Despesas","")))))))))))) -> Outras_Receitas | R124: 0 | S124: 1 | T124: 1900
I125: 9990 | O125: =IFERROR(VLOOKUP(D125,Outros!$E$14:$F$25,2,0),"") -> Receita | P125: =IF(D125=Receitas!$C$13,"Receita_de_Vendas",IF(D125=Receitas!$F$13,"Receita_de_Serviços",IF(D125=Receitas!$I$13,"Receitas_Financeiras",IF(D125=Receitas!$L$13,"Outras_Receitas",IF(D125=Despesas!$C$13,"Despesas_com_Produto",IF(D125=Despesas!$F$13,"Despesas_com_Serviços",IF(D125=Despesas!$I$13,"Despesas_Administrativas",IF(D125=Despesas!$L$13,"Despesas_Operacionais",IF(D125=Despesas!$O$13,"Despesas_com_Pessoal",IF(D125=Despesas!$R$13,"Impostos",IF(D125=Despesas!$U$13,"Despesas_Não_Operacionais",IF(D125=Despesas!$X$13,"Outras_Despesas","")))))))))))) -> Outras_Receitas | R125: 0 | S125: 1 | T125: 1900
I126: 9990 | O126: =IFERROR(VLOOKUP(D126,Outros!$E$14:$F$25,2,0),"") -> Receita | P126: =IF(D126=Receitas!$C$13,"Receita_de_Vendas",IF(D126=Receitas!$F$13,"Receita_de_Serviços",IF(D126=Receitas!$I$13,"Receitas_Financeiras",IF(D126=Receitas!$L$13,"Outras_Receitas",IF(D126=Despesas!$C$13,"Despesas_com_Produto",IF(D126=Despesas!$F$13,"Despesas_com_Serviços",IF(D126=Despesas!$I$13,"Despesas_Administrativas",IF(D126=Despesas!$L$13,"Despesas_Operacionais",IF(D126=Despesas!$O$13,"Despesas_com_Pessoal",IF(D126=Despesas!$R$13,"Impostos",IF(D126=Despesas!$U$13,"Despesas_Não_Operacionais",IF(D126=Despesas!$X$13,"Outras_Despesas","")))))))))))) -> Outras_Receitas | R126: 0 | S126: 1 | T126: 1900
I127: 9990 | O127: =IFERROR(VLOOKUP(D127,Outros!$E$14:$F$25,2,0),"") -> Receita | P127: =IF(D127=Receitas!$C$13,"Receita_de_Vendas",IF(D127=Receitas!$F$13,"Receita_de_Serviços",IF(D127=Receitas!$I$13,"Receitas_Financeiras",IF(D127=Receitas!$L$13,"Outras_Receitas",IF(D127=Despesas!$C$13,"Despesas_com_Produto",IF(D127=Despesas!$F$13,"Despesas_com_Serviços",IF(D127=Despesas!$I$13,"Despesas_Administrativas",IF(D127=Despesas!$L$13,"Despesas_Operacionais",IF(D127=Despesas!$O$13,"Despesas_com_Pessoal",IF(D127=Despesas!$R$13,"Impostos",IF(D127=Despesas!$U$13,"Despesas_Não_Operacionais",IF(D127=Despesas!$X$13,"Outras_Despesas","")))))))))))) -> Outras_Receitas | R127: 0 | S127: 1 | T127: 1900
I128: 9990 | O128: =IFERROR(VLOOKUP(D128,Outros!$E$14:$F$25,2,0),"") -> Receita | P128: =IF(D128=Receitas!$C$13,"Receita_de_Vendas",IF(D128=Receitas!$F$13,"Receita_de_Serviços",IF(D128=Receitas!$I$13,"Receitas_Financeiras",IF(D128=Receitas!$L$13,"Outras_Receitas",IF(D128=Despesas!$C$13,"Despesas_com_Produto",IF(D128=Despesas!$F$13,"Despesas_com_Serviços",IF(D128=Despesas!$I$13,"Despesas_Administrativas",IF(D128=Despesas!$L$13,"Despesas_Operacionais",IF(D128=Despesas!$O$13,"Despesas_com_Pessoal",IF(D128=Despesas!$R$13,"Impostos",IF(D128=Despesas!$U$13,"Despesas_Não_Operacionais",IF(D128=Despesas!$X$13,"Outras_Despesas","")))))))))))) -> Outras_Receitas | R128: 0 | S128: 1 | T128: 1900
I129: 9990 | O129: =IFERROR(VLOOKUP(D129,Outros!$E$14:$F$25,2,0),"") -> Receita | P129: =IF(D129=Receitas!$C$13,"Receita_de_Vendas",IF(D129=Receitas!$F$13,"Receita_de_Serviços",IF(D129=Receitas!$I$13,"Receitas_Financeiras",IF(D129=Receitas!$L$13,"Outras_Receitas",IF(D129=Despesas!$C$13,"Despesas_com_Produto",IF(D129=Despesas!$F$13,"Despesas_com_Serviços",IF(D129=Despesas!$I$13,"Despesas_Administrativas",IF(D129=Despesas!$L$13,"Despesas_Operacionais",IF(D129=Despesas!$O$13,"Despesas_com_Pessoal",IF(D129=Despesas!$R$13,"Impostos",IF(D129=Despesas!$U$13,"Despesas_Não_Operacionais",IF(D129=Despesas!$X$13,"Outras_Despesas","")))))))))))) -> Outras_Receitas | R129: 0 | S129: 1 | T129: 1900
I130: 9990 | O130: =IFERROR(VLOOKUP(D130,Outros!$E$14:$F$25,2,0),"") -> Receita | P130: =IF(D130=Receitas!$C$13,"Receita_de_Vendas",IF(D130=Receitas!$F$13,"Receita_de_Serviços",IF(D130=Receitas!$I$13,"Receitas_Financeiras",IF(D130=Receitas!$L$13,"Outras_Receitas",IF(D130=Despesas!$C$13,"Despesas_com_Produto",IF(D130=Despesas!$F$13,"Despesas_com_Serviços",IF(D130=Despesas!$I$13,"Despesas_Administrativas",IF(D130=Despesas!$L$13,"Despesas_Operacionais",IF(D130=Despesas!$O$13,"Despesas_com_Pessoal",IF(D130=Despesas!$R$13,"Impostos",IF(D130=Despesas!$U$13,"Despesas_Não_Operacionais",IF(D130=Despesas!$X$13,"Outras_Despesas","")))))))))))) -> Outras_Receitas | R130: 0 | S130: 1 | T130: 1900
I131: 9990 | O131: =IFERROR(VLOOKUP(D131,Outros!$E$14:$F$25,2,0),"") -> Receita | P131: =IF(D131=Receitas!$C$13,"Receita_de_Vendas",IF(D131=Receitas!$F$13,"Receita_de_Serviços",IF(D131=Receitas!$I$13,"Receitas_Financeiras",IF(D131=Receitas!$L$13,"Outras_Receitas",IF(D131=Despesas!$C$13,"Despesas_com_Produto",IF(D131=Despesas!$F$13,"Despesas_com_Serviços",IF(D131=Despesas!$I$13,"Despesas_Administrativas",IF(D131=Despesas!$L$13,"Despesas_Operacionais",IF(D131=Despesas!$O$13,"Despesas_com_Pessoal",IF(D131=Despesas!$R$13,"Impostos",IF(D131=Despesas!$U$13,"Despesas_Não_Operacionais",IF(D131=Despesas!$X$13,"Outras_Despesas","")))))))))))) -> Outras_Receitas | R131: 0 | S131: 1 | T131: 1900
I132: 9990 | O132: =IFERROR(VLOOKUP(D132,Outros!$E$14:$F$25,2,0),"") -> Receita | P132: =IF(D132=Receitas!$C$13,"Receita_de_Vendas",IF(D132=Receitas!$F$13,"Receita_de_Serviços",IF(D132=Receitas!$I$13,"Receitas_Financeiras",IF(D132=Receitas!$L$13,"Outras_Receitas",IF(D132=Despesas!$C$13,"Despesas_com_Produto",IF(D132=Despesas!$F$13,"Despesas_com_Serviços",IF(D132=Despesas!$I$13,"Despesas_Administrativas",IF(D132=Despesas!$L$13,"Despesas_Operacionais",IF(D132=Despesas!$O$13,"Despesas_com_Pessoal",IF(D132=Despesas!$R$13,"Impostos",IF(D132=Despesas!$U$13,"Despesas_Não_Operacionais",IF(D132=Despesas!$X$13,"Outras_Despesas","")))))))))))) -> Outras_Receitas | R132: 0 | S132: 1 | T132: 1900
I133: 9990 | O133: =IFERROR(VLOOKUP(D133,Outros!$E$14:$F$25,2,0),"") -> Receita | P133: =IF(D133=Receitas!$C$13,"Receita_de_Vendas",IF(D133=Receitas!$F$13,"Receita_de_Serviços",IF(D133=Receitas!$I$13,"Receitas_Financeiras",IF(D133=Receitas!$L$13,"Outras_Receitas",IF(D133=Despesas!$C$13,"Despesas_com_Produto",IF(D133=Despesas!$F$13,"Despesas_com_Serviços",IF(D133=Despesas!$I$13,"Despesas_Administrativas",IF(D133=Despesas!$L$13,"Despesas_Operacionais",IF(D133=Despesas!$O$13,"Despesas_com_Pessoal",IF(D133=Despesas!$R$13,"Impostos",IF(D133=Despesas!$U$13,"Despesas_Não_Operacionais",IF(D133=Despesas!$X$13,"Outras_Despesas","")))))))))))) -> Outras_Receitas | R133: 0 | S133: 1 | T133: 1900
I134: 9990 | O134: =IFERROR(VLOOKUP(D134,Outros!$E$14:$F$25,2,0),"") -> Receita | P134: =IF(D134=Receitas!$C$13,"Receita_de_Vendas",IF(D134=Receitas!$F$13,"Receita_de_Serviços",IF(D134=Receitas!$I$13,"Receitas_Financeiras",IF(D134=Receitas!$L$13,"Outras_Receitas",IF(D134=Despesas!$C$13,"Despesas_com_Produto",IF(D134=Despesas!$F$13,"Despesas_com_Serviços",IF(D134=Despesas!$I$13,"Despesas_Administrativas",IF(D134=Despesas!$L$13,"Despesas_Operacionais",IF(D134=Despesas!$O$13,"Despesas_com_Pessoal",IF(D134=Despesas!$R$13,"Impostos",IF(D134=Despesas!$U$13,"Despesas_Não_Operacionais",IF(D134=Despesas!$X$13,"Outras_Despesas","")))))))))))) -> Outras_Receitas | R134: 0 | S134: 1 | T134: 1900
I135: 9990 | O135: =IFERROR(VLOOKUP(D135,Outros!$E$14:$F$25,2,0),"") -> Receita | P135: =IF(D135=Receitas!$C$13,"Receita_de_Vendas",IF(D135=Receitas!$F$13,"Receita_de_Serviços",IF(D135=Receitas!$I$13,"Receitas_Financeiras",IF(D135=Receitas!$L$13,"Outras_Receitas",IF(D135=Despesas!$C$13,"Despesas_com_Produto",IF(D135=Despesas!$F$13,"Despesas_com_Serviços",IF(D135=Despesas!$I$13,"Despesas_Administrativas",IF(D135=Despesas!$L$13,"Despesas_Operacionais",IF(D135=Despesas!$O$13,"Despesas_com_Pessoal",IF(D135=Despesas!$R$13,"Impostos",IF(D135=Despesas!$U$13,"Despesas_Não_Operacionais",IF(D135=Despesas!$X$13,"Outras_Despesas","")))))))))))) -> Outras_Receitas | R135: 0 | S135: 1 | T135: 1900
I136: 9990 | O136: =IFERROR(VLOOKUP(D136,Outros!$E$14:$F$25,2,0),"") -> Receita | P136: =IF(D136=Receitas!$C$13,"Receita_de_Vendas",IF(D136=Receitas!$F$13,"Receita_de_Serviços",IF(D136=Receitas!$I$13,"Receitas_Financeiras",IF(D136=Receitas!$L$13,"Outras_Receitas",IF(D136=Despesas!$C$13,"Despesas_com_Produto",IF(D136=Despesas!$F$13,"Despesas_com_Serviços",IF(D136=Despesas!$I$13,"Despesas_Administrativas",IF(D136=Despesas!$L$13,"Despesas_Operacionais",IF(D136=Despesas!$O$13,"Despesas_com_Pessoal",IF(D136=Despesas!$R$13,"Impostos",IF(D136=Despesas!$U$13,"Despesas_Não_Operacionais",IF(D136=Despesas!$X$13,"Outras_Despesas","")))))))))))) -> Outras_Receitas | R136: 0 | S136: 1 | T136: 1900
I137: 9990 | O137: =IFERROR(VLOOKUP(D137,Outros!$E$14:$F$25,2,0),"") -> Receita | P137: =IF(D137=Receitas!$C$13,"Receita_de_Vendas",IF(D137=Receitas!$F$13,"Receita_de_Serviços",IF(D137=Receitas!$I$13,"Receitas_Financeiras",IF(D137=Receitas!$L$13,"Outras_Receitas",IF(D137=Despesas!$C$13,"Despesas_com_Produto",IF(D137=Despesas!$F$13,"Despesas_com_Serviços",IF(D137=Despesas!$I$13,"Despesas_Administrativas",IF(D137=Despesas!$L$13,"Despesas_Operacionais",IF(D137=Despesas!$O$13,"Despesas_com_Pessoal",IF(D137=Despesas!$R$13,"Impostos",IF(D137=Despesas!$U$13,"Despesas_Não_Operacionais",IF(D137=Despesas!$X$13,"Outras_Despesas","")))))))))))) -> Outras_Receitas | R137: 0 | S137: 1 | T137: 1900
I138: 9990 | O138: =IFERROR(VLOOKUP(D138,Outros!$E$14:$F$25,2,0),"") -> Receita | P138: =IF(D138=Receitas!$C$13,"Receita_de_Vendas",IF(D138=Receitas!$F$13,"Receita_de_Serviços",IF(D138=Receitas!$I$13,"Receitas_Financeiras",IF(D138=Receitas!$L$13,"Outras_Receitas",IF(D138=Despesas!$C$13,"Despesas_com_Produto",IF(D138=Despesas!$F$13,"Despesas_com_Serviços",IF(D138=Despesas!$I$13,"Despesas_Administrativas",IF(D138=Despesas!$L$13,"Despesas_Operacionais",IF(D138=Despesas!$O$13,"Despesas_com_Pessoal",IF(D138=Despesas!$R$13,"Impostos",IF(D138=Despesas!$U$13,"Despesas_Não_Operacionais",IF(D138=Despesas!$X$13,"Outras_Despesas","")))))))))))) -> Outras_Receitas | R138: 0 | S138: 1 | T138: 1900
I139: 9990 | O139: =IFERROR(VLOOKUP(D139,Outros!$E$14:$F$25,2,0),"") -> Receita | P139: =IF(D139=Receitas!$C$13,"Receita_de_Vendas",IF(D139=Receitas!$F$13,"Receita_de_Serviços",IF(D139=Receitas!$I$13,"Receitas_Financeiras",IF(D139=Receitas!$L$13,"Outras_Receitas",IF(D139=Despesas!$C$13,"Despesas_com_Produto",IF(D139=Despesas!$F$13,"Despesas_com_Serviços",IF(D139=Despesas!$I$13,"Despesas_Administrativas",IF(D139=Despesas!$L$13,"Despesas_Operacionais",IF(D139=Despesas!$O$13,"Despesas_com_Pessoal",IF(D139=Despesas!$R$13,"Impostos",IF(D139=Despesas!$U$13,"Despesas_Não_Operacionais",IF(D139=Despesas!$X$13,"Outras_Despesas","")))))))))))) -> Outras_Receitas | R139: 0 | S139: 1 | T139: 1900
I140: 9990 | O140: =IFERROR(VLOOKUP(D140,Outros!$E$14:$F$25,2,0),"") -> Receita | P140: =IF(D140=Receitas!$C$13,"Receita_de_Vendas",IF(D140=Receitas!$F$13,"Receita_de_Serviços",IF(D140=Receitas!$I$13,"Receitas_Financeiras",IF(D140=Receitas!$L$13,"Outras_Receitas",IF(D140=Despesas!$C$13,"Despesas_com_Produto",IF(D140=Despesas!$F$13,"Despesas_com_Serviços",IF(D140=Despesas!$I$13,"Despesas_Administrativas",IF(D140=Despesas!$L$13,"Despesas_Operacionais",IF(D140=Despesas!$O$13,"Despesas_com_Pessoal",IF(D140=Despesas!$R$13,"Impostos",IF(D140=Despesas!$U$13,"Despesas_Não_Operacionais",IF(D140=Despesas!$X$13,"Outras_Despesas","")))))))))))) -> Outras_Receitas | R140: 0 | S140: 1 | T140: 1900
I141: 9990 | O141: =IFERROR(VLOOKUP(D141,Outros!$E$14:$F$25,2,0),"") -> Receita | P141: =IF(D141=Receitas!$C$13,"Receita_de_Vendas",IF(D141=Receitas!$F$13,"Receita_de_Serviços",IF(D141=Receitas!$I$13,"Receitas_Financeiras",IF(D141=Receitas!$L$13,"Outras_Receitas",IF(D141=Despesas!$C$13,"Despesas_com_Produto",IF(D141=Despesas!$F$13,"Despesas_com_Serviços",IF(D141=Despesas!$I$13,"Despesas_Administrativas",IF(D141=Despesas!$L$13,"Despesas_Operacionais",IF(D141=Despesas!$O$13,"Despesas_com_Pessoal",IF(D141=Despesas!$R$13,"Impostos",IF(D141=Despesas!$U$13,"Despesas_Não_Operacionais",IF(D141=Despesas!$X$13,"Outras_Despesas","")))))))))))) -> Outras_Receitas | R141: 0 | S141: 1 | T141: 1900
I142: 9990 | O142: =IFERROR(VLOOKUP(D142,Outros!$E$14:$F$25,2,0),"") -> Receita | P142: =IF(D142=Receitas!$C$13,"Receita_de_Vendas",IF(D142=Receitas!$F$13,"Receita_de_Serviços",IF(D142=Receitas!$I$13,"Receitas_Financeiras",IF(D142=Receitas!$L$13,"Outras_Receitas",IF(D142=Despesas!$C$13,"Despesas_com_Produto",IF(D142=Despesas!$F$13,"Despesas_com_Serviços",IF(D142=Despesas!$I$13,"Despesas_Administrativas",IF(D142=Despesas!$L$13,"Despesas_Operacionais",IF(D142=Despesas!$O$13,"Despesas_com_Pessoal",IF(D142=Despesas!$R$13,"Impostos",IF(D142=Despesas!$U$13,"Despesas_Não_Operacionais",IF(D142=Despesas!$X$13,"Outras_Despesas","")))))))))))) -> Outras_Receitas | R142: =DAY(B142) -> 0 | S142: =MONTH(B142) -> 1 | T142: =YEAR(B142) -> 1900
I143: 9990 | O143: =IFERROR(VLOOKUP(D143,Outros!$E$14:$F$25,2,0),"") -> Receita | P143: =IF(D143=Receitas!$C$13,"Receita_de_Vendas",IF(D143=Receitas!$F$13,"Receita_de_Serviços",IF(D143=Receitas!$I$13,"Receitas_Financeiras",IF(D143=Receitas!$L$13,"Outras_Receitas",IF(D143=Despesas!$C$13,"Despesas_com_Produto",IF(D143=Despesas!$F$13,"Despesas_com_Serviços",IF(D143=Despesas!$I$13,"Despesas_Administrativas",IF(D143=Despesas!$L$13,"Despesas_Operacionais",IF(D143=Despesas!$O$13,"Despesas_com_Pessoal",IF(D143=Despesas!$R$13,"Impostos",IF(D143=Despesas!$U$13,"Despesas_Não_Operacionais",IF(D143=Despesas!$X$13,"Outras_Despesas","")))))))))))) -> Outras_Receitas | R143: 0 | S143: 1 | T143: 1900
I144: =I143+IF(AND(G144="Pago",O144="Receita"),H144,IF(AND(G144="Pago",O144="Despesa"),-H144,0)) -> 9990 | O144: =IFERROR(VLOOKUP(D144,Outros!$E$14:$F$25,2,0),"") -> Receita | P144: =IF(D144=Receitas!$C$13,"Receita_de_Vendas",IF(D144=Receitas!$F$13,"Receita_de_Serviços",IF(D144=Receitas!$I$13,"Receitas_Financeiras",IF(D144=Receitas!$L$13,"Outras_Receitas",IF(D144=Despesas!$C$13,"Despesas_com_Produto",IF(D144=Despesas!$F$13,"Despesas_com_Serviços",IF(D144=Despesas!$I$13,"Despesas_Administrativas",IF(D144=Despesas!$L$13,"Despesas_Operacionais",IF(D144=Despesas!$O$13,"Despesas_com_Pessoal",IF(D144=Despesas!$R$13,"Impostos",IF(D144=Despesas!$U$13,"Despesas_Não_Operacionais",IF(D144=Despesas!$X$13,"Outras_Despesas","")))))))))))) -> Outras_Receitas | R144: 0 | S144: 1 | T144: 1900
I145: 9990 | O145: =IFERROR(VLOOKUP(D145,Outros!$E$14:$F$25,2,0),"") -> Receita | P145: =IF(D145=Receitas!$C$13,"Receita_de_Vendas",IF(D145=Receitas!$F$13,"Receita_de_Serviços",IF(D145=Receitas!$I$13,"Receitas_Financeiras",IF(D145=Receitas!$L$13,"Outras_Receitas",IF(D145=Despesas!$C$13,"Despesas_com_Produto",IF(D145=Despesas!$F$13,"Despesas_com_Serviços",IF(D145=Despesas!$I$13,"Despesas_Administrativas",IF(D145=Despesas!$L$13,"Despesas_Operacionais",IF(D145=Despesas!$O$13,"Despesas_com_Pessoal",IF(D145=Despesas!$R$13,"Impostos",IF(D145=Despesas!$U$13,"Despesas_Não_Operacionais",IF(D145=Despesas!$X$13,"Outras_Despesas","")))))))))))) -> Outras_Receitas | R145: 0 | S145: 1 | T145: 1900
I146: 9990 | O146: =IFERROR(VLOOKUP(D146,Outros!$E$14:$F$25,2,0),"") -> Receita | P146: =IF(D146=Receitas!$C$13,"Receita_de_Vendas",IF(D146=Receitas!$F$13,"Receita_de_Serviços",IF(D146=Receitas!$I$13,"Receitas_Financeiras",IF(D146=Receitas!$L$13,"Outras_Receitas",IF(D146=Despesas!$C$13,"Despesas_com_Produto",IF(D146=Despesas!$F$13,"Despesas_com_Serviços",IF(D146=Despesas!$I$13,"Despesas_Administrativas",IF(D146=Despesas!$L$13,"Despesas_Operacionais",IF(D146=Despesas!$O$13,"Despesas_com_Pessoal",IF(D146=Despesas!$R$13,"Impostos",IF(D146=Despesas!$U$13,"Despesas_Não_Operacionais",IF(D146=Despesas!$X$13,"Outras_Despesas","")))))))))))) -> Outras_Receitas | R146: 0 | S146: 1 | T146: 1900
I147: 9990 | O147: =IFERROR(VLOOKUP(D147,Outros!$E$14:$F$25,2,0),"") -> Receita | P147: =IF(D147=Receitas!$C$13,"Receita_de_Vendas",IF(D147=Receitas!$F$13,"Receita_de_Serviços",IF(D147=Receitas!$I$13,"Receitas_Financeiras",IF(D147=Receitas!$L$13,"Outras_Receitas",IF(D147=Despesas!$C$13,"Despesas_com_Produto",IF(D147=Despesas!$F$13,"Despesas_com_Serviços",IF(D147=Despesas!$I$13,"Despesas_Administrativas",IF(D147=Despesas!$L$13,"Despesas_Operacionais",IF(D147=Despesas!$O$13,"Despesas_com_Pessoal",IF(D147=Despesas!$R$13,"Impostos",IF(D147=Despesas!$U$13,"Despesas_Não_Operacionais",IF(D147=Despesas!$X$13,"Outras_Despesas","")))))))))))) -> Outras_Receitas | R147: 0 | S147: 1 | T147: 1900
I148: 9990 | O148: =IFERROR(VLOOKUP(D148,Outros!$E$14:$F$25,2,0),"") -> Receita | P148: =IF(D148=Receitas!$C$13,"Receita_de_Vendas",IF(D148=Receitas!$F$13,"Receita_de_Serviços",IF(D148=Receitas!$I$13,"Receitas_Financeiras",IF(D148=Receitas!$L$13,"Outras_Receitas",IF(D148=Despesas!$C$13,"Despesas_com_Produto",IF(D148=Despesas!$F$13,"Despesas_com_Serviços",IF(D148=Despesas!$I$13,"Despesas_Administrativas",IF(D148=Despesas!$L$13,"Despesas_Operacionais",IF(D148=Despesas!$O$13,"Despesas_com_Pessoal",IF(D148=Despesas!$R$13,"Impostos",IF(D148=Despesas!$U$13,"Despesas_Não_Operacionais",IF(D148=Despesas!$X$13,"Outras_Despesas","")))))))))))) -> Outras_Receitas | R148: 0 | S148: 1 | T148: 1900
I149: 9990 | O149: =IFERROR(VLOOKUP(D149,Outros!$E$14:$F$25,2,0),"") -> Receita | P149: =IF(D149=Receitas!$C$13,"Receita_de_Vendas",IF(D149=Receitas!$F$13,"Receita_de_Serviços",IF(D149=Receitas!$I$13,"Receitas_Financeiras",IF(D149=Receitas!$L$13,"Outras_Receitas",IF(D149=Despesas!$C$13,"Despesas_com_Produto",IF(D149=Despesas!$F$13,"Despesas_com_Serviços",IF(D149=Despesas!$I$13,"Despesas_Administrativas",IF(D149=Despesas!$L$13,"Despesas_Operacionais",IF(D149=Despesas!$O$13,"Despesas_com_Pessoal",IF(D149=Despesas!$R$13,"Impostos",IF(D149=Despesas!$U$13,"Despesas_Não_Operacionais",IF(D149=Despesas!$X$13,"Outras_Despesas","")))))))))))) -> Outras_Receitas | R149: 0 | S149: 1 | T149: 1900
I150: 9990 | O150: =IFERROR(VLOOKUP(D150,Outros!$E$14:$F$25,2,0),"") -> Receita | P150: =IF(D150=Receitas!$C$13,"Receita_de_Vendas",IF(D150=Receitas!$F$13,"Receita_de_Serviços",IF(D150=Receitas!$I$13,"Receitas_Financeiras",IF(D150=Receitas!$L$13,"Outras_Receitas",IF(D150=Despesas!$C$13,"Despesas_com_Produto",IF(D150=Despesas!$F$13,"Despesas_com_Serviços",IF(D150=Despesas!$I$13,"Despesas_Administrativas",IF(D150=Despesas!$L$13,"Despesas_Operacionais",IF(D150=Despesas!$O$13,"Despesas_com_Pessoal",IF(D150=Despesas!$R$13,"Impostos",IF(D150=Despesas!$U$13,"Despesas_Não_Operacionais",IF(D150=Despesas!$X$13,"Outras_Despesas","")))))))))))) -> Outras_Receitas | R150: 0 | S150: 1 | T150: 1900
I151: 9990 | O151: =IFERROR(VLOOKUP(D151,Outros!$E$14:$F$25,2,0),"") -> Receita | P151: =IF(D151=Receitas!$C$13,"Receita_de_Vendas",IF(D151=Receitas!$F$13,"Receita_de_Serviços",IF(D151=Receitas!$I$13,"Receitas_Financeiras",IF(D151=Receitas!$L$13,"Outras_Receitas",IF(D151=Despesas!$C$13,"Despesas_com_Produto",IF(D151=Despesas!$F$13,"Despesas_com_Serviços",IF(D151=Despesas!$I$13,"Despesas_Administrativas",IF(D151=Despesas!$L$13,"Despesas_Operacionais",IF(D151=Despesas!$O$13,"Despesas_com_Pessoal",IF(D151=Despesas!$R$13,"Impostos",IF(D151=Despesas!$U$13,"Despesas_Não_Operacionais",IF(D151=Despesas!$X$13,"Outras_Despesas","")))))))))))) -> Outras_Receitas | R151: 0 | S151: 1 | T151: 1900
I152: 9990 | O152: =IFERROR(VLOOKUP(D152,Outros!$E$14:$F$25,2,0),"") -> Receita | P152: =IF(D152=Receitas!$C$13,"Receita_de_Vendas",IF(D152=Receitas!$F$13,"Receita_de_Serviços",IF(D152=Receitas!$I$13,"Receitas_Financeiras",IF(D152=Receitas!$L$13,"Outras_Receitas",IF(D152=Despesas!$C$13,"Despesas_com_Produto",IF(D152=Despesas!$F$13,"Despesas_com_Serviços",IF(D152=Despesas!$I$13,"Despesas_Administrativas",IF(D152=Despesas!$L$13,"Despesas_Operacionais",IF(D152=Despesas!$O$13,"Despesas_com_Pessoal",IF(D152=Despesas!$R$13,"Impostos",IF(D152=Despesas!$U$13,"Despesas_Não_Operacionais",IF(D152=Despesas!$X$13,"Outras_Despesas","")))))))))))) -> Outras_Receitas | R152: 0 | S152: 1 | T152: 1900
I153: 9990 | O153: =IFERROR(VLOOKUP(D153,Outros!$E$14:$F$25,2,0),"") -> Receita | P153: =IF(D153=Receitas!$C$13,"Receita_de_Vendas",IF(D153=Receitas!$F$13,"Receita_de_Serviços",IF(D153=Receitas!$I$13,"Receitas_Financeiras",IF(D153=Receitas!$L$13,"Outras_Receitas",IF(D153=Despesas!$C$13,"Despesas_com_Produto",IF(D153=Despesas!$F$13,"Despesas_com_Serviços",IF(D153=Despesas!$I$13,"Despesas_Administrativas",IF(D153=Despesas!$L$13,"Despesas_Operacionais",IF(D153=Despesas!$O$13,"Despesas_com_Pessoal",IF(D153=Despesas!$R$13,"Impostos",IF(D153=Despesas!$U$13,"Despesas_Não_Operacionais",IF(D153=Despesas!$X$13,"Outras_Despesas","")))))))))))) -> Outras_Receitas | R153: 0 | S153: 1 | T153: 1900
I154: 9990 | O154: =IFERROR(VLOOKUP(D154,Outros!$E$14:$F$25,2,0),"") -> Receita | P154: =IF(D154=Receitas!$C$13,"Receita_de_Vendas",IF(D154=Receitas!$F$13,"Receita_de_Serviços",IF(D154=Receitas!$I$13,"Receitas_Financeiras",IF(D154=Receitas!$L$13,"Outras_Receitas",IF(D154=Despesas!$C$13,"Despesas_com_Produto",IF(D154=Despesas!$F$13,"Despesas_com_Serviços",IF(D154=Despesas!$I$13,"Despesas_Administrativas",IF(D154=Despesas!$L$13,"Despesas_Operacionais",IF(D154=Despesas!$O$13,"Despesas_com_Pessoal",IF(D154=Despesas!$R$13,"Impostos",IF(D154=Despesas!$U$13,"Despesas_Não_Operacionais",IF(D154=Despesas!$X$13,"Outras_Despesas","")))))))))))) -> Outras_Receitas | R154: 0 | S154: 1 | T154: 1900
I155: 9990 | O155: =IFERROR(VLOOKUP(D155,Outros!$E$14:$F$25,2,0),"") -> Receita | P155: =IF(D155=Receitas!$C$13,"Receita_de_Vendas",IF(D155=Receitas!$F$13,"Receita_de_Serviços",IF(D155=Receitas!$I$13,"Receitas_Financeiras",IF(D155=Receitas!$L$13,"Outras_Receitas",IF(D155=Despesas!$C$13,"Despesas_com_Produto",IF(D155=Despesas!$F$13,"Despesas_com_Serviços",IF(D155=Despesas!$I$13,"Despesas_Administrativas",IF(D155=Despesas!$L$13,"Despesas_Operacionais",IF(D155=Despesas!$O$13,"Despesas_com_Pessoal",IF(D155=Despesas!$R$13,"Impostos",IF(D155=Despesas!$U$13,"Despesas_Não_Operacionais",IF(D155=Despesas!$X$13,"Outras_Despesas","")))))))))))) -> Outras_Receitas | R155: 0 | S155: 1 | T155: 1900
I156: 9990 | O156: =IFERROR(VLOOKUP(D156,Outros!$E$14:$F$25,2,0),"") -> Receita | P156: =IF(D156=Receitas!$C$13,"Receita_de_Vendas",IF(D156=Receitas!$F$13,"Receita_de_Serviços",IF(D156=Receitas!$I$13,"Receitas_Financeiras",IF(D156=Receitas!$L$13,"Outras_Receitas",IF(D156=Despesas!$C$13,"Despesas_com_Produto",IF(D156=Despesas!$F$13,"Despesas_com_Serviços",IF(D156=Despesas!$I$13,"Despesas_Administrativas",IF(D156=Despesas!$L$13,"Despesas_Operacionais",IF(D156=Despesas!$O$13,"Despesas_com_Pessoal",IF(D156=Despesas!$R$13,"Impostos",IF(D156=Despesas!$U$13,"Despesas_Não_Operacionais",IF(D156=Despesas!$X$13,"Outras_Despesas","")))))))))))) -> Outras_Receitas | R156: 0 | S156: 1 | T156: 1900
I157: 9990 | O157: =IFERROR(VLOOKUP(D157,Outros!$E$14:$F$25,2,0),"") -> Receita | P157: =IF(D157=Receitas!$C$13,"Receita_de_Vendas",IF(D157=Receitas!$F$13,"Receita_de_Serviços",IF(D157=Receitas!$I$13,"Receitas_Financeiras",IF(D157=Receitas!$L$13,"Outras_Receitas",IF(D157=Despesas!$C$13,"Despesas_com_Produto",IF(D157=Despesas!$F$13,"Despesas_com_Serviços",IF(D157=Despesas!$I$13,"Despesas_Administrativas",IF(D157=Despesas!$L$13,"Despesas_Operacionais",IF(D157=Despesas!$O$13,"Despesas_com_Pessoal",IF(D157=Despesas!$R$13,"Impostos",IF(D157=Despesas!$U$13,"Despesas_Não_Operacionais",IF(D157=Despesas!$X$13,"Outras_Despesas","")))))))))))) -> Outras_Receitas | R157: 0 | S157: 1 | T157: 1900
I158: 9990 | O158: =IFERROR(VLOOKUP(D158,Outros!$E$14:$F$25,2,0),"") -> Receita | P158: =IF(D158=Receitas!$C$13,"Receita_de_Vendas",IF(D158=Receitas!$F$13,"Receita_de_Serviços",IF(D158=Receitas!$I$13,"Receitas_Financeiras",IF(D158=Receitas!$L$13,"Outras_Receitas",IF(D158=Despesas!$C$13,"Despesas_com_Produto",IF(D158=Despesas!$F$13,"Despesas_com_Serviços",IF(D158=Despesas!$I$13,"Despesas_Administrativas",IF(D158=Despesas!$L$13,"Despesas_Operacionais",IF(D158=Despesas!$O$13,"Despesas_com_Pessoal",IF(D158=Despesas!$R$13,"Impostos",IF(D158=Despesas!$U$13,"Despesas_Não_Operacionais",IF(D158=Despesas!$X$13,"Outras_Despesas","")))))))))))) -> Outras_Receitas | R158: 0 | S158: 1 | T158: 1900
I159: 9990 | O159: =IFERROR(VLOOKUP(D159,Outros!$E$14:$F$25,2,0),"") -> Receita | P159: =IF(D159=Receitas!$C$13,"Receita_de_Vendas",IF(D159=Receitas!$F$13,"Receita_de_Serviços",IF(D159=Receitas!$I$13,"Receitas_Financeiras",IF(D159=Receitas!$L$13,"Outras_Receitas",IF(D159=Despesas!$C$13,"Despesas_com_Produto",IF(D159=Despesas!$F$13,"Despesas_com_Serviços",IF(D159=Despesas!$I$13,"Despesas_Administrativas",IF(D159=Despesas!$L$13,"Despesas_Operacionais",IF(D159=Despesas!$O$13,"Despesas_com_Pessoal",IF(D159=Despesas!$R$13,"Impostos",IF(D159=Despesas!$U$13,"Despesas_Não_Operacionais",IF(D159=Despesas!$X$13,"Outras_Despesas","")))))))))))) -> Outras_Receitas | R159: 0 | S159: 1 | T159: 1900
I160: 9990 | O160: =IFERROR(VLOOKUP(D160,Outros!$E$14:$F$25,2,0),"") -> Receita | P160: =IF(D160=Receitas!$C$13,"Receita_de_Vendas",IF(D160=Receitas!$F$13,"Receita_de_Serviços",IF(D160=Receitas!$I$13,"Receitas_Financeiras",IF(D160=Receitas!$L$13,"Outras_Receitas",IF(D160=Despesas!$C$13,"Despesas_com_Produto",IF(D160=Despesas!$F$13,"Despesas_com_Serviços",IF(D160=Despesas!$I$13,"Despesas_Administrativas",IF(D160=Despesas!$L$13,"Despesas_Operacionais",IF(D160=Despesas!$O$13,"Despesas_com_Pessoal",IF(D160=Despesas!$R$13,"Impostos",IF(D160=Despesas!$U$13,"Despesas_Não_Operacionais",IF(D160=Despesas!$X$13,"Outras_Despesas","")))))))))))) -> Outras_Receitas | R160: 0 | S160: 1 | T160: 1900
I161: 9990 | O161: =IFERROR(VLOOKUP(D161,Outros!$E$14:$F$25,2,0),"") -> Receita | P161: =IF(D161=Receitas!$C$13,"Receita_de_Vendas",IF(D161=Receitas!$F$13,"Receita_de_Serviços",IF(D161=Receitas!$I$13,"Receitas_Financeiras",IF(D161=Receitas!$L$13,"Outras_Receitas",IF(D161=Despesas!$C$13,"Despesas_com_Produto",IF(D161=Despesas!$F$13,"Despesas_com_Serviços",IF(D161=Despesas!$I$13,"Despesas_Administrativas",IF(D161=Despesas!$L$13,"Despesas_Operacionais",IF(D161=Despesas!$O$13,"Despesas_com_Pessoal",IF(D161=Despesas!$R$13,"Impostos",IF(D161=Despesas!$U$13,"Despesas_Não_Operacionais",IF(D161=Despesas!$X$13,"Outras_Despesas","")))))))))))) -> Outras_Receitas | R161: 0 | S161: 1 | T161: 1900
I162: 9990 | O162: =IFERROR(VLOOKUP(D162,Outros!$E$14:$F$25,2,0),"") -> Receita | P162: =IF(D162=Receitas!$C$13,"Receita_de_Vendas",IF(D162=Receitas!$F$13,"Receita_de_Serviços",IF(D162=Receitas!$I$13,"Receitas_Financeiras",IF(D162=Receitas!$L$13,"Outras_Receitas",IF(D162=Despesas!$C$13,"Despesas_com_Produto",IF(D162=Despesas!$F$13,"Despesas_com_Serviços",IF(D162=Despesas!$I$13,"Despesas_Administrativas",IF(D162=Despesas!$L$13,"Despesas_Operacionais",IF(D162=Despesas!$O$13,"Despesas_com_Pessoal",IF(D162=Despesas!$R$13,"Impostos",IF(D162=Despesas!$U$13,"Despesas_Não_Operacionais",IF(D162=Despesas!$X$13,"Outras_Despesas","")))))))))))) -> Outras_Receitas | R162: 0 | S162: 1 | T162: 1900
I163: 9990 | O163: =IFERROR(VLOOKUP(D163,Outros!$E$14:$F$25,2,0),"") -> Receita | P163: =IF(D163=Receitas!$C$13,"Receita_de_Vendas",IF(D163=Receitas!$F$13,"Receita_de_Serviços",IF(D163=Receitas!$I$13,"Receitas_Financeiras",IF(D163=Receitas!$L$13,"Outras_Receitas",IF(D163=Despesas!$C$13,"Despesas_com_Produto",IF(D163=Despesas!$F$13,"Despesas_com_Serviços",IF(D163=Despesas!$I$13,"Despesas_Administrativas",IF(D163=Despesas!$L$13,"Despesas_Operacionais",IF(D163=Despesas!$O$13,"Despesas_com_Pessoal",IF(D163=Despesas!$R$13,"Impostos",IF(D163=Despesas!$U$13,"Despesas_Não_Operacionais",IF(D163=Despesas!$X$13,"Outras_Despesas","")))))))))))) -> Outras_Receitas | R163: 0 | S163: 1 | T163: 1900
I164: 9990 | O164: =IFERROR(VLOOKUP(D164,Outros!$E$14:$F$25,2,0),"") -> Receita | P164: =IF(D164=Receitas!$C$13,"Receita_de_Vendas",IF(D164=Receitas!$F$13,"Receita_de_Serviços",IF(D164=Receitas!$I$13,"Receitas_Financeiras",IF(D164=Receitas!$L$13,"Outras_Receitas",IF(D164=Despesas!$C$13,"Despesas_com_Produto",IF(D164=Despesas!$F$13,"Despesas_com_Serviços",IF(D164=Despesas!$I$13,"Despesas_Administrativas",IF(D164=Despesas!$L$13,"Despesas_Operacionais",IF(D164=Despesas!$O$13,"Despesas_com_Pessoal",IF(D164=Despesas!$R$13,"Impostos",IF(D164=Despesas!$U$13,"Despesas_Não_Operacionais",IF(D164=Despesas!$X$13,"Outras_Despesas","")))))))))))) -> Outras_Receitas | R164: 0 | S164: 1 | T164: 1900
I165: 9990 | O165: =IFERROR(VLOOKUP(D165,Outros!$E$14:$F$25,2,0),"") -> Receita | P165: =IF(D165=Receitas!$C$13,"Receita_de_Vendas",IF(D165=Receitas!$F$13,"Receita_de_Serviços",IF(D165=Receitas!$I$13,"Receitas_Financeiras",IF(D165=Receitas!$L$13,"Outras_Receitas",IF(D165=Despesas!$C$13,"Despesas_com_Produto",IF(D165=Despesas!$F$13,"Despesas_com_Serviços",IF(D165=Despesas!$I$13,"Despesas_Administrativas",IF(D165=Despesas!$L$13,"Despesas_Operacionais",IF(D165=Despesas!$O$13,"Despesas_com_Pessoal",IF(D165=Despesas!$R$13,"Impostos",IF(D165=Despesas!$U$13,"Despesas_Não_Operacionais",IF(D165=Despesas!$X$13,"Outras_Despesas","")))))))))))) -> Outras_Receitas | R165: 0 | S165: 1 | T165: 1900
I166: 9990 | O166: =IFERROR(VLOOKUP(D166,Outros!$E$14:$F$25,2,0),"") -> Receita | P166: =IF(D166=Receitas!$C$13,"Receita_de_Vendas",IF(D166=Receitas!$F$13,"Receita_de_Serviços",IF(D166=Receitas!$I$13,"Receitas_Financeiras",IF(D166=Receitas!$L$13,"Outras_Receitas",IF(D166=Despesas!$C$13,"Despesas_com_Produto",IF(D166=Despesas!$F$13,"Despesas_com_Serviços",IF(D166=Despesas!$I$13,"Despesas_Administrativas",IF(D166=Despesas!$L$13,"Despesas_Operacionais",IF(D166=Despesas!$O$13,"Despesas_com_Pessoal",IF(D166=Despesas!$R$13,"Impostos",IF(D166=Despesas!$U$13,"Despesas_Não_Operacionais",IF(D166=Despesas!$X$13,"Outras_Despesas","")))))))))))) -> Outras_Receitas | R166: 0 | S166: 1 | T166: 1900
I167: 9990 | O167: =IFERROR(VLOOKUP(D167,Outros!$E$14:$F$25,2,0),"") -> Receita | P167: =IF(D167=Receitas!$C$13,"Receita_de_Vendas",IF(D167=Receitas!$F$13,"Receita_de_Serviços",IF(D167=Receitas!$I$13,"Receitas_Financeiras",IF(D167=Receitas!$L$13,"Outras_Receitas",IF(D167=Despesas!$C$13,"Despesas_com_Produto",IF(D167=Despesas!$F$13,"Despesas_com_Serviços",IF(D167=Despesas!$I$13,"Despesas_Administrativas",IF(D167=Despesas!$L$13,"Despesas_Operacionais",IF(D167=Despesas!$O$13,"Despesas_com_Pessoal",IF(D167=Despesas!$R$13,"Impostos",IF(D167=Despesas!$U$13,"Despesas_Não_Operacionais",IF(D167=Despesas!$X$13,"Outras_Despesas","")))))))))))) -> Outras_Receitas | R167: 0 | S167: 1 | T167: 1900
I168: 9990 | O168: =IFERROR(VLOOKUP(D168,Outros!$E$14:$F$25,2,0),"") -> Receita | P168: =IF(D168=Receitas!$C$13,"Receita_de_Vendas",IF(D168=Receitas!$F$13,"Receita_de_Serviços",IF(D168=Receitas!$I$13,"Receitas_Financeiras",IF(D168=Receitas!$L$13,"Outras_Receitas",IF(D168=Despesas!$C$13,"Despesas_com_Produto",IF(D168=Despesas!$F$13,"Despesas_com_Serviços",IF(D168=Despesas!$I$13,"Despesas_Administrativas",IF(D168=Despesas!$L$13,"Despesas_Operacionais",IF(D168=Despesas!$O$13,"Despesas_com_Pessoal",IF(D168=Despesas!$R$13,"Impostos",IF(D168=Despesas!$U$13,"Despesas_Não_Operacionais",IF(D168=Despesas!$X$13,"Outras_Despesas","")))))))))))) -> Outras_Receitas | R168: 0 | S168: 1 | T168: 1900
I169: 9990 | O169: =IFERROR(VLOOKUP(D169,Outros!$E$14:$F$25,2,0),"") -> Receita | P169: =IF(D169=Receitas!$C$13,"Receita_de_Vendas",IF(D169=Receitas!$F$13,"Receita_de_Serviços",IF(D169=Receitas!$I$13,"Receitas_Financeiras",IF(D169=Receitas!$L$13,"Outras_Receitas",IF(D169=Despesas!$C$13,"Despesas_com_Produto",IF(D169=Despesas!$F$13,"Despesas_com_Serviços",IF(D169=Despesas!$I$13,"Despesas_Administrativas",IF(D169=Despesas!$L$13,"Despesas_Operacionais",IF(D169=Despesas!$O$13,"Despesas_com_Pessoal",IF(D169=Despesas!$R$13,"Impostos",IF(D169=Despesas!$U$13,"Despesas_Não_Operacionais",IF(D169=Despesas!$X$13,"Outras_Despesas","")))))))))))) -> Outras_Receitas | R169: 0 | S169: 1 | T169: 1900
I170: 9990 | O170: =IFERROR(VLOOKUP(D170,Outros!$E$14:$F$25,2,0),"") -> Receita | P170: =IF(D170=Receitas!$C$13,"Receita_de_Vendas",IF(D170=Receitas!$F$13,"Receita_de_Serviços",IF(D170=Receitas!$I$13,"Receitas_Financeiras",IF(D170=Receitas!$L$13,"Outras_Receitas",IF(D170=Despesas!$C$13,"Despesas_com_Produto",IF(D170=Despesas!$F$13,"Despesas_com_Serviços",IF(D170=Despesas!$I$13,"Despesas_Administrativas",IF(D170=Despesas!$L$13,"Despesas_Operacionais",IF(D170=Despesas!$O$13,"Despesas_com_Pessoal",IF(D170=Despesas!$R$13,"Impostos",IF(D170=Despesas!$U$13,"Despesas_Não_Operacionais",IF(D170=Despesas!$X$13,"Outras_Despesas","")))))))))))) -> Outras_Receitas | R170: 0 | S170: 1 | T170: 1900
I171: 9990 | O171: =IFERROR(VLOOKUP(D171,Outros!$E$14:$F$25,2,0),"") -> Receita | P171: =IF(D171=Receitas!$C$13,"Receita_de_Vendas",IF(D171=Receitas!$F$13,"Receita_de_Serviços",IF(D171=Receitas!$I$13,"Receitas_Financeiras",IF(D171=Receitas!$L$13,"Outras_Receitas",IF(D171=Despesas!$C$13,"Despesas_com_Produto",IF(D171=Despesas!$F$13,"Despesas_com_Serviços",IF(D171=Despesas!$I$13,"Despesas_Administrativas",IF(D171=Despesas!$L$13,"Despesas_Operacionais",IF(D171=Despesas!$O$13,"Despesas_com_Pessoal",IF(D171=Despesas!$R$13,"Impostos",IF(D171=Despesas!$U$13,"Despesas_Não_Operacionais",IF(D171=Despesas!$X$13,"Outras_Despesas","")))))))))))) -> Outras_Receitas | R171: 0 | S171: 1 | T171: 1900
I172: 9990 | O172: =IFERROR(VLOOKUP(D172,Outros!$E$14:$F$25,2,0),"") -> Receita | P172: =IF(D172=Receitas!$C$13,"Receita_de_Vendas",IF(D172=Receitas!$F$13,"Receita_de_Serviços",IF(D172=Receitas!$I$13,"Receitas_Financeiras",IF(D172=Receitas!$L$13,"Outras_Receitas",IF(D172=Despesas!$C$13,"Despesas_com_Produto",IF(D172=Despesas!$F$13,"Despesas_com_Serviços",IF(D172=Despesas!$I$13,"Despesas_Administrativas",IF(D172=Despesas!$L$13,"Despesas_Operacionais",IF(D172=Despesas!$O$13,"Despesas_com_Pessoal",IF(D172=Despesas!$R$13,"Impostos",IF(D172=Despesas!$U$13,"Despesas_Não_Operacionais",IF(D172=Despesas!$X$13,"Outras_Despesas","")))))))))))) -> Outras_Receitas | R172: 0 | S172: 1 | T172: 1900
I173: 9990 | O173: =IFERROR(VLOOKUP(D173,Outros!$E$14:$F$25,2,0),"") -> Receita | P173: =IF(D173=Receitas!$C$13,"Receita_de_Vendas",IF(D173=Receitas!$F$13,"Receita_de_Serviços",IF(D173=Receitas!$I$13,"Receitas_Financeiras",IF(D173=Receitas!$L$13,"Outras_Receitas",IF(D173=Despesas!$C$13,"Despesas_com_Produto",IF(D173=Despesas!$F$13,"Despesas_com_Serviços",IF(D173=Despesas!$I$13,"Despesas_Administrativas",IF(D173=Despesas!$L$13,"Despesas_Operacionais",IF(D173=Despesas!$O$13,"Despesas_com_Pessoal",IF(D173=Despesas!$R$13,"Impostos",IF(D173=Despesas!$U$13,"Despesas_Não_Operacionais",IF(D173=Despesas!$X$13,"Outras_Despesas","")))))))))))) -> Outras_Receitas | R173: 0 | S173: 1 | T173: 1900
I174: 9990 | O174: =IFERROR(VLOOKUP(D174,Outros!$E$14:$F$25,2,0),"") -> Receita | P174: =IF(D174=Receitas!$C$13,"Receita_de_Vendas",IF(D174=Receitas!$F$13,"Receita_de_Serviços",IF(D174=Receitas!$I$13,"Receitas_Financeiras",IF(D174=Receitas!$L$13,"Outras_Receitas",IF(D174=Despesas!$C$13,"Despesas_com_Produto",IF(D174=Despesas!$F$13,"Despesas_com_Serviços",IF(D174=Despesas!$I$13,"Despesas_Administrativas",IF(D174=Despesas!$L$13,"Despesas_Operacionais",IF(D174=Despesas!$O$13,"Despesas_com_Pessoal",IF(D174=Despesas!$R$13,"Impostos",IF(D174=Despesas!$U$13,"Despesas_Não_Operacionais",IF(D174=Despesas!$X$13,"Outras_Despesas","")))))))))))) -> Outras_Receitas | R174: 0 | S174: 1 | T174: 1900
I175: 9990 | O175: =IFERROR(VLOOKUP(D175,Outros!$E$14:$F$25,2,0),"") -> Receita | P175: =IF(D175=Receitas!$C$13,"Receita_de_Vendas",IF(D175=Receitas!$F$13,"Receita_de_Serviços",IF(D175=Receitas!$I$13,"Receitas_Financeiras",IF(D175=Receitas!$L$13,"Outras_Receitas",IF(D175=Despesas!$C$13,"Despesas_com_Produto",IF(D175=Despesas!$F$13,"Despesas_com_Serviços",IF(D175=Despesas!$I$13,"Despesas_Administrativas",IF(D175=Despesas!$L$13,"Despesas_Operacionais",IF(D175=Despesas!$O$13,"Despesas_com_Pessoal",IF(D175=Despesas!$R$13,"Impostos",IF(D175=Despesas!$U$13,"Despesas_Não_Operacionais",IF(D175=Despesas!$X$13,"Outras_Despesas","")))))))))))) -> Outras_Receitas | R175: 0 | S175: 1 | T175: 1900
I176: 9990 | O176: =IFERROR(VLOOKUP(D176,Outros!$E$14:$F$25,2,0),"") -> Receita | P176: =IF(D176=Receitas!$C$13,"Receita_de_Vendas",IF(D176=Receitas!$F$13,"Receita_de_Serviços",IF(D176=Receitas!$I$13,"Receitas_Financeiras",IF(D176=Receitas!$L$13,"Outras_Receitas",IF(D176=Despesas!$C$13,"Despesas_com_Produto",IF(D176=Despesas!$F$13,"Despesas_com_Serviços",IF(D176=Despesas!$I$13,"Despesas_Administrativas",IF(D176=Despesas!$L$13,"Despesas_Operacionais",IF(D176=Despesas!$O$13,"Despesas_com_Pessoal",IF(D176=Despesas!$R$13,"Impostos",IF(D176=Despesas!$U$13,"Despesas_Não_Operacionais",IF(D176=Despesas!$X$13,"Outras_Despesas","")))))))))))) -> Outras_Receitas | R176: 0 | S176: 1 | T176: 1900
I177: 9990 | O177: =IFERROR(VLOOKUP(D177,Outros!$E$14:$F$25,2,0),"") -> Receita | P177: =IF(D177=Receitas!$C$13,"Receita_de_Vendas",IF(D177=Receitas!$F$13,"Receita_de_Serviços",IF(D177=Receitas!$I$13,"Receitas_Financeiras",IF(D177=Receitas!$L$13,"Outras_Receitas",IF(D177=Despesas!$C$13,"Despesas_com_Produto",IF(D177=Despesas!$F$13,"Despesas_com_Serviços",IF(D177=Despesas!$I$13,"Despesas_Administrativas",IF(D177=Despesas!$L$13,"Despesas_Operacionais",IF(D177=Despesas!$O$13,"Despesas_com_Pessoal",IF(D177=Despesas!$R$13,"Impostos",IF(D177=Despesas!$U$13,"Despesas_Não_Operacionais",IF(D177=Despesas!$X$13,"Outras_Despesas","")))))))))))) -> Outras_Receitas | R177: 0 | S177: 1 | T177: 1900
I178: 9990 | O178: =IFERROR(VLOOKUP(D178,Outros!$E$14:$F$25,2,0),"") -> Receita | P178: =IF(D178=Receitas!$C$13,"Receita_de_Vendas",IF(D178=Receitas!$F$13,"Receita_de_Serviços",IF(D178=Receitas!$I$13,"Receitas_Financeiras",IF(D178=Receitas!$L$13,"Outras_Receitas",IF(D178=Despesas!$C$13,"Despesas_com_Produto",IF(D178=Despesas!$F$13,"Despesas_com_Serviços",IF(D178=Despesas!$I$13,"Despesas_Administrativas",IF(D178=Despesas!$L$13,"Despesas_Operacionais",IF(D178=Despesas!$O$13,"Despesas_com_Pessoal",IF(D178=Despesas!$R$13,"Impostos",IF(D178=Despesas!$U$13,"Despesas_Não_Operacionais",IF(D178=Despesas!$X$13,"Outras_Despesas","")))))))))))) -> Outras_Receitas | R178: 0 | S178: 1 | T178: 1900
I179: 9990 | O179: =IFERROR(VLOOKUP(D179,Outros!$E$14:$F$25,2,0),"") -> Receita | P179: =IF(D179=Receitas!$C$13,"Receita_de_Vendas",IF(D179=Receitas!$F$13,"Receita_de_Serviços",IF(D179=Receitas!$I$13,"Receitas_Financeiras",IF(D179=Receitas!$L$13,"Outras_Receitas",IF(D179=Despesas!$C$13,"Despesas_com_Produto",IF(D179=Despesas!$F$13,"Despesas_com_Serviços",IF(D179=Despesas!$I$13,"Despesas_Administrativas",IF(D179=Despesas!$L$13,"Despesas_Operacionais",IF(D179=Despesas!$O$13,"Despesas_com_Pessoal",IF(D179=Despesas!$R$13,"Impostos",IF(D179=Despesas!$U$13,"Despesas_Não_Operacionais",IF(D179=Despesas!$X$13,"Outras_Despesas","")))))))))))) -> Outras_Receitas | R179: 0 | S179: 1 | T179: 1900
I180: 9990 | O180: =IFERROR(VLOOKUP(D180,Outros!$E$14:$F$25,2,0),"") -> Receita | P180: =IF(D180=Receitas!$C$13,"Receita_de_Vendas",IF(D180=Receitas!$F$13,"Receita_de_Serviços",IF(D180=Receitas!$I$13,"Receitas_Financeiras",IF(D180=Receitas!$L$13,"Outras_Receitas",IF(D180=Despesas!$C$13,"Despesas_com_Produto",IF(D180=Despesas!$F$13,"Despesas_com_Serviços",IF(D180=Despesas!$I$13,"Despesas_Administrativas",IF(D180=Despesas!$L$13,"Despesas_Operacionais",IF(D180=Despesas!$O$13,"Despesas_com_Pessoal",IF(D180=Despesas!$R$13,"Impostos",IF(D180=Despesas!$U$13,"Despesas_Não_Operacionais",IF(D180=Despesas!$X$13,"Outras_Despesas","")))))))))))) -> Outras_Receitas | R180: 0 | S180: 1 | T180: 1900
I181: 9990 | O181: =IFERROR(VLOOKUP(D181,Outros!$E$14:$F$25,2,0),"") -> Receita | P181: =IF(D181=Receitas!$C$13,"Receita_de_Vendas",IF(D181=Receitas!$F$13,"Receita_de_Serviços",IF(D181=Receitas!$I$13,"Receitas_Financeiras",IF(D181=Receitas!$L$13,"Outras_Receitas",IF(D181=Despesas!$C$13,"Despesas_com_Produto",IF(D181=Despesas!$F$13,"Despesas_com_Serviços",IF(D181=Despesas!$I$13,"Despesas_Administrativas",IF(D181=Despesas!$L$13,"Despesas_Operacionais",IF(D181=Despesas!$O$13,"Despesas_com_Pessoal",IF(D181=Despesas!$R$13,"Impostos",IF(D181=Despesas!$U$13,"Despesas_Não_Operacionais",IF(D181=Despesas!$X$13,"Outras_Despesas","")))))))))))) -> Outras_Receitas | R181: 0 | S181: 1 | T181: 1900
I182: 9990 | O182: =IFERROR(VLOOKUP(D182,Outros!$E$14:$F$25,2,0),"") -> Receita | P182: =IF(D182=Receitas!$C$13,"Receita_de_Vendas",IF(D182=Receitas!$F$13,"Receita_de_Serviços",IF(D182=Receitas!$I$13,"Receitas_Financeiras",IF(D182=Receitas!$L$13,"Outras_Receitas",IF(D182=Despesas!$C$13,"Despesas_com_Produto",IF(D182=Despesas!$F$13,"Despesas_com_Serviços",IF(D182=Despesas!$I$13,"Despesas_Administrativas",IF(D182=Despesas!$L$13,"Despesas_Operacionais",IF(D182=Despesas!$O$13,"Despesas_com_Pessoal",IF(D182=Despesas!$R$13,"Impostos",IF(D182=Despesas!$U$13,"Despesas_Não_Operacionais",IF(D182=Despesas!$X$13,"Outras_Despesas","")))))))))))) -> Outras_Receitas | R182: 0 | S182: 1 | T182: 1900
I183: 9990 | O183: =IFERROR(VLOOKUP(D183,Outros!$E$14:$F$25,2,0),"") -> Receita | P183: =IF(D183=Receitas!$C$13,"Receita_de_Vendas",IF(D183=Receitas!$F$13,"Receita_de_Serviços",IF(D183=Receitas!$I$13,"Receitas_Financeiras",IF(D183=Receitas!$L$13,"Outras_Receitas",IF(D183=Despesas!$C$13,"Despesas_com_Produto",IF(D183=Despesas!$F$13,"Despesas_com_Serviços",IF(D183=Despesas!$I$13,"Despesas_Administrativas",IF(D183=Despesas!$L$13,"Despesas_Operacionais",IF(D183=Despesas!$O$13,"Despesas_com_Pessoal",IF(D183=Despesas!$R$13,"Impostos",IF(D183=Despesas!$U$13,"Despesas_Não_Operacionais",IF(D183=Despesas!$X$13,"Outras_Despesas","")))))))))))) -> Outras_Receitas | R183: 0 | S183: 1 | T183: 1900
I184: 9990 | O184: =IFERROR(VLOOKUP(D184,Outros!$E$14:$F$25,2,0),"") -> Receita | P184: =IF(D184=Receitas!$C$13,"Receita_de_Vendas",IF(D184=Receitas!$F$13,"Receita_de_Serviços",IF(D184=Receitas!$I$13,"Receitas_Financeiras",IF(D184=Receitas!$L$13,"Outras_Receitas",IF(D184=Despesas!$C$13,"Despesas_com_Produto",IF(D184=Despesas!$F$13,"Despesas_com_Serviços",IF(D184=Despesas!$I$13,"Despesas_Administrativas",IF(D184=Despesas!$L$13,"Despesas_Operacionais",IF(D184=Despesas!$O$13,"Despesas_com_Pessoal",IF(D184=Despesas!$R$13,"Impostos",IF(D184=Despesas!$U$13,"Despesas_Não_Operacionais",IF(D184=Despesas!$X$13,"Outras_Despesas","")))))))))))) -> Outras_Receitas | R184: 0 | S184: 1 | T184: 1900
I185: 9990 | O185: =IFERROR(VLOOKUP(D185,Outros!$E$14:$F$25,2,0),"") -> Receita | P185: =IF(D185=Receitas!$C$13,"Receita_de_Vendas",IF(D185=Receitas!$F$13,"Receita_de_Serviços",IF(D185=Receitas!$I$13,"Receitas_Financeiras",IF(D185=Receitas!$L$13,"Outras_Receitas",IF(D185=Despesas!$C$13,"Despesas_com_Produto",IF(D185=Despesas!$F$13,"Despesas_com_Serviços",IF(D185=Despesas!$I$13,"Despesas_Administrativas",IF(D185=Despesas!$L$13,"Despesas_Operacionais",IF(D185=Despesas!$O$13,"Despesas_com_Pessoal",IF(D185=Despesas!$R$13,"Impostos",IF(D185=Despesas!$U$13,"Despesas_Não_Operacionais",IF(D185=Despesas!$X$13,"Outras_Despesas","")))))))))))) -> Outras_Receitas | R185: 0 | S185: 1 | T185: 1900
I186: 9990 | O186: =IFERROR(VLOOKUP(D186,Outros!$E$14:$F$25,2,0),"") -> Receita | P186: =IF(D186=Receitas!$C$13,"Receita_de_Vendas",IF(D186=Receitas!$F$13,"Receita_de_Serviços",IF(D186=Receitas!$I$13,"Receitas_Financeiras",IF(D186=Receitas!$L$13,"Outras_Receitas",IF(D186=Despesas!$C$13,"Despesas_com_Produto",IF(D186=Despesas!$F$13,"Despesas_com_Serviços",IF(D186=Despesas!$I$13,"Despesas_Administrativas",IF(D186=Despesas!$L$13,"Despesas_Operacionais",IF(D186=Despesas!$O$13,"Despesas_com_Pessoal",IF(D186=Despesas!$R$13,"Impostos",IF(D186=Despesas!$U$13,"Despesas_Não_Operacionais",IF(D186=Despesas!$X$13,"Outras_Despesas","")))))))))))) -> Outras_Receitas | R186: 0 | S186: 1 | T186: 1900
I187: 9990 | O187: =IFERROR(VLOOKUP(D187,Outros!$E$14:$F$25,2,0),"") -> Receita | P187: =IF(D187=Receitas!$C$13,"Receita_de_Vendas",IF(D187=Receitas!$F$13,"Receita_de_Serviços",IF(D187=Receitas!$I$13,"Receitas_Financeiras",IF(D187=Receitas!$L$13,"Outras_Receitas",IF(D187=Despesas!$C$13,"Despesas_com_Produto",IF(D187=Despesas!$F$13,"Despesas_com_Serviços",IF(D187=Despesas!$I$13,"Despesas_Administrativas",IF(D187=Despesas!$L$13,"Despesas_Operacionais",IF(D187=Despesas!$O$13,"Despesas_com_Pessoal",IF(D187=Despesas!$R$13,"Impostos",IF(D187=Despesas!$U$13,"Despesas_Não_Operacionais",IF(D187=Despesas!$X$13,"Outras_Despesas","")))))))))))) -> Outras_Receitas | R187: 0 | S187: 1 | T187: 1900
I188: 9990 | O188: =IFERROR(VLOOKUP(D188,Outros!$E$14:$F$25,2,0),"") -> Receita | P188: =IF(D188=Receitas!$C$13,"Receita_de_Vendas",IF(D188=Receitas!$F$13,"Receita_de_Serviços",IF(D188=Receitas!$I$13,"Receitas_Financeiras",IF(D188=Receitas!$L$13,"Outras_Receitas",IF(D188=Despesas!$C$13,"Despesas_com_Produto",IF(D188=Despesas!$F$13,"Despesas_com_Serviços",IF(D188=Despesas!$I$13,"Despesas_Administrativas",IF(D188=Despesas!$L$13,"Despesas_Operacionais",IF(D188=Despesas!$O$13,"Despesas_com_Pessoal",IF(D188=Despesas!$R$13,"Impostos",IF(D188=Despesas!$U$13,"Despesas_Não_Operacionais",IF(D188=Despesas!$X$13,"Outras_Despesas","")))))))))))) -> Outras_Receitas | R188: 0 | S188: 1 | T188: 1900
I189: 9990 | O189: =IFERROR(VLOOKUP(D189,Outros!$E$14:$F$25,2,0),"") -> Receita | P189: =IF(D189=Receitas!$C$13,"Receita_de_Vendas",IF(D189=Receitas!$F$13,"Receita_de_Serviços",IF(D189=Receitas!$I$13,"Receitas_Financeiras",IF(D189=Receitas!$L$13,"Outras_Receitas",IF(D189=Despesas!$C$13,"Despesas_com_Produto",IF(D189=Despesas!$F$13,"Despesas_com_Serviços",IF(D189=Despesas!$I$13,"Despesas_Administrativas",IF(D189=Despesas!$L$13,"Despesas_Operacionais",IF(D189=Despesas!$O$13,"Despesas_com_Pessoal",IF(D189=Despesas!$R$13,"Impostos",IF(D189=Despesas!$U$13,"Despesas_Não_Operacionais",IF(D189=Despesas!$X$13,"Outras_Despesas","")))))))))))) -> Outras_Receitas | R189: 0 | S189: 1 | T189: 1900
I190: 9990 | O190: =IFERROR(VLOOKUP(D190,Outros!$E$14:$F$25,2,0),"") -> Receita | P190: =IF(D190=Receitas!$C$13,"Receita_de_Vendas",IF(D190=Receitas!$F$13,"Receita_de_Serviços",IF(D190=Receitas!$I$13,"Receitas_Financeiras",IF(D190=Receitas!$L$13,"Outras_Receitas",IF(D190=Despesas!$C$13,"Despesas_com_Produto",IF(D190=Despesas!$F$13,"Despesas_com_Serviços",IF(D190=Despesas!$I$13,"Despesas_Administrativas",IF(D190=Despesas!$L$13,"Despesas_Operacionais",IF(D190=Despesas!$O$13,"Despesas_com_Pessoal",IF(D190=Despesas!$R$13,"Impostos",IF(D190=Despesas!$U$13,"Despesas_Não_Operacionais",IF(D190=Despesas!$X$13,"Outras_Despesas","")))))))))))) -> Outras_Receitas | R190: 0 | S190: 1 | T190: 1900
I191: 9990 | O191: =IFERROR(VLOOKUP(D191,Outros!$E$14:$F$25,2,0),"") -> Receita | P191: =IF(D191=Receitas!$C$13,"Receita_de_Vendas",IF(D191=Receitas!$F$13,"Receita_de_Serviços",IF(D191=Receitas!$I$13,"Receitas_Financeiras",IF(D191=Receitas!$L$13,"Outras_Receitas",IF(D191=Despesas!$C$13,"Despesas_com_Produto",IF(D191=Despesas!$F$13,"Despesas_com_Serviços",IF(D191=Despesas!$I$13,"Despesas_Administrativas",IF(D191=Despesas!$L$13,"Despesas_Operacionais",IF(D191=Despesas!$O$13,"Despesas_com_Pessoal",IF(D191=Despesas!$R$13,"Impostos",IF(D191=Despesas!$U$13,"Despesas_Não_Operacionais",IF(D191=Despesas!$X$13,"Outras_Despesas","")))))))))))) -> Outras_Receitas | R191: 0 | S191: 1 | T191: 1900
I192: 9990 | O192: =IFERROR(VLOOKUP(D192,Outros!$E$14:$F$25,2,0),"") -> Receita | P192: =IF(D192=Receitas!$C$13,"Receita_de_Vendas",IF(D192=Receitas!$F$13,"Receita_de_Serviços",IF(D192=Receitas!$I$13,"Receitas_Financeiras",IF(D192=Receitas!$L$13,"Outras_Receitas",IF(D192=Despesas!$C$13,"Despesas_com_Produto",IF(D192=Despesas!$F$13,"Despesas_com_Serviços",IF(D192=Despesas!$I$13,"Despesas_Administrativas",IF(D192=Despesas!$L$13,"Despesas_Operacionais",IF(D192=Despesas!$O$13,"Despesas_com_Pessoal",IF(D192=Despesas!$R$13,"Impostos",IF(D192=Despesas!$U$13,"Despesas_Não_Operacionais",IF(D192=Despesas!$X$13,"Outras_Despesas","")))))))))))) -> Outras_Receitas | R192: 0 | S192: 1 | T192: 1900
I193: 9990 | O193: =IFERROR(VLOOKUP(D193,Outros!$E$14:$F$25,2,0),"") -> Receita | P193: =IF(D193=Receitas!$C$13,"Receita_de_Vendas",IF(D193=Receitas!$F$13,"Receita_de_Serviços",IF(D193=Receitas!$I$13,"Receitas_Financeiras",IF(D193=Receitas!$L$13,"Outras_Receitas",IF(D193=Despesas!$C$13,"Despesas_com_Produto",IF(D193=Despesas!$F$13,"Despesas_com_Serviços",IF(D193=Despesas!$I$13,"Despesas_Administrativas",IF(D193=Despesas!$L$13,"Despesas_Operacionais",IF(D193=Despesas!$O$13,"Despesas_com_Pessoal",IF(D193=Despesas!$R$13,"Impostos",IF(D193=Despesas!$U$13,"Despesas_Não_Operacionais",IF(D193=Despesas!$X$13,"Outras_Despesas","")))))))))))) -> Outras_Receitas | R193: 0 | S193: 1 | T193: 1900
I194: 9990 | O194: =IFERROR(VLOOKUP(D194,Outros!$E$14:$F$25,2,0),"") -> Receita | P194: =IF(D194=Receitas!$C$13,"Receita_de_Vendas",IF(D194=Receitas!$F$13,"Receita_de_Serviços",IF(D194=Receitas!$I$13,"Receitas_Financeiras",IF(D194=Receitas!$L$13,"Outras_Receitas",IF(D194=Despesas!$C$13,"Despesas_com_Produto",IF(D194=Despesas!$F$13,"Despesas_com_Serviços",IF(D194=Despesas!$I$13,"Despesas_Administrativas",IF(D194=Despesas!$L$13,"Despesas_Operacionais",IF(D194=Despesas!$O$13,"Despesas_com_Pessoal",IF(D194=Despesas!$R$13,"Impostos",IF(D194=Despesas!$U$13,"Despesas_Não_Operacionais",IF(D194=Despesas!$X$13,"Outras_Despesas","")))))))))))) -> Outras_Receitas | R194: 0 | S194: 1 | T194: 1900
I195: 9990 | O195: =IFERROR(VLOOKUP(D195,Outros!$E$14:$F$25,2,0),"") -> Receita | P195: =IF(D195=Receitas!$C$13,"Receita_de_Vendas",IF(D195=Receitas!$F$13,"Receita_de_Serviços",IF(D195=Receitas!$I$13,"Receitas_Financeiras",IF(D195=Receitas!$L$13,"Outras_Receitas",IF(D195=Despesas!$C$13,"Despesas_com_Produto",IF(D195=Despesas!$F$13,"Despesas_com_Serviços",IF(D195=Despesas!$I$13,"Despesas_Administrativas",IF(D195=Despesas!$L$13,"Despesas_Operacionais",IF(D195=Despesas!$O$13,"Despesas_com_Pessoal",IF(D195=Despesas!$R$13,"Impostos",IF(D195=Despesas!$U$13,"Despesas_Não_Operacionais",IF(D195=Despesas!$X$13,"Outras_Despesas","")))))))))))) -> Outras_Receitas | R195: 0 | S195: 1 | T195: 1900
I196: 9990 | O196: =IFERROR(VLOOKUP(D196,Outros!$E$14:$F$25,2,0),"") -> Receita | P196: =IF(D196=Receitas!$C$13,"Receita_de_Vendas",IF(D196=Receitas!$F$13,"Receita_de_Serviços",IF(D196=Receitas!$I$13,"Receitas_Financeiras",IF(D196=Receitas!$L$13,"Outras_Receitas",IF(D196=Despesas!$C$13,"Despesas_com_Produto",IF(D196=Despesas!$F$13,"Despesas_com_Serviços",IF(D196=Despesas!$I$13,"Despesas_Administrativas",IF(D196=Despesas!$L$13,"Despesas_Operacionais",IF(D196=Despesas!$O$13,"Despesas_com_Pessoal",IF(D196=Despesas!$R$13,"Impostos",IF(D196=Despesas!$U$13,"Despesas_Não_Operacionais",IF(D196=Despesas!$X$13,"Outras_Despesas","")))))))))))) -> Outras_Receitas | R196: 0 | S196: 1 | T196: 1900
I197: 9990 | O197: =IFERROR(VLOOKUP(D197,Outros!$E$14:$F$25,2,0),"") -> Receita | P197: =IF(D197=Receitas!$C$13,"Receita_de_Vendas",IF(D197=Receitas!$F$13,"Receita_de_Serviços",IF(D197=Receitas!$I$13,"Receitas_Financeiras",IF(D197=Receitas!$L$13,"Outras_Receitas",IF(D197=Despesas!$C$13,"Despesas_com_Produto",IF(D197=Despesas!$F$13,"Despesas_com_Serviços",IF(D197=Despesas!$I$13,"Despesas_Administrativas",IF(D197=Despesas!$L$13,"Despesas_Operacionais",IF(D197=Despesas!$O$13,"Despesas_com_Pessoal",IF(D197=Despesas!$R$13,"Impostos",IF(D197=Despesas!$U$13,"Despesas_Não_Operacionais",IF(D197=Despesas!$X$13,"Outras_Despesas","")))))))))))) -> Outras_Receitas | R197: 0 | S197: 1 | T197: 1900
I198: 9990 | O198: =IFERROR(VLOOKUP(D198,Outros!$E$14:$F$25,2,0),"") -> Receita | P198: =IF(D198=Receitas!$C$13,"Receita_de_Vendas",IF(D198=Receitas!$F$13,"Receita_de_Serviços",IF(D198=Receitas!$I$13,"Receitas_Financeiras",IF(D198=Receitas!$L$13,"Outras_Receitas",IF(D198=Despesas!$C$13,"Despesas_com_Produto",IF(D198=Despesas!$F$13,"Despesas_com_Serviços",IF(D198=Despesas!$I$13,"Despesas_Administrativas",IF(D198=Despesas!$L$13,"Despesas_Operacionais",IF(D198=Despesas!$O$13,"Despesas_com_Pessoal",IF(D198=Despesas!$R$13,"Impostos",IF(D198=Despesas!$U$13,"Despesas_Não_Operacionais",IF(D198=Despesas!$X$13,"Outras_Despesas","")))))))))))) -> Outras_Receitas | R198: 0 | S198: 1 | T198: 1900
I199: 9990 | O199: =IFERROR(VLOOKUP(D199,Outros!$E$14:$F$25,2,0),"") -> Receita | P199: =IF(D199=Receitas!$C$13,"Receita_de_Vendas",IF(D199=Receitas!$F$13,"Receita_de_Serviços",IF(D199=Receitas!$I$13,"Receitas_Financeiras",IF(D199=Receitas!$L$13,"Outras_Receitas",IF(D199=Despesas!$C$13,"Despesas_com_Produto",IF(D199=Despesas!$F$13,"Despesas_com_Serviços",IF(D199=Despesas!$I$13,"Despesas_Administrativas",IF(D199=Despesas!$L$13,"Despesas_Operacionais",IF(D199=Despesas!$O$13,"Despesas_com_Pessoal",IF(D199=Despesas!$R$13,"Impostos",IF(D199=Despesas!$U$13,"Despesas_Não_Operacionais",IF(D199=Despesas!$X$13,"Outras_Despesas","")))))))))))) -> Outras_Receitas | R199: 0 | S199: 1 | T199: 1900
I200: 9990 | O200: =IFERROR(VLOOKUP(D200,Outros!$E$14:$F$25,2,0),"") -> Receita | P200: =IF(D200=Receitas!$C$13,"Receita_de_Vendas",IF(D200=Receitas!$F$13,"Receita_de_Serviços",IF(D200=Receitas!$I$13,"Receitas_Financeiras",IF(D200=Receitas!$L$13,"Outras_Receitas",IF(D200=Despesas!$C$13,"Despesas_com_Produto",IF(D200=Despesas!$F$13,"Despesas_com_Serviços",IF(D200=Despesas!$I$13,"Despesas_Administrativas",IF(D200=Despesas!$L$13,"Despesas_Operacionais",IF(D200=Despesas!$O$13,"Despesas_com_Pessoal",IF(D200=Despesas!$R$13,"Impostos",IF(D200=Despesas!$U$13,"Despesas_Não_Operacionais",IF(D200=Despesas!$X$13,"Outras_Despesas","")))))))))))) -> Outras_Receitas | R200: 0 | S200: 1 | T200: 1900
I201: 9990 | O201: =IFERROR(VLOOKUP(D201,Outros!$E$14:$F$25,2,0),"") -> Receita | P201: =IF(D201=Receitas!$C$13,"Receita_de_Vendas",IF(D201=Receitas!$F$13,"Receita_de_Serviços",IF(D201=Receitas!$I$13,"Receitas_Financeiras",IF(D201=Receitas!$L$13,"Outras_Receitas",IF(D201=Despesas!$C$13,"Despesas_com_Produto",IF(D201=Despesas!$F$13,"Despesas_com_Serviços",IF(D201=Despesas!$I$13,"Despesas_Administrativas",IF(D201=Despesas!$L$13,"Despesas_Operacionais",IF(D201=Despesas!$O$13,"Despesas_com_Pessoal",IF(D201=Despesas!$R$13,"Impostos",IF(D201=Despesas!$U$13,"Despesas_Não_Operacionais",IF(D201=Despesas!$X$13,"Outras_Despesas","")))))))))))) -> Outras_Receitas | R201: 0 | S201: 1 | T201: 1900
I202: 9990 | O202: =IFERROR(VLOOKUP(D202,Outros!$E$14:$F$25,2,0),"") -> Receita | P202: =IF(D202=Receitas!$C$13,"Receita_de_Vendas",IF(D202=Receitas!$F$13,"Receita_de_Serviços",IF(D202=Receitas!$I$13,"Receitas_Financeiras",IF(D202=Receitas!$L$13,"Outras_Receitas",IF(D202=Despesas!$C$13,"Despesas_com_Produto",IF(D202=Despesas!$F$13,"Despesas_com_Serviços",IF(D202=Despesas!$I$13,"Despesas_Administrativas",IF(D202=Despesas!$L$13,"Despesas_Operacionais",IF(D202=Despesas!$O$13,"Despesas_com_Pessoal",IF(D202=Despesas!$R$13,"Impostos",IF(D202=Despesas!$U$13,"Despesas_Não_Operacionais",IF(D202=Despesas!$X$13,"Outras_Despesas","")))))))))))) -> Outras_Receitas | R202: 0 | S202: 1 | T202: 1900
I203: 9990 | O203: =IFERROR(VLOOKUP(D203,Outros!$E$14:$F$25,2,0),"") -> Receita | P203: =IF(D203=Receitas!$C$13,"Receita_de_Vendas",IF(D203=Receitas!$F$13,"Receita_de_Serviços",IF(D203=Receitas!$I$13,"Receitas_Financeiras",IF(D203=Receitas!$L$13,"Outras_Receitas",IF(D203=Despesas!$C$13,"Despesas_com_Produto",IF(D203=Despesas!$F$13,"Despesas_com_Serviços",IF(D203=Despesas!$I$13,"Despesas_Administrativas",IF(D203=Despesas!$L$13,"Despesas_Operacionais",IF(D203=Despesas!$O$13,"Despesas_com_Pessoal",IF(D203=Despesas!$R$13,"Impostos",IF(D203=Despesas!$U$13,"Despesas_Não_Operacionais",IF(D203=Despesas!$X$13,"Outras_Despesas","")))))))))))) -> Outras_Receitas | R203: 0 | S203: 1 | T203: 1900
I204: 9990 | O204: =IFERROR(VLOOKUP(D204,Outros!$E$14:$F$25,2,0),"") -> Receita | P204: =IF(D204=Receitas!$C$13,"Receita_de_Vendas",IF(D204=Receitas!$F$13,"Receita_de_Serviços",IF(D204=Receitas!$I$13,"Receitas_Financeiras",IF(D204=Receitas!$L$13,"Outras_Receitas",IF(D204=Despesas!$C$13,"Despesas_com_Produto",IF(D204=Despesas!$F$13,"Despesas_com_Serviços",IF(D204=Despesas!$I$13,"Despesas_Administrativas",IF(D204=Despesas!$L$13,"Despesas_Operacionais",IF(D204=Despesas!$O$13,"Despesas_com_Pessoal",IF(D204=Despesas!$R$13,"Impostos",IF(D204=Despesas!$U$13,"Despesas_Não_Operacionais",IF(D204=Despesas!$X$13,"Outras_Despesas","")))))))))))) -> Outras_Receitas | R204: 0 | S204: 1 | T204: 1900
I205: 9990 | O205: =IFERROR(VLOOKUP(D205,Outros!$E$14:$F$25,2,0),"") -> Receita | P205: =IF(D205=Receitas!$C$13,"Receita_de_Vendas",IF(D205=Receitas!$F$13,"Receita_de_Serviços",IF(D205=Receitas!$I$13,"Receitas_Financeiras",IF(D205=Receitas!$L$13,"Outras_Receitas",IF(D205=Despesas!$C$13,"Despesas_com_Produto",IF(D205=Despesas!$F$13,"Despesas_com_Serviços",IF(D205=Despesas!$I$13,"Despesas_Administrativas",IF(D205=Despesas!$L$13,"Despesas_Operacionais",IF(D205=Despesas!$O$13,"Despesas_com_Pessoal",IF(D205=Despesas!$R$13,"Impostos",IF(D205=Despesas!$U$13,"Despesas_Não_Operacionais",IF(D205=Despesas!$X$13,"Outras_Despesas","")))))))))))) -> Outras_Receitas | R205: 0 | S205: 1 | T205: 1900
I206: 9990 | O206: =IFERROR(VLOOKUP(D206,Outros!$E$14:$F$25,2,0),"") -> Receita | P206: =IF(D206=Receitas!$C$13,"Receita_de_Vendas",IF(D206=Receitas!$F$13,"Receita_de_Serviços",IF(D206=Receitas!$I$13,"Receitas_Financeiras",IF(D206=Receitas!$L$13,"Outras_Receitas",IF(D206=Despesas!$C$13,"Despesas_com_Produto",IF(D206=Despesas!$F$13,"Despesas_com_Serviços",IF(D206=Despesas!$I$13,"Despesas_Administrativas",IF(D206=Despesas!$L$13,"Despesas_Operacionais",IF(D206=Despesas!$O$13,"Despesas_com_Pessoal",IF(D206=Despesas!$R$13,"Impostos",IF(D206=Despesas!$U$13,"Despesas_Não_Operacionais",IF(D206=Despesas!$X$13,"Outras_Despesas","")))))))))))) -> Outras_Receitas | R206: =DAY(B206) -> 0 | S206: =MONTH(B206) -> 1 | T206: =YEAR(B206) -> 1900
I207: 9990 | O207: =IFERROR(VLOOKUP(D207,Outros!$E$14:$F$25,2,0),"") -> Receita | P207: =IF(D207=Receitas!$C$13,"Receita_de_Vendas",IF(D207=Receitas!$F$13,"Receita_de_Serviços",IF(D207=Receitas!$I$13,"Receitas_Financeiras",IF(D207=Receitas!$L$13,"Outras_Receitas",IF(D207=Despesas!$C$13,"Despesas_com_Produto",IF(D207=Despesas!$F$13,"Despesas_com_Serviços",IF(D207=Despesas!$I$13,"Despesas_Administrativas",IF(D207=Despesas!$L$13,"Despesas_Operacionais",IF(D207=Despesas!$O$13,"Despesas_com_Pessoal",IF(D207=Despesas!$R$13,"Impostos",IF(D207=Despesas!$U$13,"Despesas_Não_Operacionais",IF(D207=Despesas!$X$13,"Outras_Despesas","")))))))))))) -> Outras_Receitas | R207: 0 | S207: 1 | T207: 1900
I208: =I207+IF(AND(G208="Pago",O208="Receita"),H208,IF(AND(G208="Pago",O208="Despesa"),-H208,0)) -> 9990 | O208: =IFERROR(VLOOKUP(D208,Outros!$E$14:$F$25,2,0),"") -> Receita | P208: =IF(D208=Receitas!$C$13,"Receita_de_Vendas",IF(D208=Receitas!$F$13,"Receita_de_Serviços",IF(D208=Receitas!$I$13,"Receitas_Financeiras",IF(D208=Receitas!$L$13,"Outras_Receitas",IF(D208=Despesas!$C$13,"Despesas_com_Produto",IF(D208=Despesas!$F$13,"Despesas_com_Serviços",IF(D208=Despesas!$I$13,"Despesas_Administrativas",IF(D208=Despesas!$L$13,"Despesas_Operacionais",IF(D208=Despesas!$O$13,"Despesas_com_Pessoal",IF(D208=Despesas!$R$13,"Impostos",IF(D208=Despesas!$U$13,"Despesas_Não_Operacionais",IF(D208=Despesas!$X$13,"Outras_Despesas","")))))))))))) -> Outras_Receitas | R208: 0 | S208: 1 | T208: 1900
I209: 9990 | O209: =IFERROR(VLOOKUP(D209,Outros!$E$14:$F$25,2,0),"") -> Receita | P209: =IF(D209=Receitas!$C$13,"Receita_de_Vendas",IF(D209=Receitas!$F$13,"Receita_de_Serviços",IF(D209=Receitas!$I$13,"Receitas_Financeiras",IF(D209=Receitas!$L$13,"Outras_Receitas",IF(D209=Despesas!$C$13,"Despesas_com_Produto",IF(D209=Despesas!$F$13,"Despesas_com_Serviços",IF(D209=Despesas!$I$13,"Despesas_Administrativas",IF(D209=Despesas!$L$13,"Despesas_Operacionais",IF(D209=Despesas!$O$13,"Despesas_com_Pessoal",IF(D209=Despesas!$R$13,"Impostos",IF(D209=Despesas!$U$13,"Despesas_Não_Operacionais",IF(D209=Despesas!$X$13,"Outras_Despesas","")))))))))))) -> Outras_Receitas | R209: 0 | S209: 1 | T209: 1900
I210: 9990 | O210: =IFERROR(VLOOKUP(D210,Outros!$E$14:$F$25,2,0),"") -> Receita | P210: =IF(D210=Receitas!$C$13,"Receita_de_Vendas",IF(D210=Receitas!$F$13,"Receita_de_Serviços",IF(D210=Receitas!$I$13,"Receitas_Financeiras",IF(D210=Receitas!$L$13,"Outras_Receitas",IF(D210=Despesas!$C$13,"Despesas_com_Produto",IF(D210=Despesas!$F$13,"Despesas_com_Serviços",IF(D210=Despesas!$I$13,"Despesas_Administrativas",IF(D210=Despesas!$L$13,"Despesas_Operacionais",IF(D210=Despesas!$O$13,"Despesas_com_Pessoal",IF(D210=Despesas!$R$13,"Impostos",IF(D210=Despesas!$U$13,"Despesas_Não_Operacionais",IF(D210=Despesas!$X$13,"Outras_Despesas","")))))))))))) -> Outras_Receitas | R210: 0 | S210: 1 | T210: 1900
I211: 9990 | O211: =IFERROR(VLOOKUP(D211,Outros!$E$14:$F$25,2,0),"") -> Receita | P211: =IF(D211=Receitas!$C$13,"Receita_de_Vendas",IF(D211=Receitas!$F$13,"Receita_de_Serviços",IF(D211=Receitas!$I$13,"Receitas_Financeiras",IF(D211=Receitas!$L$13,"Outras_Receitas",IF(D211=Despesas!$C$13,"Despesas_com_Produto",IF(D211=Despesas!$F$13,"Despesas_com_Serviços",IF(D211=Despesas!$I$13,"Despesas_Administrativas",IF(D211=Despesas!$L$13,"Despesas_Operacionais",IF(D211=Despesas!$O$13,"Despesas_com_Pessoal",IF(D211=Despesas!$R$13,"Impostos",IF(D211=Despesas!$U$13,"Despesas_Não_Operacionais",IF(D211=Despesas!$X$13,"Outras_Despesas","")))))))))))) -> Outras_Receitas | R211: 0 | S211: 1 | T211: 1900
... 792 more rows

Sheet Fev
B11: Fluxo de Caixa de Fevereiro
B13: Data | C13: Banco | D13: Plano de Conta | E13: Descrição | F13: Conta | G13: Status | H13: Valor | I13: Saldo | J13: Observações/Justificativas | L13: Resumo | R13: Dia | S13: Mês | T13: Ano | V13: Dia | W13: Receita | X13: Despesa | Y13: Contas a Pagar | Z13: Contas a Receber | AB13: Bancos | AC13: Receita | AD13: Despesa | AE13: Saldo
I14: =$L$15+IF(AND(G14="Pago",O14="Receita"),H14,IF(AND(G14="Pago",O14="Despesa"),-H14,0)) -> 9990 | L14: Saldo Mês Anterior | O14: =IFERROR(VLOOKUP(D14,Outros!$E$14:$F$25,2,0),"") -> Receita | P14: =IF(D14=Receitas!$C$13,"Receita_de_Vendas",IF(D14=Receitas!$F$13,"Receita_de_Serviços",IF(D14=Receitas!$I$13,"Receitas_Financeiras",IF(D14=Receitas!$L$13,"Outras_Receitas",IF(D14=Despesas!$C$13,"Despesas_com_Produto",IF(D14=Despesas!$F$13,"Despesas_com_Serviços",IF(D14=Despesas!$I$13,"Despesas_Administrativas",IF(D14=Despesas!$L$13,"Despesas_Operacionais",IF(D14=Despesas!$O$13,"Despesas_com_Pessoal",IF(D14=Despesas!$R$13,"Impostos",IF(D14=Despesas!$U$13,"Despesas_Não_Operacionais",IF(D14=Despesas!$X$13,"Outras_Despesas","")))))))))))) -> Outras_Receitas | R14: =DAY(B14) -> 0 | S14: =MONTH(B14) -> 1 | T14: =YEAR(B14) -> 1900 | V14: 1 | W14: =SUMIFS($H$14:$H$1003,$R$14:$R$1003,$V14,$O$14:$O$1003,W$13,$G$14:$G$1003,"Pago") -> 0 | X14: =SUMIFS($H$14:$H$1003,$R$14:$R$1003,$V14,$O$14:$O$1003,X$13,$G$14:$G$1003,"Pago") -> 0 | Y14: =SUMIFS($H$14:$H$1003,$R$14:$R$1003,$V14,$O$14:$O$1003,"Despesa",$G$14:$G$1003,"Em Aberto") -> 0 | Z14: =SUMIFS($H$14:$H$1003,$R$14:$R$1003,$V14,$O$14:$O$1003,"Receita",$G$14:$G$1003,"Em Aberto") -> 0 | AB14: =Outros!B14 -> Banco do Brasil | AC14: =SUMIFS($H$14:$H$1003,$C$14:$C$1003,$AB14,$O$14:$O$1003,"Receita",$G$14:$G$1003,"Pago") -> 0 | AD14: =SUMIFS($H$14:$H$1003,$C$14:$C$1003,$AB14,$O$14:$O$1003,"Despesa",$G$14:$G$1003,"Pago") -> 0 | AE14: =AC14-AD14 -> 0
I15: =I14+IF(AND(G15="Pago",O15="Receita"),H15,IF(AND(G15="Pago",O15="Despesa"),-H15,0)) -> 9990 | L15: =Jan!L23 -> 9990 | O15: =IFERROR(VLOOKUP(D15,Outros!$E$14:$F$25,2,0),"") -> Receita | P15: =IF(D15=Receitas!$C$13,"Receita_de_Vendas",IF(D15=Receitas!$F$13,"Receita_de_Serviços",IF(D15=Receitas!$I$13,"Receitas_Financeiras",IF(D15=Receitas!$L$13,"Outras_Receitas",IF(D15=Despesas!$C$13,"Despesas_com_Produto",IF(D15=Despesas!$F$13,"Despesas_com_Serviços",IF(D15=Despesas!$I$13,"Despesas_Administrativas",IF(D15=Despesas!$L$13,"Despesas_Operacionais",IF(D15=Despesas!$O$13,"Despesas_com_Pessoal",IF(D15=Despesas!$R$13,"Impostos",IF(D15=Despesas!$U$13,"Despesas_Não_Operacionais",IF(D15=Despesas!$X$13,"Outras_Despesas","")))))))))))) -> Outras_Receitas | R15: 0 | S15: 1 | T15: 1900 | V15: 2 | W15: =SUMIFS($H$14:$H$1003,$R$14:$R$1003,$V15,$O$14:$O$1003,W$13,$G$14:$G$1003,"Pago") -> 0 | X15: 0 | Y15: =SUMIFS($H$14:$H$1003,$R$14:$R$1003,$V15,$O$14:$O$1003,"Despesa",$G$14:$G$1003,"Em Aberto") -> 0 | Z15: =SUMIFS($H$14:$H$1003,$R$14:$R$1003,$V15,$O$14:$O$1003,"Receita",$G$14:$G$1003,"Em Aberto") -> 0 | AB15: =Outros!B15 -> Caixa Econômica | AC15: =SUMIFS($H$14:$H$1003,$C$14:$C$1003,$AB15,$O$14:$O$1003,"Receita",$G$14:$G$1003,"Pago") -> 0 | AD15: =SUMIFS($H$14:$H$1003,$C$14:$C$1003,$AB15,$O$14:$O$1003,"Despesa",$G$14:$G$1003,"Pago") -> 0 | AE15: =AC15-AD15 -> 0
I16: =I15+IF(AND(G16="Pago",O16="Receita"),H16,IF(AND(G16="Pago",O16="Despesa"),-H16,0)) -> 9990 | L16: Total de Receitas | O16: =IFERROR(VLOOKUP(D16,Outros!$E$14:$F$25,2,0),"") -> Receita | P16: =IF(D16=Receitas!$C$13,"Receita_de_Vendas",IF(D16=Receitas!$F$13,"Receita_de_Serviços",IF(D16=Receitas!$I$13,"Receitas_Financeiras",IF(D16=Receitas!$L$13,"Outras_Receitas",IF(D16=Despesas!$C$13,"Despesas_com_Produto",IF(D16=Despesas!$F$13,"Despesas_com_Serviços",IF(D16=Despesas!$I$13,"Despesas_Administrativas",IF(D16=Despesas!$L$13,"Despesas_Operacionais",IF(D16=Despesas!$O$13,"Despesas_com_Pessoal",IF(D16=Despesas!$R$13,"Impostos",IF(D16=Despesas!$U$13,"Despesas_Não_Operacionais",IF(D16=Despesas!$X$13,"Outras_Despesas","")))))))))))) -> Outras_Receitas | R16: 0 | S16: 1 | T16: 1900 | V16: 3 | W16: 0 | X16: 0 | Y16: 0 | Z16: 0 | AB16: =Outros!B16 -> Santander | AC16: 0 | AD16: 0 | AE16: 0
I17: 9990 | L17: =SUMIFS(H14:H1003,G14:G1003,"Pago",O14:O1003,"Receita") -> 0 | O17: =IFERROR(VLOOKUP(D17,Outros!$E$14:$F$25,2,0),"") -> Receita | P17: =IF(D17=Receitas!$C$13,"Receita_de_Vendas",IF(D17=Receitas!$F$13,"Receita_de_Serviços",IF(D17=Receitas!$I$13,"Receitas_Financeiras",IF(D17=Receitas!$L$13,"Outras_Receitas",IF(D17=Despesas!$C$13,"Despesas_com_Produto",IF(D17=Despesas!$F$13,"Despesas_com_Serviços",IF(D17=Despesas!$I$13,"Despesas_Administrativas",IF(D17=Despesas!$L$13,"Despesas_Operacionais",IF(D17=Despesas!$O$13,"Despesas_com_Pessoal",IF(D17=Despesas!$R$13,"Impostos",IF(D17=Despesas!$U$13,"Despesas_Não_Operacionais",IF(D17=Despesas!$X$13,"Outras_Despesas","")))))))))))) -> Outras_Receitas | R17: 0 | S17: 1 | T17: 1900 | V17: 4 | W17: 0 | X17: 0 | Y17: 0 | Z17: 0 | AB17: =Outros!B17 -> 0 | AC17: 0 | AD17: 0 | AE17: 0
I18: 9990 | L18: Total de Despesas | O18: =IFERROR(VLOOKUP(D18,Outros!$E$14:$F$25,2,0),"") -> Receita | P18: =IF(D18=Receitas!$C$13,"Receita_de_Vendas",IF(D18=Receitas!$F$13,"Receita_de_Serviços",IF(D18=Receitas!$I$13,"Receitas_Financeiras",IF(D18=Receitas!$L$13,"Outras_Receitas",IF(D18=Despesas!$C$13,"Despesas_com_Produto",IF(D18=Despesas!$F$13,"Despesas_com_Serviços",IF(D18=Despesas!$I$13,"Despesas_Administrativas",IF(D18=Despesas!$L$13,"Despesas_Operacionais",IF(D18=Despesas!$O$13,"Despesas_com_Pessoal",IF(D18=Despesas!$R$13,"Impostos",IF(D18=Despesas!$U$13,"Despesas_Não_Operacionais",IF(D18=Despesas!$X$13,"Outras_Despesas","")))))))))))) -> Outras_Receitas | R18: 0 | S18: 1 | T18: 1900 | V18: 5 | W18: 0 | X18: 0 | Y18: 0 | Z18: 0 | AB18: =Outros!B18 -> 0 | AC18: 0 | AD18: 0 | AE18: 0
I19: 9990 | L19: =SUMIFS(H14:H1003,G14:G1003,"Pago",O14:O1003,"Despesa") -> 0 | O19: =IFERROR(VLOOKUP(D19,Outros!$E$14:$F$25,2,0),"") -> Receita | P19: =IF(D19=Receitas!$C$13,"Receita_de_Vendas",IF(D19=Receitas!$F$13,"Receita_de_Serviços",IF(D19=Receitas!$I$13,"Receitas_Financeiras",IF(D19=Receitas!$L$13,"Outras_Receitas",IF(D19=Despesas!$C$13,"Despesas_com_Produto",IF(D19=Despesas!$F$13,"Despesas_com_Serviços",IF(D19=Despesas!$I$13,"Despesas_Administrativas",IF(D19=Despesas!$L$13,"Despesas_Operacionais",IF(D19=Despesas!$O$13,"Despesas_com_Pessoal",IF(D19=Despesas!$R$13,"Impostos",IF(D19=Despesas!$U$13,"Despesas_Não_Operacionais",IF(D19=Despesas!$X$13,"Outras_Despesas","")))))))))))) -> Outras_Receitas | R19: 0 | S19: 1 | T19: 1900 | V19: 6 | W19: 0 | X19: 0 | Y19: 0 | Z19: 0 | AB19: =Outros!B19 -> 0 | AC19: 0 | AD19: 0 | AE19: 0
I20: 9990 | L20: Resultado do Mês | O20: =IFERROR(VLOOKUP(D20,Outros!$E$14:$F$25,2,0),"") -> Receita | P20: =IF(D20=Receitas!$C$13,"Receita_de_Vendas",IF(D20=Receitas!$F$13,"Receita_de_Serviços",IF(D20=Receitas!$I$13,"Receitas_Financeiras",IF(D20=Receitas!$L$13,"Outras_Receitas",IF(D20=Despesas!$C$13,"Despesas_com_Produto",IF(D20=Despesas!$F$13,"Despesas_com_Serviços",IF(D20=Despesas!$I$13,"Despesas_Administrativas",IF(D20=Despesas!$L$13,"Despesas_Operacionais",IF(D20=Despesas!$O$13,"Despesas_com_Pessoal",IF(D20=Despesas!$R$13,"Impostos",IF(D20=Despesas!$U$13,"Despesas_Não_Operacionais",IF(D20=Despesas!$X$13,"Outras_Despesas","")))))))))))) -> Outras_Receitas | R20: 0 | S20: 1 | T20: 1900 | V20: 7 | W20: 0 | X20: 0 | Y20: 0 | Z20: 0 | AB20: =Outros!B20 -> 0 | AC20: 0 | AD20: 0 | AE20: 0
I21: 9990 | L21: =L17-L19 -> 0 | O21: =IFERROR(VLOOKUP(D21,Outros!$E$14:$F$25,2,0),"") -> Receita | P21: =IF(D21=Receitas!$C$13,"Receita_de_Vendas",IF(D21=Receitas!$F$13,"Receita_de_Serviços",IF(D21=Receitas!$I$13,"Receitas_Financeiras",IF(D21=Receitas!$L$13,"Outras_Receitas",IF(D21=Despesas!$C$13,"Despesas_com_Produto",IF(D21=Despesas!$F$13,"Despesas_com_Serviços",IF(D21=Despesas!$I$13,"Despesas_Administrativas",IF(D21=Despesas!$L$13,"Despesas_Operacionais",IF(D21=Despesas!$O$13,"Despesas_com_Pessoal",IF(D21=Despesas!$R$13,"Impostos",IF(D21=Despesas!$U$13,"Despesas_Não_Operacionais",IF(D21=Despesas!$X$13,"Outras_Despesas","")))))))))))) -> Outras_Receitas | R21: 0 | S21: 1 | T21: 1900 | V21: 8 | W21: 0 | X21: 0 | Y21: 0 | Z21: 0 | AB21: =Outros!B21 -> 0 | AC21: 0 | AD21: 0 | AE21: 0
I22: 9990 | L22: Saldo do Mês | O22: =IFERROR(VLOOKUP(D22,Outros!$E$14:$F$25,2,0),"") -> Receita | P22: =IF(D22=Receitas!$C$13,"Receita_de_Vendas",IF(D22=Receitas!$F$13,"Receita_de_Serviços",IF(D22=Receitas!$I$13,"Receitas_Financeiras",IF(D22=Receitas!$L$13,"Outras_Receitas",IF(D22=Despesas!$C$13,"Despesas_com_Produto",IF(D22=Despesas!$F$13,"Despesas_com_Serviços",IF(D22=Despesas!$I$13,"Despesas_Administrativas",IF(D22=Despesas!$L$13,"Despesas_Operacionais",IF(D22=Despesas!$O$13,"Despesas_com_Pessoal",IF(D22=Despesas!$R$13,"Impostos",IF(D22=Despesas!$U$13,"Despesas_Não_Operacionais",IF(D22=Despesas!$X$13,"Outras_Despesas","")))))))))))) -> Outras_Receitas | R22: 0 | S22: 1 | T22: 1900 | V22: 9 | W22: 0 | X22: 0 | Y22: 0 | Z22: 0 | AB22: =Outros!B22 -> 0 | AC22: 0 | AD22: 0 | AE22: 0
I23: 9990 | L23: =I1003 -> 9990 | O23: =IFERROR(VLOOKUP(D23,Outros!$E$14:$F$25,2,0),"") -> Receita | P23: =IF(D23=Receitas!$C$13,"Receita_de_Vendas",IF(D23=Receitas!$F$13,"Receita_de_Serviços",IF(D23=Receitas!$I$13,"Receitas_Financeiras",IF(D23=Receitas!$L$13,"Outras_Receitas",IF(D23=Despesas!$C$13,"Despesas_com_Produto",IF(D23=Despesas!$F$13,"Despesas_com_Serviços",IF(D23=Despesas!$I$13,"Despesas_Administrativas",IF(D23=Despesas!$L$13,"Despesas_Operacionais",IF(D23=Despesas!$O$13,"Despesas_com_Pessoal",IF(D23=Despesas!$R$13,"Impostos",IF(D23=Despesas!$U$13,"Despesas_Não_Operacionais",IF(D23=Despesas!$X$13,"Outras_Despesas","")))))))))))) -> Outras_Receitas | R23: 0 | S23: 1 | T23: 1900 | V23: 10 | W23: 0 | X23: 0 | Y23: 0 | Z23: 0 | AB23: =Outros!B23 -> 0 | AC23: 0 | AD23: 0 | AE23: 0
I24: 9990 | O24: =IFERROR(VLOOKUP(D24,Outros!$E$14:$F$25,2,0),"") -> Receita | P24: =IF(D24=Receitas!$C$13,"Receita_de_Vendas",IF(D24=Receitas!$F$13,"Receita_de_Serviços",IF(D24=Receitas!$I$13,"Receitas_Financeiras",IF(D24=Receitas!$L$13,"Outras_Receitas",IF(D24=Despesas!$C$13,"Despesas_com_Produto",IF(D24=Despesas!$F$13,"Despesas_com_Serviços",IF(D24=Despesas!$I$13,"Despesas_Administrativas",IF(D24=Despesas!$L$13,"Despesas_Operacionais",IF(D24=Despesas!$O$13,"Despesas_com_Pessoal",IF(D24=Despesas!$R$13,"Impostos",IF(D24=Despesas!$U$13,"Despesas_Não_Operacionais",IF(D24=Despesas!$X$13,"Outras_Despesas","")))))))))))) -> Outras_Receitas | R24: 0 | S24: 1 | T24: 1900 | V24: 11 | W24: 0 | X24: 0 | Y24: 0 | Z24: 0 | AB24: =Outros!B24 -> 0 | AC24: 0 | AD24: 0 | AE24: 0
I25: 9990 | O25: =IFERROR(VLOOKUP(D25,Outros!$E$14:$F$25,2,0),"") -> Receita | P25: =IF(D25=Receitas!$C$13,"Receita_de_Vendas",IF(D25=Receitas!$F$13,"Receita_de_Serviços",IF(D25=Receitas!$I$13,"Receitas_Financeiras",IF(D25=Receitas!$L$13,"Outras_Receitas",IF(D25=Despesas!$C$13,"Despesas_com_Produto",IF(D25=Despesas!$F$13,"Despesas_com_Serviços",IF(D25=Despesas!$I$13,"Despesas_Administrativas",IF(D25=Despesas!$L$13,"Despesas_Operacionais",IF(D25=Despesas!$O$13,"Despesas_com_Pessoal",IF(D25=Despesas!$R$13,"Impostos",IF(D25=Despesas!$U$13,"Despesas_Não_Operacionais",IF(D25=Despesas!$X$13,"Outras_Despesas","")))))))))))) -> Outras_Receitas | R25: 0 | S25: 1 | T25: 1900 | V25: 12 | W25: 0 | X25: 0 | Y25: 0 | Z25: 0 | AB25: =Outros!B25 -> 0 | AC25: 0 | AD25: 0 | AE25: 0
I26: 9990 | O26: =IFERROR(VLOOKUP(D26,Outros!$E$14:$F$25,2,0),"") -> Receita | P26: =IF(D26=Receitas!$C$13,"Receita_de_Vendas",IF(D26=Receitas!$F$13,"Receita_de_Serviços",IF(D26=Receitas!$I$13,"Receitas_Financeiras",IF(D26=Receitas!$L$13,"Outras_Receitas",IF(D26=Despesas!$C$13,"Despesas_com_Produto",IF(D26=Despesas!$F$13,"Despesas_com_Serviços",IF(D26=Despesas!$I$13,"Despesas_Administrativas",IF(D26=Despesas!$L$13,"Despesas_Operacionais",IF(D26=Despesas!$O$13,"Despesas_com_Pessoal",IF(D26=Despesas!$R$13,"Impostos",IF(D26=Despesas!$U$13,"Despesas_Não_Operacionais",IF(D26=Despesas!$X$13,"Outras_Despesas","")))))))))))) -> Outras_Receitas | R26: 0 | S26: 1 | T26: 1900 | V26: 13 | W26: 0 | X26: 0 | Y26: 0 | Z26: 0 | AB26: =Outros!B26 -> 0 | AC26: 0 | AD26: 0 | AE26: 0
I27: 9990 | O27: =IFERROR(VLOOKUP(D27,Outros!$E$14:$F$25,2,0),"") -> Receita | P27: =IF(D27=Receitas!$C$13,"Receita_de_Vendas",IF(D27=Receitas!$F$13,"Receita_de_Serviços",IF(D27=Receitas!$I$13,"Receitas_Financeiras",IF(D27=Receitas!$L$13,"Outras_Receitas",IF(D27=Despesas!$C$13,"Despesas_com_Produto",IF(D27=Despesas!$F$13,"Despesas_com_Serviços",IF(D27=Despesas!$I$13,"Despesas_Administrativas",IF(D27=Despesas!$L$13,"Despesas_Operacionais",IF(D27=Despesas!$O$13,"Despesas_com_Pessoal",IF(D27=Despesas!$R$13,"Impostos",IF(D27=Despesas!$U$13,"Despesas_Não_Operacionais",IF(D27=Despesas!$X$13,"Outras_Despesas","")))))))))))) -> Outras_Receitas | R27: 0 | S27: 1 | T27: 1900 | V27: 14 | W27: 0 | X27: 0 | Y27: 0 | Z27: 0 | AB27: =Outros!B27 -> 0 | AC27: 0 | AD27: 0 | AE27: 0
I28: 9990 | O28: =IFERROR(VLOOKUP(D28,Outros!$E$14:$F$25,2,0),"") -> Receita | P28: =IF(D28=Receitas!$C$13,"Receita_de_Vendas",IF(D28=Receitas!$F$13,"Receita_de_Serviços",IF(D28=Receitas!$I$13,"Receitas_Financeiras",IF(D28=Receitas!$L$13,"Outras_Receitas",IF(D28=Despesas!$C$13,"Despesas_com_Produto",IF(D28=Despesas!$F$13,"Despesas_com_Serviços",IF(D28=Despesas!$I$13,"Despesas_Administrativas",IF(D28=Despesas!$L$13,"Despesas_Operacionais",IF(D28=Despesas!$O$13,"Despesas_com_Pessoal",IF(D28=Despesas!$R$13,"Impostos",IF(D28=Despesas!$U$13,"Despesas_Não_Operacionais",IF(D28=Despesas!$X$13,"Outras_Despesas","")))))))))))) -> Outras_Receitas | R28: 0 | S28: 1 | T28: 1900 | V28: 15 | W28: 0 | X28: 0 | Y28: 0 | Z28: 0 | AB28: =Outros!B28 -> 0 | AC28: 0 | AD28: 0 | AE28: 0
I29: 9990 | O29: =IFERROR(VLOOKUP(D29,Outros!$E$14:$F$25,2,0),"") -> Receita | P29: =IF(D29=Receitas!$C$13,"Receita_de_Vendas",IF(D29=Receitas!$F$13,"Receita_de_Serviços",IF(D29=Receitas!$I$13,"Receitas_Financeiras",IF(D29=Receitas!$L$13,"Outras_Receitas",IF(D29=Despesas!$C$13,"Despesas_com_Produto",IF(D29=Despesas!$F$13,"Despesas_com_Serviços",IF(D29=Despesas!$I$13,"Despesas_Administrativas",IF(D29=Despesas!$L$13,"Despesas_Operacionais",IF(D29=Despesas!$O$13,"Despesas_com_Pessoal",IF(D29=Despesas!$R$13,"Impostos",IF(D29=Despesas!$U$13,"Despesas_Não_Operacionais",IF(D29=Despesas!$X$13,"Outras_Despesas","")))))))))))) -> Outras_Receitas | R29: 0 | S29: 1 | T29: 1900 | V29: 16 | W29: 0 | X29: 0 | Y29: 0 | Z29: 0 | AB29: =Outros!B29 -> 0 | AC29: 0 | AD29: 0 | AE29: 0
I30: 9990 | O30: =IFERROR(VLOOKUP(D30,Outros!$E$14:$F$25,2,0),"") -> Receita | P30: =IF(D30=Receitas!$C$13,"Receita_de_Vendas",IF(D30=Receitas!$F$13,"Receita_de_Serviços",IF(D30=Receitas!$I$13,"Receitas_Financeiras",IF(D30=Receitas!$L$13,"Outras_Receitas",IF(D30=Despesas!$C$13,"Despesas_com_Produto",IF(D30=Despesas!$F$13,"Despesas_com_Serviços",IF(D30=Despesas!$I$13,"Despesas_Administrativas",IF(D30=Despesas!$L$13,"Despesas_Operacionais",IF(D30=Despesas!$O$13,"Despesas_com_Pessoal",IF(D30=Despesas!$R$13,"Impostos",IF(D30=Despesas!$U$13,"Despesas_Não_Operacionais",IF(D30=Despesas!$X$13,"Outras_Despesas","")))))))))))) -> Outras_Receitas | R30: 0 | S30: 1 | T30: 1900 | V30: 17 | W30: 0 | X30: 0 | Y30: 0 | Z30: 0 | AB30: =Outros!B30 -> 0 | AC30: 0 | AD30: 0 | AE30: 0
I31: 9990 | O31: =IFERROR(VLOOKUP(D31,Outros!$E$14:$F$25,2,0),"") -> Receita | P31: =IF(D31=Receitas!$C$13,"Receita_de_Vendas",IF(D31=Receitas!$F$13,"Receita_de_Serviços",IF(D31=Receitas!$I$13,"Receitas_Financeiras",IF(D31=Receitas!$L$13,"Outras_Receitas",IF(D31=Despesas!$C$13,"Despesas_com_Produto",IF(D31=Despesas!$F$13,"Despesas_com_Serviços",IF(D31=Despesas!$I$13,"Despesas_Administrativas",IF(D31=Despesas!$L$13,"Despesas_Operacionais",IF(D31=Despesas!$O$13,"Despesas_com_Pessoal",IF(D31=Despesas!$R$13,"Impostos",IF(D31=Despesas!$U$13,"Despesas_Não_Operacionais",IF(D31=Despesas!$X$13,"Outras_Despesas","")))))))))))) -> Outras_Receitas | R31: 0 | S31: 1 | T31: 1900 | V31: 18 | W31: 0 | X31: 0 | Y31: 0 | Z31: 0 | AB31: =Outros!B31 -> 0 | AC31: 0 | AD31: 0 | AE31: 0
I32: 9990 | O32: =IFERROR(VLOOKUP(D32,Outros!$E$14:$F$25,2,0),"") -> Receita | P32: =IF(D32=Receitas!$C$13,"Receita_de_Vendas",IF(D32=Receitas!$F$13,"Receita_de_Serviços",IF(D32=Receitas!$I$13,"Receitas_Financeiras",IF(D32=Receitas!$L$13,"Outras_Receitas",IF(D32=Despesas!$C$13,"Despesas_com_Produto",IF(D32=Despesas!$F$13,"Despesas_com_Serviços",IF(D32=Despesas!$I$13,"Despesas_Administrativas",IF(D32=Despesas!$L$13,"Despesas_Operacionais",IF(D32=Despesas!$O$13,"Despesas_com_Pessoal",IF(D32=Despesas!$R$13,"Impostos",IF(D32=Despesas!$U$13,"Despesas_Não_Operacionais",IF(D32=Despesas!$X$13,"Outras_Despesas","")))))))))))) -> Outras_Receitas | R32: 0 | S32: 1 | T32: 1900 | V32: 19 | W32: 0 | X32: 0 | Y32: 0 | Z32: 0 | AB32: =Outros!B32 -> 0 | AC32: 0 | AD32: 0 | AE32: 0
I33: 9990 | O33: =IFERROR(VLOOKUP(D33,Outros!$E$14:$F$25,2,0),"") -> Receita | P33: =IF(D33=Receitas!$C$13,"Receita_de_Vendas",IF(D33=Receitas!$F$13,"Receita_de_Serviços",IF(D33=Receitas!$I$13,"Receitas_Financeiras",IF(D33=Receitas!$L$13,"Outras_Receitas",IF(D33=Despesas!$C$13,"Despesas_com_Produto",IF(D33=Despesas!$F$13,"Despesas_com_Serviços",IF(D33=Despesas!$I$13,"Despesas_Administrativas",IF(D33=Despesas!$L$13,"Despesas_Operacionais",IF(D33=Despesas!$O$13,"Despesas_com_Pessoal",IF(D33=Despesas!$R$13,"Impostos",IF(D33=Despesas!$U$13,"Despesas_Não_Operacionais",IF(D33=Despesas!$X$13,"Outras_Despesas","")))))))))))) -> Outras_Receitas | R33: 0 | S33: 1 | T33: 1900 | V33: 20 | W33: 0 | X33: 0 | Y33: 0 | Z33: 0 | AB33: =Outros!B33 -> 0 | AC33: 0 | AD33: 0 | AE33: 0
I34: 9990 | O34: =IFERROR(VLOOKUP(D34,Outros!$E$14:$F$25,2,0),"") -> Receita | P34: =IF(D34=Receitas!$C$13,"Receita_de_Vendas",IF(D34=Receitas!$F$13,"Receita_de_Serviços",IF(D34=Receitas!$I$13,"Receitas_Financeiras",IF(D34=Receitas!$L$13,"Outras_Receitas",IF(D34=Despesas!$C$13,"Despesas_com_Produto",IF(D34=Despesas!$F$13,"Despesas_com_Serviços",IF(D34=Despesas!$I$13,"Despesas_Administrativas",IF(D34=Despesas!$L$13,"Despesas_Operacionais",IF(D34=Despesas!$O$13,"Despesas_com_Pessoal",IF(D34=Despesas!$R$13,"Impostos",IF(D34=Despesas!$U$13,"Despesas_Não_Operacionais",IF(D34=Despesas!$X$13,"Outras_Despesas","")))))))))))) -> Outras_Receitas | R34: 0 | S34: 1 | T34: 1900 | V34: 21 | W34: 0 | X34: 0 | Y34: 0 | Z34: 0
I35: 9990 | O35: =IFERROR(VLOOKUP(D35,Outros!$E$14:$F$25,2,0),"") -> Receita | P35: =IF(D35=Receitas!$C$13,"Receita_de_Vendas",IF(D35=Receitas!$F$13,"Receita_de_Serviços",IF(D35=Receitas!$I$13,"Receitas_Financeiras",IF(D35=Receitas!$L$13,"Outras_Receitas",IF(D35=Despesas!$C$13,"Despesas_com_Produto",IF(D35=Despesas!$F$13,"Despesas_com_Serviços",IF(D35=Despesas!$I$13,"Despesas_Administrativas",IF(D35=Despesas!$L$13,"Despesas_Operacionais",IF(D35=Despesas!$O$13,"Despesas_com_Pessoal",IF(D35=Despesas!$R$13,"Impostos",IF(D35=Despesas!$U$13,"Despesas_Não_Operacionais",IF(D35=Despesas!$X$13,"Outras_Despesas","")))))))))))) -> Outras_Receitas | R35: 0 | S35: 1 | T35: 1900 | V35: 22 | W35: 0 | X35: 0 | Y35: 0 | Z35: 0
I36: 9990 | O36: =IFERROR(VLOOKUP(D36,Outros!$E$14:$F$25,2,0),"") -> Receita | P36: =IF(D36=Receitas!$C$13,"Receita_de_Vendas",IF(D36=Receitas!$F$13,"Receita_de_Serviços",IF(D36=Receitas!$I$13,"Receitas_Financeiras",IF(D36=Receitas!$L$13,"Outras_Receitas",IF(D36=Despesas!$C$13,"Despesas_com_Produto",IF(D36=Despesas!$F$13,"Despesas_com_Serviços",IF(D36=Despesas!$I$13,"Despesas_Administrativas",IF(D36=Despesas!$L$13,"Despesas_Operacionais",IF(D36=Despesas!$O$13,"Despesas_com_Pessoal",IF(D36=Despesas!$R$13,"Impostos",IF(D36=Despesas!$U$13,"Despesas_Não_Operacionais",IF(D36=Despesas!$X$13,"Outras_Despesas","")))))))))))) -> Outras_Receitas | R36: 0 | S36: 1 | T36: 1900 | V36: 23 | W36: 0 | X36: 0 | Y36: 0 | Z36: 0
I37: 9990 | O37: =IFERROR(VLOOKUP(D37,Outros!$E$14:$F$25,2,0),"") -> Receita | P37: =IF(D37=Receitas!$C$13,"Receita_de_Vendas",IF(D37=Receitas!$F$13,"Receita_de_Serviços",IF(D37=Receitas!$I$13,"Receitas_Financeiras",IF(D37=Receitas!$L$13,"Outras_Receitas",IF(D37=Despesas!$C$13,"Despesas_com_Produto",IF(D37=Despesas!$F$13,"Despesas_com_Serviços",IF(D37=Despesas!$I$13,"Despesas_Administrativas",IF(D37=Despesas!$L$13,"Despesas_Operacionais",IF(D37=Despesas!$O$13,"Despesas_com_Pessoal",IF(D37=Despesas!$R$13,"Impostos",IF(D37=Despesas!$U$13,"Despesas_Não_Operacionais",IF(D37=Despesas!$X$13,"Outras_Despesas","")))))))))))) -> Outras_Receitas | R37: 0 | S37: 1 | T37: 1900 | V37: 24 | W37: 0 | X37: 0 | Y37: 0 | Z37: 0
I38: 9990 | O38: =IFERROR(VLOOKUP(D38,Outros!$E$14:$F$25,2,0),"") -> Receita | P38: =IF(D38=Receitas!$C$13,"Receita_de_Vendas",IF(D38=Receitas!$F$13,"Receita_de_Serviços",IF(D38=Receitas!$I$13,"Receitas_Financeiras",IF(D38=Receitas!$L$13,"Outras_Receitas",IF(D38=Despesas!$C$13,"Despesas_com_Produto",IF(D38=Despesas!$F$13,"Despesas_com_Serviços",IF(D38=Despesas!$I$13,"Despesas_Administrativas",IF(D38=Despesas!$L$13,"Despesas_Operacionais",IF(D38=Despesas!$O$13,"Despesas_com_Pessoal",IF(D38=Despesas!$R$13,"Impostos",IF(D38=Despesas!$U$13,"Despesas_Não_Operacionais",IF(D38=Despesas!$X$13,"Outras_Despesas","")))))))))))) -> Outras_Receitas | R38: 0 | S38: 1 | T38: 1900 | V38: 25 | W38: 0 | X38: 0 | Y38: 0 | Z38: 0
I39: 9990 | O39: =IFERROR(VLOOKUP(D39,Outros!$E$14:$F$25,2,0),"") -> Receita | P39: =IF(D39=Receitas!$C$13,"Receita_de_Vendas",IF(D39=Receitas!$F$13,"Receita_de_Serviços",IF(D39=Receitas!$I$13,"Receitas_Financeiras",IF(D39=Receitas!$L$13,"Outras_Receitas",IF(D39=Despesas!$C$13,"Despesas_com_Produto",IF(D39=Despesas!$F$13,"Despesas_com_Serviços",IF(D39=Despesas!$I$13,"Despesas_Administrativas",IF(D39=Despesas!$L$13,"Despesas_Operacionais",IF(D39=Despesas!$O$13,"Despesas_com_Pessoal",IF(D39=Despesas!$R$13,"Impostos",IF(D39=Despesas!$U$13,"Despesas_Não_Operacionais",IF(D39=Despesas!$X$13,"Outras_Despesas","")))))))))))) -> Outras_Receitas | R39: 0 | S39: 1 | T39: 1900 | V39: 26 | W39: 0 | X39: 0 | Y39: 0 | Z39: 0
I40: 9990 | O40: =IFERROR(VLOOKUP(D40,Outros!$E$14:$F$25,2,0),"") -> Receita | P40: =IF(D40=Receitas!$C$13,"Receita_de_Vendas",IF(D40=Receitas!$F$13,"Receita_de_Serviços",IF(D40=Receitas!$I$13,"Receitas_Financeiras",IF(D40=Receitas!$L$13,"Outras_Receitas",IF(D40=Despesas!$C$13,"Despesas_com_Produto",IF(D40=Despesas!$F$13,"Despesas_com_Serviços",IF(D40=Despesas!$I$13,"Despesas_Administrativas",IF(D40=Despesas!$L$13,"Despesas_Operacionais",IF(D40=Despesas!$O$13,"Despesas_com_Pessoal",IF(D40=Despesas!$R$13,"Impostos",IF(D40=Despesas!$U$13,"Despesas_Não_Operacionais",IF(D40=Despesas!$X$13,"Outras_Despesas","")))))))))))) -> Outras_Receitas | R40: 0 | S40: 1 | T40: 1900 | V40: 27 | W40: 0 | X40: 0 | Y40: 0 | Z40: 0
I41: 9990 | O41: =IFERROR(VLOOKUP(D41,Outros!$E$14:$F$25,2,0),"") -> Receita | P41: =IF(D41=Receitas!$C$13,"Receita_de_Vendas",IF(D41=Receitas!$F$13,"Receita_de_Serviços",IF(D41=Receitas!$I$13,"Receitas_Financeiras",IF(D41=Receitas!$L$13,"Outras_Receitas",IF(D41=Despesas!$C$13,"Despesas_com_Produto",IF(D41=Despesas!$F$13,"Despesas_com_Serviços",IF(D41=Despesas!$I$13,"Despesas_Administrativas",IF(D41=Despesas!$L$13,"Despesas_Operacionais",IF(D41=Despesas!$O$13,"Despesas_com_Pessoal",IF(D41=Despesas!$R$13,"Impostos",IF(D41=Despesas!$U$13,"Despesas_Não_Operacionais",IF(D41=Despesas!$X$13,"Outras_Despesas","")))))))))))) -> Outras_Receitas | R41: 0 | S41: 1 | T41: 1900 | V41: 28 | W41: 0 | X41: 0 | Y41: 0 | Z41: 0
I42: 9990 | O42: =IFERROR(VLOOKUP(D42,Outros!$E$14:$F$25,2,0),"") -> Receita | P42: =IF(D42=Receitas!$C$13,"Receita_de_Vendas",IF(D42=Receitas!$F$13,"Receita_de_Serviços",IF(D42=Receitas!$I$13,"Receitas_Financeiras",IF(D42=Receitas!$L$13,"Outras_Receitas",IF(D42=Despesas!$C$13,"Despesas_com_Produto",IF(D42=Despesas!$F$13,"Despesas_com_Serviços",IF(D42=Despesas!$I$13,"Despesas_Administrativas",IF(D42=Despesas!$L$13,"Despesas_Operacionais",IF(D42=Despesas!$O$13,"Despesas_com_Pessoal",IF(D42=Despesas!$R$13,"Impostos",IF(D42=Despesas!$U$13,"Despesas_Não_Operacionais",IF(D42=Despesas!$X$13,"Outras_Despesas","")))))))))))) -> Outras_Receitas | R42: 0 | S42: 1 | T42: 1900 | V42: 29 | W42: 0 | X42: 0 | Y42: 0 | Z42: 0
I43: 9990 | O43: =IFERROR(VLOOKUP(D43,Outros!$E$14:$F$25,2,0),"") -> Receita | P43: =IF(D43=Receitas!$C$13,"Receita_de_Vendas",IF(D43=Receitas!$F$13,"Receita_de_Serviços",IF(D43=Receitas!$I$13,"Receitas_Financeiras",IF(D43=Receitas!$L$13,"Outras_Receitas",IF(D43=Despesas!$C$13,"Despesas_com_Produto",IF(D43=Despesas!$F$13,"Despesas_com_Serviços",IF(D43=Despesas!$I$13,"Despesas_Administrativas",IF(D43=Despesas!$L$13,"Despesas_Operacionais",IF(D43=Despesas!$O$13,"Despesas_com_Pessoal",IF(D43=Despesas!$R$13,"Impostos",IF(D43=Despesas!$U$13,"Despesas_Não_Operacionais",IF(D43=Despesas!$X$13,"Outras_Despesas","")))))))))))) -> Outras_Receitas | R43: 0 | S43: 1 | T43: 1900 | V43: 30 | W43: 0 | X43: 0 | Y43: 0 | Z43: 0
I44: 9990 | O44: =IFERROR(VLOOKUP(D44,Outros!$E$14:$F$25,2,0),"") -> Receita | P44: =IF(D44=Receitas!$C$13,"Receita_de_Vendas",IF(D44=Receitas!$F$13,"Receita_de_Serviços",IF(D44=Receitas!$I$13,"Receitas_Financeiras",IF(D44=Receitas!$L$13,"Outras_Receitas",IF(D44=Despesas!$C$13,"Despesas_com_Produto",IF(D44=Despesas!$F$13,"Despesas_com_Serviços",IF(D44=Despesas!$I$13,"Despesas_Administrativas",IF(D44=Despesas!$L$13,"Despesas_Operacionais",IF(D44=Despesas!$O$13,"Despesas_com_Pessoal",IF(D44=Despesas!$R$13,"Impostos",IF(D44=Despesas!$U$13,"Despesas_Não_Operacionais",IF(D44=Despesas!$X$13,"Outras_Despesas","")))))))))))) -> Outras_Receitas | R44: 0 | S44: 1 | T44: 1900 | V44: 31 | W44: 0 | X44: 0 | Y44: 0 | Z44: 0
I45: 9990 | O45: =IFERROR(VLOOKUP(D45,Outros!$E$14:$F$25,2,0),"") -> Receita | P45: =IF(D45=Receitas!$C$13,"Receita_de_Vendas",IF(D45=Receitas!$F$13,"Receita_de_Serviços",IF(D45=Receitas!$I$13,"Receitas_Financeiras",IF(D45=Receitas!$L$13,"Outras_Receitas",IF(D45=Despesas!$C$13,"Despesas_com_Produto",IF(D45=Despesas!$F$13,"Despesas_com_Serviços",IF(D45=Despesas!$I$13,"Despesas_Administrativas",IF(D45=Despesas!$L$13,"Despesas_Operacionais",IF(D45=Despesas!$O$13,"Despesas_com_Pessoal",IF(D45=Despesas!$R$13,"Impostos",IF(D45=Despesas!$U$13,"Despesas_Não_Operacionais",IF(D45=Despesas!$X$13,"Outras_Despesas","")))))))))))) -> Outras_Receitas | R45: 0 | S45: 1 | T45: 1900
I46: 9990 | O46: =IFERROR(VLOOKUP(D46,Outros!$E$14:$F$25,2,0),"") -> Receita | P46: =IF(D46=Receitas!$C$13,"Receita_de_Vendas",IF(D46=Receitas!$F$13,"Receita_de_Serviços",IF(D46=Receitas!$I$13,"Receitas_Financeiras",IF(D46=Receitas!$L$13,"Outras_Receitas",IF(D46=Despesas!$C$13,"Despesas_com_Produto",IF(D46=Despesas!$F$13,"Despesas_com_Serviços",IF(D46=Despesas!$I$13,"Despesas_Administrativas",IF(D46=Despesas!$L$13,"Despesas_Operacionais",IF(D46=Despesas!$O$13,"Despesas_com_Pessoal",IF(D46=Despesas!$R$13,"Impostos",IF(D46=Despesas!$U$13,"Despesas_Não_Operacionais",IF(D46=Despesas!$X$13,"Outras_Despesas","")))))))))))) -> Outras_Receitas | R46: 0 | S46: 1 | T46: 1900
I47: 9990 | O47: =IFERROR(VLOOKUP(D47,Outros!$E$14:$F$25,2,0),"") -> Receita | P47: =IF(D47=Receitas!$C$13,"Receita_de_Vendas",IF(D47=Receitas!$F$13,"Receita_de_Serviços",IF(D47=Receitas!$I$13,"Receitas_Financeiras",IF(D47=Receitas!$L$13,"Outras_Receitas",IF(D47=Despesas!$C$13,"Despesas_com_Produto",IF(D47=Despesas!$F$13,"Despesas_com_Serviços",IF(D47=Despesas!$I$13,"Despesas_Administrativas",IF(D47=Despesas!$L$13,"Despesas_Operacionais",IF(D47=Despesas!$O$13,"Despesas_com_Pessoal",IF(D47=Despesas!$R$13,"Impostos",IF(D47=Despesas!$U$13,"Despesas_Não_Operacionais",IF(D47=Despesas!$X$13,"Outras_Despesas","")))))))))))) -> Outras_Receitas | R47: 0 | S47: 1 | T47: 1900
I48: 9990 | O48: =IFERROR(VLOOKUP(D48,Outros!$E$14:$F$25,2,0),"") -> Receita | P48: =IF(D48=Receitas!$C$13,"Receita_de_Vendas",IF(D48=Receitas!$F$13,"Receita_de_Serviços",IF(D48=Receitas!$I$13,"Receitas_Financeiras",IF(D48=Receitas!$L$13,"Outras_Receitas",IF(D48=Despesas!$C$13,"Despesas_com_Produto",IF(D48=Despesas!$F$13,"Despesas_com_Serviços",IF(D48=Despesas!$I$13,"Despesas_Administrativas",IF(D48=Despesas!$L$13,"Despesas_Operacionais",IF(D48=Despesas!$O$13,"Despesas_com_Pessoal",IF(D48=Despesas!$R$13,"Impostos",IF(D48=Despesas!$U$13,"Despesas_Não_Operacionais",IF(D48=Despesas!$X$13,"Outras_Despesas","")))))))))))) -> Outras_Receitas | R48: 0 | S48: 1 | T48: 1900
I49: 9990 | O49: =IFERROR(VLOOKUP(D49,Outros!$E$14:$F$25,2,0),"") -> Receita | P49: =IF(D49=Receitas!$C$13,"Receita_de_Vendas",IF(D49=Receitas!$F$13,"Receita_de_Serviços",IF(D49=Receitas!$I$13,"Receitas_Financeiras",IF(D49=Receitas!$L$13,"Outras_Receitas",IF(D49=Despesas!$C$13,"Despesas_com_Produto",IF(D49=Despesas!$F$13,"Despesas_com_Serviços",IF(D49=Despesas!$I$13,"Despesas_Administrativas",IF(D49=Despesas!$L$13,"Despesas_Operacionais",IF(D49=Despesas!$O$13,"Despesas_com_Pessoal",IF(D49=Despesas!$R$13,"Impostos",IF(D49=Despesas!$U$13,"Despesas_Não_Operacionais",IF(D49=Despesas!$X$13,"Outras_Despesas","")))))))))))) -> Outras_Receitas | R49: 0 | S49: 1 | T49: 1900
I50: 9990 | O50: =IFERROR(VLOOKUP(D50,Outros!$E$14:$F$25,2,0),"") -> Receita | P50: =IF(D50=Receitas!$C$13,"Receita_de_Vendas",IF(D50=Receitas!$F$13,"Receita_de_Serviços",IF(D50=Receitas!$I$13,"Receitas_Financeiras",IF(D50=Receitas!$L$13,"Outras_Receitas",IF(D50=Despesas!$C$13,"Despesas_com_Produto",IF(D50=Despesas!$F$13,"Despesas_com_Serviços",IF(D50=Despesas!$I$13,"Despesas_Administrativas",IF(D50=Despesas!$L$13,"Despesas_Operacionais",IF(D50=Despesas!$O$13,"Despesas_com_Pessoal",IF(D50=Despesas!$R$13,"Impostos",IF(D50=Despesas!$U$13,"Despesas_Não_Operacionais",IF(D50=Despesas!$X$13,"Outras_Despesas","")))))))))))) -> Outras_Receitas | R50: 0 | S50: 1 | T50: 1900
I51: 9990 | O51: =IFERROR(VLOOKUP(D51,Outros!$E$14:$F$25,2,0),"") -> Receita | P51: =IF(D51=Receitas!$C$13,"Receita_de_Vendas",IF(D51=Receitas!$F$13,"Receita_de_Serviços",IF(D51=Receitas!$I$13,"Receitas_Financeiras",IF(D51=Receitas!$L$13,"Outras_Receitas",IF(D51=Despesas!$C$13,"Despesas_com_Produto",IF(D51=Despesas!$F$13,"Despesas_com_Serviços",IF(D51=Despesas!$I$13,"Despesas_Administrativas",IF(D51=Despesas!$L$13,"Despesas_Operacionais",IF(D51=Despesas!$O$13,"Despesas_com_Pessoal",IF(D51=Despesas!$R$13,"Impostos",IF(D51=Despesas!$U$13,"Despesas_Não_Operacionais",IF(D51=Despesas!$X$13,"Outras_Despesas","")))))))))))) -> Outras_Receitas | R51: 0 | S51: 1 | T51: 1900
I52: 9990 | O52: =IFERROR(VLOOKUP(D52,Outros!$E$14:$F$25,2,0),"") -> Receita | P52: =IF(D52=Receitas!$C$13,"Receita_de_Vendas",IF(D52=Receitas!$F$13,"Receita_de_Serviços",IF(D52=Receitas!$I$13,"Receitas_Financeiras",IF(D52=Receitas!$L$13,"Outras_Receitas",IF(D52=Despesas!$C$13,"Despesas_com_Produto",IF(D52=Despesas!$F$13,"Despesas_com_Serviços",IF(D52=Despesas!$I$13,"Despesas_Administrativas",IF(D52=Despesas!$L$13,"Despesas_Operacionais",IF(D52=Despesas!$O$13,"Despesas_com_Pessoal",IF(D52=Despesas!$R$13,"Impostos",IF(D52=Despesas!$U$13,"Despesas_Não_Operacionais",IF(D52=Despesas!$X$13,"Outras_Despesas","")))))))))))) -> Outras_Receitas | R52: 0 | S52: 1 | T52: 1900
I53: 9990 | O53: =IFERROR(VLOOKUP(D53,Outros!$E$14:$F$25,2,0),"") -> Receita | P53: =IF(D53=Receitas!$C$13,"Receita_de_Vendas",IF(D53=Receitas!$F$13,"Receita_de_Serviços",IF(D53=Receitas!$I$13,"Receitas_Financeiras",IF(D53=Receitas!$L$13,"Outras_Receitas",IF(D53=Despesas!$C$13,"Despesas_com_Produto",IF(D53=Despesas!$F$13,"Despesas_com_Serviços",IF(D53=Despesas!$I$13,"Despesas_Administrativas",IF(D53=Despesas!$L$13,"Despesas_Operacionais",IF(D53=Despesas!$O$13,"Despesas_com_Pessoal",IF(D53=Despesas!$R$13,"Impostos",IF(D53=Despesas!$U$13,"Despesas_Não_Operacionais",IF(D53=Despesas!$X$13,"Outras_Despesas","")))))))))))) -> Outras_Receitas | R53: 0 | S53: 1 | T53: 1900
I54: 9990 | O54: =IFERROR(VLOOKUP(D54,Outros!$E$14:$F$25,2,0),"") -> Receita | P54: =IF(D54=Receitas!$C$13,"Receita_de_Vendas",IF(D54=Receitas!$F$13,"Receita_de_Serviços",IF(D54=Receitas!$I$13,"Receitas_Financeiras",IF(D54=Receitas!$L$13,"Outras_Receitas",IF(D54=Despesas!$C$13,"Despesas_com_Produto",IF(D54=Despesas!$F$13,"Despesas_com_Serviços",IF(D54=Despesas!$I$13,"Despesas_Administrativas",IF(D54=Despesas!$L$13,"Despesas_Operacionais",IF(D54=Despesas!$O$13,"Despesas_com_Pessoal",IF(D54=Despesas!$R$13,"Impostos",IF(D54=Despesas!$U$13,"Despesas_Não_Operacionais",IF(D54=Despesas!$X$13,"Outras_Despesas","")))))))))))) -> Outras_Receitas | R54: 0 | S54: 1 | T54: 1900
I55: 9990 | O55: =IFERROR(VLOOKUP(D55,Outros!$E$14:$F$25,2,0),"") -> Receita | P55: =IF(D55=Receitas!$C$13,"Receita_de_Vendas",IF(D55=Receitas!$F$13,"Receita_de_Serviços",IF(D55=Receitas!$I$13,"Receitas_Financeiras",IF(D55=Receitas!$L$13,"Outras_Receitas",IF(D55=Despesas!$C$13,"Despesas_com_Produto",IF(D55=Despesas!$F$13,"Despesas_com_Serviços",IF(D55=Despesas!$I$13,"Despesas_Administrativas",IF(D55=Despesas!$L$13,"Despesas_Operacionais",IF(D55=Despesas!$O$13,"Despesas_com_Pessoal",IF(D55=Despesas!$R$13,"Impostos",IF(D55=Despesas!$U$13,"Despesas_Não_Operacionais",IF(D55=Despesas!$X$13,"Outras_Despesas","")))))))))))) -> Outras_Receitas | R55: 0 | S55: 1 | T55: 1900
I56: 9990 | O56: =IFERROR(VLOOKUP(D56,Outros!$E$14:$F$25,2,0),"") -> Receita | P56: =IF(D56=Receitas!$C$13,"Receita_de_Vendas",IF(D56=Receitas!$F$13,"Receita_de_Serviços",IF(D56=Receitas!$I$13,"Receitas_Financeiras",IF(D56=Receitas!$L$13,"Outras_Receitas",IF(D56=Despesas!$C$13,"Despesas_com_Produto",IF(D56=Despesas!$F$13,"Despesas_com_Serviços",IF(D56=Despesas!$I$13,"Despesas_Administrativas",IF(D56=Despesas!$L$13,"Despesas_Operacionais",IF(D56=Despesas!$O$13,"Despesas_com_Pessoal",IF(D56=Despesas!$R$13,"Impostos",IF(D56=Despesas!$U$13,"Despesas_Não_Operacionais",IF(D56=Despesas!$X$13,"Outras_Despesas","")))))))))))) -> Outras_Receitas | R56: 0 | S56: 1 | T56: 1900
I57: 9990 | O57: =IFERROR(VLOOKUP(D57,Outros!$E$14:$F$25,2,0),"") -> Receita | P57: =IF(D57=Receitas!$C$13,"Receita_de_Vendas",IF(D57=Receitas!$F$13,"Receita_de_Serviços",IF(D57=Receitas!$I$13,"Receitas_Financeiras",IF(D57=Receitas!$L$13,"Outras_Receitas",IF(D57=Despesas!$C$13,"Despesas_com_Produto",IF(D57=Despesas!$F$13,"Despesas_com_Serviços",IF(D57=Despesas!$I$13,"Despesas_Administrativas",IF(D57=Despesas!$L$13,"Despesas_Operacionais",IF(D57=Despesas!$O$13,"Despesas_com_Pessoal",IF(D57=Despesas!$R$13,"Impostos",IF(D57=Despesas!$U$13,"Despesas_Não_Operacionais",IF(D57=Despesas!$X$13,"Outras_Despesas","")))))))))))) -> Outras_Receitas | R57: 0 | S57: 1 | T57: 1900
I58: 9990 | O58: =IFERROR(VLOOKUP(D58,Outros!$E$14:$F$25,2,0),"") -> Receita | P58: =IF(D58=Receitas!$C$13,"Receita_de_Vendas",IF(D58=Receitas!$F$13,"Receita_de_Serviços",IF(D58=Receitas!$I$13,"Receitas_Financeiras",IF(D58=Receitas!$L$13,"Outras_Receitas",IF(D58=Despesas!$C$13,"Despesas_com_Produto",IF(D58=Despesas!$F$13,"Despesas_com_Serviços",IF(D58=Despesas!$I$13,"Despesas_Administrativas",IF(D58=Despesas!$L$13,"Despesas_Operacionais",IF(D58=Despesas!$O$13,"Despesas_com_Pessoal",IF(D58=Despesas!$R$13,"Impostos",IF(D58=Despesas!$U$13,"Despesas_Não_Operacionais",IF(D58=Despesas!$X$13,"Outras_Despesas","")))))))))))) -> Outras_Receitas | R58: 0 | S58: 1 | T58: 1900
I59: 9990 | O59: =IFERROR(VLOOKUP(D59,Outros!$E$14:$F$25,2,0),"") -> Receita | P59: =IF(D59=Receitas!$C$13,"Receita_de_Vendas",IF(D59=Receitas!$F$13,"Receita_de_Serviços",IF(D59=Receitas!$I$13,"Receitas_Financeiras",IF(D59=Receitas!$L$13,"Outras_Receitas",IF(D59=Despesas!$C$13,"Despesas_com_Produto",IF(D59=Despesas!$F$13,"Despesas_com_Serviços",IF(D59=Despesas!$I$13,"Despesas_Administrativas",IF(D59=Despesas!$L$13,"Despesas_Operacionais",IF(D59=Despesas!$O$13,"Despesas_com_Pessoal",IF(D59=Despesas!$R$13,"Impostos",IF(D59=Despesas!$U$13,"Despesas_Não_Operacionais",IF(D59=Despesas!$X$13,"Outras_Despesas","")))))))))))) -> Outras_Receitas | R59: 0 | S59: 1 | T59: 1900
I60: 9990 | O60: =IFERROR(VLOOKUP(D60,Outros!$E$14:$F$25,2,0),"") -> Receita | P60: =IF(D60=Receitas!$C$13,"Receita_de_Vendas",IF(D60=Receitas!$F$13,"Receita_de_Serviços",IF(D60=Receitas!$I$13,"Receitas_Financeiras",IF(D60=Receitas!$L$13,"Outras_Receitas",IF(D60=Despesas!$C$13,"Despesas_com_Produto",IF(D60=Despesas!$F$13,"Despesas_com_Serviços",IF(D60=Despesas!$I$13,"Despesas_Administrativas",IF(D60=Despesas!$L$13,"Despesas_Operacionais",IF(D60=Despesas!$O$13,"Despesas_com_Pessoal",IF(D60=Despesas!$R$13,"Impostos",IF(D60=Despesas!$U$13,"Despesas_Não_Operacionais",IF(D60=Despesas!$X$13,"Outras_Despesas","")))))))))))) -> Outras_Receitas | R60: 0 | S60: 1 | T60: 1900
I61: 9990 | O61: =IFERROR(VLOOKUP(D61,Outros!$E$14:$F$25,2,0),"") -> Receita | P61: =IF(D61=Receitas!$C$13,"Receita_de_Vendas",IF(D61=Receitas!$F$13,"Receita_de_Serviços",IF(D61=Receitas!$I$13,"Receitas_Financeiras",IF(D61=Receitas!$L$13,"Outras_Receitas",IF(D61=Despesas!$C$13,"Despesas_com_Produto",IF(D61=Despesas!$F$13,"Despesas_com_Serviços",IF(D61=Despesas!$I$13,"Despesas_Administrativas",IF(D61=Despesas!$L$13,"Despesas_Operacionais",IF(D61=Despesas!$O$13,"Despesas_com_Pessoal",IF(D61=Despesas!$R$13,"Impostos",IF(D61=Despesas!$U$13,"Despesas_Não_Operacionais",IF(D61=Despesas!$X$13,"Outras_Despesas","")))))))))))) -> Outras_Receitas | R61: 0 | S61: 1 | T61: 1900
I62: 9990 | O62: =IFERROR(VLOOKUP(D62,Outros!$E$14:$F$25,2,0),"") -> Receita | P62: =IF(D62=Receitas!$C$13,"Receita_de_Vendas",IF(D62=Receitas!$F$13,"Receita_de_Serviços",IF(D62=Receitas!$I$13,"Receitas_Financeiras",IF(D62=Receitas!$L$13,"Outras_Receitas",IF(D62=Despesas!$C$13,"Despesas_com_Produto",IF(D62=Despesas!$F$13,"Despesas_com_Serviços",IF(D62=Despesas!$I$13,"Despesas_Administrativas",IF(D62=Despesas!$L$13,"Despesas_Operacionais",IF(D62=Despesas!$O$13,"Despesas_com_Pessoal",IF(D62=Despesas!$R$13,"Impostos",IF(D62=Despesas!$U$13,"Despesas_Não_Operacionais",IF(D62=Despesas!$X$13,"Outras_Despesas","")))))))))))) -> Outras_Receitas | R62: 0 | S62: 1 | T62: 1900
I63: 9990 | O63: =IFERROR(VLOOKUP(D63,Outros!$E$14:$F$25,2,0),"") -> Receita | P63: =IF(D63=Receitas!$C$13,"Receita_de_Vendas",IF(D63=Receitas!$F$13,"Receita_de_Serviços",IF(D63=Receitas!$I$13,"Receitas_Financeiras",IF(D63=Receitas!$L$13,"Outras_Receitas",IF(D63=Despesas!$C$13,"Despesas_com_Produto",IF(D63=Despesas!$F$13,"Despesas_com_Serviços",IF(D63=Despesas!$I$13,"Despesas_Administrativas",IF(D63=Despesas!$L$13,"Despesas_Operacionais",IF(D63=Despesas!$O$13,"Despesas_com_Pessoal",IF(D63=Despesas!$R$13,"Impostos",IF(D63=Despesas!$U$13,"Despesas_Não_Operacionais",IF(D63=Despesas!$X$13,"Outras_Despesas","")))))))))))) -> Outras_Receitas | R63: 0 | S63: 1 | T63: 1900
I64: 9990 | O64: =IFERROR(VLOOKUP(D64,Outros!$E$14:$F$25,2,0),"") -> Receita | P64: =IF(D64=Receitas!$C$13,"Receita_de_Vendas",IF(D64=Receitas!$F$13,"Receita_de_Serviços",IF(D64=Receitas!$I$13,"Receitas_Financeiras",IF(D64=Receitas!$L$13,"Outras_Receitas",IF(D64=Despesas!$C$13,"Despesas_com_Produto",IF(D64=Despesas!$F$13,"Despesas_com_Serviços",IF(D64=Despesas!$I$13,"Despesas_Administrativas",IF(D64=Despesas!$L$13,"Despesas_Operacionais",IF(D64=Despesas!$O$13,"Despesas_com_Pessoal",IF(D64=Despesas!$R$13,"Impostos",IF(D64=Despesas!$U$13,"Despesas_Não_Operacionais",IF(D64=Despesas!$X$13,"Outras_Despesas","")))))))))))) -> Outras_Receitas | R64: 0 | S64: 1 | T64: 1900
I65: 9990 | O65: =IFERROR(VLOOKUP(D65,Outros!$E$14:$F$25,2,0),"") -> Receita | P65: =IF(D65=Receitas!$C$13,"Receita_de_Vendas",IF(D65=Receitas!$F$13,"Receita_de_Serviços",IF(D65=Receitas!$I$13,"Receitas_Financeiras",IF(D65=Receitas!$L$13,"Outras_Receitas",IF(D65=Despesas!$C$13,"Despesas_com_Produto",IF(D65=Despesas!$F$13,"Despesas_com_Serviços",IF(D65=Despesas!$I$13,"Despesas_Administrativas",IF(D65=Despesas!$L$13,"Despesas_Operacionais",IF(D65=Despesas!$O$13,"Despesas_com_Pessoal",IF(D65=Despesas!$R$13,"Impostos",IF(D65=Despesas!$U$13,"Despesas_Não_Operacionais",IF(D65=Despesas!$X$13,"Outras_Despesas","")))))))))))) -> Outras_Receitas | R65: 0 | S65: 1 | T65: 1900
I66: 9990 | O66: =IFERROR(VLOOKUP(D66,Outros!$E$14:$F$25,2,0),"") -> Receita | P66: =IF(D66=Receitas!$C$13,"Receita_de_Vendas",IF(D66=Receitas!$F$13,"Receita_de_Serviços",IF(D66=Receitas!$I$13,"Receitas_Financeiras",IF(D66=Receitas!$L$13,"Outras_Receitas",IF(D66=Despesas!$C$13,"Despesas_com_Produto",IF(D66=Despesas!$F$13,"Despesas_com_Serviços",IF(D66=Despesas!$I$13,"Despesas_Administrativas",IF(D66=Despesas!$L$13,"Despesas_Operacionais",IF(D66=Despesas!$O$13,"Despesas_com_Pessoal",IF(D66=Despesas!$R$13,"Impostos",IF(D66=Despesas!$U$13,"Despesas_Não_Operacionais",IF(D66=Despesas!$X$13,"Outras_Despesas","")))))))))))) -> Outras_Receitas | R66: 0 | S66: 1 | T66: 1900
I67: 9990 | O67: =IFERROR(VLOOKUP(D67,Outros!$E$14:$F$25,2,0),"") -> Receita | P67: =IF(D67=Receitas!$C$13,"Receita_de_Vendas",IF(D67=Receitas!$F$13,"Receita_de_Serviços",IF(D67=Receitas!$I$13,"Receitas_Financeiras",IF(D67=Receitas!$L$13,"Outras_Receitas",IF(D67=Despesas!$C$13,"Despesas_com_Produto",IF(D67=Despesas!$F$13,"Despesas_com_Serviços",IF(D67=Despesas!$I$13,"Despesas_Administrativas",IF(D67=Despesas!$L$13,"Despesas_Operacionais",IF(D67=Despesas!$O$13,"Despesas_com_Pessoal",IF(D67=Despesas!$R$13,"Impostos",IF(D67=Despesas!$U$13,"Despesas_Não_Operacionais",IF(D67=Despesas!$X$13,"Outras_Despesas","")))))))))))) -> Outras_Receitas | R67: 0 | S67: 1 | T67: 1900
I68: 9990 | O68: =IFERROR(VLOOKUP(D68,Outros!$E$14:$F$25,2,0),"") -> Receita | P68: =IF(D68=Receitas!$C$13,"Receita_de_Vendas",IF(D68=Receitas!$F$13,"Receita_de_Serviços",IF(D68=Receitas!$I$13,"Receitas_Financeiras",IF(D68=Receitas!$L$13,"Outras_Receitas",IF(D68=Despesas!$C$13,"Despesas_com_Produto",IF(D68=Despesas!$F$13,"Despesas_com_Serviços",IF(D68=Despesas!$I$13,"Despesas_Administrativas",IF(D68=Despesas!$L$13,"Despesas_Operacionais",IF(D68=Despesas!$O$13,"Despesas_com_Pessoal",IF(D68=Despesas!$R$13,"Impostos",IF(D68=Despesas!$U$13,"Despesas_Não_Operacionais",IF(D68=Despesas!$X$13,"Outras_Despesas","")))))))))))) -> Outras_Receitas | R68: 0 | S68: 1 | T68: 1900
I69: 9990 | O69: =IFERROR(VLOOKUP(D69,Outros!$E$14:$F$25,2,0),"") -> Receita | P69: =IF(D69=Receitas!$C$13,"Receita_de_Vendas",IF(D69=Receitas!$F$13,"Receita_de_Serviços",IF(D69=Receitas!$I$13,"Receitas_Financeiras",IF(D69=Receitas!$L$13,"Outras_Receitas",IF(D69=Despesas!$C$13,"Despesas_com_Produto",IF(D69=Despesas!$F$13,"Despesas_com_Serviços",IF(D69=Despesas!$I$13,"Despesas_Administrativas",IF(D69=Despesas!$L$13,"Despesas_Operacionais",IF(D69=Despesas!$O$13,"Despesas_com_Pessoal",IF(D69=Despesas!$R$13,"Impostos",IF(D69=Despesas!$U$13,"Despesas_Não_Operacionais",IF(D69=Despesas!$X$13,"Outras_Despesas","")))))))))))) -> Outras_Receitas | R69: 0 | S69: 1 | T69: 1900
I70: 9990 | O70: =IFERROR(VLOOKUP(D70,Outros!$E$14:$F$25,2,0),"") -> Receita | P70: =IF(D70=Receitas!$C$13,"Receita_de_Vendas",IF(D70=Receitas!$F$13,"Receita_de_Serviços",IF(D70=Receitas!$I$13,"Receitas_Financeiras",IF(D70=Receitas!$L$13,"Outras_Receitas",IF(D70=Despesas!$C$13,"Despesas_com_Produto",IF(D70=Despesas!$F$13,"Despesas_com_Serviços",IF(D70=Despesas!$I$13,"Despesas_Administrativas",IF(D70=Despesas!$L$13,"Despesas_Operacionais",IF(D70=Despesas!$O$13,"Despesas_com_Pessoal",IF(D70=Despesas!$R$13,"Impostos",IF(D70=Despesas!$U$13,"Despesas_Não_Operacionais",IF(D70=Despesas!$X$13,"Outras_Despesas","")))))))))))) -> Outras_Receitas | R70: 0 | S70: 1 | T70: 1900
I71: 9990 | O71: =IFERROR(VLOOKUP(D71,Outros!$E$14:$F$25,2,0),"") -> Receita | P71: =IF(D71=Receitas!$C$13,"Receita_de_Vendas",IF(D71=Receitas!$F$13,"Receita_de_Serviços",IF(D71=Receitas!$I$13,"Receitas_Financeiras",IF(D71=Receitas!$L$13,"Outras_Receitas",IF(D71=Despesas!$C$13,"Despesas_com_Produto",IF(D71=Despesas!$F$13,"Despesas_com_Serviços",IF(D71=Despesas!$I$13,"Despesas_Administrativas",IF(D71=Despesas!$L$13,"Despesas_Operacionais",IF(D71=Despesas!$O$13,"Despesas_com_Pessoal",IF(D71=Despesas!$R$13,"Impostos",IF(D71=Despesas!$U$13,"Despesas_Não_Operacionais",IF(D71=Despesas!$X$13,"Outras_Despesas","")))))))))))) -> Outras_Receitas | R71: 0 | S71: 1 | T71: 1900
I72: 9990 | O72: =IFERROR(VLOOKUP(D72,Outros!$E$14:$F$25,2,0),"") -> Receita | P72: =IF(D72=Receitas!$C$13,"Receita_de_Vendas",IF(D72=Receitas!$F$13,"Receita_de_Serviços",IF(D72=Receitas!$I$13,"Receitas_Financeiras",IF(D72=Receitas!$L$13,"Outras_Receitas",IF(D72=Despesas!$C$13,"Despesas_com_Produto",IF(D72=Despesas!$F$13,"Despesas_com_Serviços",IF(D72=Despesas!$I$13,"Despesas_Administrativas",IF(D72=Despesas!$L$13,"Despesas_Operacionais",IF(D72=Despesas!$O$13,"Despesas_com_Pessoal",IF(D72=Despesas!$R$13,"Impostos",IF(D72=Despesas!$U$13,"Despesas_Não_Operacionais",IF(D72=Despesas!$X$13,"Outras_Despesas","")))))))))))) -> Outras_Receitas | R72: 0 | S72: 1 | T72: 1900
I73: 9990 | O73: =IFERROR(VLOOKUP(D73,Outros!$E$14:$F$25,2,0),"") -> Receita | P73: =IF(D73=Receitas!$C$13,"Receita_de_Vendas",IF(D73=Receitas!$F$13,"Receita_de_Serviços",IF(D73=Receitas!$I$13,"Receitas_Financeiras",IF(D73=Receitas!$L$13,"Outras_Receitas",IF(D73=Despesas!$C$13,"Despesas_com_Produto",IF(D73=Despesas!$F$13,"Despesas_com_Serviços",IF(D73=Despesas!$I$13,"Despesas_Administrativas",IF(D73=Despesas!$L$13,"Despesas_Operacionais",IF(D73=Despesas!$O$13,"Despesas_com_Pessoal",IF(D73=Despesas!$R$13,"Impostos",IF(D73=Despesas!$U$13,"Despesas_Não_Operacionais",IF(D73=Despesas!$X$13,"Outras_Despesas","")))))))))))) -> Outras_Receitas | R73: 0 | S73: 1 | T73: 1900
I74: 9990 | O74: =IFERROR(VLOOKUP(D74,Outros!$E$14:$F$25,2,0),"") -> Receita | P74: =IF(D74=Receitas!$C$13,"Receita_de_Vendas",IF(D74=Receitas!$F$13,"Receita_de_Serviços",IF(D74=Receitas!$I$13,"Receitas_Financeiras",IF(D74=Receitas!$L$13,"Outras_Receitas",IF(D74=Despesas!$C$13,"Despesas_com_Produto",IF(D74=Despesas!$F$13,"Despesas_com_Serviços",IF(D74=Despesas!$I$13,"Despesas_Administrativas",IF(D74=Despesas!$L$13,"Despesas_Operacionais",IF(D74=Despesas!$O$13,"Despesas_com_Pessoal",IF(D74=Despesas!$R$13,"Impostos",IF(D74=Despesas!$U$13,"Despesas_Não_Operacionais",IF(D74=Despesas!$X$13,"Outras_Despesas","")))))))))))) -> Outras_Receitas | R74: 0 | S74: 1 | T74: 1900
I75: 9990 | O75: =IFERROR(VLOOKUP(D75,Outros!$E$14:$F$25,2,0),"") -> Receita | P75: =IF(D75=Receitas!$C$13,"Receita_de_Vendas",IF(D75=Receitas!$F$13,"Receita_de_Serviços",IF(D75=Receitas!$I$13,"Receitas_Financeiras",IF(D75=Receitas!$L$13,"Outras_Receitas",IF(D75=Despesas!$C$13,"Despesas_com_Produto",IF(D75=Despesas!$F$13,"Despesas_com_Serviços",IF(D75=Despesas!$I$13,"Despesas_Administrativas",IF(D75=Despesas!$L$13,"Despesas_Operacionais",IF(D75=Despesas!$O$13,"Despesas_com_Pessoal",IF(D75=Despesas!$R$13,"Impostos",IF(D75=Despesas!$U$13,"Despesas_Não_Operacionais",IF(D75=Despesas!$X$13,"Outras_Despesas","")))))))))))) -> Outras_Receitas | R75: 0 | S75: 1 | T75: 1900
I76: 9990 | O76: =IFERROR(VLOOKUP(D76,Outros!$E$14:$F$25,2,0),"") -> Receita | P76: =IF(D76=Receitas!$C$13,"Receita_de_Vendas",IF(D76=Receitas!$F$13,"Receita_de_Serviços",IF(D76=Receitas!$I$13,"Receitas_Financeiras",IF(D76=Receitas!$L$13,"Outras_Receitas",IF(D76=Despesas!$C$13,"Despesas_com_Produto",IF(D76=Despesas!$F$13,"Despesas_com_Serviços",IF(D76=Despesas!$I$13,"Despesas_Administrativas",IF(D76=Despesas!$L$13,"Despesas_Operacionais",IF(D76=Despesas!$O$13,"Despesas_com_Pessoal",IF(D76=Despesas!$R$13,"Impostos",IF(D76=Despesas!$U$13,"Despesas_Não_Operacionais",IF(D76=Despesas!$X$13,"Outras_Despesas","")))))))))))) -> Outras_Receitas | R76: 0 | S76: 1 | T76: 1900
I77: 9990 | O77: =IFERROR(VLOOKUP(D77,Outros!$E$14:$F$25,2,0),"") -> Receita | P77: =IF(D77=Receitas!$C$13,"Receita_de_Vendas",IF(D77=Receitas!$F$13,"Receita_de_Serviços",IF(D77=Receitas!$I$13,"Receitas_Financeiras",IF(D77=Receitas!$L$13,"Outras_Receitas",IF(D77=Despesas!$C$13,"Despesas_com_Produto",IF(D77=Despesas!$F$13,"Despesas_com_Serviços",IF(D77=Despesas!$I$13,"Despesas_Administrativas",IF(D77=Despesas!$L$13,"Despesas_Operacionais",IF(D77=Despesas!$O$13,"Despesas_com_Pessoal",IF(D77=Despesas!$R$13,"Impostos",IF(D77=Despesas!$U$13,"Despesas_Não_Operacionais",IF(D77=Despesas!$X$13,"Outras_Despesas","")))))))))))) -> Outras_Receitas | R77: 0 | S77: 1 | T77: 1900
I78: 9990 | O78: =IFERROR(VLOOKUP(D78,Outros!$E$14:$F$25,2,0),"") -> Receita | P78: =IF(D78=Receitas!$C$13,"Receita_de_Vendas",IF(D78=Receitas!$F$13,"Receita_de_Serviços",IF(D78=Receitas!$I$13,"Receitas_Financeiras",IF(D78=Receitas!$L$13,"Outras_Receitas",IF(D78=Despesas!$C$13,"Despesas_com_Produto",IF(D78=Despesas!$F$13,"Despesas_com_Serviços",IF(D78=Despesas!$I$13,"Despesas_Administrativas",IF(D78=Despesas!$L$13,"Despesas_Operacionais",IF(D78=Despesas!$O$13,"Despesas_com_Pessoal",IF(D78=Despesas!$R$13,"Impostos",IF(D78=Despesas!$U$13,"Despesas_Não_Operacionais",IF(D78=Despesas!$X$13,"Outras_Despesas","")))))))))))) -> Outras_Receitas | R78: =DAY(B78) -> 0 | S78: =MONTH(B78) -> 1 | T78: =YEAR(B78) -> 1900
I79: 9990 | O79: =IFERROR(VLOOKUP(D79,Outros!$E$14:$F$25,2,0),"") -> Receita | P79: =IF(D79=Receitas!$C$13,"Receita_de_Vendas",IF(D79=Receitas!$F$13,"Receita_de_Serviços",IF(D79=Receitas!$I$13,"Receitas_Financeiras",IF(D79=Receitas!$L$13,"Outras_Receitas",IF(D79=Despesas!$C$13,"Despesas_com_Produto",IF(D79=Despesas!$F$13,"Despesas_com_Serviços",IF(D79=Despesas!$I$13,"Despesas_Administrativas",IF(D79=Despesas!$L$13,"Despesas_Operacionais",IF(D79=Despesas!$O$13,"Despesas_com_Pessoal",IF(D79=Despesas!$R$13,"Impostos",IF(D79=Despesas!$U$13,"Despesas_Não_Operacionais",IF(D79=Despesas!$X$13,"Outras_Despesas","")))))))))))) -> Outras_Receitas | R79: 0 | S79: 1 | T79: 1900
I80: =I79+IF(AND(G80="Pago",O80="Receita"),H80,IF(AND(G80="Pago",O80="Despesa"),-H80,0)) -> 9990 | O80: =IFERROR(VLOOKUP(D80,Outros!$E$14:$F$25,2,0),"") -> Receita | P80: =IF(D80=Receitas!$C$13,"Receita_de_Vendas",IF(D80=Receitas!$F$13,"Receita_de_Serviços",IF(D80=Receitas!$I$13,"Receitas_Financeiras",IF(D80=Receitas!$L$13,"Outras_Receitas",IF(D80=Despesas!$C$13,"Despesas_com_Produto",IF(D80=Despesas!$F$13,"Despesas_com_Serviços",IF(D80=Despesas!$I$13,"Despesas_Administrativas",IF(D80=Despesas!$L$13,"Despesas_Operacionais",IF(D80=Despesas!$O$13,"Despesas_com_Pessoal",IF(D80=Despesas!$R$13,"Impostos",IF(D80=Despesas!$U$13,"Despesas_Não_Operacionais",IF(D80=Despesas!$X$13,"Outras_Despesas","")))))))))))) -> Outras_Receitas | R80: 0 | S80: 1 | T80: 1900
I81: 9990 | O81: =IFERROR(VLOOKUP(D81,Outros!$E$14:$F$25,2,0),"") -> Receita | P81: =IF(D81=Receitas!$C$13,"Receita_de_Vendas",IF(D81=Receitas!$F$13,"Receita_de_Serviços",IF(D81=Receitas!$I$13,"Receitas_Financeiras",IF(D81=Receitas!$L$13,"Outras_Receitas",IF(D81=Despesas!$C$13,"Despesas_com_Produto",IF(D81=Despesas!$F$13,"Despesas_com_Serviços",IF(D81=Despesas!$I$13,"Despesas_Administrativas",IF(D81=Despesas!$L$13,"Despesas_Operacionais",IF(D81=Despesas!$O$13,"Despesas_com_Pessoal",IF(D81=Despesas!$R$13,"Impostos",IF(D81=Despesas!$U$13,"Despesas_Não_Operacionais",IF(D81=Despesas!$X$13,"Outras_Despesas","")))))))))))) -> Outras_Receitas | R81: 0 | S81: 1 | T81: 1900
I82: 9990 | O82: =IFERROR(VLOOKUP(D82,Outros!$E$14:$F$25,2,0),"") -> Receita | P82: =IF(D82=Receitas!$C$13,"Receita_de_Vendas",IF(D82=Receitas!$F$13,"Receita_de_Serviços",IF(D82=Receitas!$I$13,"Receitas_Financeiras",IF(D82=Receitas!$L$13,"Outras_Receitas",IF(D82=Despesas!$C$13,"Despesas_com_Produto",IF(D82=Despesas!$F$13,"Despesas_com_Serviços",IF(D82=Despesas!$I$13,"Despesas_Administrativas",IF(D82=Despesas!$L$13,"Despesas_Operacionais",IF(D82=Despesas!$O$13,"Despesas_com_Pessoal",IF(D82=Despesas!$R$13,"Impostos",IF(D82=Despesas!$U$13,"Despesas_Não_Operacionais",IF(D82=Despesas!$X$13,"Outras_Despesas","")))))))))))) -> Outras_Receitas | R82: 0 | S82: 1 | T82: 1900
I83: 9990 | O83: =IFERROR(VLOOKUP(D83,Outros!$E$14:$F$25,2,0),"") -> Receita | P83: =IF(D83=Receitas!$C$13,"Receita_de_Vendas",IF(D83=Receitas!$F$13,"Receita_de_Serviços",IF(D83=Receitas!$I$13,"Receitas_Financeiras",IF(D83=Receitas!$L$13,"Outras_Receitas",IF(D83=Despesas!$C$13,"Despesas_com_Produto",IF(D83=Despesas!$F$13,"Despesas_com_Serviços",IF(D83=Despesas!$I$13,"Despesas_Administrativas",IF(D83=Despesas!$L$13,"Despesas_Operacionais",IF(D83=Despesas!$O$13,"Despesas_com_Pessoal",IF(D83=Despesas!$R$13,"Impostos",IF(D83=Despesas!$U$13,"Despesas_Não_Operacionais",IF(D83=Despesas!$X$13,"Outras_Despesas","")))))))))))) -> Outras_Receitas | R83: 0 | S83: 1 | T83: 1900
I84: 9990 | O84: =IFERROR(VLOOKUP(D84,Outros!$E$14:$F$25,2,0),"") -> Receita | P84: =IF(D84=Receitas!$C$13,"Receita_de_Vendas",IF(D84=Receitas!$F$13,"Receita_de_Serviços",IF(D84=Receitas!$I$13,"Receitas_Financeiras",IF(D84=Receitas!$L$13,"Outras_Receitas",IF(D84=Despesas!$C$13,"Despesas_com_Produto",IF(D84=Despesas!$F$13,"Despesas_com_Serviços",IF(D84=Despesas!$I$13,"Despesas_Administrativas",IF(D84=Despesas!$L$13,"Despesas_Operacionais",IF(D84=Despesas!$O$13,"Despesas_com_Pessoal",IF(D84=Despesas!$R$13,"Impostos",IF(D84=Despesas!$U$13,"Despesas_Não_Operacionais",IF(D84=Despesas!$X$13,"Outras_Despesas","")))))))))))) -> Outras_Receitas | R84: 0 | S84: 1 | T84: 1900
I85: 9990 | O85: =IFERROR(VLOOKUP(D85,Outros!$E$14:$F$25,2,0),"") -> Receita | P85: =IF(D85=Receitas!$C$13,"Receita_de_Vendas",IF(D85=Receitas!$F$13,"Receita_de_Serviços",IF(D85=Receitas!$I$13,"Receitas_Financeiras",IF(D85=Receitas!$L$13,"Outras_Receitas",IF(D85=Despesas!$C$13,"Despesas_com_Produto",IF(D85=Despesas!$F$13,"Despesas_com_Serviços",IF(D85=Despesas!$I$13,"Despesas_Administrativas",IF(D85=Despesas!$L$13,"Despesas_Operacionais",IF(D85=Despesas!$O$13,"Despesas_com_Pessoal",IF(D85=Despesas!$R$13,"Impostos",IF(D85=Despesas!$U$13,"Despesas_Não_Operacionais",IF(D85=Despesas!$X$13,"Outras_Despesas","")))))))))))) -> Outras_Receitas | R85: 0 | S85: 1 | T85: 1900
I86: 9990 | O86: =IFERROR(VLOOKUP(D86,Outros!$E$14:$F$25,2,0),"") -> Receita | P86: =IF(D86=Receitas!$C$13,"Receita_de_Vendas",IF(D86=Receitas!$F$13,"Receita_de_Serviços",IF(D86=Receitas!$I$13,"Receitas_Financeiras",IF(D86=Receitas!$L$13,"Outras_Receitas",IF(D86=Despesas!$C$13,"Despesas_com_Produto",IF(D86=Despesas!$F$13,"Despesas_com_Serviços",IF(D86=Despesas!$I$13,"Despesas_Administrativas",IF(D86=Despesas!$L$13,"Despesas_Operacionais",IF(D86=Despesas!$O$13,"Despesas_com_Pessoal",IF(D86=Despesas!$R$13,"Impostos",IF(D86=Despesas!$U$13,"Despesas_Não_Operacionais",IF(D86=Despesas!$X$13,"Outras_Despesas","")))))))))))) -> Outras_Receitas | R86: 0 | S86: 1 | T86: 1900
I87: 9990 | O87: =IFERROR(VLOOKUP(D87,Outros!$E$14:$F$25,2,0),"") -> Receita | P87: =IF(D87=Receitas!$C$13,"Receita_de_Vendas",IF(D87=Receitas!$F$13,"Receita_de_Serviços",IF(D87=Receitas!$I$13,"Receitas_Financeiras",IF(D87=Receitas!$L$13,"Outras_Receitas",IF(D87=Despesas!$C$13,"Despesas_com_Produto",IF(D87=Despesas!$F$13,"Despesas_com_Serviços",IF(D87=Despesas!$I$13,"Despesas_Administrativas",IF(D87=Despesas!$L$13,"Despesas_Operacionais",IF(D87=Despesas!$O$13,"Despesas_com_Pessoal",IF(D87=Despesas!$R$13,"Impostos",IF(D87=Despesas!$U$13,"Despesas_Não_Operacionais",IF(D87=Despesas!$X$13,"Outras_Despesas","")))))))))))) -> Outras_Receitas | R87: 0 | S87: 1 | T87: 1900
I88: 9990 | O88: =IFERROR(VLOOKUP(D88,Outros!$E$14:$F$25,2,0),"") -> Receita | P88: =IF(D88=Receitas!$C$13,"Receita_de_Vendas",IF(D88=Receitas!$F$13,"Receita_de_Serviços",IF(D88=Receitas!$I$13,"Receitas_Financeiras",IF(D88=Receitas!$L$13,"Outras_Receitas",IF(D88=Despesas!$C$13,"Despesas_com_Produto",IF(D88=Despesas!$F$13,"Despesas_com_Serviços",IF(D88=Despesas!$I$13,"Despesas_Administrativas",IF(D88=Despesas!$L$13,"Despesas_Operacionais",IF(D88=Despesas!$O$13,"Despesas_com_Pessoal",IF(D88=Despesas!$R$13,"Impostos",IF(D88=Despesas!$U$13,"Despesas_Não_Operacionais",IF(D88=Despesas!$X$13,"Outras_Despesas","")))))))))))) -> Outras_Receitas | R88: 0 | S88: 1 | T88: 1900
I89: 9990 | O89: =IFERROR(VLOOKUP(D89,Outros!$E$14:$F$25,2,0),"") -> Receita | P89: =IF(D89=Receitas!$C$13,"Receita_de_Vendas",IF(D89=Receitas!$F$13,"Receita_de_Serviços",IF(D89=Receitas!$I$13,"Receitas_Financeiras",IF(D89=Receitas!$L$13,"Outras_Receitas",IF(D89=Despesas!$C$13,"Despesas_com_Produto",IF(D89=Despesas!$F$13,"Despesas_com_Serviços",IF(D89=Despesas!$I$13,"Despesas_Administrativas",IF(D89=Despesas!$L$13,"Despesas_Operacionais",IF(D89=Despesas!$O$13,"Despesas_com_Pessoal",IF(D89=Despesas!$R$13,"Impostos",IF(D89=Despesas!$U$13,"Despesas_Não_Operacionais",IF(D89=Despesas!$X$13,"Outras_Despesas","")))))))))))) -> Outras_Receitas | R89: 0 | S89: 1 | T89: 1900
I90: 9990 | O90: =IFERROR(VLOOKUP(D90,Outros!$E$14:$F$25,2,0),"") -> Receita | P90: =IF(D90=Receitas!$C$13,"Receita_de_Vendas",IF(D90=Receitas!$F$13,"Receita_de_Serviços",IF(D90=Receitas!$I$13,"Receitas_Financeiras",IF(D90=Receitas!$L$13,"Outras_Receitas",IF(D90=Despesas!$C$13,"Despesas_com_Produto",IF(D90=Despesas!$F$13,"Despesas_com_Serviços",IF(D90=Despesas!$I$13,"Despesas_Administrativas",IF(D90=Despesas!$L$13,"Despesas_Operacionais",IF(D90=Despesas!$O$13,"Despesas_com_Pessoal",IF(D90=Despesas!$R$13,"Impostos",IF(D90=Despesas!$U$13,"Despesas_Não_Operacionais",IF(D90=Despesas!$X$13,"Outras_Despesas","")))))))))))) -> Outras_Receitas | R90: 0 | S90: 1 | T90: 1900
I91: 9990 | O91: =IFERROR(VLOOKUP(D91,Outros!$E$14:$F$25,2,0),"") -> Receita | P91: =IF(D91=Receitas!$C$13,"Receita_de_Vendas",IF(D91=Receitas!$F$13,"Receita_de_Serviços",IF(D91=Receitas!$I$13,"Receitas_Financeiras",IF(D91=Receitas!$L$13,"Outras_Receitas",IF(D91=Despesas!$C$13,"Despesas_com_Produto",IF(D91=Despesas!$F$13,"Despesas_com_Serviços",IF(D91=Despesas!$I$13,"Despesas_Administrativas",IF(D91=Despesas!$L$13,"Despesas_Operacionais",IF(D91=Despesas!$O$13,"Despesas_com_Pessoal",IF(D91=Despesas!$R$13,"Impostos",IF(D91=Despesas!$U$13,"Despesas_Não_Operacionais",IF(D91=Despesas!$X$13,"Outras_Despesas","")))))))))))) -> Outras_Receitas | R91: 0 | S91: 1 | T91: 1900
I92: 9990 | O92: =IFERROR(VLOOKUP(D92,Outros!$E$14:$F$25,2,0),"") -> Receita | P92: =IF(D92=Receitas!$C$13,"Receita_de_Vendas",IF(D92=Receitas!$F$13,"Receita_de_Serviços",IF(D92=Receitas!$I$13,"Receitas_Financeiras",IF(D92=Receitas!$L$13,"Outras_Receitas",IF(D92=Despesas!$C$13,"Despesas_com_Produto",IF(D92=Despesas!$F$13,"Despesas_com_Serviços",IF(D92=Despesas!$I$13,"Despesas_Administrativas",IF(D92=Despesas!$L$13,"Despesas_Operacionais",IF(D92=Despesas!$O$13,"Despesas_com_Pessoal",IF(D92=Despesas!$R$13,"Impostos",IF(D92=Despesas!$U$13,"Despesas_Não_Operacionais",IF(D92=Despesas!$X$13,"Outras_Despesas","")))))))))))) -> Outras_Receitas | R92: 0 | S92: 1 | T92: 1900
I93: 9990 | O93: =IFERROR(VLOOKUP(D93,Outros!$E$14:$F$25,2,0),"") -> Receita | P93: =IF(D93=Receitas!$C$13,"Receita_de_Vendas",IF(D93=Receitas!$F$13,"Receita_de_Serviços",IF(D93=Receitas!$I$13,"Receitas_Financeiras",IF(D93=Receitas!$L$13,"Outras_Receitas",IF(D93=Despesas!$C$13,"Despesas_com_Produto",IF(D93=Despesas!$F$13,"Despesas_com_Serviços",IF(D93=Despesas!$I$13,"Despesas_Administrativas",IF(D93=Despesas!$L$13,"Despesas_Operacionais",IF(D93=Despesas!$O$13,"Despesas_com_Pessoal",IF(D93=Despesas!$R$13,"Impostos",IF(D93=Despesas!$U$13,"Despesas_Não_Operacionais",IF(D93=Despesas!$X$13,"Outras_Despesas","")))))))))))) -> Outras_Receitas | R93: 0 | S93: 1 | T93: 1900
I94: 9990 | O94: =IFERROR(VLOOKUP(D94,Outros!$E$14:$F$25,2,0),"") -> Receita | P94: =IF(D94=Receitas!$C$13,"Receita_de_Vendas",IF(D94=Receitas!$F$13,"Receita_de_Serviços",IF(D94=Receitas!$I$13,"Receitas_Financeiras",IF(D94=Receitas!$L$13,"Outras_Receitas",IF(D94=Despesas!$C$13,"Despesas_com_Produto",IF(D94=Despesas!$F$13,"Despesas_com_Serviços",IF(D94=Despesas!$I$13,"Despesas_Administrativas",IF(D94=Despesas!$L$13,"Despesas_Operacionais",IF(D94=Despesas!$O$13,"Despesas_com_Pessoal",IF(D94=Despesas!$R$13,"Impostos",IF(D94=Despesas!$U$13,"Despesas_Não_Operacionais",IF(D94=Despesas!$X$13,"Outras_Despesas","")))))))))))) -> Outras_Receitas | R94: 0 | S94: 1 | T94: 1900
I95: 9990 | O95: =IFERROR(VLOOKUP(D95,Outros!$E$14:$F$25,2,0),"") -> Receita | P95: =IF(D95=Receitas!$C$13,"Receita_de_Vendas",IF(D95=Receitas!$F$13,"Receita_de_Serviços",IF(D95=Receitas!$I$13,"Receitas_Financeiras",IF(D95=Receitas!$L$13,"Outras_Receitas",IF(D95=Despesas!$C$13,"Despesas_com_Produto",IF(D95=Despesas!$F$13,"Despesas_com_Serviços",IF(D95=Despesas!$I$13,"Despesas_Administrativas",IF(D95=Despesas!$L$13,"Despesas_Operacionais",IF(D95=Despesas!$O$13,"Despesas_com_Pessoal",IF(D95=Despesas!$R$13,"Impostos",IF(D95=Despesas!$U$13,"Despesas_Não_Operacionais",IF(D95=Despesas!$X$13,"Outras_Despesas","")))))))))))) -> Outras_Receitas | R95: 0 | S95: 1 | T95: 1900
I96: 9990 | O96: =IFERROR(VLOOKUP(D96,Outros!$E$14:$F$25,2,0),"") -> Receita | P96: =IF(D96=Receitas!$C$13,"Receita_de_Vendas",IF(D96=Receitas!$F$13,"Receita_de_Serviços",IF(D96=Receitas!$I$13,"Receitas_Financeiras",IF(D96=Receitas!$L$13,"Outras_Receitas",IF(D96=Despesas!$C$13,"Despesas_com_Produto",IF(D96=Despesas!$F$13,"Despesas_com_Serviços",IF(D96=Despesas!$I$13,"Despesas_Administrativas",IF(D96=Despesas!$L$13,"Despesas_Operacionais",IF(D96=Despesas!$O$13,"Despesas_com_Pessoal",IF(D96=Despesas!$R$13,"Impostos",IF(D96=Despesas!$U$13,"Despesas_Não_Operacionais",IF(D96=Despesas!$X$13,"Outras_Despesas","")))))))))))) -> Outras_Receitas | R96: 0 | S96: 1 | T96: 1900
I97: 9990 | O97: =IFERROR(VLOOKUP(D97,Outros!$E$14:$F$25,2,0),"") -> Receita | P97: =IF(D97=Receitas!$C$13,"Receita_de_Vendas",IF(D97=Receitas!$F$13,"Receita_de_Serviços",IF(D97=Receitas!$I$13,"Receitas_Financeiras",IF(D97=Receitas!$L$13,"Outras_Receitas",IF(D97=Despesas!$C$13,"Despesas_com_Produto",IF(D97=Despesas!$F$13,"Despesas_com_Serviços",IF(D97=Despesas!$I$13,"Despesas_Administrativas",IF(D97=Despesas!$L$13,"Despesas_Operacionais",IF(D97=Despesas!$O$13,"Despesas_com_Pessoal",IF(D97=Despesas!$R$13,"Impostos",IF(D97=Despesas!$U$13,"Despesas_Não_Operacionais",IF(D97=Despesas!$X$13,"Outras_Despesas","")))))))))))) -> Outras_Receitas | R97: 0 | S97: 1 | T97: 1900
I98: 9990 | O98: =IFERROR(VLOOKUP(D98,Outros!$E$14:$F$25,2,0),"") -> Receita | P98: =IF(D98=Receitas!$C$13,"Receita_de_Vendas",IF(D98=Receitas!$F$13,"Receita_de_Serviços",IF(D98=Receitas!$I$13,"Receitas_Financeiras",IF(D98=Receitas!$L$13,"Outras_Receitas",IF(D98=Despesas!$C$13,"Despesas_com_Produto",IF(D98=Despesas!$F$13,"Despesas_com_Serviços",IF(D98=Despesas!$I$13,"Despesas_Administrativas",IF(D98=Despesas!$L$13,"Despesas_Operacionais",IF(D98=Despesas!$O$13,"Despesas_com_Pessoal",IF(D98=Despesas!$R$13,"Impostos",IF(D98=Despesas!$U$13,"Despesas_Não_Operacionais",IF(D98=Despesas!$X$13,"Outras_Despesas","")))))))))))) -> Outras_Receitas | R98: 0 | S98: 1 | T98: 1900
I99: 9990 | O99: =IFERROR(VLOOKUP(D99,Outros!$E$14:$F$25,2,0),"") -> Receita | P99: =IF(D99=Receitas!$C$13,"Receita_de_Vendas",IF(D99=Receitas!$F$13,"Receita_de_Serviços",IF(D99=Receitas!$I$13,"Receitas_Financeiras",IF(D99=Receitas!$L$13,"Outras_Receitas",IF(D99=Despesas!$C$13,"Despesas_com_Produto",IF(D99=Despesas!$F$13,"Despesas_com_Serviços",IF(D99=Despesas!$I$13,"Despesas_Administrativas",IF(D99=Despesas!$L$13,"Despesas_Operacionais",IF(D99=Despesas!$O$13,"Despesas_com_Pessoal",IF(D99=Despesas!$R$13,"Impostos",IF(D99=Despesas!$U$13,"Despesas_Não_Operacionais",IF(D99=Despesas!$X$13,"Outras_Despesas","")))))))))))) -> Outras_Receitas | R99: 0 | S99: 1 | T99: 1900
I100: 9990 | O100: =IFERROR(VLOOKUP(D100,Outros!$E$14:$F$25,2,0),"") -> Receita | P100: =IF(D100=Receitas!$C$13,"Receita_de_Vendas",IF(D100=Receitas!$F$13,"Receita_de_Serviços",IF(D100=Receitas!$I$13,"Receitas_Financeiras",IF(D100=Receitas!$L$13,"Outras_Receitas",IF(D100=Despesas!$C$13,"Despesas_com_Produto",IF(D100=Despesas!$F$13,"Despesas_com_Serviços",IF(D100=Despesas!$I$13,"Despesas_Administrativas",IF(D100=Despesas!$L$13,"Despesas_Operacionais",IF(D100=Despesas!$O$13,"Despesas_com_Pessoal",IF(D100=Despesas!$R$13,"Impostos",IF(D100=Despesas!$U$13,"Despesas_Não_Operacionais",IF(D100=Despesas!$X$13,"Outras_Despesas","")))))))))))) -> Outras_Receitas | R100: 0 | S100: 1 | T100: 1900
I101: 9990 | O101: =IFERROR(VLOOKUP(D101,Outros!$E$14:$F$25,2,0),"") -> Receita | P101: =IF(D101=Receitas!$C$13,"Receita_de_Vendas",IF(D101=Receitas!$F$13,"Receita_de_Serviços",IF(D101=Receitas!$I$13,"Receitas_Financeiras",IF(D101=Receitas!$L$13,"Outras_Receitas",IF(D101=Despesas!$C$13,"Despesas_com_Produto",IF(D101=Despesas!$F$13,"Despesas_com_Serviços",IF(D101=Despesas!$I$13,"Despesas_Administrativas",IF(D101=Despesas!$L$13,"Despesas_Operacionais",IF(D101=Despesas!$O$13,"Despesas_com_Pessoal",IF(D101=Despesas!$R$13,"Impostos",IF(D101=Despesas!$U$13,"Despesas_Não_Operacionais",IF(D101=Despesas!$X$13,"Outras_Despesas","")))))))))))) -> Outras_Receitas | R101: 0 | S101: 1 | T101: 1900
I102: 9990 | O102: =IFERROR(VLOOKUP(D102,Outros!$E$14:$F$25,2,0),"") -> Receita | P102: =IF(D102=Receitas!$C$13,"Receita_de_Vendas",IF(D102=Receitas!$F$13,"Receita_de_Serviços",IF(D102=Receitas!$I$13,"Receitas_Financeiras",IF(D102=Receitas!$L$13,"Outras_Receitas",IF(D102=Despesas!$C$13,"Despesas_com_Produto",IF(D102=Despesas!$F$13,"Despesas_com_Serviços",IF(D102=Despesas!$I$13,"Despesas_Administrativas",IF(D102=Despesas!$L$13,"Despesas_Operacionais",IF(D102=Despesas!$O$13,"Despesas_com_Pessoal",IF(D102=Despesas!$R$13,"Impostos",IF(D102=Despesas!$U$13,"Despesas_Não_Operacionais",IF(D102=Despesas!$X$13,"Outras_Despesas","")))))))))))) -> Outras_Receitas | R102: 0 | S102: 1 | T102: 1900
I103: 9990 | O103: =IFERROR(VLOOKUP(D103,Outros!$E$14:$F$25,2,0),"") -> Receita | P103: =IF(D103=Receitas!$C$13,"Receita_de_Vendas",IF(D103=Receitas!$F$13,"Receita_de_Serviços",IF(D103=Receitas!$I$13,"Receitas_Financeiras",IF(D103=Receitas!$L$13,"Outras_Receitas",IF(D103=Despesas!$C$13,"Despesas_com_Produto",IF(D103=Despesas!$F$13,"Despesas_com_Serviços",IF(D103=Despesas!$I$13,"Despesas_Administrativas",IF(D103=Despesas!$L$13,"Despesas_Operacionais",IF(D103=Despesas!$O$13,"Despesas_com_Pessoal",IF(D103=Despesas!$R$13,"Impostos",IF(D103=Despesas!$U$13,"Despesas_Não_Operacionais",IF(D103=Despesas!$X$13,"Outras_Despesas","")))))))))))) -> Outras_Receitas | R103: 0 | S103: 1 | T103: 1900
I104: 9990 | O104: =IFERROR(VLOOKUP(D104,Outros!$E$14:$F$25,2,0),"") -> Receita | P104: =IF(D104=Receitas!$C$13,"Receita_de_Vendas",IF(D104=Receitas!$F$13,"Receita_de_Serviços",IF(D104=Receitas!$I$13,"Receitas_Financeiras",IF(D104=Receitas!$L$13,"Outras_Receitas",IF(D104=Despesas!$C$13,"Despesas_com_Produto",IF(D104=Despesas!$F$13,"Despesas_com_Serviços",IF(D104=Despesas!$I$13,"Despesas_Administrativas",IF(D104=Despesas!$L$13,"Despesas_Operacionais",IF(D104=Despesas!$O$13,"Despesas_com_Pessoal",IF(D104=Despesas!$R$13,"Impostos",IF(D104=Despesas!$U$13,"Despesas_Não_Operacionais",IF(D104=Despesas!$X$13,"Outras_Despesas","")))))))))))) -> Outras_Receitas | R104: 0 | S104: 1 | T104: 1900
I105: 9990 | O105: =IFERROR(VLOOKUP(D105,Outros!$E$14:$F$25,2,0),"") -> Receita | P105: =IF(D105=Receitas!$C$13,"Receita_de_Vendas",IF(D105=Receitas!$F$13,"Receita_de_Serviços",IF(D105=Receitas!$I$13,"Receitas_Financeiras",IF(D105=Receitas!$L$13,"Outras_Receitas",IF(D105=Despesas!$C$13,"Despesas_com_Produto",IF(D105=Despesas!$F$13,"Despesas_com_Serviços",IF(D105=Despesas!$I$13,"Despesas_Administrativas",IF(D105=Despesas!$L$13,"Despesas_Operacionais",IF(D105=Despesas!$O$13,"Despesas_com_Pessoal",IF(D105=Despesas!$R$13,"Impostos",IF(D105=Despesas!$U$13,"Despesas_Não_Operacionais",IF(D105=Despesas!$X$13,"Outras_Despesas","")))))))))))) -> Outras_Receitas | R105: 0 | S105: 1 | T105: 1900
I106: 9990 | O106: =IFERROR(VLOOKUP(D106,Outros!$E$14:$F$25,2,0),"") -> Receita | P106: =IF(D106=Receitas!$C$13,"Receita_de_Vendas",IF(D106=Receitas!$F$13,"Receita_de_Serviços",IF(D106=Receitas!$I$13,"Receitas_Financeiras",IF(D106=Receitas!$L$13,"Outras_Receitas",IF(D106=Despesas!$C$13,"Despesas_com_Produto",IF(D106=Despesas!$F$13,"Despesas_com_Serviços",IF(D106=Despesas!$I$13,"Despesas_Administrativas",IF(D106=Despesas!$L$13,"Despesas_Operacionais",IF(D106=Despesas!$O$13,"Despesas_com_Pessoal",IF(D106=Despesas!$R$13,"Impostos",IF(D106=Despesas!$U$13,"Despesas_Não_Operacionais",IF(D106=Despesas!$X$13,"Outras_Despesas","")))))))))))) -> Outras_Receitas | R106: 0 | S106: 1 | T106: 1900
I107: 9990 | O107: =IFERROR(VLOOKUP(D107,Outros!$E$14:$F$25,2,0),"") -> Receita | P107: =IF(D107=Receitas!$C$13,"Receita_de_Vendas",IF(D107=Receitas!$F$13,"Receita_de_Serviços",IF(D107=Receitas!$I$13,"Receitas_Financeiras",IF(D107=Receitas!$L$13,"Outras_Receitas",IF(D107=Despesas!$C$13,"Despesas_com_Produto",IF(D107=Despesas!$F$13,"Despesas_com_Serviços",IF(D107=Despesas!$I$13,"Despesas_Administrativas",IF(D107=Despesas!$L$13,"Despesas_Operacionais",IF(D107=Despesas!$O$13,"Despesas_com_Pessoal",IF(D107=Despesas!$R$13,"Impostos",IF(D107=Despesas!$U$13,"Despesas_Não_Operacionais",IF(D107=Despesas!$X$13,"Outras_Despesas","")))))))))))) -> Outras_Receitas | R107: 0 | S107: 1 | T107: 1900
I108: 9990 | O108: =IFERROR(VLOOKUP(D108,Outros!$E$14:$F$25,2,0),"") -> Receita | P108: =IF(D108=Receitas!$C$13,"Receita_de_Vendas",IF(D108=Receitas!$F$13,"Receita_de_Serviços",IF(D108=Receitas!$I$13,"Receitas_Financeiras",IF(D108=Receitas!$L$13,"Outras_Receitas",IF(D108=Despesas!$C$13,"Despesas_com_Produto",IF(D108=Despesas!$F$13,"Despesas_com_Serviços",IF(D108=Despesas!$I$13,"Despesas_Administrativas",IF(D108=Despesas!$L$13,"Despesas_Operacionais",IF(D108=Despesas!$O$13,"Despesas_com_Pessoal",IF(D108=Despesas!$R$13,"Impostos",IF(D108=Despesas!$U$13,"Despesas_Não_Operacionais",IF(D108=Despesas!$X$13,"Outras_Despesas","")))))))))))) -> Outras_Receitas | R108: 0 | S108: 1 | T108: 1900
I109: 9990 | O109: =IFERROR(VLOOKUP(D109,Outros!$E$14:$F$25,2,0),"") -> Receita | P109: =IF(D109=Receitas!$C$13,"Receita_de_Vendas",IF(D109=Receitas!$F$13,"Receita_de_Serviços",IF(D109=Receitas!$I$13,"Receitas_Financeiras",IF(D109=Receitas!$L$13,"Outras_Receitas",IF(D109=Despesas!$C$13,"Despesas_com_Produto",IF(D109=Despesas!$F$13,"Despesas_com_Serviços",IF(D109=Despesas!$I$13,"Despesas_Administrativas",IF(D109=Despesas!$L$13,"Despesas_Operacionais",IF(D109=Despesas!$O$13,"Despesas_com_Pessoal",IF(D109=Despesas!$R$13,"Impostos",IF(D109=Despesas!$U$13,"Despesas_Não_Operacionais",IF(D109=Despesas!$X$13,"Outras_Despesas","")))))))))))) -> Outras_Receitas | R109: 0 | S109: 1 | T109: 1900
I110: 9990 | O110: =IFERROR(VLOOKUP(D110,Outros!$E$14:$F$25,2,0),"") -> Receita | P110: =IF(D110=Receitas!$C$13,"Receita_de_Vendas",IF(D110=Receitas!$F$13,"Receita_de_Serviços",IF(D110=Receitas!$I$13,"Receitas_Financeiras",IF(D110=Receitas!$L$13,"Outras_Receitas",IF(D110=Despesas!$C$13,"Despesas_com_Produto",IF(D110=Despesas!$F$13,"Despesas_com_Serviços",IF(D110=Despesas!$I$13,"Despesas_Administrativas",IF(D110=Despesas!$L$13,"Despesas_Operacionais",IF(D110=Despesas!$O$13,"Despesas_com_Pessoal",IF(D110=Despesas!$R$13,"Impostos",IF(D110=Despesas!$U$13,"Despesas_Não_Operacionais",IF(D110=Despesas!$X$13,"Outras_Despesas","")))))))))))) -> Outras_Receitas | R110: 0 | S110: 1 | T110: 1900
I111: 9990 | O111: =IFERROR(VLOOKUP(D111,Outros!$E$14:$F$25,2,0),"") -> Receita | P111: =IF(D111=Receitas!$C$13,"Receita_de_Vendas",IF(D111=Receitas!$F$13,"Receita_de_Serviços",IF(D111=Receitas!$I$13,"Receitas_Financeiras",IF(D111=Receitas!$L$13,"Outras_Receitas",IF(D111=Despesas!$C$13,"Despesas_com_Produto",IF(D111=Despesas!$F$13,"Despesas_com_Serviços",IF(D111=Despesas!$I$13,"Despesas_Administrativas",IF(D111=Despesas!$L$13,"Despesas_Operacionais",IF(D111=Despesas!$O$13,"Despesas_com_Pessoal",IF(D111=Despesas!$R$13,"Impostos",IF(D111=Despesas!$U$13,"Despesas_Não_Operacionais",IF(D111=Despesas!$X$13,"Outras_Despesas","")))))))))))) -> Outras_Receitas | R111: 0 | S111: 1 | T111: 1900
I112: 9990 | O112: =IFERROR(VLOOKUP(D112,Outros!$E$14:$F$25,2,0),"") -> Receita | P112: =IF(D112=Receitas!$C$13,"Receita_de_Vendas",IF(D112=Receitas!$F$13,"Receita_de_Serviços",IF(D112=Receitas!$I$13,"Receitas_Financeiras",IF(D112=Receitas!$L$13,"Outras_Receitas",IF(D112=Despesas!$C$13,"Despesas_com_Produto",IF(D112=Despesas!$F$13,"Despesas_com_Serviços",IF(D112=Despesas!$I$13,"Despesas_Administrativas",IF(D112=Despesas!$L$13,"Despesas_Operacionais",IF(D112=Despesas!$O$13,"Despesas_com_Pessoal",IF(D112=Despesas!$R$13,"Impostos",IF(D112=Despesas!$U$13,"Despesas_Não_Operacionais",IF(D112=Despesas!$X$13,"Outras_Despesas","")))))))))))) -> Outras_Receitas | R112: 0 | S112: 1 | T112: 1900
I113: 9990 | O113: =IFERROR(VLOOKUP(D113,Outros!$E$14:$F$25,2,0),"") -> Receita | P113: =IF(D113=Receitas!$C$13,"Receita_de_Vendas",IF(D113=Receitas!$F$13,"Receita_de_Serviços",IF(D113=Receitas!$I$13,"Receitas_Financeiras",IF(D113=Receitas!$L$13,"Outras_Receitas",IF(D113=Despesas!$C$13,"Despesas_com_Produto",IF(D113=Despesas!$F$13,"Despesas_com_Serviços",IF(D113=Despesas!$I$13,"Despesas_Administrativas",IF(D113=Despesas!$L$13,"Despesas_Operacionais",IF(D113=Despesas!$O$13,"Despesas_com_Pessoal",IF(D113=Despesas!$R$13,"Impostos",IF(D113=Despesas!$U$13,"Despesas_Não_Operacionais",IF(D113=Despesas!$X$13,"Outras_Despesas","")))))))))))) -> Outras_Receitas | R113: 0 | S113: 1 | T113: 1900
I114: 9990 | O114: =IFERROR(VLOOKUP(D114,Outros!$E$14:$F$25,2,0),"") -> Receita | P114: =IF(D114=Receitas!$C$13,"Receita_de_Vendas",IF(D114=Receitas!$F$13,"Receita_de_Serviços",IF(D114=Receitas!$I$13,"Receitas_Financeiras",IF(D114=Receitas!$L$13,"Outras_Receitas",IF(D114=Despesas!$C$13,"Despesas_com_Produto",IF(D114=Despesas!$F$13,"Despesas_com_Serviços",IF(D114=Despesas!$I$13,"Despesas_Administrativas",IF(D114=Despesas!$L$13,"Despesas_Operacionais",IF(D114=Despesas!$O$13,"Despesas_com_Pessoal",IF(D114=Despesas!$R$13,"Impostos",IF(D114=Despesas!$U$13,"Despesas_Não_Operacionais",IF(D114=Despesas!$X$13,"Outras_Despesas","")))))))))))) -> Outras_Receitas | R114: 0 | S114: 1 | T114: 1900
I115: 9990 | O115: =IFERROR(VLOOKUP(D115,Outros!$E$14:$F$25,2,0),"") -> Receita | P115: =IF(D115=Receitas!$C$13,"Receita_de_Vendas",IF(D115=Receitas!$F$13,"Receita_de_Serviços",IF(D115=Receitas!$I$13,"Receitas_Financeiras",IF(D115=Receitas!$L$13,"Outras_Receitas",IF(D115=Despesas!$C$13,"Despesas_com_Produto",IF(D115=Despesas!$F$13,"Despesas_com_Serviços",IF(D115=Despesas!$I$13,"Despesas_Administrativas",IF(D115=Despesas!$L$13,"Despesas_Operacionais",IF(D115=Despesas!$O$13,"Despesas_com_Pessoal",IF(D115=Despesas!$R$13,"Impostos",IF(D115=Despesas!$U$13,"Despesas_Não_Operacionais",IF(D115=Despesas!$X$13,"Outras_Despesas","")))))))))))) -> Outras_Receitas | R115: 0 | S115: 1 | T115: 1900
I116: 9990 | O116: =IFERROR(VLOOKUP(D116,Outros!$E$14:$F$25,2,0),"") -> Receita | P116: =IF(D116=Receitas!$C$13,"Receita_de_Vendas",IF(D116=Receitas!$F$13,"Receita_de_Serviços",IF(D116=Receitas!$I$13,"Receitas_Financeiras",IF(D116=Receitas!$L$13,"Outras_Receitas",IF(D116=Despesas!$C$13,"Despesas_com_Produto",IF(D116=Despesas!$F$13,"Despesas_com_Serviços",IF(D116=Despesas!$I$13,"Despesas_Administrativas",IF(D116=Despesas!$L$13,"Despesas_Operacionais",IF(D116=Despesas!$O$13,"Despesas_com_Pessoal",IF(D116=Despesas!$R$13,"Impostos",IF(D116=Despesas!$U$13,"Despesas_Não_Operacionais",IF(D116=Despesas!$X$13,"Outras_Despesas","")))))))))))) -> Outras_Receitas | R116: 0 | S116: 1 | T116: 1900
I117: 9990 | O117: =IFERROR(VLOOKUP(D117,Outros!$E$14:$F$25,2,0),"") -> Receita | P117: =IF(D117=Receitas!$C$13,"Receita_de_Vendas",IF(D117=Receitas!$F$13,"Receita_de_Serviços",IF(D117=Receitas!$I$13,"Receitas_Financeiras",IF(D117=Receitas!$L$13,"Outras_Receitas",IF(D117=Despesas!$C$13,"Despesas_com_Produto",IF(D117=Despesas!$F$13,"Despesas_com_Serviços",IF(D117=Despesas!$I$13,"Despesas_Administrativas",IF(D117=Despesas!$L$13,"Despesas_Operacionais",IF(D117=Despesas!$O$13,"Despesas_com_Pessoal",IF(D117=Despesas!$R$13,"Impostos",IF(D117=Despesas!$U$13,"Despesas_Não_Operacionais",IF(D117=Despesas!$X$13,"Outras_Despesas","")))))))))))) -> Outras_Receitas | R117: 0 | S117: 1 | T117: 1900
I118: 9990 | O118: =IFERROR(VLOOKUP(D118,Outros!$E$14:$F$25,2,0),"") -> Receita | P118: =IF(D118=Receitas!$C$13,"Receita_de_Vendas",IF(D118=Receitas!$F$13,"Receita_de_Serviços",IF(D118=Receitas!$I$13,"Receitas_Financeiras",IF(D118=Receitas!$L$13,"Outras_Receitas",IF(D118=Despesas!$C$13,"Despesas_com_Produto",IF(D118=Despesas!$F$13,"Despesas_com_Serviços",IF(D118=Despesas!$I$13,"Despesas_Administrativas",IF(D118=Despesas!$L$13,"Despesas_Operacionais",IF(D118=Despesas!$O$13,"Despesas_com_Pessoal",IF(D118=Despesas!$R$13,"Impostos",IF(D118=Despesas!$U$13,"Despesas_Não_Operacionais",IF(D118=Despesas!$X$13,"Outras_Despesas","")))))))))))) -> Outras_Receitas | R118: 0 | S118: 1 | T118: 1900
I119: 9990 | O119: =IFERROR(VLOOKUP(D119,Outros!$E$14:$F$25,2,0),"") -> Receita | P119: =IF(D119=Receitas!$C$13,"Receita_de_Vendas",IF(D119=Receitas!$F$13,"Receita_de_Serviços",IF(D119=Receitas!$I$13,"Receitas_Financeiras",IF(D119=Receitas!$L$13,"Outras_Receitas",IF(D119=Despesas!$C$13,"Despesas_com_Produto",IF(D119=Despesas!$F$13,"Despesas_com_Serviços",IF(D119=Despesas!$I$13,"Despesas_Administrativas",IF(D119=Despesas!$L$13,"Despesas_Operacionais",IF(D119=Despesas!$O$13,"Despesas_com_Pessoal",IF(D119=Despesas!$R$13,"Impostos",IF(D119=Despesas!$U$13,"Despesas_Não_Operacionais",IF(D119=Despesas!$X$13,"Outras_Despesas","")))))))))))) -> Outras_Receitas | R119: 0 | S119: 1 | T119: 1900
I120: 9990 | O120: =IFERROR(VLOOKUP(D120,Outros!$E$14:$F$25,2,0),"") -> Receita | P120: =IF(D120=Receitas!$C$13,"Receita_de_Vendas",IF(D120=Receitas!$F$13,"Receita_de_Serviços",IF(D120=Receitas!$I$13,"Receitas_Financeiras",IF(D120=Receitas!$L$13,"Outras_Receitas",IF(D120=Despesas!$C$13,"Despesas_com_Produto",IF(D120=Despesas!$F$13,"Despesas_com_Serviços",IF(D120=Despesas!$I$13,"Despesas_Administrativas",IF(D120=Despesas!$L$13,"Despesas_Operacionais",IF(D120=Despesas!$O$13,"Despesas_com_Pessoal",IF(D120=Despesas!$R$13,"Impostos",IF(D120=Despesas!$U$13,"Despesas_Não_Operacionais",IF(D120=Despesas!$X$13,"Outras_Despesas","")))))))))))) -> Outras_Receitas | R120: 0 | S120: 1 | T120: 1900
I121: 9990 | O121: =IFERROR(VLOOKUP(D121,Outros!$E$14:$F$25,2,0),"") -> Receita | P121: =IF(D121=Receitas!$C$13,"Receita_de_Vendas",IF(D121=Receitas!$F$13,"Receita_de_Serviços",IF(D121=Receitas!$I$13,"Receitas_Financeiras",IF(D121=Receitas!$L$13,"Outras_Receitas",IF(D121=Despesas!$C$13,"Despesas_com_Produto",IF(D121=Despesas!$F$13,"Despesas_com_Serviços",IF(D121=Despesas!$I$13,"Despesas_Administrativas",IF(D121=Despesas!$L$13,"Despesas_Operacionais",IF(D121=Despesas!$O$13,"Despesas_com_Pessoal",IF(D121=Despesas!$R$13,"Impostos",IF(D121=Despesas!$U$13,"Despesas_Não_Operacionais",IF(D121=Despesas!$X$13,"Outras_Despesas","")))))))))))) -> Outras_Receitas | R121: 0 | S121: 1 | T121: 1900
I122: 9990 | O122: =IFERROR(VLOOKUP(D122,Outros!$E$14:$F$25,2,0),"") -> Receita | P122: =IF(D122=Receitas!$C$13,"Receita_de_Vendas",IF(D122=Receitas!$F$13,"Receita_de_Serviços",IF(D122=Receitas!$I$13,"Receitas_Financeiras",IF(D122=Receitas!$L$13,"Outras_Receitas",IF(D122=Despesas!$C$13,"Despesas_com_Produto",IF(D122=Despesas!$F$13,"Despesas_com_Serviços",IF(D122=Despesas!$I$13,"Despesas_Administrativas",IF(D122=Despesas!$L$13,"Despesas_Operacionais",IF(D122=Despesas!$O$13,"Despesas_com_Pessoal",IF(D122=Despesas!$R$13,"Impostos",IF(D122=Despesas!$U$13,"Despesas_Não_Operacionais",IF(D122=Despesas!$X$13,"Outras_Despesas","")))))))))))) -> Outras_Receitas | R122: 0 | S122: 1 | T122: 1900
I123: 9990 | O123: =IFERROR(VLOOKUP(D123,Outros!$E$14:$F$25,2,0),"") -> Receita | P123: =IF(D123=Receitas!$C$13,"Receita_de_Vendas",IF(D123=Receitas!$F$13,"Receita_de_Serviços",IF(D123=Receitas!$I$13,"Receitas_Financeiras",IF(D123=Receitas!$L$13,"Outras_Receitas",IF(D123=Despesas!$C$13,"Despesas_com_Produto",IF(D123=Despesas!$F$13,"Despesas_com_Serviços",IF(D123=Despesas!$I$13,"Despesas_Administrativas",IF(D123=Despesas!$L$13,"Despesas_Operacionais",IF(D123=Despesas!$O$13,"Despesas_com_Pessoal",IF(D123=Despesas!$R$13,"Impostos",IF(D123=Despesas!$U$13,"Despesas_Não_Operacionais",IF(D123=Despesas!$X$13,"Outras_Despesas","")))))))))))) -> Outras_Receitas | R123: 0 | S123: 1 | T123: 1900
I124: 9990 | O124: =IFERROR(VLOOKUP(D124,Outros!$E$14:$F$25,2,0),"") -> Receita | P124: =IF(D124=Receitas!$C$13,"Receita_de_Vendas",IF(D124=Receitas!$F$13,"Receita_de_Serviços",IF(D124=Receitas!$I$13,"Receitas_Financeiras",IF(D124=Receitas!$L$13,"Outras_Receitas",IF(D124=Despesas!$C$13,"Despesas_com_Produto",IF(D124=Despesas!$F$13,"Despesas_com_Serviços",IF(D124=Despesas!$I$13,"Despesas_Administrativas",IF(D124=Despesas!$L$13,"Despesas_Operacionais",IF(D124=Despesas!$O$13,"Despesas_com_Pessoal",IF(D124=Despesas!$R$13,"Impostos",IF(D124=Despesas!$U$13,"Despesas_Não_Operacionais",IF(D124=Despesas!$X$13,"Outras_Despesas","")))))))))))) -> Outras_Receitas | R124: 0 | S124: 1 | T124: 1900
I125: 9990 | O125: =IFERROR(VLOOKUP(D125,Outros!$E$14:$F$25,2,0),"") -> Receita | P125: =IF(D125=Receitas!$C$13,"Receita_de_Vendas",IF(D125=Receitas!$F$13,"Receita_de_Serviços",IF(D125=Receitas!$I$13,"Receitas_Financeiras",IF(D125=Receitas!$L$13,"Outras_Receitas",IF(D125=Despesas!$C$13,"Despesas_com_Produto",IF(D125=Despesas!$F$13,"Despesas_com_Serviços",IF(D125=Despesas!$I$13,"Despesas_Administrativas",IF(D125=Despesas!$L$13,"Despesas_Operacionais",IF(D125=Despesas!$O$13,"Despesas_com_Pessoal",IF(D125=Despesas!$R$13,"Impostos",IF(D125=Despesas!$U$13,"Despesas_Não_Operacionais",IF(D125=Despesas!$X$13,"Outras_Despesas","")))))))))))) -> Outras_Receitas | R125: 0 | S125: 1 | T125: 1900
I126: 9990 | O126: =IFERROR(VLOOKUP(D126,Outros!$E$14:$F$25,2,0),"") -> Receita | P126: =IF(D126=Receitas!$C$13,"Receita_de_Vendas",IF(D126=Receitas!$F$13,"Receita_de_Serviços",IF(D126=Receitas!$I$13,"Receitas_Financeiras",IF(D126=Receitas!$L$13,"Outras_Receitas",IF(D126=Despesas!$C$13,"Despesas_com_Produto",IF(D126=Despesas!$F$13,"Despesas_com_Serviços",IF(D126=Despesas!$I$13,"Despesas_Administrativas",IF(D126=Despesas!$L$13,"Despesas_Operacionais",IF(D126=Despesas!$O$13,"Despesas_com_Pessoal",IF(D126=Despesas!$R$13,"Impostos",IF(D126=Despesas!$U$13,"Despesas_Não_Operacionais",IF(D126=Despesas!$X$13,"Outras_Despesas","")))))))))))) -> Outras_Receitas | R126: 0 | S126: 1 | T126: 1900
I127: 9990 | O127: =IFERROR(VLOOKUP(D127,Outros!$E$14:$F$25,2,0),"") -> Receita | P127: =IF(D127=Receitas!$C$13,"Receita_de_Vendas",IF(D127=Receitas!$F$13,"Receita_de_Serviços",IF(D127=Receitas!$I$13,"Receitas_Financeiras",IF(D127=Receitas!$L$13,"Outras_Receitas",IF(D127=Despesas!$C$13,"Despesas_com_Produto",IF(D127=Despesas!$F$13,"Despesas_com_Serviços",IF(D127=Despesas!$I$13,"Despesas_Administrativas",IF(D127=Despesas!$L$13,"Despesas_Operacionais",IF(D127=Despesas!$O$13,"Despesas_com_Pessoal",IF(D127=Despesas!$R$13,"Impostos",IF(D127=Despesas!$U$13,"Despesas_Não_Operacionais",IF(D127=Despesas!$X$13,"Outras_Despesas","")))))))))))) -> Outras_Receitas | R127: 0 | S127: 1 | T127: 1900
I128: 9990 | O128: =IFERROR(VLOOKUP(D128,Outros!$E$14:$F$25,2,0),"") -> Receita | P128: =IF(D128=Receitas!$C$13,"Receita_de_Vendas",IF(D128=Receitas!$F$13,"Receita_de_Serviços",IF(D128=Receitas!$I$13,"Receitas_Financeiras",IF(D128=Receitas!$L$13,"Outras_Receitas",IF(D128=Despesas!$C$13,"Despesas_com_Produto",IF(D128=Despesas!$F$13,"Despesas_com_Serviços",IF(D128=Despesas!$I$13,"Despesas_Administrativas",IF(D128=Despesas!$L$13,"Despesas_Operacionais",IF(D128=Despesas!$O$13,"Despesas_com_Pessoal",IF(D128=Despesas!$R$13,"Impostos",IF(D128=Despesas!$U$13,"Despesas_Não_Operacionais",IF(D128=Despesas!$X$13,"Outras_Despesas","")))))))))))) -> Outras_Receitas | R128: 0 | S128: 1 | T128: 1900
I129: 9990 | O129: =IFERROR(VLOOKUP(D129,Outros!$E$14:$F$25,2,0),"") -> Receita | P129: =IF(D129=Receitas!$C$13,"Receita_de_Vendas",IF(D129=Receitas!$F$13,"Receita_de_Serviços",IF(D129=Receitas!$I$13,"Receitas_Financeiras",IF(D129=Receitas!$L$13,"Outras_Receitas",IF(D129=Despesas!$C$13,"Despesas_com_Produto",IF(D129=Despesas!$F$13,"Despesas_com_Serviços",IF(D129=Despesas!$I$13,"Despesas_Administrativas",IF(D129=Despesas!$L$13,"Despesas_Operacionais",IF(D129=Despesas!$O$13,"Despesas_com_Pessoal",IF(D129=Despesas!$R$13,"Impostos",IF(D129=Despesas!$U$13,"Despesas_Não_Operacionais",IF(D129=Despesas!$X$13,"Outras_Despesas","")))))))))))) -> Outras_Receitas | R129: 0 | S129: 1 | T129: 1900
I130: 9990 | O130: =IFERROR(VLOOKUP(D130,Outros!$E$14:$F$25,2,0),"") -> Receita | P130: =IF(D130=Receitas!$C$13,"Receita_de_Vendas",IF(D130=Receitas!$F$13,"Receita_de_Serviços",IF(D130=Receitas!$I$13,"Receitas_Financeiras",IF(D130=Receitas!$L$13,"Outras_Receitas",IF(D130=Despesas!$C$13,"Despesas_com_Produto",IF(D130=Despesas!$F$13,"Despesas_com_Serviços",IF(D130=Despesas!$I$13,"Despesas_Administrativas",IF(D130=Despesas!$L$13,"Despesas_Operacionais",IF(D130=Despesas!$O$13,"Despesas_com_Pessoal",IF(D130=Despesas!$R$13,"Impostos",IF(D130=Despesas!$U$13,"Despesas_Não_Operacionais",IF(D130=Despesas!$X$13,"Outras_Despesas","")))))))))))) -> Outras_Receitas | R130: 0 | S130: 1 | T130: 1900
I131: 9990 | O131: =IFERROR(VLOOKUP(D131,Outros!$E$14:$F$25,2,0),"") -> Receita | P131: =IF(D131=Receitas!$C$13,"Receita_de_Vendas",IF(D131=Receitas!$F$13,"Receita_de_Serviços",IF(D131=Receitas!$I$13,"Receitas_Financeiras",IF(D131=Receitas!$L$13,"Outras_Receitas",IF(D131=Despesas!$C$13,"Despesas_com_Produto",IF(D131=Despesas!$F$13,"Despesas_com_Serviços",IF(D131=Despesas!$I$13,"Despesas_Administrativas",IF(D131=Despesas!$L$13,"Despesas_Operacionais",IF(D131=Despesas!$O$13,"Despesas_com_Pessoal",IF(D131=Despesas!$R$13,"Impostos",IF(D131=Despesas!$U$13,"Despesas_Não_Operacionais",IF(D131=Despesas!$X$13,"Outras_Despesas","")))))))))))) -> Outras_Receitas | R131: 0 | S131: 1 | T131: 1900
I132: 9990 | O132: =IFERROR(VLOOKUP(D132,Outros!$E$14:$F$25,2,0),"") -> Receita | P132: =IF(D132=Receitas!$C$13,"Receita_de_Vendas",IF(D132=Receitas!$F$13,"Receita_de_Serviços",IF(D132=Receitas!$I$13,"Receitas_Financeiras",IF(D132=Receitas!$L$13,"Outras_Receitas",IF(D132=Despesas!$C$13,"Despesas_com_Produto",IF(D132=Despesas!$F$13,"Despesas_com_Serviços",IF(D132=Despesas!$I$13,"Despesas_Administrativas",IF(D132=Despesas!$L$13,"Despesas_Operacionais",IF(D132=Despesas!$O$13,"Despesas_com_Pessoal",IF(D132=Despesas!$R$13,"Impostos",IF(D132=Despesas!$U$13,"Despesas_Não_Operacionais",IF(D132=Despesas!$X$13,"Outras_Despesas","")))))))))))) -> Outras_Receitas | R132: 0 | S132: 1 | T132: 1900
I133: 9990 | O133: =IFERROR(VLOOKUP(D133,Outros!$E$14:$F$25,2,0),"") -> Receita | P133: =IF(D133=Receitas!$C$13,"Receita_de_Vendas",IF(D133=Receitas!$F$13,"Receita_de_Serviços",IF(D133=Receitas!$I$13,"Receitas_Financeiras",IF(D133=Receitas!$L$13,"Outras_Receitas",IF(D133=Despesas!$C$13,"Despesas_com_Produto",IF(D133=Despesas!$F$13,"Despesas_com_Serviços",IF(D133=Despesas!$I$13,"Despesas_Administrativas",IF(D133=Despesas!$L$13,"Despesas_Operacionais",IF(D133=Despesas!$O$13,"Despesas_com_Pessoal",IF(D133=Despesas!$R$13,"Impostos",IF(D133=Despesas!$U$13,"Despesas_Não_Operacionais",IF(D133=Despesas!$X$13,"Outras_Despesas","")))))))))))) -> Outras_Receitas | R133: 0 | S133: 1 | T133: 1900
I134: 9990 | O134: =IFERROR(VLOOKUP(D134,Outros!$E$14:$F$25,2,0),"") -> Receita | P134: =IF(D134=Receitas!$C$13,"Receita_de_Vendas",IF(D134=Receitas!$F$13,"Receita_de_Serviços",IF(D134=Receitas!$I$13,"Receitas_Financeiras",IF(D134=Receitas!$L$13,"Outras_Receitas",IF(D134=Despesas!$C$13,"Despesas_com_Produto",IF(D134=Despesas!$F$13,"Despesas_com_Serviços",IF(D134=Despesas!$I$13,"Despesas_Administrativas",IF(D134=Despesas!$L$13,"Despesas_Operacionais",IF(D134=Despesas!$O$13,"Despesas_com_Pessoal",IF(D134=Despesas!$R$13,"Impostos",IF(D134=Despesas!$U$13,"Despesas_Não_Operacionais",IF(D134=Despesas!$X$13,"Outras_Despesas","")))))))))))) -> Outras_Receitas | R134: 0 | S134: 1 | T134: 1900
I135: 9990 | O135: =IFERROR(VLOOKUP(D135,Outros!$E$14:$F$25,2,0),"") -> Receita | P135: =IF(D135=Receitas!$C$13,"Receita_de_Vendas",IF(D135=Receitas!$F$13,"Receita_de_Serviços",IF(D135=Receitas!$I$13,"Receitas_Financeiras",IF(D135=Receitas!$L$13,"Outras_Receitas",IF(D135=Despesas!$C$13,"Despesas_com_Produto",IF(D135=Despesas!$F$13,"Despesas_com_Serviços",IF(D135=Despesas!$I$13,"Despesas_Administrativas",IF(D135=Despesas!$L$13,"Despesas_Operacionais",IF(D135=Despesas!$O$13,"Despesas_com_Pessoal",IF(D135=Despesas!$R$13,"Impostos",IF(D135=Despesas!$U$13,"Despesas_Não_Operacionais",IF(D135=Despesas!$X$13,"Outras_Despesas","")))))))))))) -> Outras_Receitas | R135: 0 | S135: 1 | T135: 1900
I136: 9990 | O136: =IFERROR(VLOOKUP(D136,Outros!$E$14:$F$25,2,0),"") -> Receita | P136: =IF(D136=Receitas!$C$13,"Receita_de_Vendas",IF(D136=Receitas!$F$13,"Receita_de_Serviços",IF(D136=Receitas!$I$13,"Receitas_Financeiras",IF(D136=Receitas!$L$13,"Outras_Receitas",IF(D136=Despesas!$C$13,"Despesas_com_Produto",IF(D136=Despesas!$F$13,"Despesas_com_Serviços",IF(D136=Despesas!$I$13,"Despesas_Administrativas",IF(D136=Despesas!$L$13,"Despesas_Operacionais",IF(D136=Despesas!$O$13,"Despesas_com_Pessoal",IF(D136=Despesas!$R$13,"Impostos",IF(D136=Despesas!$U$13,"Despesas_Não_Operacionais",IF(D136=Despesas!$X$13,"Outras_Despesas","")))))))))))) -> Outras_Receitas | R136: 0 | S136: 1 | T136: 1900
I137: 9990 | O137: =IFERROR(VLOOKUP(D137,Outros!$E$14:$F$25,2,0),"") -> Receita | P137: =IF(D137=Receitas!$C$13,"Receita_de_Vendas",IF(D137=Receitas!$F$13,"Receita_de_Serviços",IF(D137=Receitas!$I$13,"Receitas_Financeiras",IF(D137=Receitas!$L$13,"Outras_Receitas",IF(D137=Despesas!$C$13,"Despesas_com_Produto",IF(D137=Despesas!$F$13,"Despesas_com_Serviços",IF(D137=Despesas!$I$13,"Despesas_Administrativas",IF(D137=Despesas!$L$13,"Despesas_Operacionais",IF(D137=Despesas!$O$13,"Despesas_com_Pessoal",IF(D137=Despesas!$R$13,"Impostos",IF(D137=Despesas!$U$13,"Despesas_Não_Operacionais",IF(D137=Despesas!$X$13,"Outras_Despesas","")))))))))))) -> Outras_Receitas | R137: 0 | S137: 1 | T137: 1900
I138: 9990 | O138: =IFERROR(VLOOKUP(D138,Outros!$E$14:$F$25,2,0),"") -> Receita | P138: =IF(D138=Receitas!$C$13,"Receita_de_Vendas",IF(D138=Receitas!$F$13,"Receita_de_Serviços",IF(D138=Receitas!$I$13,"Receitas_Financeiras",IF(D138=Receitas!$L$13,"Outras_Receitas",IF(D138=Despesas!$C$13,"Despesas_com_Produto",IF(D138=Despesas!$F$13,"Despesas_com_Serviços",IF(D138=Despesas!$I$13,"Despesas_Administrativas",IF(D138=Despesas!$L$13,"Despesas_Operacionais",IF(D138=Despesas!$O$13,"Despesas_com_Pessoal",IF(D138=Despesas!$R$13,"Impostos",IF(D138=Despesas!$U$13,"Despesas_Não_Operacionais",IF(D138=Despesas!$X$13,"Outras_Despesas","")))))))))))) -> Outras_Receitas | R138: 0 | S138: 1 | T138: 1900
I139: 9990 | O139: =IFERROR(VLOOKUP(D139,Outros!$E$14:$F$25,2,0),"") -> Receita | P139: =IF(D139=Receitas!$C$13,"Receita_de_Vendas",IF(D139=Receitas!$F$13,"Receita_de_Serviços",IF(D139=Receitas!$I$13,"Receitas_Financeiras",IF(D139=Receitas!$L$13,"Outras_Receitas",IF(D139=Despesas!$C$13,"Despesas_com_Produto",IF(D139=Despesas!$F$13,"Despesas_com_Serviços",IF(D139=Despesas!$I$13,"Despesas_Administrativas",IF(D139=Despesas!$L$13,"Despesas_Operacionais",IF(D139=Despesas!$O$13,"Despesas_com_Pessoal",IF(D139=Despesas!$R$13,"Impostos",IF(D139=Despesas!$U$13,"Despesas_Não_Operacionais",IF(D139=Despesas!$X$13,"Outras_Despesas","")))))))))))) -> Outras_Receitas | R139: 0 | S139: 1 | T139: 1900
I140: 9990 | O140: =IFERROR(VLOOKUP(D140,Outros!$E$14:$F$25,2,0),"") -> Receita | P140: =IF(D140=Receitas!$C$13,"Receita_de_Vendas",IF(D140=Receitas!$F$13,"Receita_de_Serviços",IF(D140=Receitas!$I$13,"Receitas_Financeiras",IF(D140=Receitas!$L$13,"Outras_Receitas",IF(D140=Despesas!$C$13,"Despesas_com_Produto",IF(D140=Despesas!$F$13,"Despesas_com_Serviços",IF(D140=Despesas!$I$13,"Despesas_Administrativas",IF(D140=Despesas!$L$13,"Despesas_Operacionais",IF(D140=Despesas!$O$13,"Despesas_com_Pessoal",IF(D140=Despesas!$R$13,"Impostos",IF(D140=Despesas!$U$13,"Despesas_Não_Operacionais",IF(D140=Despesas!$X$13,"Outras_Despesas","")))))))))))) -> Outras_Receitas | R140: 0 | S140: 1 | T140: 1900
I141: 9990 | O141: =IFERROR(VLOOKUP(D141,Outros!$E$14:$F$25,2,0),"") -> Receita | P141: =IF(D141=Receitas!$C$13,"Receita_de_Vendas",IF(D141=Receitas!$F$13,"Receita_de_Serviços",IF(D141=Receitas!$I$13,"Receitas_Financeiras",IF(D141=Receitas!$L$13,"Outras_Receitas",IF(D141=Despesas!$C$13,"Despesas_com_Produto",IF(D141=Despesas!$F$13,"Despesas_com_Serviços",IF(D141=Despesas!$I$13,"Despesas_Administrativas",IF(D141=Despesas!$L$13,"Despesas_Operacionais",IF(D141=Despesas!$O$13,"Despesas_com_Pessoal",IF(D141=Despesas!$R$13,"Impostos",IF(D141=Despesas!$U$13,"Despesas_Não_Operacionais",IF(D141=Despesas!$X$13,"Outras_Despesas","")))))))))))) -> Outras_Receitas | R141: 0 | S141: 1 | T141: 1900
I142: 9990 | O142: =IFERROR(VLOOKUP(D142,Outros!$E$14:$F$25,2,0),"") -> Receita | P142: =IF(D142=Receitas!$C$13,"Receita_de_Vendas",IF(D142=Receitas!$F$13,"Receita_de_Serviços",IF(D142=Receitas!$I$13,"Receitas_Financeiras",IF(D142=Receitas!$L$13,"Outras_Receitas",IF(D142=Despesas!$C$13,"Despesas_com_Produto",IF(D142=Despesas!$F$13,"Despesas_com_Serviços",IF(D142=Despesas!$I$13,"Despesas_Administrativas",IF(D142=Despesas!$L$13,"Despesas_Operacionais",IF(D142=Despesas!$O$13,"Despesas_com_Pessoal",IF(D142=Despesas!$R$13,"Impostos",IF(D142=Despesas!$U$13,"Despesas_Não_Operacionais",IF(D142=Despesas!$X$13,"Outras_Despesas","")))))))))))) -> Outras_Receitas | R142: =DAY(B142) -> 0 | S142: =MONTH(B142) -> 1 | T142: =YEAR(B142) -> 1900
I143: 9990 | O143: =IFERROR(VLOOKUP(D143,Outros!$E$14:$F$25,2,0),"") -> Receita | P143: =IF(D143=Receitas!$C$13,"Receita_de_Vendas",IF(D143=Receitas!$F$13,"Receita_de_Serviços",IF(D143=Receitas!$I$13,"Receitas_Financeiras",IF(D143=Receitas!$L$13,"Outras_Receitas",IF(D143=Despesas!$C$13,"Despesas_com_Produto",IF(D143=Despesas!$F$13,"Despesas_com_Serviços",IF(D143=Despesas!$I$13,"Despesas_Administrativas",IF(D143=Despesas!$L$13,"Despesas_Operacionais",IF(D143=Despesas!$O$13,"Despesas_com_Pessoal",IF(D143=Despesas!$R$13,"Impostos",IF(D143=Despesas!$U$13,"Despesas_Não_Operacionais",IF(D143=Despesas!$X$13,"Outras_Despesas","")))))))))))) -> Outras_Receitas | R143: 0 | S143: 1 | T143: 1900
I144: =I143+IF(AND(G144="Pago",O144="Receita"),H144,IF(AND(G144="Pago",O144="Despesa"),-H144,0)) -> 9990 | O144: =IFERROR(VLOOKUP(D144,Outros!$E$14:$F$25,2,0),"") -> Receita | P144: =IF(D144=Receitas!$C$13,"Receita_de_Vendas",IF(D144=Receitas!$F$13,"Receita_de_Serviços",IF(D144=Receitas!$I$13,"Receitas_Financeiras",IF(D144=Receitas!$L$13,"Outras_Receitas",IF(D144=Despesas!$C$13,"Despesas_com_Produto",IF(D144=Despesas!$F$13,"Despesas_com_Serviços",IF(D144=Despesas!$I$13,"Despesas_Administrativas",IF(D144=Despesas!$L$13,"Despesas_Operacionais",IF(D144=Despesas!$O$13,"Despesas_com_Pessoal",IF(D144=Despesas!$R$13,"Impostos",IF(D144=Despesas!$U$13,"Despesas_Não_Operacionais",IF(D144=Despesas!$X$13,"Outras_Despesas","")))))))))))) -> Outras_Receitas | R144: 0 | S144: 1 | T144: 1900
I145: 9990 | O145: =IFERROR(VLOOKUP(D145,Outros!$E$14:$F$25,2,0),"") -> Receita | P145: =IF(D145=Receitas!$C$13,"Receita_de_Vendas",IF(D145=Receitas!$F$13,"Receita_de_Serviços",IF(D145=Receitas!$I$13,"Receitas_Financeiras",IF(D145=Receitas!$L$13,"Outras_Receitas",IF(D145=Despesas!$C$13,"Despesas_com_Produto",IF(D145=Despesas!$F$13,"Despesas_com_Serviços",IF(D145=Despesas!$I$13,"Despesas_Administrativas",IF(D145=Despesas!$L$13,"Despesas_Operacionais",IF(D145=Despesas!$O$13,"Despesas_com_Pessoal",IF(D145=Despesas!$R$13,"Impostos",IF(D145=Despesas!$U$13,"Despesas_Não_Operacionais",IF(D145=Despesas!$X$13,"Outras_Despesas","")))))))))))) -> Outras_Receitas | R145: 0 | S145: 1 | T145: 1900
I146: 9990 | O146: =IFERROR(VLOOKUP(D146,Outros!$E$14:$F$25,2,0),"") -> Receita | P146: =IF(D146=Receitas!$C$13,"Receita_de_Vendas",IF(D146=Receitas!$F$13,"Receita_de_Serviços",IF(D146=Receitas!$I$13,"Receitas_Financeiras",IF(D146=Receitas!$L$13,"Outras_Receitas",IF(D146=Despesas!$C$13,"Despesas_com_Produto",IF(D146=Despesas!$F$13,"Despesas_com_Serviços",IF(D146=Despesas!$I$13,"Despesas_Administrativas",IF(D146=Despesas!$L$13,"Despesas_Operacionais",IF(D146=Despesas!$O$13,"Despesas_com_Pessoal",IF(D146=Despesas!$R$13,"Impostos",IF(D146=Despesas!$U$13,"Despesas_Não_Operacionais",IF(D146=Despesas!$X$13,"Outras_Despesas","")))))))))))) -> Outras_Receitas | R146: 0 | S146: 1 | T146: 1900
I147: 9990 | O147: =IFERROR(VLOOKUP(D147,Outros!$E$14:$F$25,2,0),"") -> Receita | P147: =IF(D147=Receitas!$C$13,"Receita_de_Vendas",IF(D147=Receitas!$F$13,"Receita_de_Serviços",IF(D147=Receitas!$I$13,"Receitas_Financeiras",IF(D147=Receitas!$L$13,"Outras_Receitas",IF(D147=Despesas!$C$13,"Despesas_com_Produto",IF(D147=Despesas!$F$13,"Despesas_com_Serviços",IF(D147=Despesas!$I$13,"Despesas_Administrativas",IF(D147=Despesas!$L$13,"Despesas_Operacionais",IF(D147=Despesas!$O$13,"Despesas_com_Pessoal",IF(D147=Despesas!$R$13,"Impostos",IF(D147=Despesas!$U$13,"Despesas_Não_Operacionais",IF(D147=Despesas!$X$13,"Outras_Despesas","")))))))))))) -> Outras_Receitas | R147: 0 | S147: 1 | T147: 1900
I148: 9990 | O148: =IFERROR(VLOOKUP(D148,Outros!$E$14:$F$25,2,0),"") -> Receita | P148: =IF(D148=Receitas!$C$13,"Receita_de_Vendas",IF(D148=Receitas!$F$13,"Receita_de_Serviços",IF(D148=Receitas!$I$13,"Receitas_Financeiras",IF(D148=Receitas!$L$13,"Outras_Receitas",IF(D148=Despesas!$C$13,"Despesas_com_Produto",IF(D148=Despesas!$F$13,"Despesas_com_Serviços",IF(D148=Despesas!$I$13,"Despesas_Administrativas",IF(D148=Despesas!$L$13,"Despesas_Operacionais",IF(D148=Despesas!$O$13,"Despesas_com_Pessoal",IF(D148=Despesas!$R$13,"Impostos",IF(D148=Despesas!$U$13,"Despesas_Não_Operacionais",IF(D148=Despesas!$X$13,"Outras_Despesas","")))))))))))) -> Outras_Receitas | R148: 0 | S148: 1 | T148: 1900
I149: 9990 | O149: =IFERROR(VLOOKUP(D149,Outros!$E$14:$F$25,2,0),"") -> Receita | P149: =IF(D149=Receitas!$C$13,"Receita_de_Vendas",IF(D149=Receitas!$F$13,"Receita_de_Serviços",IF(D149=Receitas!$I$13,"Receitas_Financeiras",IF(D149=Receitas!$L$13,"Outras_Receitas",IF(D149=Despesas!$C$13,"Despesas_com_Produto",IF(D149=Despesas!$F$13,"Despesas_com_Serviços",IF(D149=Despesas!$I$13,"Despesas_Administrativas",IF(D149=Despesas!$L$13,"Despesas_Operacionais",IF(D149=Despesas!$O$13,"Despesas_com_Pessoal",IF(D149=Despesas!$R$13,"Impostos",IF(D149=Despesas!$U$13,"Despesas_Não_Operacionais",IF(D149=Despesas!$X$13,"Outras_Despesas","")))))))))))) -> Outras_Receitas | R149: 0 | S149: 1 | T149: 1900
I150: 9990 | O150: =IFERROR(VLOOKUP(D150,Outros!$E$14:$F$25,2,0),"") -> Receita | P150: =IF(D150=Receitas!$C$13,"Receita_de_Vendas",IF(D150=Receitas!$F$13,"Receita_de_Serviços",IF(D150=Receitas!$I$13,"Receitas_Financeiras",IF(D150=Receitas!$L$13,"Outras_Receitas",IF(D150=Despesas!$C$13,"Despesas_com_Produto",IF(D150=Despesas!$F$13,"Despesas_com_Serviços",IF(D150=Despesas!$I$13,"Despesas_Administrativas",IF(D150=Despesas!$L$13,"Despesas_Operacionais",IF(D150=Despesas!$O$13,"Despesas_com_Pessoal",IF(D150=Despesas!$R$13,"Impostos",IF(D150=Despesas!$U$13,"Despesas_Não_Operacionais",IF(D150=Despesas!$X$13,"Outras_Despesas","")))))))))))) -> Outras_Receitas | R150: 0 | S150: 1 | T150: 1900
I151: 9990 | O151: =IFERROR(VLOOKUP(D151,Outros!$E$14:$F$25,2,0),"") -> Receita | P151: =IF(D151=Receitas!$C$13,"Receita_de_Vendas",IF(D151=Receitas!$F$13,"Receita_de_Serviços",IF(D151=Receitas!$I$13,"Receitas_Financeiras",IF(D151=Receitas!$L$13,"Outras_Receitas",IF(D151=Despesas!$C$13,"Despesas_com_Produto",IF(D151=Despesas!$F$13,"Despesas_com_Serviços",IF(D151=Despesas!$I$13,"Despesas_Administrativas",IF(D151=Despesas!$L$13,"Despesas_Operacionais",IF(D151=Despesas!$O$13,"Despesas_com_Pessoal",IF(D151=Despesas!$R$13,"Impostos",IF(D151=Despesas!$U$13,"Despesas_Não_Operacionais",IF(D151=Despesas!$X$13,"Outras_Despesas","")))))))))))) -> Outras_Receitas | R151: 0 | S151: 1 | T151: 1900
I152: 9990 | O152: =IFERROR(VLOOKUP(D152,Outros!$E$14:$F$25,2,0),"") -> Receita | P152: =IF(D152=Receitas!$C$13,"Receita_de_Vendas",IF(D152=Receitas!$F$13,"Receita_de_Serviços",IF(D152=Receitas!$I$13,"Receitas_Financeiras",IF(D152=Receitas!$L$13,"Outras_Receitas",IF(D152=Despesas!$C$13,"Despesas_com_Produto",IF(D152=Despesas!$F$13,"Despesas_com_Serviços",IF(D152=Despesas!$I$13,"Despesas_Administrativas",IF(D152=Despesas!$L$13,"Despesas_Operacionais",IF(D152=Despesas!$O$13,"Despesas_com_Pessoal",IF(D152=Despesas!$R$13,"Impostos",IF(D152=Despesas!$U$13,"Despesas_Não_Operacionais",IF(D152=Despesas!$X$13,"Outras_Despesas","")))))))))))) -> Outras_Receitas | R152: 0 | S152: 1 | T152: 1900
I153: 9990 | O153: =IFERROR(VLOOKUP(D153,Outros!$E$14:$F$25,2,0),"") -> Receita | P153: =IF(D153=Receitas!$C$13,"Receita_de_Vendas",IF(D153=Receitas!$F$13,"Receita_de_Serviços",IF(D153=Receitas!$I$13,"Receitas_Financeiras",IF(D153=Receitas!$L$13,"Outras_Receitas",IF(D153=Despesas!$C$13,"Despesas_com_Produto",IF(D153=Despesas!$F$13,"Despesas_com_Serviços",IF(D153=Despesas!$I$13,"Despesas_Administrativas",IF(D153=Despesas!$L$13,"Despesas_Operacionais",IF(D153=Despesas!$O$13,"Despesas_com_Pessoal",IF(D153=Despesas!$R$13,"Impostos",IF(D153=Despesas!$U$13,"Despesas_Não_Operacionais",IF(D153=Despesas!$X$13,"Outras_Despesas","")))))))))))) -> Outras_Receitas | R153: 0 | S153: 1 | T153: 1900
I154: 9990 | O154: =IFERROR(VLOOKUP(D154,Outros!$E$14:$F$25,2,0),"") -> Receita | P154: =IF(D154=Receitas!$C$13,"Receita_de_Vendas",IF(D154=Receitas!$F$13,"Receita_de_Serviços",IF(D154=Receitas!$I$13,"Receitas_Financeiras",IF(D154=Receitas!$L$13,"Outras_Receitas",IF(D154=Despesas!$C$13,"Despesas_com_Produto",IF(D154=Despesas!$F$13,"Despesas_com_Serviços",IF(D154=Despesas!$I$13,"Despesas_Administrativas",IF(D154=Despesas!$L$13,"Despesas_Operacionais",IF(D154=Despesas!$O$13,"Despesas_com_Pessoal",IF(D154=Despesas!$R$13,"Impostos",IF(D154=Despesas!$U$13,"Despesas_Não_Operacionais",IF(D154=Despesas!$X$13,"Outras_Despesas","")))))))))))) -> Outras_Receitas | R154: 0 | S154: 1 | T154: 1900
I155: 9990 | O155: =IFERROR(VLOOKUP(D155,Outros!$E$14:$F$25,2,0),"") -> Receita | P155: =IF(D155=Receitas!$C$13,"Receita_de_Vendas",IF(D155=Receitas!$F$13,"Receita_de_Serviços",IF(D155=Receitas!$I$13,"Receitas_Financeiras",IF(D155=Receitas!$L$13,"Outras_Receitas",IF(D155=Despesas!$C$13,"Despesas_com_Produto",IF(D155=Despesas!$F$13,"Despesas_com_Serviços",IF(D155=Despesas!$I$13,"Despesas_Administrativas",IF(D155=Despesas!$L$13,"Despesas_Operacionais",IF(D155=Despesas!$O$13,"Despesas_com_Pessoal",IF(D155=Despesas!$R$13,"Impostos",IF(D155=Despesas!$U$13,"Despesas_Não_Operacionais",IF(D155=Despesas!$X$13,"Outras_Despesas","")))))))))))) -> Outras_Receitas | R155: 0 | S155: 1 | T155: 1900
I156: 9990 | O156: =IFERROR(VLOOKUP(D156,Outros!$E$14:$F$25,2,0),"") -> Receita | P156: =IF(D156=Receitas!$C$13,"Receita_de_Vendas",IF(D156=Receitas!$F$13,"Receita_de_Serviços",IF(D156=Receitas!$I$13,"Receitas_Financeiras",IF(D156=Receitas!$L$13,"Outras_Receitas",IF(D156=Despesas!$C$13,"Despesas_com_Produto",IF(D156=Despesas!$F$13,"Despesas_com_Serviços",IF(D156=Despesas!$I$13,"Despesas_Administrativas",IF(D156=Despesas!$L$13,"Despesas_Operacionais",IF(D156=Despesas!$O$13,"Despesas_com_Pessoal",IF(D156=Despesas!$R$13,"Impostos",IF(D156=Despesas!$U$13,"Despesas_Não_Operacionais",IF(D156=Despesas!$X$13,"Outras_Despesas","")))))))))))) -> Outras_Receitas | R156: 0 | S156: 1 | T156: 1900
I157: 9990 | O157: =IFERROR(VLOOKUP(D157,Outros!$E$14:$F$25,2,0),"") -> Receita | P157: =IF(D157=Receitas!$C$13,"Receita_de_Vendas",IF(D157=Receitas!$F$13,"Receita_de_Serviços",IF(D157=Receitas!$I$13,"Receitas_Financeiras",IF(D157=Receitas!$L$13,"Outras_Receitas",IF(D157=Despesas!$C$13,"Despesas_com_Produto",IF(D157=Despesas!$F$13,"Despesas_com_Serviços",IF(D157=Despesas!$I$13,"Despesas_Administrativas",IF(D157=Despesas!$L$13,"Despesas_Operacionais",IF(D157=Despesas!$O$13,"Despesas_com_Pessoal",IF(D157=Despesas!$R$13,"Impostos",IF(D157=Despesas!$U$13,"Despesas_Não_Operacionais",IF(D157=Despesas!$X$13,"Outras_Despesas","")))))))))))) -> Outras_Receitas | R157: 0 | S157: 1 | T157: 1900
I158: 9990 | O158: =IFERROR(VLOOKUP(D158,Outros!$E$14:$F$25,2,0),"") -> Receita | P158: =IF(D158=Receitas!$C$13,"Receita_de_Vendas",IF(D158=Receitas!$F$13,"Receita_de_Serviços",IF(D158=Receitas!$I$13,"Receitas_Financeiras",IF(D158=Receitas!$L$13,"Outras_Receitas",IF(D158=Despesas!$C$13,"Despesas_com_Produto",IF(D158=Despesas!$F$13,"Despesas_com_Serviços",IF(D158=Despesas!$I$13,"Despesas_Administrativas",IF(D158=Despesas!$L$13,"Despesas_Operacionais",IF(D158=Despesas!$O$13,"Despesas_com_Pessoal",IF(D158=Despesas!$R$13,"Impostos",IF(D158=Despesas!$U$13,"Despesas_Não_Operacionais",IF(D158=Despesas!$X$13,"Outras_Despesas","")))))))))))) -> Outras_Receitas | R158: 0 | S158: 1 | T158: 1900
I159: 9990 | O159: =IFERROR(VLOOKUP(D159,Outros!$E$14:$F$25,2,0),"") -> Receita | P159: =IF(D159=Receitas!$C$13,"Receita_de_Vendas",IF(D159=Receitas!$F$13,"Receita_de_Serviços",IF(D159=Receitas!$I$13,"Receitas_Financeiras",IF(D159=Receitas!$L$13,"Outras_Receitas",IF(D159=Despesas!$C$13,"Despesas_com_Produto",IF(D159=Despesas!$F$13,"Despesas_com_Serviços",IF(D159=Despesas!$I$13,"Despesas_Administrativas",IF(D159=Despesas!$L$13,"Despesas_Operacionais",IF(D159=Despesas!$O$13,"Despesas_com_Pessoal",IF(D159=Despesas!$R$13,"Impostos",IF(D159=Despesas!$U$13,"Despesas_Não_Operacionais",IF(D159=Despesas!$X$13,"Outras_Despesas","")))))))))))) -> Outras_Receitas | R159: 0 | S159: 1 | T159: 1900
I160: 9990 | O160: =IFERROR(VLOOKUP(D160,Outros!$E$14:$F$25,2,0),"") -> Receita | P160: =IF(D160=Receitas!$C$13,"Receita_de_Vendas",IF(D160=Receitas!$F$13,"Receita_de_Serviços",IF(D160=Receitas!$I$13,"Receitas_Financeiras",IF(D160=Receitas!$L$13,"Outras_Receitas",IF(D160=Despesas!$C$13,"Despesas_com_Produto",IF(D160=Despesas!$F$13,"Despesas_com_Serviços",IF(D160=Despesas!$I$13,"Despesas_Administrativas",IF(D160=Despesas!$L$13,"Despesas_Operacionais",IF(D160=Despesas!$O$13,"Despesas_com_Pessoal",IF(D160=Despesas!$R$13,"Impostos",IF(D160=Despesas!$U$13,"Despesas_Não_Operacionais",IF(D160=Despesas!$X$13,"Outras_Despesas","")))))))))))) -> Outras_Receitas | R160: 0 | S160: 1 | T160: 1900
I161: 9990 | O161: =IFERROR(VLOOKUP(D161,Outros!$E$14:$F$25,2,0),"") -> Receita | P161: =IF(D161=Receitas!$C$13,"Receita_de_Vendas",IF(D161=Receitas!$F$13,"Receita_de_Serviços",IF(D161=Receitas!$I$13,"Receitas_Financeiras",IF(D161=Receitas!$L$13,"Outras_Receitas",IF(D161=Despesas!$C$13,"Despesas_com_Produto",IF(D161=Despesas!$F$13,"Despesas_com_Serviços",IF(D161=Despesas!$I$13,"Despesas_Administrativas",IF(D161=Despesas!$L$13,"Despesas_Operacionais",IF(D161=Despesas!$O$13,"Despesas_com_Pessoal",IF(D161=Despesas!$R$13,"Impostos",IF(D161=Despesas!$U$13,"Despesas_Não_Operacionais",IF(D161=Despesas!$X$13,"Outras_Despesas","")))))))))))) -> Outras_Receitas | R161: 0 | S161: 1 | T161: 1900
I162: 9990 | O162: =IFERROR(VLOOKUP(D162,Outros!$E$14:$F$25,2,0),"") -> Receita | P162: =IF(D162=Receitas!$C$13,"Receita_de_Vendas",IF(D162=Receitas!$F$13,"Receita_de_Serviços",IF(D162=Receitas!$I$13,"Receitas_Financeiras",IF(D162=Receitas!$L$13,"Outras_Receitas",IF(D162=Despesas!$C$13,"Despesas_com_Produto",IF(D162=Despesas!$F$13,"Despesas_com_Serviços",IF(D162=Despesas!$I$13,"Despesas_Administrativas",IF(D162=Despesas!$L$13,"Despesas_Operacionais",IF(D162=Despesas!$O$13,"Despesas_com_Pessoal",IF(D162=Despesas!$R$13,"Impostos",IF(D162=Despesas!$U$13,"Despesas_Não_Operacionais",IF(D162=Despesas!$X$13,"Outras_Despesas","")))))))))))) -> Outras_Receitas | R162: 0 | S162: 1 | T162: 1900
I163: 9990 | O163: =IFERROR(VLOOKUP(D163,Outros!$E$14:$F$25,2,0),"") -> Receita | P163: =IF(D163=Receitas!$C$13,"Receita_de_Vendas",IF(D163=Receitas!$F$13,"Receita_de_Serviços",IF(D163=Receitas!$I$13,"Receitas_Financeiras",IF(D163=Receitas!$L$13,"Outras_Receitas",IF(D163=Despesas!$C$13,"Despesas_com_Produto",IF(D163=Despesas!$F$13,"Despesas_com_Serviços",IF(D163=Despesas!$I$13,"Despesas_Administrativas",IF(D163=Despesas!$L$13,"Despesas_Operacionais",IF(D163=Despesas!$O$13,"Despesas_com_Pessoal",IF(D163=Despesas!$R$13,"Impostos",IF(D163=Despesas!$U$13,"Despesas_Não_Operacionais",IF(D163=Despesas!$X$13,"Outras_Despesas","")))))))))))) -> Outras_Receitas | R163: 0 | S163: 1 | T163: 1900
I164: 9990 | O164: =IFERROR(VLOOKUP(D164,Outros!$E$14:$F$25,2,0),"") -> Receita | P164: =IF(D164=Receitas!$C$13,"Receita_de_Vendas",IF(D164=Receitas!$F$13,"Receita_de_Serviços",IF(D164=Receitas!$I$13,"Receitas_Financeiras",IF(D164=Receitas!$L$13,"Outras_Receitas",IF(D164=Despesas!$C$13,"Despesas_com_Produto",IF(D164=Despesas!$F$13,"Despesas_com_Serviços",IF(D164=Despesas!$I$13,"Despesas_Administrativas",IF(D164=Despesas!$L$13,"Despesas_Operacionais",IF(D164=Despesas!$O$13,"Despesas_com_Pessoal",IF(D164=Despesas!$R$13,"Impostos",IF(D164=Despesas!$U$13,"Despesas_Não_Operacionais",IF(D164=Despesas!$X$13,"Outras_Despesas","")))))))))))) -> Outras_Receitas | R164: 0 | S164: 1 | T164: 1900
I165: 9990 | O165: =IFERROR(VLOOKUP(D165,Outros!$E$14:$F$25,2,0),"") -> Receita | P165: =IF(D165=Receitas!$C$13,"Receita_de_Vendas",IF(D165=Receitas!$F$13,"Receita_de_Serviços",IF(D165=Receitas!$I$13,"Receitas_Financeiras",IF(D165=Receitas!$L$13,"Outras_Receitas",IF(D165=Despesas!$C$13,"Despesas_com_Produto",IF(D165=Despesas!$F$13,"Despesas_com_Serviços",IF(D165=Despesas!$I$13,"Despesas_Administrativas",IF(D165=Despesas!$L$13,"Despesas_Operacionais",IF(D165=Despesas!$O$13,"Despesas_com_Pessoal",IF(D165=Despesas!$R$13,"Impostos",IF(D165=Despesas!$U$13,"Despesas_Não_Operacionais",IF(D165=Despesas!$X$13,"Outras_Despesas","")))))))))))) -> Outras_Receitas | R165: 0 | S165: 1 | T165: 1900
I166: 9990 | O166: =IFERROR(VLOOKUP(D166,Outros!$E$14:$F$25,2,0),"") -> Receita | P166: =IF(D166=Receitas!$C$13,"Receita_de_Vendas",IF(D166=Receitas!$F$13,"Receita_de_Serviços",IF(D166=Receitas!$I$13,"Receitas_Financeiras",IF(D166=Receitas!$L$13,"Outras_Receitas",IF(D166=Despesas!$C$13,"Despesas_com_Produto",IF(D166=Despesas!$F$13,"Despesas_com_Serviços",IF(D166=Despesas!$I$13,"Despesas_Administrativas",IF(D166=Despesas!$L$13,"Despesas_Operacionais",IF(D166=Despesas!$O$13,"Despesas_com_Pessoal",IF(D166=Despesas!$R$13,"Impostos",IF(D166=Despesas!$U$13,"Despesas_Não_Operacionais",IF(D166=Despesas!$X$13,"Outras_Despesas","")))))))))))) -> Outras_Receitas | R166: 0 | S166: 1 | T166: 1900
I167: 9990 | O167: =IFERROR(VLOOKUP(D167,Outros!$E$14:$F$25,2,0),"") -> Receita | P167: =IF(D167=Receitas!$C$13,"Receita_de_Vendas",IF(D167=Receitas!$F$13,"Receita_de_Serviços",IF(D167=Receitas!$I$13,"Receitas_Financeiras",IF(D167=Receitas!$L$13,"Outras_Receitas",IF(D167=Despesas!$C$13,"Despesas_com_Produto",IF(D167=Despesas!$F$13,"Despesas_com_Serviços",IF(D167=Despesas!$I$13,"Despesas_Administrativas",IF(D167=Despesas!$L$13,"Despesas_Operacionais",IF(D167=Despesas!$O$13,"Despesas_com_Pessoal",IF(D167=Despesas!$R$13,"Impostos",IF(D167=Despesas!$U$13,"Despesas_Não_Operacionais",IF(D167=Despesas!$X$13,"Outras_Despesas","")))))))))))) -> Outras_Receitas | R167: 0 | S167: 1 | T167: 1900
I168: 9990 | O168: =IFERROR(VLOOKUP(D168,Outros!$E$14:$F$25,2,0),"") -> Receita | P168: =IF(D168=Receitas!$C$13,"Receita_de_Vendas",IF(D168=Receitas!$F$13,"Receita_de_Serviços",IF(D168=Receitas!$I$13,"Receitas_Financeiras",IF(D168=Receitas!$L$13,"Outras_Receitas",IF(D168=Despesas!$C$13,"Despesas_com_Produto",IF(D168=Despesas!$F$13,"Despesas_com_Serviços",IF(D168=Despesas!$I$13,"Despesas_Administrativas",IF(D168=Despesas!$L$13,"Despesas_Operacionais",IF(D168=Despesas!$O$13,"Despesas_com_Pessoal",IF(D168=Despesas!$R$13,"Impostos",IF(D168=Despesas!$U$13,"Despesas_Não_Operacionais",IF(D168=Despesas!$X$13,"Outras_Despesas","")))))))))))) -> Outras_Receitas | R168: 0 | S168: 1 | T168: 1900
I169: 9990 | O169: =IFERROR(VLOOKUP(D169,Outros!$E$14:$F$25,2,0),"") -> Receita | P169: =IF(D169=Receitas!$C$13,"Receita_de_Vendas",IF(D169=Receitas!$F$13,"Receita_de_Serviços",IF(D169=Receitas!$I$13,"Receitas_Financeiras",IF(D169=Receitas!$L$13,"Outras_Receitas",IF(D169=Despesas!$C$13,"Despesas_com_Produto",IF(D169=Despesas!$F$13,"Despesas_com_Serviços",IF(D169=Despesas!$I$13,"Despesas_Administrativas",IF(D169=Despesas!$L$13,"Despesas_Operacionais",IF(D169=Despesas!$O$13,"Despesas_com_Pessoal",IF(D169=Despesas!$R$13,"Impostos",IF(D169=Despesas!$U$13,"Despesas_Não_Operacionais",IF(D169=Despesas!$X$13,"Outras_Despesas","")))))))))))) -> Outras_Receitas | R169: 0 | S169: 1 | T169: 1900
I170: 9990 | O170: =IFERROR(VLOOKUP(D170,Outros!$E$14:$F$25,2,0),"") -> Receita | P170: =IF(D170=Receitas!$C$13,"Receita_de_Vendas",IF(D170=Receitas!$F$13,"Receita_de_Serviços",IF(D170=Receitas!$I$13,"Receitas_Financeiras",IF(D170=Receitas!$L$13,"Outras_Receitas",IF(D170=Despesas!$C$13,"Despesas_com_Produto",IF(D170=Despesas!$F$13,"Despesas_com_Serviços",IF(D170=Despesas!$I$13,"Despesas_Administrativas",IF(D170=Despesas!$L$13,"Despesas_Operacionais",IF(D170=Despesas!$O$13,"Despesas_com_Pessoal",IF(D170=Despesas!$R$13,"Impostos",IF(D170=Despesas!$U$13,"Despesas_Não_Operacionais",IF(D170=Despesas!$X$13,"Outras_Despesas","")))))))))))) -> Outras_Receitas | R170: 0 | S170: 1 | T170: 1900
I171: 9990 | O171: =IFERROR(VLOOKUP(D171,Outros!$E$14:$F$25,2,0),"") -> Receita | P171: =IF(D171=Receitas!$C$13,"Receita_de_Vendas",IF(D171=Receitas!$F$13,"Receita_de_Serviços",IF(D171=Receitas!$I$13,"Receitas_Financeiras",IF(D171=Receitas!$L$13,"Outras_Receitas",IF(D171=Despesas!$C$13,"Despesas_com_Produto",IF(D171=Despesas!$F$13,"Despesas_com_Serviços",IF(D171=Despesas!$I$13,"Despesas_Administrativas",IF(D171=Despesas!$L$13,"Despesas_Operacionais",IF(D171=Despesas!$O$13,"Despesas_com_Pessoal",IF(D171=Despesas!$R$13,"Impostos",IF(D171=Despesas!$U$13,"Despesas_Não_Operacionais",IF(D171=Despesas!$X$13,"Outras_Despesas","")))))))))))) -> Outras_Receitas | R171: 0 | S171: 1 | T171: 1900
I172: 9990 | O172: =IFERROR(VLOOKUP(D172,Outros!$E$14:$F$25,2,0),"") -> Receita | P172: =IF(D172=Receitas!$C$13,"Receita_de_Vendas",IF(D172=Receitas!$F$13,"Receita_de_Serviços",IF(D172=Receitas!$I$13,"Receitas_Financeiras",IF(D172=Receitas!$L$13,"Outras_Receitas",IF(D172=Despesas!$C$13,"Despesas_com_Produto",IF(D172=Despesas!$F$13,"Despesas_com_Serviços",IF(D172=Despesas!$I$13,"Despesas_Administrativas",IF(D172=Despesas!$L$13,"Despesas_Operacionais",IF(D172=Despesas!$O$13,"Despesas_com_Pessoal",IF(D172=Despesas!$R$13,"Impostos",IF(D172=Despesas!$U$13,"Despesas_Não_Operacionais",IF(D172=Despesas!$X$13,"Outras_Despesas","")))))))))))) -> Outras_Receitas | R172: 0 | S172: 1 | T172: 1900
I173: 9990 | O173: =IFERROR(VLOOKUP(D173,Outros!$E$14:$F$25,2,0),"") -> Receita | P173: =IF(D173=Receitas!$C$13,"Receita_de_Vendas",IF(D173=Receitas!$F$13,"Receita_de_Serviços",IF(D173=Receitas!$I$13,"Receitas_Financeiras",IF(D173=Receitas!$L$13,"Outras_Receitas",IF(D173=Despesas!$C$13,"Despesas_com_Produto",IF(D173=Despesas!$F$13,"Despesas_com_Serviços",IF(D173=Despesas!$I$13,"Despesas_Administrativas",IF(D173=Despesas!$L$13,"Despesas_Operacionais",IF(D173=Despesas!$O$13,"Despesas_com_Pessoal",IF(D173=Despesas!$R$13,"Impostos",IF(D173=Despesas!$U$13,"Despesas_Não_Operacionais",IF(D173=Despesas!$X$13,"Outras_Despesas","")))))))))))) -> Outras_Receitas | R173: 0 | S173: 1 | T173: 1900
I174: 9990 | O174: =IFERROR(VLOOKUP(D174,Outros!$E$14:$F$25,2,0),"") -> Receita | P174: =IF(D174=Receitas!$C$13,"Receita_de_Vendas",IF(D174=Receitas!$F$13,"Receita_de_Serviços",IF(D174=Receitas!$I$13,"Receitas_Financeiras",IF(D174=Receitas!$L$13,"Outras_Receitas",IF(D174=Despesas!$C$13,"Despesas_com_Produto",IF(D174=Despesas!$F$13,"Despesas_com_Serviços",IF(D174=Despesas!$I$13,"Despesas_Administrativas",IF(D174=Despesas!$L$13,"Despesas_Operacionais",IF(D174=Despesas!$O$13,"Despesas_com_Pessoal",IF(D174=Despesas!$R$13,"Impostos",IF(D174=Despesas!$U$13,"Despesas_Não_Operacionais",IF(D174=Despesas!$X$13,"Outras_Despesas","")))))))))))) -> Outras_Receitas | R174: 0 | S174: 1 | T174: 1900
I175: 9990 | O175: =IFERROR(VLOOKUP(D175,Outros!$E$14:$F$25,2,0),"") -> Receita | P175: =IF(D175=Receitas!$C$13,"Receita_de_Vendas",IF(D175=Receitas!$F$13,"Receita_de_Serviços",IF(D175=Receitas!$I$13,"Receitas_Financeiras",IF(D175=Receitas!$L$13,"Outras_Receitas",IF(D175=Despesas!$C$13,"Despesas_com_Produto",IF(D175=Despesas!$F$13,"Despesas_com_Serviços",IF(D175=Despesas!$I$13,"Despesas_Administrativas",IF(D175=Despesas!$L$13,"Despesas_Operacionais",IF(D175=Despesas!$O$13,"Despesas_com_Pessoal",IF(D175=Despesas!$R$13,"Impostos",IF(D175=Despesas!$U$13,"Despesas_Não_Operacionais",IF(D175=Despesas!$X$13,"Outras_Despesas","")))))))))))) -> Outras_Receitas | R175: 0 | S175: 1 | T175: 1900
I176: 9990 | O176: =IFERROR(VLOOKUP(D176,Outros!$E$14:$F$25,2,0),"") -> Receita | P176: =IF(D176=Receitas!$C$13,"Receita_de_Vendas",IF(D176=Receitas!$F$13,"Receita_de_Serviços",IF(D176=Receitas!$I$13,"Receitas_Financeiras",IF(D176=Receitas!$L$13,"Outras_Receitas",IF(D176=Despesas!$C$13,"Despesas_com_Produto",IF(D176=Despesas!$F$13,"Despesas_com_Serviços",IF(D176=Despesas!$I$13,"Despesas_Administrativas",IF(D176=Despesas!$L$13,"Despesas_Operacionais",IF(D176=Despesas!$O$13,"Despesas_com_Pessoal",IF(D176=Despesas!$R$13,"Impostos",IF(D176=Despesas!$U$13,"Despesas_Não_Operacionais",IF(D176=Despesas!$X$13,"Outras_Despesas","")))))))))))) -> Outras_Receitas | R176: 0 | S176: 1 | T176: 1900
I177: 9990 | O177: =IFERROR(VLOOKUP(D177,Outros!$E$14:$F$25,2,0),"") -> Receita | P177: =IF(D177=Receitas!$C$13,"Receita_de_Vendas",IF(D177=Receitas!$F$13,"Receita_de_Serviços",IF(D177=Receitas!$I$13,"Receitas_Financeiras",IF(D177=Receitas!$L$13,"Outras_Receitas",IF(D177=Despesas!$C$13,"Despesas_com_Produto",IF(D177=Despesas!$F$13,"Despesas_com_Serviços",IF(D177=Despesas!$I$13,"Despesas_Administrativas",IF(D177=Despesas!$L$13,"Despesas_Operacionais",IF(D177=Despesas!$O$13,"Despesas_com_Pessoal",IF(D177=Despesas!$R$13,"Impostos",IF(D177=Despesas!$U$13,"Despesas_Não_Operacionais",IF(D177=Despesas!$X$13,"Outras_Despesas","")))))))))))) -> Outras_Receitas | R177: 0 | S177: 1 | T177: 1900
I178: 9990 | O178: =IFERROR(VLOOKUP(D178,Outros!$E$14:$F$25,2,0),"") -> Receita | P178: =IF(D178=Receitas!$C$13,"Receita_de_Vendas",IF(D178=Receitas!$F$13,"Receita_de_Serviços",IF(D178=Receitas!$I$13,"Receitas_Financeiras",IF(D178=Receitas!$L$13,"Outras_Receitas",IF(D178=Despesas!$C$13,"Despesas_com_Produto",IF(D178=Despesas!$F$13,"Despesas_com_Serviços",IF(D178=Despesas!$I$13,"Despesas_Administrativas",IF(D178=Despesas!$L$13,"Despesas_Operacionais",IF(D178=Despesas!$O$13,"Despesas_com_Pessoal",IF(D178=Despesas!$R$13,"Impostos",IF(D178=Despesas!$U$13,"Despesas_Não_Operacionais",IF(D178=Despesas!$X$13,"Outras_Despesas","")))))))))))) -> Outras_Receitas | R178: 0 | S178: 1 | T178: 1900
I179: 9990 | O179: =IFERROR(VLOOKUP(D179,Outros!$E$14:$F$25,2,0),"") -> Receita | P179: =IF(D179=Receitas!$C$13,"Receita_de_Vendas",IF(D179=Receitas!$F$13,"Receita_de_Serviços",IF(D179=Receitas!$I$13,"Receitas_Financeiras",IF(D179=Receitas!$L$13,"Outras_Receitas",IF(D179=Despesas!$C$13,"Despesas_com_Produto",IF(D179=Despesas!$F$13,"Despesas_com_Serviços",IF(D179=Despesas!$I$13,"Despesas_Administrativas",IF(D179=Despesas!$L$13,"Despesas_Operacionais",IF(D179=Despesas!$O$13,"Despesas_com_Pessoal",IF(D179=Despesas!$R$13,"Impostos",IF(D179=Despesas!$U$13,"Despesas_Não_Operacionais",IF(D179=Despesas!$X$13,"Outras_Despesas","")))))))))))) -> Outras_Receitas | R179: 0 | S179: 1 | T179: 1900
I180: 9990 | O180: =IFERROR(VLOOKUP(D180,Outros!$E$14:$F$25,2,0),"") -> Receita | P180: =IF(D180=Receitas!$C$13,"Receita_de_Vendas",IF(D180=Receitas!$F$13,"Receita_de_Serviços",IF(D180=Receitas!$I$13,"Receitas_Financeiras",IF(D180=Receitas!$L$13,"Outras_Receitas",IF(D180=Despesas!$C$13,"Despesas_com_Produto",IF(D180=Despesas!$F$13,"Despesas_com_Serviços",IF(D180=Despesas!$I$13,"Despesas_Administrativas",IF(D180=Despesas!$L$13,"Despesas_Operacionais",IF(D180=Despesas!$O$13,"Despesas_com_Pessoal",IF(D180=Despesas!$R$13,"Impostos",IF(D180=Despesas!$U$13,"Despesas_Não_Operacionais",IF(D180=Despesas!$X$13,"Outras_Despesas","")))))))))))) -> Outras_Receitas | R180: 0 | S180: 1 | T180: 1900
I181: 9990 | O181: =IFERROR(VLOOKUP(D181,Outros!$E$14:$F$25,2,0),"") -> Receita | P181: =IF(D181=Receitas!$C$13,"Receita_de_Vendas",IF(D181=Receitas!$F$13,"Receita_de_Serviços",IF(D181=Receitas!$I$13,"Receitas_Financeiras",IF(D181=Receitas!$L$13,"Outras_Receitas",IF(D181=Despesas!$C$13,"Despesas_com_Produto",IF(D181=Despesas!$F$13,"Despesas_com_Serviços",IF(D181=Despesas!$I$13,"Despesas_Administrativas",IF(D181=Despesas!$L$13,"Despesas_Operacionais",IF(D181=Despesas!$O$13,"Despesas_com_Pessoal",IF(D181=Despesas!$R$13,"Impostos",IF(D181=Despesas!$U$13,"Despesas_Não_Operacionais",IF(D181=Despesas!$X$13,"Outras_Despesas","")))))))))))) -> Outras_Receitas | R181: 0 | S181: 1 | T181: 1900
I182: 9990 | O182: =IFERROR(VLOOKUP(D182,Outros!$E$14:$F$25,2,0),"") -> Receita | P182: =IF(D182=Receitas!$C$13,"Receita_de_Vendas",IF(D182=Receitas!$F$13,"Receita_de_Serviços",IF(D182=Receitas!$I$13,"Receitas_Financeiras",IF(D182=Receitas!$L$13,"Outras_Receitas",IF(D182=Despesas!$C$13,"Despesas_com_Produto",IF(D182=Despesas!$F$13,"Despesas_com_Serviços",IF(D182=Despesas!$I$13,"Despesas_Administrativas",IF(D182=Despesas!$L$13,"Despesas_Operacionais",IF(D182=Despesas!$O$13,"Despesas_com_Pessoal",IF(D182=Despesas!$R$13,"Impostos",IF(D182=Despesas!$U$13,"Despesas_Não_Operacionais",IF(D182=Despesas!$X$13,"Outras_Despesas","")))))))))))) -> Outras_Receitas | R182: 0 | S182: 1 | T182: 1900
I183: 9990 | O183: =IFERROR(VLOOKUP(D183,Outros!$E$14:$F$25,2,0),"") -> Receita | P183: =IF(D183=Receitas!$C$13,"Receita_de_Vendas",IF(D183=Receitas!$F$13,"Receita_de_Serviços",IF(D183=Receitas!$I$13,"Receitas_Financeiras",IF(D183=Receitas!$L$13,"Outras_Receitas",IF(D183=Despesas!$C$13,"Despesas_com_Produto",IF(D183=Despesas!$F$13,"Despesas_com_Serviços",IF(D183=Despesas!$I$13,"Despesas_Administrativas",IF(D183=Despesas!$L$13,"Despesas_Operacionais",IF(D183=Despesas!$O$13,"Despesas_com_Pessoal",IF(D183=Despesas!$R$13,"Impostos",IF(D183=Despesas!$U$13,"Despesas_Não_Operacionais",IF(D183=Despesas!$X$13,"Outras_Despesas","")))))))))))) -> Outras_Receitas | R183: 0 | S183: 1 | T183: 1900
I184: 9990 | O184: =IFERROR(VLOOKUP(D184,Outros!$E$14:$F$25,2,0),"") -> Receita | P184: =IF(D184=Receitas!$C$13,"Receita_de_Vendas",IF(D184=Receitas!$F$13,"Receita_de_Serviços",IF(D184=Receitas!$I$13,"Receitas_Financeiras",IF(D184=Receitas!$L$13,"Outras_Receitas",IF(D184=Despesas!$C$13,"Despesas_com_Produto",IF(D184=Despesas!$F$13,"Despesas_com_Serviços",IF(D184=Despesas!$I$13,"Despesas_Administrativas",IF(D184=Despesas!$L$13,"Despesas_Operacionais",IF(D184=Despesas!$O$13,"Despesas_com_Pessoal",IF(D184=Despesas!$R$13,"Impostos",IF(D184=Despesas!$U$13,"Despesas_Não_Operacionais",IF(D184=Despesas!$X$13,"Outras_Despesas","")))))))))))) -> Outras_Receitas | R184: 0 | S184: 1 | T184: 1900
I185: 9990 | O185: =IFERROR(VLOOKUP(D185,Outros!$E$14:$F$25,2,0),"") -> Receita | P185: =IF(D185=Receitas!$C$13,"Receita_de_Vendas",IF(D185=Receitas!$F$13,"Receita_de_Serviços",IF(D185=Receitas!$I$13,"Receitas_Financeiras",IF(D185=Receitas!$L$13,"Outras_Receitas",IF(D185=Despesas!$C$13,"Despesas_com_Produto",IF(D185=Despesas!$F$13,"Despesas_com_Serviços",IF(D185=Despesas!$I$13,"Despesas_Administrativas",IF(D185=Despesas!$L$13,"Despesas_Operacionais",IF(D185=Despesas!$O$13,"Despesas_com_Pessoal",IF(D185=Despesas!$R$13,"Impostos",IF(D185=Despesas!$U$13,"Despesas_Não_Operacionais",IF(D185=Despesas!$X$13,"Outras_Despesas","")))))))))))) -> Outras_Receitas | R185: 0 | S185: 1 | T185: 1900
